Workbook

Sheet Pres & Prop Rev
A2: Effective September 1, 2024
D4: RESIDENTIAL | E4: GENERAL SVC. | F4: LG. GEN. SVC. | G4: EX LG GEN SVC | H4: CLEARWATER | I4: PUMPING | J4: ST & AREA LTG
C5: TOTAL | D5: SCHEDULE 1 | E5: SCH. 11,12 | F5: SCH. 21,22 | G5: SCHEDULE 25 | H5: SCHEDULE 25P | I5: SCH. 31, 32 | J5: SCH. 41-49 | Q5: Print Header for all printed pages on this worksheet:
B6: PRESENT BILL DETERMINANTS | M6: Calculate all revenue exhibits using ____ rates: | Q6: ="AVISTA UTILITIES IDAHO ELECTRIC, CASE NO. AVU-E-23-XX PRO FORMA REVENUE UNDER PRESENT AND PROPOSED "&O9&" RATES 12 MONTHS ENDED JUNE 30, 2022" -> AVISTA UTILITIES IDAHO ELECTRIC, CASE NO. AVU-E-23-XX PRO FORMA REVENUE UNDER PRESENT AND PROPOSED BASE TARIFF RATES 12 MONTHS ENDED JUNE 30, 2022
B7: KILOWATT HOURS (KWHS) | L7: 1) | M7: BASE TARIFF
B8: BLOCK 1 | D8: ='Bill Determ'!$B$9 -> 699501080.8 | E8: ='Bill Determ'!$B$17 -> 303047291 | F8: ='Bill Determ'!$B$27 -> 524086536.3 | G8: ='Bill Determ'!$B$35 -> 66000000 | H8: ='Bill Determ'!$B$39 -> 368011886 | I8: =SUM('Bill Determ'!$B$43:$C$43) -> 27316002.49 | M8: or | O8: 1
B9: BLOCK 2 | D9: ='Bill Determ'!$C$9 -> 606516574.1 | E9: ='Bill Determ'!$C$17 -> 149980966.6 | F9: ='Bill Determ'!$C$27 -> 50808392.33 | G9: ='Bill Determ'!$C$35 -> 281870216 | I9: ='Bill Determ'!$D$43 -> 38529859.27 | L9: 2) | M9: BILLING | O9: =CHOOSE(Base1_Billing2,M7,M9) -> BASE TARIFF
B10: BLOCK 3 | O10: =CHOOSE(Base1_Billing2,"Base","Billing") -> Base
B11: BLOCK 4
B12: STREET & AREA LIGHTS | J12: =SUM('Rev Runs'!P32) -> 10433026.22
B14: SUBTOTAL | C14: =SUM(D14:J14) -> 3126101831 | D14: =SUM(D8:D12) -> 1306017655 | E14: 453028257.6 | F14: =SUM(F8:F12) -> 574894928.6 | G14: 347870216 | H14: =SUM(H8:H12) -> 368011886 | I14: 65845861.76 | J14: 10433026.22
C15: =SUM(D15:J15) -> 0 | D15: ='Bill Determ'!$D$12 -> 0 | E15: ='Bill Determ'!$D$22 -> 0 | F15: ='Bill Determ'!$D$32 -> 0 | G15: ='Bill Determ'!$D$36 -> 0 | I15: ='Bill Determ'!$E$46 -> 0
B17: SUBTOTAL | C17: =SUM(D17:J17) -> 3126101831 | D17: =D14+D15 -> 1306017655 | E17: 453028257.6 | F17: 574894928.6 | G17: 347870216 | H17: =H14+H15 -> 368011886 | I17: 65845861.76 | J17: 10433026.22
B18: ADJUSTMENT TO ACTUAL | C18: =SUM(D18:J18) -> 0 | D18: ='Bill Determ'!$D$11 -> 0 | E18: ='Bill Determ'!$D$21 -> 0 | F18: ='Bill Determ'!$D$31 -> 0 | G18: 0 | H18: 0 | I18: ='Bill Determ'!$E$45 -> 0 | J18: 0
B20: TOTAL BEFORE ADJUSTMENT | C20: =SUM(D20:J20) -> 3126101831 | D20: =D17+D18 -> 1306017655 | E20: 453028257.6 | F20: 574894928.6 | G20: 347870216 | H20: =H17+H18 -> 368011886 | I20: 65845861.76 | J20: 10433026.22
B21: WEATHER & UNBILLED ADJ. KWHS | C21: =SUM(D21:J21) -> -43172127 | D21: =D144+D147 -> -25134547 | E21: =E144+E147 -> -7853469 | F21: -7520650 | G21: 0 | H21: =H144+H147 -> 0 | I21: -2663461 | J21: 0
B23: TOTAL PROFORMA KWHS | C23: =IF(ROUND(SUM(D23:J23),3)<>ROUND(SUM(C20:C21),3),#VALUE!,SUM(D23:J23)) -> 3082929704 | D23: =D20+D21 -> 1280883108 | E23: 445174788.6 | F23: 567374278.6 | G23: 347870216 | H23: =H20+H21 -> 368011886 | I23: 63182400.76 | J23: 10433026.22
B25: TOTAL BILLS | D25: ='Bill Determ'!$E$9 -> 1381277 | E25: ='Bill Determ'!$F$17 -> 281783 | F25: ='Bill Determ'!$F$30 -> 9881 | G25: ='Bill Determ'!$F$35 -> 132 | H25: ='Bill Determ'!$E$39 -> 12 | I25: ='Bill Determ'!$F$43 -> 18392
B26: MINIMUM BILLS
B27: EXCESS DEMAND 1 | E27: ='Bill Determ'!$E$17+'Bill Determ'!$E$22 -> 380640.53 | F27: ='Bill Determ'!$E$30+'Bill Determ'!$E$32 -> 1091946.911 | G27: ='Bill Determ'!$E$35+'Bill Determ'!$E$36 -> 360676.727 | H27: ='Bill Determ'!$C$39 -> 611944.42
B28: EXCESS DEMAND 2 | H28: ='Bill Determ'!$D$39 -> 139133.4
B30: PROPOSED BILL DETERMINANTS
B31: KILOWATT HOURS (KWHS)
B32: BLOCK 1 | D32: =D8 -> 699501080.8 | E32: =E8 -> 303047291 | F32: 524086536.3 | G32: 66000000 | H32: =H8 -> 368011886 | I32: 27316002.49 | J32: 0
B33: BLOCK 2 | D33: =D9 -> 606516574.1 | E33: 149980966.6 | F33: 50808392.33 | G33: 281870216 | H33: 0 | I33: 38529859.27 | J33: 0
B34: BLOCK 3 | D34: 0 | E34: 0 | F34: 0 | G34: 0 | H34: 0 | I34: 0 | J34: 0
B35: BLOCK 4 | D35: 0 | E35: 0 | F35: 0 | G35: 0 | H35: 0 | I35: 0 | J35: 0
B36: STREET & AREA LIGHTS | D36: 0 | E36: 0 | F36: 0 | G36: 0 | H36: =H12 -> 0 | I36: 0 | J36: 10433026.22
B38: SUBTOTAL | C38: =SUM(D38:J38) -> 3126101831 | D38: =SUM(D32:D36) -> 1306017655 | E38: 453028257.6 | F38: 574894928.6 | G38: 347870216 | H38: =SUM(H32:H36) -> 368011886 | I38: 65845861.76 | J38: 10433026.22
C39: =SUM(D39:J39) -> 0 | D39: =D15 -> 0 | E39: 0 | F39: 0 | G39: 0 | H39: 0 | I39: 0 | J39: 0
B41: SUBTOTAL | C41: =SUM(D41:J41) -> 3126101831 | D41: =D38+D39 -> 1306017655 | E41: 453028257.6 | F41: 574894928.6 | G41: 347870216 | H41: =H38+H39 -> 368011886 | I41: 65845861.76 | J41: 10433026.22
B42: ADJUSTMENT TO ACTUAL | C42: =SUM(D42:J42) -> 0 | D42: =D18 -> 0 | E42: 0 | F42: 0 | G42: 0 | H42: =H18 -> 0 | I42: 0 | J42: 0
B44: TOTAL BEFORE ADJUSTMENT | C44: =SUM(D44:J44) -> 3126101831 | D44: =D41+D42 -> 1306017655 | E44: 453028257.6 | F44: 574894928.6 | G44: 347870216 | H44: =H41+H42 -> 368011886 | I44: 65845861.76 | J44: 10433026.22
B45: WEATHER & UNBILLED ADJ. KWHS | C45: =SUM(D45:J45) -> -43172127 | D45: =D21 -> -25134547 | E45: -7853469 | F45: -7520650 | G45: 0 | H45: =H21 -> 0 | I45: -2663461 | J45: 0
B47: TOTAL PROFORMA KWHS | C47: =IF(ROUND(SUM(D47:J47),3)<>ROUND(SUM(C44:C45),3),#VALUE!,SUM(D47:J47)) -> 3082929704 | D47: =D44+D45 -> 1280883108 | E47: 445174788.6 | F47: 567374278.6 | G47: 347870216 | H47: =H44+H45 -> 368011886 | I47: 63182400.76 | J47: 10433026.22
B49: TOTAL BILLS | D49: =D25 -> 1381277 | E49: 281783 | F49: 9881 | G49: 132 | H49: 12 | I49: 18392
B50: MINIMUM BILLS
B51: EXCESS DEMAND 1 | E51: =E27 -> 380640.53 | F51: =F27 -> 1091946.911 | G51: =G27 -> 360676.727 | H51: =H27 -> 611944.42
B52: EXCESS DEMAND 2 | H52: =H28 -> 139133.4
D56: 1 | E56: 2 | F56: 3 | G56: 4 | H56: 5 | I56: 6 | J56: 7 | M56: =SUMPRODUCT(--(ISBLANK(D56:J56))) -> 0
D57: RESIDENTIAL | E57: GENERAL SVC. | F57: LG. GEN. SVC. | G57: EX LG GEN SVC | H57: CLEARWATER | I57: PUMPING | J57: ST & AREA LTG | M57: ="selected in cell "&CELL("address",Base1_Billing2)&":" -> selected in cell $O$8:
C58: TOTAL | D58: SCHEDULE 1 | E58: SCH. 11,12 | F58: SCH. 21,22 | G58: SCHEDULE 25 | H58: SCHEDULE 25P | I58: SCH. 31, 32 | J58: SCH. 41-49 | M58: =O10 -> Base
B59: PRESENT RATES | M59: ="Rates_"&$M$58&"_Present" -> Rates_Base_Present | O59: - range name where Present Rates table can be found
B60: BASIC CHARGE | D60: =INDEX(INDIRECT($M$59),$L60,D$56) -> 15 | E60: 18 | F60: 0 | G60: 0 | H60: 0 | I60: 18 | J60: 0 | L60: 1 | M60: ="Rates_"&$M$58&"_Proposed" -> Rates_Base_Proposed | O60: - range name where Proposed Rates table can be found
B61: MONTHLY MINIMUM
B63: BLOCK 1 PER KWH | D63: =INDEX(INDIRECT($M$59),$L63,D$56) -> 9.456 | E63: 9.35 | F63: 7.135 | G63: 5.738 | H63: 4.29 | I63: 11.361 | J63: 0 | L63: 2
B64: BLOCK 2 PER KWH | D64: 10.628 | E64: 6.554 | F64: 6.012 | G64: 4.807 | H64: 0 | I64: 9.594 | J64: 0 | L64: 3
B65: BLOCK 3 PER KWH | D65: 0 | E65: 0 | F65: 0 | G65: 0 | H65: 0 | I65: 0 | J65: 0 | L65: 4
B66: BLOCK 4 PER KWH | L66: 5
B68: ADJUST TO ACTUAL PER KWH | D68: =(D126-D112)/D14*100 -> 10.00027857 | E68: =(E126-E112-SUM(E118:E122))/E14*100 -> 8.424347404 | F68: =(F126-F112-SUM(F118:F122))/F14*100 -> 7.035750865 | I68: =(I126-I112-SUM(I118:I122))/I14*100 -> 10.32703584
B70: DEMAND BLOCK 1 | D70: =INDEX(INDIRECT($M$59),$L70,D$56) -> 0 | E70: 0 | F70: 500 | G70: 16000 | H70: 16000 | I70: 0 | J70: 0 | L70: 6
B71: DEMAND BLOCK 2 | D71: 0 | E71: 6.5 | F71: 6.5 | G71: 5.75 | H71: 5.75 | I71: 0 | J71: 0 | L71: 7
B72: DEMAND BLOCK 3 | D72: 0 | E72: 0 | F72: 0 | G72: 0 | H72: 3 | I72: 0 | J72: 0 | L72: 8
B76: PROPOSED RATES
B77: BASIC CHARGE | D77: =INDEX(INDIRECT($M$60),$L77,D$56) -> 20 | E77: =INDEX(INDIRECT($M$60),$L77,E$56) -> 20 | I77: =INDEX(INDIRECT($M$60),$L77,I$56) -> 20 | L77: 1
B78: MONTHLY MINIMUM
B80: BLOCK 1 PER KWH | D80: =INDEX(INDIRECT($M$60),$L80,D$56) -> 9.152 | E80: 9.211 | F80: 7.17 | G80: 5.689 | H80: 4.253 | I80: 11.522 | L80: 2
B81: BLOCK 2 PER KWH | D81: 10.286 | E81: 6.458 | F81: 6.042 | G81: 4.766 | H81: 0 | I81: 9.731 | L81: 3
B82: BLOCK 3 PER KWH | D82: 0 | G82: 0 | H82: 0 | L82: 4
B83: BLOCK 4 PER KWH | L83: 5
B85: ADJUST TO ACTUAL PER KWH | D85: =(D179-D165)/D38*100 -> 9.678631315 | E85: =(E179-E165-SUM(E171:E175))/E38*100 -> 8.29958312 | F85: =(F179-F165-SUM(F171:F175))/F38*100 -> 7.070308971 | I85: =(I179-I165-SUM(I171:I175))/I38*100 -> 10.47399219
B87: DEMAND BLOCK 1 | F87: =INDEX(INDIRECT($M$60),$L87,F$56) -> 525 | G87: 17000 | H87: 17000 | L87: 6
B88: DEMAND BLOCK 2 | E88: =INDEX(INDIRECT($M$60),$L88,E$56) -> 7 | F88: 7 | G88: 6.25 | H88: 6.25 | L88: 7
B89: DEMAND BLOCK 3 | E89: =INDEX(INDIRECT($M$60),$L89,E$56) -> 0 | F89: 0 | G89: 0 | H89: 3 | L89: 8
B96: =CHOOSE(Base1_Billing2,"Note: Present rates include Permanent Tax Reform (Sch. 72). All rates do not include Residential and Farm Energy Rate Adjustment (Sch. 59), Power Cost Adjustment (Sch. 66), Energy Efficiency Rider Adjustment (Sch. 91), or Temporary Tax Reform (Sch. 74).","") -> Note: Present rates include Permanent Tax Reform (Sch. 72). All rates do not include Residential and Farm Energy Rate Adjustment (Sch. 59), Power Cost Adjustment (Sch. 66), Energy Efficiency Rider Adjustment (Sch. 91), or Temporary Tax Reform (Sch. 74).
D108: RESIDENTIAL | E108: GENERAL SVC. | F108: LG. GEN. SVC. | G108: EX LG GEN SVC | H108: CLEARWATER | I108: PUMPING | J108: ST & AREA LTG
C109: TOTAL | D109: SCHEDULE 1 | E109: SCH. 11,12 | F109: SCH. 21,22 | G109: SCHEDULE 25 | H109: SCHEDULE 25P | I109: SCH. 31, 32 | J109: SCH. 41-49
B110: PRESENT REVENUE
B111: =UPPER(CHOOSE(Base1_Billing2,$O$9,$O$10))&" REVENUE" -> BASE TARIFF REVENUE
B112: BASIC CHARGE | C112: =SUM(D112:J112) -> 26122305 | D112: =D25*D60 -> 20719155 | E112: =E25*E60 -> 5072094 | I112: =I25*I60 -> 331056
B113: MONTHLY MINIMUM | C113: 0
B114: BLOCK 1 | C114: 154551479.2 | D114: =ROUND(D8*D63/100,2) -> 66144822.2 | E114: 28334921.71 | F114: 37393574.36 | G114: =ROUND(G8*G63/100,2) -> 3787080 | H114: 15787709.91 | I114: 3103371.04
B115: BLOCK 2 | C115: 94590990.59 | D115: 64460581.5 | E115: 9829752.55 | F115: 3054600.55 | G115: 13549501.29 | H115: 0 | I115: 3696554.7
B116: BLOCK 3 | C116: 0
B117: BLOCK 4 | C117: 0
B118: DEMAND BLOCK 1 | C118: 7244500 | F118: =F25*F70 -> 4940500 | G118: =G25*G70 -> 2112000 | H118: =H25*H70 -> 192000
B119: DEMAND BLOCK 2 | C119: 15164389.96 | E119: =E27*E71 -> 2474163.445 | F119: =F27*F71 -> 7097654.921 | G119: =G27*G71 -> 2073891.18 | H119: 3518680.415
B120: DEMAND BLOCK 3 | C120: =SUM(D120:J120) -> 417400.2 | E120: 0 | F120: 0 | G120: 0 | H120: 417400.2 | O120: Sch 21
B121: POWER FACTOR ADJUSTMENT | C121: 15618.08 | E121: ='Bill Determ'!G15*0.25 -> 0 | F121: ='Bill Determ'!G30*0.25 -> 15618.08 | I121: ='Bill Determ'!G43*0.25 -> 0 | O121: PVD
B122: PRIMARY VOLTAGE DISCOUNT | C122: -493136.7815 | F122: -36872 | G122: ='ID Sch 25'!Q77 -> -220141.4355 | H122: ='ID Sch 25'!Q90 -> -236123.346 | O122: -0.3 | P122: -0.4
B123: ANNUAL MINIMUM ADJUSTMENT | C123: 0 | O123: -122905 | P123: -122905
B124: STREET & AREA LIGHT REVENUE | C124: 4160158.92 | J124: ='Lighting summary'!D24 -> 4160158.92 | O124: =O122*O123 -> 36871.5 | P124: =P122*P123 -> 49162
B126: SUBTOTAL | C126: =IF(ROUND(SUM(C112:C124),3)<>ROUND(SUM(D126:J126),3),#VALUE!,SUM(D126:J126)) -> 301773705.2 | D126: =SUM(D112:D124) -> 151324558.7 | E126: 45710931.71 | F126: 52465075.91 | G126: 21302331.03 | H126: =SUM(H112:H124) -> 19679667.18 | I126: 7130981.74 | J126: 4160158.92
C127: =SUM(D127:J127) -> 0 | D127: =ROUND(D15*D68/100,2) -> 0 | E127: =ROUND(E15*E68/100,2) -> 0 | F127: =ROUND(F15*F68/100,2) -> 0 | G127: =ROUND(G15*G64/100,2) -> 0 | H127: =ROUND(H15*H63/100,2) -> 0 | I127: =ROUND(I15*I68/100,2) -> 0 | J127: =ROUND(J15*J68/100,2) -> 0
B129: SUBTOTAL | C129: =SUM(D129:J129) -> 301773705.2 | D129: =D126+D127 -> 151324558.7 | E129: 45710931.71 | F129: 52465075.91 | G129: 21302331.03 | H129: =H126+H127 -> 19679667.18 | I129: 7130981.74 | J129: 4160158.92
B130: ADJUST TO ACTUAL | C130: =SUM(D130:J130) -> 0 | D130: =ROUND((D18)*D68/100,2) -> 0 | E130: 0 | F130: 0 | G130: 0 | H130: 0 | I130: 0 | J130: 0
B132: ="TOTAL "&UPPER(CHOOSE(Base1_Billing2,$O$9,$O$10))&" REVENUE" -> TOTAL BASE TARIFF REVENUE | C132: =IF(ROUND(SUM(D132:J132),3)<>ROUND(SUM(C129:C130),3),#VALUE!,SUM(D132:J132)) -> 301773705.2 | D132: =D129+D130 -> 151324558.7 | E132: 45710931.71 | F132: 52465075.91 | G132: 21302331.03 | H132: =H129+H130 -> 19679667.18 | I132: 7130981.74 | J132: 4160158.92
B134: ADJUSTMENT REVENUE
B135: UNBILLED REVENUE ADJUSTMENT
B136: UNBILLED LOAD KWHS | C136: =SUM(D136:J136) -> -23663642 | D136: ='Rev Runs'!P46 -> -11226132 | E136: ='Rev Runs'!P47 -> -4034004 | F136: ='Rev Runs'!P48 -> -6595485 | I136: ='Rev Runs'!P52 -> -1808021
B137: UNBILLED LOAD RATE | D137: =D68 -> 10.00027857 | E137: =E68 -> 8.424347404 | F137: =F68 -> 7.035750865 | I137: =I68 -> 10.32703584
B138: UNBILLED LOAD REVENUE | C138: =SUM(D138:J138) -> -2113239.85 | D138: =ROUND(D136*D137/100,2) -> -1122644.47 | E138: =ROUND(E136*E137/100,2) -> -339838.51 | F138: =ROUND(F136*F137/100,2) -> -464041.89 | G138: =ROUND(G136*G137/100,2) -> 0 | I138: =ROUND(I136*I137/100,2) -> -186714.98 | J138: =ROUND(J136*J137/100,2) -> 0
B140: WEATHER-SENSITIVE KWHS | C140: =SUM(D140:J140) -> 0 | D140: 0 | E140: 0
B141: WEATHER-SENSITIVE RATE | D141: =I224 -> 10.628 | E141: =I243 -> 6.554
B142: WEATHER-SENSITIVE REVENUE | C142: =SUM(D142:J142) -> 0 | D142: =ROUND(D140*D141/100,2) -> 0 | E142: =ROUND(E140*E141/100,2) -> 0
B144: TOTAL UNBILLED KWH ADJUST | C144: =IF(ROUND(C136+C140,3)<>ROUND(SUM(D144:J144),3),#VALUE!,C136+C140) -> -23663642 | D144: =D136+D140 -> -11226132 | E144: =E136+E140 -> -4034004 | F144: =F136+F140 -> -6595485 | G144: =G136+G140 -> 0 | I144: =I136+I140 -> -1808021 | J144: =J136+J140 -> 0
B145: TOTAL UNBILLED REVENUE ADJ | C145: =IF(ROUND(C138+C142,3)<>ROUND(SUM(D145:J145),3),#VALUE!,C138+C142) -> -2113239.85 | D145: =D138+D142 -> -1122644.47 | E145: =E138+E142 -> -339838.51 | F145: =F138+F142 -> -464041.89 | G145: =G138+G142 -> 0 | I145: =I138+I142 -> -186714.98 | J145: =J138+J142 -> 0
B146: WEATHER NORMALIZATION ADJ
B147: WEATHER-SENSITIVE KWHS | C147: =SUM(D147:J147) -> -19508485 | D147: -13908415 | E147: -3819465 | F147: -925165 | I147: -855440
B148: WEATHER-SENSITIVE RATE | D148: =I224 -> 10.628 | E148: =I243 -> 6.554 | F148: =C257 -> 6.012 | I148: =I68 -> 10.32703584
B149: WEATHER-SENSITIVE REVENUE | C149: =SUM(D149:J149) -> -1872476.61 | D149: =ROUND(D147*D148/100,2) -> -1478186.35 | E149: =ROUND(E147*E148/100,2) -> -250327.74 | F149: =ROUND(F147*F148/100,2) -> -55620.92 | I149: =ROUND(I147*I148/100,2) -> -88341.6
B151: TOTAL ADJUSTMENT REVENUE | C151: =IF(ROUND(C145+C149,3)<>ROUND(SUM(D151:J151),3),#VALUE!,C145+C149) -> -3985716.46 | D151: =D149+D145 -> -2600830.82 | E151: =E149+E145 -> -590166.25 | F151: =F149+F145 -> -519662.81 | G151: =G149+G145 -> 0 | I151: =I149+I145 -> -275056.58 | J151: =J149+J145 -> 0
B152: =B132 -> TOTAL BASE TARIFF REVENUE | C152: 301773705.2 | D152: 151324558.7 | E152: 45710931.71 | F152: 52465075.91 | G152: 21302331.03 | H152: 19679667.18 | I152: 7130981.74 | J152: 4160158.92
B154: TOTAL PRESENT REVENUE | C154: =IF(ROUND(C151+C152,3)<>ROUND(SUM(D154:J154),3),#VALUE!,SUM(D154:J154)) -> 297787988.7 | D154: =D151+D152 -> 148723727.9 | E154: 45120765.46 | F154: 51945413.1 | G154: 21302331.03 | H154: =H151+H152 -> 19679667.18 | I154: 6855925.16 | J154: 4160158.92
D161: RESIDENTIAL | E161: GENERAL SVC. | F161: LG. GEN. SVC. | G161: EX LG GEN SVC | H161: CLEARWATER | I161: PUMPING | J161: ST & AREA LTG
C162: TOTAL | D162: SCHEDULE 1 | E162: SCH. 11,12 | F162: SCH. 21,22 | G162: SCHEDULE 25 | H162: SCHEDULE 25P | I162: SCH. 31, 32 | J162: SCH. 41-49
B163: PROPOSED REVENUE
B164: =UPPER(CHOOSE(Base1_Billing2,$O$9,$O$10))&" REVENUE" -> BASE TARIFF REVENUE
B165: BASIC CHARGE | C165: =SUM(D165:J165) -> 33629040 | D165: =D49*D77 -> 27625540 | E165: =E49*E77 -> 5635660 | I165: =I49*I77 -> 367840
B166: MONTHLY MINIMUM | C166: 0 | D166: =D50*D78 -> 0
B167: BLOCK 1 | C167: 152062664.9 | D167: =ROUND(D32*D80/100,2) -> 64018338.92 | E167: 27913685.97 | F167: 37577004.65 | G167: 3754740 | H167: =ROUND(H32*H80/100,2) -> 15651545.51 | I167: 3147349.81
B168: BLOCK 2 | C168: 92325183.81 | D168: 62386294.81 | E168: 9685770.83 | F168: 3069843.06 | G168: 13433934.5 | H168: =ROUND(H33*H81/100,2) -> 0 | I168: 3749340.61
B169: BLOCK 3 | C169: 0 | D169: =ROUND(D34*D82/100,2) -> 0 | G169: 0 | H169: =ROUND(H34*H82/100,2) -> 0
B170: BLOCK 4 | C170: 0 | D170: =ROUND(D35*D83/100,2) -> 0
B171: DEMAND BLOCK 1 | C171: 7635525 | F171: =ROUND(F49*F87,2) -> 5187525 | G171: =ROUND(G49*G87,2) -> 2244000 | H171: =ROUND(H49*H87,2) -> 204000
B172: DEMAND BLOCK 2 | C172: 16386994.26 | E172: =ROUND(E51*E88,2) -> 2664483.71 | F172: 7643628.38 | G172: 2254229.54 | H172: 3824652.63
B173: DEMAND BLOCK 3 | C173: =SUM(D173:J173) -> 417400.2 | E173: 0 | F173: 0 | G173: 0 | H173: 417400.2
B174: POWER FACTOR ADJUSTMENT | C174: 15618.08 | E174: =E121 -> 0 | F174: =F121 -> 15618.08 | I174: =I121 -> 0
B175: PRIMARY VOLTAGE DISCOUNT | C175: -657515.042 | F175: =-P124 -> -49162 | G175: ='ID Sch 25'!Q78 -> -293521.914 | H175: ='ID Sch 25'!Q91 -> -314831.128
B176: ANNUAL MINIMUM ADJUSTMENT | C176: 0
B177: STREET & AREA LIGHT REVENUE | C177: =SUM(D177:J177) -> 4177711.92 | J177: ='Lighting summary'!G21 -> 4177711.92
B179: SUBTOTAL | C179: =IF(ROUND(SUM(C165:C177),3)<>ROUND(SUM(D179:J179),3),#VALUE!,SUM(D179:J179)) -> 305992623.1 | D179: =SUM(D165:D177) -> 154030173.7 | E179: 45899600.51 | F179: 53444457.17 | G179: 21393382.13 | H179: =SUM(H165:H177) -> 19782767.21 | I179: 7264530.42 | J179: 4177711.92
C180: =SUM(D180:J180) -> 0 | D180: =ROUND(D39*D85/100,2) -> 0 | E180: =ROUND(E39*E85/100,2) -> 0 | F180: 0 | G180: =ROUND(G39*G81/100,2) -> 0 | H180: =ROUND(H39*H80/100,2) -> 0 | I180: 0 | J180: 0
B182: SUBTOTAL | C182: =SUM(D182:J182) -> 305992623.1 | D182: =D179+D180 -> 154030173.7 | E182: 45899600.51 | F182: 53444457.17 | G182: 21393382.13 | H182: =H179+H180 -> 19782767.21 | I182: 7264530.42 | J182: 4177711.92
B183: ADJUST TO ACTUAL | C183: =SUM(D183:J183) -> 0 | D183: =ROUND((D42)*D85/100,2) -> 0 | E183: =ROUND((E42)*E85/100,2) -> 0 | F183: 0 | G183: 0 | H183: 0 | I183: 0 | J183: 0
B185: ="SUBTOTAL "&UPPER(CHOOSE(Base1_Billing2,$O$9,$O$10))&" REVENUE" -> SUBTOTAL BASE TARIFF REVENUE | C185: =IF(ROUND(SUM(D185:J185),3)<>ROUND(SUM(C182:C183),3),#VALUE!,SUM(D185:J185)) -> 305992623.1 | D185: =D182+D183 -> 154030173.7 | E185: 45899600.51 | F185: 53444457.17 | G185: 21393382.13 | H185: =H182+H183 -> 19782767.21 | I185: 7264530.42 | J185: 4177711.92
B187: ADJUSTMENT REVENUE
B188: UNBILLED REVENUE ADJUSTMENT
B189: UNBILLED LOAD KWHS | C189: =SUM(D189:J189) -> -23663642 | D189: =D136 -> -11226132 | E189: =E136 -> -4034004 | F189: =F136 -> -6595485 | G189: =G136 -> 0 | I189: =I136 -> -1808021 | J189: =J136 -> 0
B190: UNBILLED LOAD RATE | D190: =D85 -> 9.678631315 | E190: =E85 -> 8.29958312 | F190: =F85 -> 7.070308971 | G190: =G85 -> 0 | I190: =I85 -> 10.47399219
B191: UNBILLED LOAD REVENUE | C191: =SUM(D191:J191) -> -2077034.6 | D191: =ROUND(D189*D190/100,2) -> -1086535.93 | E191: =ROUND(E189*E190/100,2) -> -334805.52 | F191: =ROUND(F189*F190/100,2) -> -466321.17 | G191: =ROUND(G189*G190/100,2) -> 0 | I191: =ROUND(I189*I190/100,2) -> -189371.98
B193: WEATHER-SENSITIVE KWHS | C193: =SUM(D193:J193) -> 0 | D193: =D140 -> 0 | E193: =E140 -> 0
B194: WEATHER-SENSITIVE RATE | D194: =I233 -> 10.286 | E194: =I251 -> 6.458
B195: WEATHER-SENSITIVE REVENUE | C195: =SUM(D195:J195) -> 0 | D195: =ROUND(D193*D194/100,2) -> 0 | E195: =ROUND(E193*E194/100,2) -> 0
B197: TOTAL UNBILLED KWH ADJUST | C197: =IF(ROUND(C189+C193,3)<>ROUND(SUM(D197:J197),3),#VALUE!,SUM(D197:J197)) -> -23663642 | D197: =D189+D193 -> -11226132 | E197: =E189+E193 -> -4034004 | F197: =F189+F193 -> -6595485 | G197: =G189+G193 -> 0 | I197: =I189+I193 -> -1808021
B198: TOTAL UNBILLED REVENUE ADJ | C198: =IF(ROUND(C191+C195,3)<>ROUND(SUM(D198:J198),3),#VALUE!,SUM(D198:J198)) -> -2077034.6 | D198: =D191+D195 -> -1086535.93 | E198: =E191+E195 -> -334805.52 | F198: =F191+F195 -> -466321.17 | G198: =G191+G195 -> 0 | I198: =I191+I195 -> -189371.98
B199: WEATHER NORMALIZATION ADJ
B200: WEATHER-SENSITIVE KWHS | C200: =SUM(D200:J200) -> -19508485 | D200: =D147 -> -13908415 | E200: =E147 -> -3819465 | F200: =F147 -> -925165 | I200: =I147 -> -855440
B201: WEATHER-SENSITIVE RATE | D201: =I233 -> 10.286 | E201: =I251 -> 6.458 | F201: =C265 -> 6.042 | I201: =I85 -> 10.47399219
B202: WEATHER-SENSITIVE REVENUE | C202: =SUM(D202:J202) -> -1822777.81 | D202: =ROUND(D200*D201/100,2) -> -1430619.57 | E202: =ROUND(E200*E201/100,2) -> -246661.05 | F202: =ROUND(F200*F201/100,2) -> -55898.47 | I202: =ROUND(I200*I201/100,2) -> -89598.72
B204: TOTAL ADJUSTMENT REVENUE | C204: =IF(ROUND(SUM(D204:J204),3)<>ROUND(C198+C202,3),#VALUE!,SUM(D204:J204)) -> -3899812.41 | D204: =D202+D198 -> -2517155.5 | E204: =E202+E198 -> -581466.57 | F204: =F202+F198 -> -522219.64 | G204: =G202+G198 -> 0 | I204: =I202+I198 -> -278970.7
B205: ="TOTAL "&UPPER(CHOOSE(Base1_Billing2,$O$9,$O$10))&" REVENUE" -> TOTAL BASE TARIFF REVENUE | C205: =SUM(D205:J205) -> 305992623.1 | D205: =D185 -> 154030173.7 | E205: =E185 -> 45899600.51 | F205: 53444457.17 | G205: 21393382.13 | H205: =H185 -> 19782767.21 | I205: 7264530.42 | J205: 4177711.92
B206: TOTAL PROPOSED REVENUE | C206: =IF(ROUND(SUM(D206:J206),3)<>ROUND(SUM(C204:C205),3),#VALUE!,SUM(D206:J206)) -> 302092810.7 | D206: =D204+D205 -> 151513018.2 | E206: 45318133.94 | F206: 52922237.53 | G206: 21393382.13 | H206: 19782767.21 | I206: 6985559.72 | J206: 4177711.92
B207: TOTAL PRESENT REVENUE | C207: =SUM(D207:J207) -> 297787988.7 | D207: =D154 -> 148723727.9 | E207: =E154 -> 45120765.46 | F207: 51945413.1 | G207: 21302331.03 | H207: =H154 -> 19679667.18 | I207: 6855925.16 | J207: 4160158.92
B209: TOTAL REVENUE INCREASE | C209: =SUM(D209:J209) -> 4304821.948 | D209: =D206-D207 -> 2789290.35 | E209: 197368.485 | F209: 976824.4291 | G209: 91051.09125 | H209: 103100.033 | I209: 129634.56 | J209: 17553
B210: PERCENT REVENUE INCREASE | C210: =C209/C207 -> 0.01445599591 | D210: 0.01875484423 | E210: 0.004374227321 | F210: 0.0188048255 | G210: 0.004274231355 | H210: 0.005238911414 | I210: 0.01890839777 | J210: 0.004219309968
B211: =IF(Base1_Billing2=2,"Billed Rev and %'s won't be quite right for 11, 21, and 31 due to absence of BPA Res Ex in rates.","") -> 
D214: TOTAL | E214: TOTAL | F214: BASELOAD | G214: BASELOAD | H214: WTHR-SENS. | I214: WTHR-SENS.
C215: RATES | D215: KWHS | E215: REVENUE | F215: KWHS | G215: REVENUE | H215: KWHS | I215: REVENUE
B217: PRESENT BASELOAD AND WEATHER-SENSITIVE RATES
B218: SCHEDULE 1
B219: 0-600 KWHS | C219: =D63 -> 9.456 | D219: =D8 -> 699501080.8 | E219: =C219*D219/100 -> 66144822.2 | F219: =MIN(D219,F223) -> 699501080.8 | G219: =F219*C219/100 -> 66144822.2 | H219: =D219-F219 -> 0 | I219: =H219*C219/100 -> 0
B220: over 600 KWHS | C220: =D64 -> 10.628 | D220: =D9 -> 606516574.1 | E220: =C220*D220/100 -> 64460581.5 | F220: =MIN(F223-F219,D220) -> 83682978.18 | G220: =F220*C220/100 -> 8893826.921 | H220: =D220-F220 -> 522833595.9 | I220: =H220*C220/100 -> 55566754.58
B223: TOTAL | D223: =D219+D220+D221 -> 1306017655 | E223: =E219+E220+E221 -> 130605403.7 | F223: =567*D25 -> 783184059 | G223: =G219+G220+G221 -> 75038649.12 | H223: =H219+H220+H221 -> 522833595.9 | I223: =I219+I220+I221 -> 55566754.58
B224: AVERAGE RATE | E224: =E223/D223*100 -> 10.00027857 | G224: =G223/F223*100 -> 9.581227843 | I224: =I223/H223*100 -> 10.628
B226: PROPOSED BASELOAD AND WEATHER-SENSITIVE RATES
B227: SCHEDULE 1
B228: 0-600 KWHS | C228: =D80 -> 9.152 | D228: =D219 -> 699501080.8 | E228: =C228*D228/100 -> 64018338.92 | F228: =MIN(D228,F232) -> 699501080.8 | G228: =F228*C228/100 -> 64018338.92 | H228: =H219 -> 0 | I228: =H228*C228/100 -> 0
B229: over 600 KWHS | C229: =D81 -> 10.286 | D229: =D220 -> 606516574.1 | E229: =C229*D229/100 -> 62386294.81 | F229: =MIN(F232-F228,D229) -> 83682978.18 | G229: =F229*C229/100 -> 8607631.135 | H229: =H220 -> 522833595.9 | I229: =H229*C229/100 -> 53778663.68
B232: TOTAL | D232: =D228+D229+D230 -> 1306017655 | E232: =E228+E229+E230 -> 126404633.7 | F232: =F223 -> 783184059 | G232: =G228+G229+G230 -> 72625970.05 | H232: =H228+H229+H230 -> 522833595.9 | I232: =I228+I229+I230 -> 53778663.68
B233: AVERAGE RATE | E233: =E232/D232*100 -> 9.678631315 | G233: =G232/F232*100 -> 9.273167555 | I233: =I232/H232*100 -> 10.286
B237: PRESENT BASELOAD AND WEATHER-SENSITIVE RATES
B238: SCHEDULE 11
B239: 0-3650 KWHS | C239: =E63 -> 9.35 | D239: =E8 -> 303047291 | E239: =C239*D239/100 -> 28334921.71 | F239: =MIN(D239,F242) -> 303047291 | G239: =F239*C239/100 -> 28334921.71 | H239: =D239-F239 -> 0 | I239: =H239*C239/100 -> 0
B240: over 3650 KWHS | C240: =E64 -> 6.554 | D240: =E9 -> 149980966.6 | E240: =C240*D240/100 -> 9829752.553 | F240: =MIN(F242-F239,D240) -> 44391148.02 | G240: =F240*C240/100 -> 2909395.842 | H240: =D240-F240 -> 105589818.6 | I240: =H240*C240/100 -> 6920356.712
B242: TOTAL | D242: =D239+D240 -> 453028257.6 | E242: =E239+E240 -> 38164674.26 | F242: =1233*E25 -> 347438439 | G242: =G239+G240 -> 31244317.55 | H242: =H239+H240 -> 105589818.6 | I242: =I239+I240 -> 6920356.712
B243: AVERAGE RATE | E243: =E242/D242*100 -> 8.424347404 | G243: =G242/F242*100 -> 8.992763621 | I243: =IF(H242,I242/H242*100,0) -> 6.554
B245: PROPOSED BASELOAD AND WEATHER-SENSITIVE RATES
B246: SCHEDULE 11
B247: 0-3650 KWHS | C247: =E80 -> 9.211 | D247: =E32 -> 303047291 | E247: =C247*D247/100 -> 27913685.97 | F247: =MIN(D247,F250) -> 303047291 | G247: =F247*C247/100 -> 27913685.97 | H247: =D247-F247 -> 0 | I247: =H247*C247/100 -> 0
B248: over 3650 KWHS | C248: =E81 -> 6.458 | D248: =E33 -> 149980966.6 | E248: =C248*D248/100 -> 9685770.825 | F248: =MIN(F250-F247,D248) -> 44391148.02 | G248: =F248*C248/100 -> 2866780.339 | H248: =D248-F248 -> 105589818.6 | I248: =H248*C248/100 -> 6818990.486
B250: TOTAL | D250: =D247+D248 -> 453028257.6 | E250: =E247+E248 -> 37599456.8 | F250: =F242 -> 347438439 | G250: =G247+G248 -> 30780466.31 | H250: =H247+H248 -> 105589818.6 | I250: =I247+I248 -> 6818990.486
B251: AVERAGE RATE | E251: =E250/D250*100 -> 8.29958312 | G251: =G250/F250*100 -> 8.8592576 | I251: =IF(H250,I250/H250*100,0) -> 6.458
B254: PRESENT BASELOAD AND WEATHER-SENSITIVE RATES
B255: SCHEDULE 21
B256: 0-250 KWHS | C256: =F63 -> 7.135 | D256: =F32 -> 524086536.3 | E256: =C256*D256/100 -> 37393574.36 | F256: =MIN(D256,F259) -> 467855469 | G256: =F256*C256/100 -> 33381487.71 | H256: =D256-F256 -> 56231067.27 | I256: =H256*C256/100 -> 4012086.649
B257: over 250 KWHS | C257: =F64 -> 6.012 | D257: =F33 -> 50808392.33 | E257: =C257*D257/100 -> 3054600.547 | F257: =MIN(F259-F256,D257) -> 0 | G257: =F257*C257/100 -> 0 | H257: =D257-F257 -> 50808392.33 | I257: =H257*C257/100 -> 3054600.547
B259: TOTAL | D259: =D256+D257 -> 574894928.6 | E259: =E256+E257 -> 40448174.91 | F259: =47349*F25 -> 467855469 | G259: =G256+G257 -> 33381487.71 | H259: =H256+H257 -> 107039459.6 | I259: =I256+I257 -> 7066687.197
B260: AVERAGE RATE | E260: =E259/D259*100 -> 7.035750865 | G260: =G259/F259*100 -> 7.135 | I260: =IF(H259,I259/H259*100,0) -> 6.601945883
B262: PROPOSED BASELOAD AND WEATHER-SENSITIVE RATES
B263: SCHEDULE 21
B264: 0-250 KWHS | C264: =F80 -> 7.17 | D264: =F32 -> 524086536.3 | E264: =C264*D264/100 -> 37577004.65 | F264: =MIN(D264,F267) -> 467855469 | G264: =F264*C264/100 -> 33545237.13 | H264: =D264-F264 -> 56231067.27 | I264: =H264*C264/100 -> 4031767.523
B265: over 250 KWHS | C265: =F81 -> 6.042 | D265: =F33 -> 50808392.33 | E265: =C265*D265/100 -> 3069843.065 | F265: =MIN(F267-F264,D265) -> 0 | G265: =F265*C265/100 -> 0 | H265: =D265-F265 -> 50808392.33 | I265: =H265*C265/100 -> 3069843.065
B267: TOTAL | D267: =D264+D265 -> 574894928.6 | E267: =E264+E265 -> 40646847.72 | F267: =F259 -> 467855469 | G267: =G264+G265 -> 33545237.13 | H267: =H264+H265 -> 107039459.6 | I267: =I264+I265 -> 7101610.588
B268: AVERAGE RATE | E268: =E267/D267*100 -> 7.070308972 | G268: =G267/F267*100 -> 7.17 | I268: =IF(H267,I267/H267*100,0) -> 6.634572535
B275: Note: Total Base Load for Sch. 1 = Base Load per bill times total billings (base load per bill shown on JDM-E-18) =
B276: ="562 x "&TEXT(D25,"#,##0")&" = "&TEXT(F223,"#,##0") -> 562 x 1,381,277 = 783,184,059
B277: ="Total Base Load for Sch. 11 = 1,232 x "&TEXT(E25,"#,##0")&" = "&TEXT(F242,"#,##0") -> Total Base Load for Sch. 11 = 1,232 x 281,783 = 347,438,439
B278: ="Total Base Load for Sch. 21 = 48,228 x "&TEXT(F25,"#,##0")&" = "&TEXT(F259,"#,##0") -> Total Base Load for Sch. 21 = 48,228 x 9,881 = 467,855,469

Sheet Rate Design
A1: PRESENT RATES | D1: 1 | E1: 2 | F1: 3 | G1: 4 | H1: 5 | I1: 6 | N1: Tiers - used for bill comparisons
C2: TOTAL | D2: SCH. 1 | E2: SCH. 11,12 | F2: SCH. 21,22 | G2: SCH. 25 | H2: SCH. 25P | I2: SCH. 31, 32 | L2: Range Name | N2: SCHEDULE 1 | O2: SCH. 11,12 | P2: SCH. 21,22 | Q2: SCHEDULE 25 | R2: Clearwater 25P | S2: SCH. 31, 32
B3: Base Tariff Rates
A4: 1 | B4: BASIC CHARGE | D4: 15 | E4: 18 | F4: 0 | G4: 0 | H4: 0 | I4: 18
A5: 2 | B5: BLOCK 1 PER KWH | D5: 9.456 | E5: 9.35 | F5: 7.135 | G5: 5.738 | H5: 4.29 | I5: 11.361 | N5: 600 | O5: 3650 | P5: 250000 | Q5: 500000 | R5: 9999999
A6: 3 | B6: BLOCK 2 PER KWH | D6: 10.628 | E6: 6.554 | F6: 6.012 | G6: 4.807 | H6: 0 | I6: 9.594 | N6: 9999999 | O6: 9999999 | P6: 9999999 | Q6: 9999999 | R6: 9999999
A7: 4 | B7: BLOCK 3 PER KWH | L7: Rates_Base_Present | N7: 9999999 | O7: 9999999 | P7: 9999999 | Q7: 9999999 | R7: 9999999
A8: 5 | B8: BLOCK 4 PER KWH
A9: 6 | B9: DEMAND CHARGE | D9: 0 | E9: 0 | F9: 500 | G9: 16000 | H9: 16000 | I9: 0
A10: 7 | B10: DEMAND BLOCK 1 | D10: 0 | E10: 6.5 | F10: 6.5 | G10: 5.75 | H10: 5.75 | I10: 0 | N10: 0 | O10: 20 | P10: 50 | Q10: 3000 | R10: 3000
A11: 8 | B11: DEMAND BLOCK 2 | D11: 0 | E11: 0 | F11: 0 | G11: 0 | H11: 3 | I11: 0
B12: Billing Rates | D12: =IF(D13<>'Pres & Prop Rev'!D$5,#VALUE!,"") ->  | E12: =IF(E13<>'Pres & Prop Rev'!E$5,#VALUE!,"") ->  | F12: =IF(F13<>'Pres & Prop Rev'!F$5,#VALUE!,"") ->  | G12: =IF(G13<>'Pres & Prop Rev'!G$5,#VALUE!,"") ->  | H12: =IF(H13<>'Pres & Prop Rev'!H$5,#VALUE!,"") ->  | I12: =IF(I13<>'Pres & Prop Rev'!I$5,#VALUE!,"") -> 
D13: SCHEDULE 1 | E13: SCH. 11,12 | F13: SCH. 21,22 | G13: SCHEDULE 25 | H13: SCHEDULE 25P | I13: SCH. 31, 32
A14: 1 | B14: BASIC CHARGE | D14: 15 | E14: 18 | F14: 0 | G14: 0 | H14: 0 | I14: 18
A15: 2 | B15: BLOCK 1 PER KWH | D15: =D5-0.38+0.15-0.405-0.774+0.263 -> 8.31 | E15: =E5+0.15-0.034-0.805+0.231 -> 8.892 | F15: =F5+0.15-0.034-0.659+0.255 -> 6.847 | G15: =G5+0.15-0.628+0.147 -> 5.407 | H15: =H5+0.15-0.427+0.132 -> 4.145 | I15: =I5+0.15-0.034-0.849+0.256 -> 10.884 | N15: =N5 -> 600 | O15: =O5 -> 3650 | P15: =P5 -> 250000 | Q15: =Q5 -> 500000 | R15: =R5 -> 9999999
A16: 3 | B16: BLOCK 2 PER KWH | D16: =D6-0.38+0.15-0.405-0.871+0.263 -> 9.385 | E16: =E6+0.15-0.034-0.564+0.231 -> 6.337 | F16: =F6+0.15-0.034-0.555+0.255 -> 5.828 | G16: =G6+0.15-0.526+0.147 -> 4.578 | H16: 0 | I16: =I6+0.15-0.034-0.717+0.256 -> 9.249 | N16: =N6 -> 9999999 | O16: 9999999 | P16: 9999999 | Q16: 9999999 | R16: =R6 -> 9999999
A17: 4 | B17: BLOCK 3 PER KWH | L17: Rates_Billing_Present | N17: 9999999 | O17: 9999999 | P17: 9999999 | Q17: 9999999 | R17: =R7 -> 9999999
A18: 5 | B18: BLOCK 4 PER KWH
A19: 6 | B19: DEMAND CHARGE | F19: 500 | G19: 16000 | H19: 16000 | I19: 0
A20: 7 | B20: DEMAND BLOCK 1 | E20: 6.5 | F20: 6.5 | G20: 5.75 | H20: 5.75 | I20: 0 | N20: =N10 -> 0 | O20: =O10 -> 20 | P20: =P10 -> 50 | Q20: =Q10 -> 3000 | R20: =R10 -> 3000
A21: 8 | B21: DEMAND BLOCK 2 | E21: 0 | F21: 0 | G21: 0 | H21: 3 | I21: 0
A22: PROPOSED RATES
B24: Base Tariff Rates | D24: =IF(D25<>'Pres & Prop Rev'!D$5,#VALUE!,"") ->  | E24: =IF(E25<>'Pres & Prop Rev'!E$5,#VALUE!,"") ->  | F24: =IF(F25<>'Pres & Prop Rev'!F$5,#VALUE!,"") ->  | G24: =IF(G25<>'Pres & Prop Rev'!G$5,#VALUE!,"") ->  | H24: =IF(H25<>'Pres & Prop Rev'!H$5,#VALUE!,"") ->  | I24: =IF(I25<>'Pres & Prop Rev'!I$5,#VALUE!,"") -> 
D25: SCHEDULE 1 | E25: SCH. 11,12 | F25: SCH. 21,22 | G25: SCHEDULE 25 | H25: SCHEDULE 25P | I25: SCH. 31, 32 | U25: Rounding
A26: 1 | B26: BASIC CHARGE | D26: =ROUND(D63,$U26) -> 20 | E26: 20 | F26: 0 | G26: 0 | H26: 0 | I26: 20 | U26: 2 | V26: 2
A27: 2 | B27: BLOCK 1 PER KWH | D27: =ROUND(D89,$U27) -> 9.152 | E27: 9.211 | F27: 7.17 | G27: 5.689 | H27: 4.253 | I27: 11.522 | N27: 600 | O27: 3650 | P27: 250000 | Q27: 500000 | R27: 9999999 | U27: 3 | V27: 3
A28: 3 | B28: BLOCK 2 PER KWH | D28: 10.286 | E28: 6.458 | F28: 6.042 | G28: 4.766 | H28: 0 | I28: 9.731 | N28: 9999999 | O28: 9999999 | P28: 9999999 | Q28: 9999999 | R28: 9999999 | U28: 3 | V28: 3
A29: 4 | B29: BLOCK 3 PER KWH | L29: Rates_Base_Proposed | N29: 9999999 | O29: 9999999 | P29: 9999999 | Q29: 9999999 | R29: 9999999 | U29: 3 | V29: 3
A30: 5 | B30: BLOCK 4 PER KWH | U30: 3 | V30: 3
A31: 6 | B31: DEMAND CHARGE | D31: =ROUND(D67,$U31) -> 0 | E31: 0 | F31: 525 | G31: 17000 | H31: 17000 | I31: 0 | U31: 2 | V31: 2
A32: 7 | B32: DEMAND BLOCK 1 | D32: =ROUND(D70,$U32) -> 0 | E32: 7 | F32: 7 | G32: 6.25 | H32: 6.25 | I32: 0 | N32: 0 | O32: 20 | P32: 50 | Q32: 3000 | R32: 3000 | U32: 2 | V32: 2
A33: 8 | B33: DEMAND BLOCK 2 | D33: =ROUND(D73,$U33) -> 0 | E33: 0 | F33: 0 | G33: 0 | H33: 3 | I33: 0 | R33: 3,000 - 55,000 | U33: 2
B34: Billing Rates | D34: =IF(D35<>'Pres & Prop Rev'!D$5,#VALUE!,"") ->  | E34: =IF(E35<>'Pres & Prop Rev'!E$5,#VALUE!,"") ->  | F34: =IF(F35<>'Pres & Prop Rev'!F$5,#VALUE!,"") ->  | G34: =IF(G35<>'Pres & Prop Rev'!G$5,#VALUE!,"") ->  | H34: =IF(H35<>'Pres & Prop Rev'!H$5,#VALUE!,"") ->  | I34: =IF(I35<>'Pres & Prop Rev'!I$5,#VALUE!,"") ->  | R34: 55000
D35: SCHEDULE 1 | E35: SCH. 11,12 | F35: SCH. 21,22 | G35: SCHEDULE 25 | H35: SCHEDULE 25P | I35: SCH. 31, 32
A36: 1 | B36: BASIC CHARGE | D36: =D26 -> 20 | E36: 20 | F36: 0 | G36: 0 | H36: 0 | I36: 20
A37: 2 | B37: BLOCK 1 PER KWH | D37: =D27-0.38+0.15-0.405-0.774+0.263 -> 8.006 | E37: =E27+0.15-0.034-0.805+0.231 -> 8.753 | F37: =F27+0.15-0.034-0.659+0.255 -> 6.882 | G37: =G27+0.15-0.628+0.147 -> 5.358 | H37: =H27+0.15-0.427+0.132 -> 4.108 | I37: =I27+0.15-0.034-0.849+0.256 -> 11.045 | N37: =N27 -> 600 | O37: 3650 | P37: 250000 | Q37: 500000 | R37: =R27 -> 9999999
A38: 3 | B38: BLOCK 2 PER KWH | D38: =D28-0.38+0.15-0.405-0.871+0.263 -> 9.043 | E38: =E28+0.15-0.034-0.564+0.231 -> 6.241 | F38: =F28+0.15-0.034-0.555+0.255 -> 5.858 | G38: =G28+0.15-0.526+0.147 -> 4.537 | H38: 0 | I38: =I28+0.15-0.034-0.717+0.256 -> 9.386 | N38: 9999999 | O38: 9999999 | P38: 9999999 | Q38: 9999999 | R38: =R28 -> 9999999
A39: 4 | B39: BLOCK 3 PER KWH | L39: Rates_Billing_Proposed | N39: 9999999 | O39: 9999999 | P39: 9999999 | Q39: 9999999 | R39: =R29 -> 9999999
A40: 5 | B40: BLOCK 4 PER KWH
A41: 6 | B41: DEMAND CHARGE | F41: =F31 -> 525 | G41: 17000 | H41: 17000 | I41: 0
A42: 7 | B42: DEMAND BLOCK 1 | E42: =E32 -> 7 | F42: 7 | G42: 6.25 | H42: 6.25 | I42: 0 | N42: =N32 -> 0 | O42: =O32 -> 20 | P42: =P32 -> 50 | Q42: =Q32 -> 3000 | R42: =R32 -> 3000
A43: 8 | B43: DEMAND BLOCK 2 | E43: =E33 -> 0 | F43: 0 | G43: 0 | H43: =H33 -> 3 | I43: 0
B47: Proposed Rate Workup - from Pres & Prop Rev tab
B49: KILOWATT HOURS (KWHS)
B50: BLOCK 1 | C50: =SUM(D50:I50) -> 1987962797 | D50: ='Pres & Prop Rev'!D32 -> 699501080.8 | E50: ='Pres & Prop Rev'!E32 -> 303047291 | F50: ='Pres & Prop Rev'!F32 -> 524086536.3 | G50: ='Pres & Prop Rev'!G32 -> 66000000 | H50: ='Pres & Prop Rev'!H32 -> 368011886 | I50: ='Pres & Prop Rev'!I32 -> 27316002.49
B51: BLOCK 2 | C51: =SUM(D51:I51) -> 1127706008 | D51: ='Pres & Prop Rev'!D33 -> 606516574.1 | E51: ='Pres & Prop Rev'!E33 -> 149980966.6 | F51: ='Pres & Prop Rev'!F33 -> 50808392.33 | G51: ='Pres & Prop Rev'!G33 -> 281870216 | H51: ='Pres & Prop Rev'!H33 -> 0 | I51: ='Pres & Prop Rev'!I33 -> 38529859.27
B52: BLOCK 3 | C52: =SUM(D52:I52) -> 0 | D52: ='Pres & Prop Rev'!D34 -> 0 | E52: ='Pres & Prop Rev'!E34 -> 0 | F52: ='Pres & Prop Rev'!F34 -> 0 | G52: ='Pres & Prop Rev'!G34 -> 0 | H52: ='Pres & Prop Rev'!H34 -> 0 | I52: ='Pres & Prop Rev'!I34 -> 0
B53: ADJ. TO ACTUAL | C53: =SUM(D53:I53) -> 0 | D53: ='Pres & Prop Rev'!D42+'Pres & Prop Rev'!D39 -> 0 | E53: ='Pres & Prop Rev'!E42+'Pres & Prop Rev'!E39 -> 0 | F53: ='Pres & Prop Rev'!F42+'Pres & Prop Rev'!F39 -> 0 | G53: ='Pres & Prop Rev'!G42+'Pres & Prop Rev'!G39 -> 0 | H53: ='Pres & Prop Rev'!H42+'Pres & Prop Rev'!H39 -> 0 | I53: ='Pres & Prop Rev'!I42+'Pres & Prop Rev'!I39 -> 0
B54: WEATHER & U/B KWHS | C54: =SUM(D54:I54) -> -43172127 | D54: ='Pres & Prop Rev'!D45 -> -25134547 | E54: ='Pres & Prop Rev'!E45 -> -7853469 | F54: ='Pres & Prop Rev'!F45 -> -7520650 | G54: ='Pres & Prop Rev'!G45 -> 0 | H54: ='Pres & Prop Rev'!H45 -> 0 | I54: ='Pres & Prop Rev'!I45 -> -2663461
B55: TOTAL PROFORMA KWHS | C55: =IF(ROUND(SUM(D55:I55),3)<>ROUND(SUM(C50:C54),3),#VALUE!,SUM(D55:I55)) -> 3072496678 | D55: =SUM(D50:D54) -> 1280883108 | E55: 445174788.6 | F55: 567374278.6 | G55: 347870216 | H55: 368011886 | I55: 63182400.76
B56: TOTAL BILLS | D56: ='Pres & Prop Rev'!D49 -> 1381277 | E56: ='Pres & Prop Rev'!E49 -> 281783 | F56: ='Pres & Prop Rev'!F49 -> 9881 | G56: ='Pres & Prop Rev'!G49 -> 132 | H56: ='Pres & Prop Rev'!H49 -> 12 | I56: ='Pres & Prop Rev'!I49 -> 18392
B57: EXCESS DEMAND | D57: ='Pres & Prop Rev'!D51 -> 0 | E57: ='Pres & Prop Rev'!E51 -> 380640.53 | F57: ='Pres & Prop Rev'!F51 -> 1091946.911 | G57: ='Pres & Prop Rev'!G51 -> 360676.727 | H57: ='Pres & Prop Rev'!H51 -> 611944.42 | I57: ='Pres & Prop Rev'!I51 -> 0
B58: EXCESS DEMAND | D58: ='Pres & Prop Rev'!D52 -> 0 | E58: ='Pres & Prop Rev'!E52 -> 0 | F58: ='Pres & Prop Rev'!F52 -> 0 | G58: ='Pres & Prop Rev'!G52 -> 0 | H58: ='Pres & Prop Rev'!H52+'Pres & Prop Rev'!H53 -> 139133.4 | I58: ='Pres & Prop Rev'!I52 -> 0
J59: Proposed rates: | K59: Formulas to copy
B60: Proposed Revenue | C60: =SUM(D60:I60) -> 297915000 | D60: =ROR!D46 -> 151517000 | E60: =ROR!E46 -> 45316000 | F60: =ROR!F46 -> 52922000 | G60: =ROR!G46 -> 21394000 | H60: =ROR!H46 -> 19781000 | I60: =ROR!I46 -> 6985000 | J60: same as current | K60: FLOOR | L60: CEILING | M60: OTHER
B61: Targeted Rate Increase | C61: =ROR!C47 -> 0.01445659328 | D61: =ROR!D47 -> 0.01879345356 | E61: =ROR!E47 -> 0.004321712728 | F61: =ROR!F47 -> 0.01878874216 | G61: =ROR!G47 -> 0.004318843301 | H61: =ROR!H47 -> 0.00508104263 | I61: =ROR!I47 -> 0.01881563594 | J61: diff than current
B62: Present Basic Charge | D62: 15 | E62: 18 | F62: =F4 -> 0 | G62: 0 | H62: 0 | I62: 18
B63: BASIC CHARGE | D63: 20 | E63: 20 | F63: 0 | G63: 0 | H63: 0 | I63: 20 | K63: =FLOOR(K62*(1+K$61),$K64) -> 0 | L63: =CEILING(L62*(1+L$61),$L64) -> 0 | M63: =M62*(1+M$61) -> 0
B64: % D in Basic Charge | D64: =IF(D62,D63/D62-1,0) -> 0.3333333333 | E64: 0.1111111111 | F64: 0 | G64: 0 | H64: 0 | I64: 0.1111111111 | K64: 0.05 | L64: 0.05
B65: Basic Charge Revenue | C65: =SUM(D65:I65) -> 33629040 | D65: =D56*D63 -> 27625540 | E65: =E56*E63 -> 5635660 | F65: 0 | G65: 0 | H65: 0 | I65: 367840
B66: Present Demand Block 1 | D66: =D9 -> 0 | E66: 0 | F66: 500 | G66: 16000 | H66: 16000 | I66: 0
B67: DEMAND BLOCK 1 | F67: 525 | G67: 17000 | H67: 17000 | K67: =FLOOR(K66*(1+K$61),$K68) -> 0 | L67: =CEILING(L66*(1+L$61),$L68) -> 0 | M67: =M66*(1+M$61) -> 0
B68: % D in Demand Block 1 | D68: =IF(D66,D67/D66-1,0) -> 0 | E68: 0 | F68: 0.05 | G68: 0.0625 | H68: 0.0625 | I68: 0 | K68: 5 | L68: 10
B69: Present Demand Block 2 | D69: =D10 -> 0 | E69: 6.5 | F69: 6.5 | G69: 5.75 | H69: 5.75 | I69: 0
B70: DEMAND BLOCK 2 | E70: 7 | F70: 7 | G70: 6.25 | H70: 6.25 | K70: =FLOOR(K69*(1+K$61),$K71) -> 0 | L70: =CEILING(L69*(1+L$61),$L71) -> 0 | M70: =M69*(1+M$61) -> 0
B71: % D in Demand Block 2 | D71: =IF(D69,D70/D69-1,0) -> 0 | E71: 0.07692307692 | F71: 0.07692307692 | G71: 0.08695652174 | H71: 0.08695652174 | I71: 0 | K71: 0.05 | L71: 0.05
B72: Present Demand Block 2 | D72: =D11 -> 0 | E72: 0 | F72: 0 | G72: 0 | H72: 3 | I72: 0
B73: DEMAND BLOCK 2 | H73: 3
B74: % D in Demand Block 2 | D74: =IF(D72,D73/D72-1,0) -> 0 | E74: 0 | F74: 0 | G74: 0 | H74: 0 | I74: 0
B75: Demand Revenue | C75: =SUM(D75:I75) -> 24439919.46 | D75: =D56*D67+D57*D70 -> 0 | E75: =E56*E67+E57*E70 -> 2664483.71 | F75: =F56*F67+F57*F70 -> 12831153.38 | G75: =G56*G67+G57*G70 -> 4498229.544 | H75: =H56*H67+H57*H70+H58*H73 -> 4446052.825 | I75: =I56*I67+I57*I70 -> 0
B76: Pwr Fctr/Prim Voltg Disc | C76: =SUM(D76:I76) -> -641896.962 | D76: ='Pres & Prop Rev'!D174+'Pres & Prop Rev'!D175 -> 0 | E76: ='Pres & Prop Rev'!E174+'Pres & Prop Rev'!E175 -> 0 | F76: ='Pres & Prop Rev'!F174+'Pres & Prop Rev'!F175 -> -33543.92 | G76: ='Pres & Prop Rev'!G174+'Pres & Prop Rev'!G175 -> -293521.914 | H76: ='Pres & Prop Rev'!H174+'Pres & Prop Rev'!H175 -> -314831.128 | I76: ='Pres & Prop Rev'!I174+'Pres & Prop Rev'!I175 -> 0
B78: Present Block 1 Base Rate | D78: =D5 -> 9.456 | E78: 9.35 | F78: =F5 -> 7.135 | G78: 5.738 | H78: 4.29 | I78: 11.361
B79: Present Block 2 Base Rate | D79: =D6 -> 10.628 | E79: 6.554 | F79: 6.012 | G79: 4.807 | H79: 0 | I79: =I6 -> 9.594
B80: Present Block 3 Base Rate | D80: 0 | E80: 0 | F80: 0 | G80: 0 | H80: 0 | I80: =I7 -> 0
B82: 1) Flat Rate Increase | D82: 0 | E82: 0 | F82: 0 | G82: 0 | H82: 0 | I82: 0
B83: 2) % Rate Increase | D83: -0.03213334274 | E83: -0.01486722894 | F83: 0.004905541335 | G83: -0.00849584545 | H83: -0.008736644258 | I83: 0.01414564987 | M83: =M$61 -> 0
B84: Method ---> | D84: 2 | E84: 2 | F84: 2 | G84: 2 | H84: 2 | I84: 2
A86: Calculated | B86: BLOCK 1 PER KWH | D86: =CHOOSE(D$84,D78+D$82,D78*(1+D$83)) -> 9.152147111 | E86: =CHOOSE(E$84,E78+E$82,E78*(1+E$83)) -> 9.210991409 | F86: =CHOOSE(F$84,F78+F$82,F78*(1+F$83)) -> 7.170001037 | G86: 5.689250839 | H86: =CHOOSE(H$84,H78+H$82,H78*(1+H$83)) -> 4.252519796 | I86: =CHOOSE(I$84,I78+I$82,I78*(1+I$83)) -> 11.52170873 | K86: =CHOOSE(K$84,K78+K$82,K78*(1+K$83)) -> 
B87: BLOCK 2 PER KWH | D87: =CHOOSE(D$84,D79+D$82,D79*(1+D$83)) -> 10.28648683 | E87: =CHOOSE(E$84,E79+E$82,E79*(1+(E$83*1))) -> 6.456560182 | F87: 6.041492115 | G87: 4.766160471 | H87: 0 | I87: =CHOOSE(I$84,I79+I$82,I79*(1+I$83)) -> 9.729713365 | K87: =CHOOSE(K$84,K79+K$82,K79*(1+K$83)) ->  | M87: =0.75*M86 -> 0
B88: BLOCK 3 PER KWH | D88: 0 | E88: 0 | F88: 0 | G88: 0 | H88: 0 | I88: 0 | K88: =CHOOSE(K$84,K80+K$82,K80*(1+K$83)) -> 
A89: Input | B89: BLOCK 1 PER KWH | D89: =D86 -> 9.152147111 | E89: 9.210991409 | F89: 7.170001037 | G89: 5.689250839 | H89: 4.252519796 | I89: 11.52170873 | K89: 4.701 | M89: =M86 -> 0
B90: BLOCK 2 PER KWH | D90: =D87 -> 10.28648683 | E90: =E87+0.001 -> 6.457560182 | F90: =F87+0.001 -> 6.042492115 | G90: =G87 -> 4.766160471 | I90: =I87+0.001 -> 9.730713365 | J90: =G90-G89 -> -0.9230903679 | K90: 4.113 | M90: =M87 -> 0 | N90: =0.75*(N89-N78)+N79 -> 0
B91: BLOCK 3 PER KWH | J91: =G91-G90 -> -4.766160471 | M91: =M88 -> 0
B92: Blocks 1-3 Revenue | C92: =SUM(D92:I92) -> 244390060.9 | D92: =SUMPRODUCT(D50:D52,D89:D91)/100 -> 126408615.5 | E92: 37598771.12 | F92: 40647103.19 | G92: 17189292.37 | H92: 15649778.3 | I92: 6896500.409
B93: Adj. to Actual Revenue | C93: =SUM(D93:I93) -> 0 | D93: ='Pres & Prop Rev'!D183+'Pres & Prop Rev'!D180 -> 0 | E93: ='Pres & Prop Rev'!E183+'Pres & Prop Rev'!E180 -> 0 | F93: ='Pres & Prop Rev'!F183+'Pres & Prop Rev'!F180 -> 0 | G93: ='Pres & Prop Rev'!G183+'Pres & Prop Rev'!G180 -> 0 | H93: ='Pres & Prop Rev'!H183+'Pres & Prop Rev'!H180 -> 0 | I93: ='Pres & Prop Rev'!I183+'Pres & Prop Rev'!I180 -> 0
B94: Weather & U/B Revenue | C94: =SUM(D94:I94) -> -3899812.41 | D94: ='Pres & Prop Rev'!D204 -> -2517155.5 | E94: ='Pres & Prop Rev'!E204 -> -581466.57 | F94: ='Pres & Prop Rev'!F204 -> -522219.64 | G94: ='Pres & Prop Rev'!G204 -> 0 | H94: ='Pres & Prop Rev'!H204 -> 0 | I94: ='Pres & Prop Rev'!I204 -> -278970.7
B96: Revenue Remaining | C96: =IF(ROUND(C60-C65-C75-C76-SUM(C92:C94),3)<>ROUND(SUM(D96:I96),3),#VALUE!,SUM(D96:I96)) -> -2310.972182 | D96: =D60-D65-D75-D76-SUM(D92:D94) -> 0 | E96: =E60-E65-E75-E76-SUM(E92:E94) -> -1448.259666 | F96: -493.0039233 | G96: 0 | H96: 0 | I96: -369.7085927 | J96: there will be some remainder in Schs. 21 & 25 because some components of their revenue don't change w/a rate change.
B97: Revenue Remaining - ¢/kWh | C97: =C96/C55*100 -> -7.521479841e-05 | D97: 0 | E97: -0.0003253238286 | F97: -8.689218774e-05 | G97: 0 | H97: 0 | I97: =I96/I55*100 -> -0.0005851448951
B98: check - < $6k is rounding | C98: =SUM(D98:I98) -> 2212.214182 | D98: =D60-'Pres & Prop Rev'!D206-D96 -> 3981.77 | E98: =E60-'Pres & Prop Rev'!E206-E96 -> -685.6803336 | F98: =F60-'Pres & Prop Rev'!F206-F96 -> 255.4739233 | G98: =G60-'Pres & Prop Rev'!G206-G96 -> 617.874 | H98: =H60-'Pres & Prop Rev'!H206-H96 -> -1767.212 | I98: =I60-'Pres & Prop Rev'!I206-I96 -> -190.0114073
A99: =IF(Base1_Billing2=2,"MAKE SURE TO CHANGE Base1_Billing2 to '1' before designing Base Rates","") -> 
B100: Proposed Target | C100: =SUM(D100:I100) -> 297915000 | D100: =D60 -> 151517000 | E100: 45316000 | F100: 52922000 | G100: 21394000 | H100: 19781000 | I100: 6985000 | J100: excludes SAL
B101: Proposed Actual | C101: ='Pres & Prop Rev'!C206-'Pres & Prop Rev'!J206 -> 297915098.8 | D101: ='Pres & Prop Rev'!D206 -> 151513018.2 | E101: ='Pres & Prop Rev'!E206 -> 45318133.94 | F101: ='Pres & Prop Rev'!F206 -> 52922237.53 | G101: ='Pres & Prop Rev'!G206 -> 21393382.13 | H101: ='Pres & Prop Rev'!H206 -> 19782767.21 | I101: ='Pres & Prop Rev'!I206 -> 6985559.72 | J101: excludes SAL
C102: =SUM(D102:I102) -> 98.758 | D102: =D101-D100 -> -3981.77 | E102: 2133.94 | F102: 237.53 | G102: -617.874 | H102: 1767.212 | I102: 559.72
B103: Rate D Check
B104: Basic Charge | C104: ='Pres & Prop Rev'!C165/'Pres & Prop Rev'!C112-1 -> 0.2873687831 | D104: ='Pres & Prop Rev'!D165/'Pres & Prop Rev'!D112-1 -> 0.3333333333 | E104: ='Pres & Prop Rev'!E165/'Pres & Prop Rev'!E112-1 -> 0.1111111111 | F104: ='Pres & Prop Rev'!F165/'Pres & Prop Rev'!F112-1 ->  | G104: ='Pres & Prop Rev'!G165/'Pres & Prop Rev'!G112-1 ->  | H104: ='Pres & Prop Rev'!H165/'Pres & Prop Rev'!H112-1 ->  | I104: ='Pres & Prop Rev'!I165/'Pres & Prop Rev'!I112-1 -> 0.1111111111
B105: Demand Charge | C105: =SUM('Pres & Prop Rev'!C171:C172)/SUM('Pres & Prop Rev'!C118:C119)-1 -> 0.07200844404 | D105: =SUM('Pres & Prop Rev'!D171:D172)/SUM('Pres & Prop Rev'!D118:D119)-1 ->  | E105: =SUM('Pres & Prop Rev'!E171:E172)/SUM('Pres & Prop Rev'!E118:E119)-1 -> 0.07692307692 | F105: =SUM('Pres & Prop Rev'!F171:F172)/SUM('Pres & Prop Rev'!F118:F119)-1 -> 0.06587375427 | G105: =SUM('Pres & Prop Rev'!G171:G172)/SUM('Pres & Prop Rev'!G118:G119)-1 -> 0.07461693252 | H105: =SUM('Pres & Prop Rev'!H171:H172)/SUM('Pres & Prop Rev'!H118:H119)-1 -> 0.08569108073 | I105: =SUM('Pres & Prop Rev'!I171:I172)/SUM('Pres & Prop Rev'!I118:I119)-1 -> 
B106: Adj. to Actual Revenue | C106: ='Pres & Prop Rev'!C183/'Pres & Prop Rev'!C130-1 ->  | D106: ='Pres & Prop Rev'!D183/'Pres & Prop Rev'!D130-1 ->  | E106: ='Pres & Prop Rev'!E183/'Pres & Prop Rev'!E130-1 ->  | F106: ='Pres & Prop Rev'!F183/'Pres & Prop Rev'!F130-1 ->  | G106: ='Pres & Prop Rev'!G183/'Pres & Prop Rev'!G130-1 ->  | H106: ='Pres & Prop Rev'!H183/'Pres & Prop Rev'!H130-1 ->  | I106: ='Pres & Prop Rev'!I183/'Pres & Prop Rev'!I130-1 -> 
B107: Weather & U/B Revenue | C107: ='Pres & Prop Rev'!C204/'Pres & Prop Rev'!C151-1 -> -0.0215529757 | D107: ='Pres & Prop Rev'!D204/'Pres & Prop Rev'!D151-1 -> -0.03217253477 | E107: ='Pres & Prop Rev'!E204/'Pres & Prop Rev'!E151-1 -> -0.01474106661 | F107: ='Pres & Prop Rev'!F204/'Pres & Prop Rev'!F151-1 -> 0.004920171216 | G107: ='Pres & Prop Rev'!G204/'Pres & Prop Rev'!G151-1 ->  | H107: ='Pres & Prop Rev'!H204/'Pres & Prop Rev'!H151-1 ->  | I107: ='Pres & Prop Rev'!I204/'Pres & Prop Rev'!I151-1 -> 0.01423023583
B108: Block Energy Charges | C108: =SUM('Pres & Prop Rev'!C167:C170)/SUM('Pres & Prop Rev'!C114:C117)-1 -> -0.0190839448 | D108: =SUM('Pres & Prop Rev'!D167:D170)/SUM('Pres & Prop Rev'!D114:D117)-1 -> -0.03216382976 | E108: =SUM('Pres & Prop Rev'!E167:E170)/SUM('Pres & Prop Rev'!E114:E117)-1 -> -0.01480996421 | F108: =SUM('Pres & Prop Rev'!F167:F170)/SUM('Pres & Prop Rev'!F114:F117)-1 -> 0.004911786513 | G108: =SUM('Pres & Prop Rev'!G167:G170)/SUM('Pres & Prop Rev'!G114:G117)-1 -> -0.008531485391 | H108: =SUM('Pres & Prop Rev'!H167:H170)/SUM('Pres & Prop Rev'!H114:H117)-1 -> -0.008624708762 | I108: =SUM('Pres & Prop Rev'!I167:I170)/SUM('Pres & Prop Rev'!I114:I117)-1 -> 0.0142302554
B109: Overall Revenue | C109: ='Pres & Prop Rev'!C210 -> 0.01445599591 | D109: ='Pres & Prop Rev'!D210 -> 0.01875484423 | E109: ='Pres & Prop Rev'!E210 -> 0.004374227321 | F109: ='Pres & Prop Rev'!F210 -> 0.0188048255 | G109: ='Pres & Prop Rev'!G210 -> 0.004274231355 | H109: ='Pres & Prop Rev'!H210 -> 0.005238911414 | I109: ='Pres & Prop Rev'!I210 -> 0.01890839777
B111: Avg. Usage | D111: =D55/D56 -> 927.31806 | E111: 1579.849702 | F111: 57420.7346 | G111: 2635380.425 | H111: =H55/H56 -> 30667657.16 | I111: 3435.319746
B112: Bill Compare: | C112: =INDEX($D$2:$I$2,K112) -> SCH. 1 | F112: =INDEX($D$2:$I$2,L112) -> SCH. 11,12 | I112: =C112&" vs. "&F112 -> SCH. 1 vs. SCH. 11,12 | K112: 1 | L112: 2
B113: BILLING RATES | C113: Pres | D113: Prop | E113: % Incr | F113: Pres | G113: Prop | H113: % Incr | I113: % diff. Pres | J113: % diff. Prop.
B114: 100
B115: 200
B116: 300
B117: 400
B118: 500
B119: 600
B120: 700
B121: 800
B122: 900
B123: 1000
B124: 1100
B125: 1200
B126: 1300
B127: 1400
B128: 1500

Sheet Appendix F Pg 1
A1: AVISTA UTILITIES | Y1: This worksheet pulls data from 'Pres & Prop Rev' tab.
A2: IDAHO ELECTRIC, CASE NO. AVU-E-23-01
A3: PROPOSED INCREASE BY SERVICE SCHEDULE
A4: 12 MONTHS ENDED JUNE 30, 2022
A5: (000s of Dollars)
A6: Effective September 1, 2023
N7: Sch 76 | P7: Sch 91
D8: Base Tariff | E8: Settlement | G8: Settlement | H8: Base Tariff | I8: Base | J8: Total Billed | L8: Percent | N8: Percent | P8: Percent | Q8: Total Billed | R8: Percent
D9: Revenue | E9: Proposed | F9: Percentage | G9: Rate Spread | H9: Revenue | I9: Tariff | J9: Revenue | K9: Total | L9: Increase on | M9: Sch 76 | N9: Increase on | O9: Sch 91 | P9: Increase on | Q9: Revenue | R9: Increase
A10: Line | B10: Type of | C10: Schedule | D10: Under Present | E10: General | F10: of | G10: Allocation | H10: Under Proposed | I10: Percent | J10: at Present | K10: General | L10: Billed GRC | M10: Tax Credit | N10: Billed GRC | O10: DSM | P10: Billed GRC | Q10: at Proposed | R10: on Billed
A11: No. | B11: Service | C11: Number | D11: Rates | E11: Increase | F11: Base Increase | G11: Increase | H11: Rates | I11: Increase | J11: Rates(1) | K11: Increase | L11: Revenue | M11: Decrease | N11: Revenue | O11: Increase | P11: Revenue | Q11: Rates | R11: Revenue
B12: (a) | C12: (b) | D12: (c) | E12: (d) | F12: (d) | G12: (e) | H12: (f) | I12: (g) | J12: (h) | K12: (i) | L12: (j) | M12: (k) | N12: (l) | Q12: (m) | R12: (n)
D13: =IF(Base1_Billing2<>1,"ERROR","") -> 
A14: 1 | B14: Residential | C14: 1 | D14: ='Yr 2 Summary'!D14 -> 134665.4809 | E14: =$U$24*(D14/$D$21) -> 10813.12904 | F14: 1.3 | G14: =D14*($V$24*F14) -> 14057.06775 | H14: =D14+G14-0.5 -> 148722.0486 | I14: =G14/D14 -> 0.1043850857 | J14: ='Yr 2 Summary'!H14 -> 119416.7876 | K14: =G14 -> 14057.06775 | L14: =K14/J14 -> 0.1177143352 | M14: =$U$25*(D14/$D$21) -> 0 | N14: =M14/J14 -> 0 | O14: =(D14/$D$21)*$U$26 -> 0 | P14: =O14/J14 -> 0 | Q14: =J14+K14+M14+O14 -> 133473.8553 | R14: =(K14+M14+O14)/J14 -> 0.1177143352
A15: 2 | B15: General Service | C15: 11,12 | D15: ='Yr 2 Summary'!D15 -> 43854.51872 | E15: =$U$24*(D15/$D$21) -> 3521.352072 | F15: 0.3596447142 | G15: =D15*($V$24*F15) -> 1266.435659 | H15: =D15+G15 -> 45120.95438 | I15: 0.028878111 | J15: ='Yr 2 Summary'!H15 -> 42056.64883 | K15: =G15 -> 1266.435659 | L15: =K15/J15 -> 0.03011261464 | M15: =$U$25*(D15/$D$21) -> 0 | N15: =M15/J15 -> 0 | O15: 0 | P15: =O15/J15 -> 0 | Q15: =J15+K15+M15+O15 -> 43323.08449 | R15: =(K15+M15+O15)/J15 -> 0.03011261464
A16: 3 | B16: Large General Service | C16: 21,22 | D16: ='Yr 2 Summary'!D16 -> 47036.16046 | E16: =$U$24*(D16/$D$21) -> 3776.825876 | F16: =F14 -> 1.3 | G16: 4909.873639 | H16: 51946.0341 | I16: 0.1043850857 | J16: ='Yr 2 Summary'!H16 -> 45426.3951 | K16: 4909.873639 | L16: 0.1080841574 | M16: 0 | N16: 0 | O16: 0 | P16: =O16/J16 -> 0 | Q16: 50336.26874 | R16: 0.1080841574
A17: 4 | B17: Extra Large General Service | C17: 25 | D17: ='Yr 2 Summary'!D17 -> 20704.39328 | E17: 1662.484512 | F17: =F15 -> 0.3596447142 | G17: =D17*($V$24*F17) -> 597.9037672 | H17: 21302.29705 | I17: 0.028878111 | J17: ='Yr 2 Summary'!H17 -> 19840.45049 | K17: 597.9037672 | L17: 0.03013559433 | M17: 0 | N17: 0 | O17: 0 | P17: =O17/J17 -> 0 | Q17: =J17+K17+M17+O17 -> 20438.35426 | R17: 0.03013559433
A18: 5 | B18: Clearwater | C18: 25P | D18: ='Yr 2 Summary'!D18 -> 19143.28793 | E18: 1537.133654 | F18: 0.35 | G18: 537.9967789 | H18: 19681.2847 | I18: 0.02810367691 | J18: ='Yr 2 Summary'!H18 -> 18609.67069 | K18: 537.9967789 | L18: 0.02890952709 | M18: 0 | N18: 0 | O18: 0 | P18: 0 | Q18: 19147.66746 | R18: 0.02890952709
A19: 6 | B19: Pumping Service | C19: 31,32 | D19: ='Yr 2 Summary'!D19 -> 6207.55442 | E19: 498.4431538 | F19: =F14 -> 1.3 | G19: 647.9760999 | H19: 6855.53052 | I19: 0.1043850857 | J19: ='Yr 2 Summary'!H19 -> 5937.97651 | K19: 647.9760999 | L19: 0.1091240591 | M19: 0 | N19: 0 | O19: 0 | P19: 0 | Q19: 6585.95261 | R19: 0.1091240591
A20: 7 | B20: Street & Area Lights | C20: 41-49 | D20: ='Yr 2 Summary'!D20 -> 4042.7262 | E20: 324.6156313 | F20: =F15 -> 0.3596447142 | G20: =D20*($V$24*F20) -> 116.7462959 | H20: =D20+G20+0.5 -> 4159.972496 | I20: 0.028878111 | J20: ='Yr 2 Summary'!H20 -> 3991.91477 | K20: 116.7462959 | L20: 0.02924568852 | M20: 0 | N20: 0 | O20: 0 | P20: 0 | Q20: =J20+K20+M20+O20 -> 4108.661066 | R20: 0.02924568852
A21: 8 | B21: Total | D21: =SUM(D14:D20)+0.2 -> 275654.3219 | E21: =SUM(E14:E20) -> 22133.98394 | G21: =SUM(G14:G20) -> 22133.99999 | H21: 297788.3218 | I21: =G21/D21 -> 0.08029621972 | J21: =SUM(J14:J20) -> 255279.8439 | K21: =G21 -> 22133.99999 | L21: 0.08670484772 | M21: =SUM(M14:M20) -> 0 | N21: 0 | O21: =SUM(O14:O20) -> 0 | P21: 0 | Q21: =J21+K21+M21 -> 277413.8439 | R21: =(K21+M21+O21)/J21 -> 0.08670484772
T24: Rev Req | U24: 22134 | V24: =U24/D21 -> 0.08029621974
A26: Effective September 1, 2024
N27: Sch 76 | P27: Sch 97
D28: Base Tariff | G28: Settlement | H28: Base Tariff | I28: Base | J28: Total Billed | L28: Percent | M28: Additional | N28: Percent | P28: Percent | Q28: Total Billed | R28: Percent
D29: Revenue | F29: Percentage | G29: Pro-rata | H29: Revenue | I29: Tariff | J29: Revenue | K29: Total | L29: Increase on | M29: Sch 76 | N29: Increase on | O29: Sch 91 | P29: Increase on | Q29: Revenue | R29: Increase
A30: Line | B30: Type of | C30: Schedule | D30: Under Present | F30: of | G30: Allocation | H30: Under Proposed | I30: Percent | J30: at Present | K30: General | L30: Billed GRC | M30: Tax Credit | N30: Billed GRC | O30: Earnings Test | P30: Billed GRC | Q30: at Proposed | R30: on Billed
A31: No. | B31: Service | C31: Number | D31: Rates | F31: Base Increase | G31: Increase | H31: Rates | I31: Increase | J31: Rates | K31: Increase | L31: Revenue | M31: Decrease | N31: Revenue | O31: Increase | P31: Revenue | Q31: Rates | R31: Revenue
B32: (a) | C32: (b) | D32: (c) | E32: (d) | F32: (d) | G32: (e) | H32: (f) | I32: (g) | J32: (h) | K32: (i) | L32: (j) | M32: (k) | N32: (l) | O32: (k) | P32: (l) | Q32: (m) | R32: (n)
D33: =IF(Base1_Billing2<>1,"ERROR","") -> 
A34: 1 | B34: Residential | C34: 1 | D34: =H14 -> 148722.0486 | F34: 1.3 | G34: =D34*($V$45*F34) -> 2795.015398 | H34: =D34+G34 -> 151517.064 | I34: =G34/D34 -> 0.01879355095 | J34: =Q14 -> 133473.8553 | K34: =G34 -> 2795.015398 | L34: =K34/J34 -> 0.02094054594 | M34: =-$U$49*(D34/$D$41) -> 0 | N34: =M34/J34 -> 0 | O34: 0 | P34: =O34/L34 -> 0 | Q34: =J34+K34+M34 -> 136268.8707 | R34: =(K34+M34+O34)/J34 -> 0.02094054594
A35: 2 | B35: General Service | C35: 11,12 | D35: =H15 -> 45120.95438 | F35: 0.2995 | G35: =D35*($V$45*F35) -> 195.362227 | H35: =D35+G35 -> 45316.31661 | I35: 0.004329745008 | J35: =Q15 -> 43323.08449 | K35: =G35 -> 195.362227 | L35: =K35/J35 -> 0.004509425617 | M35: =-$U$49*(D35/$D$41)+M44 -> 0 | N35: =M35/J35 -> 0 | O35: 0 | P35: =O35/L35 -> 0 | Q35: =J35+K35+M35 -> 43518.44672 | R35: =(K35+M35+O35)/J35 -> 0.004509425617
A36: 3 | B36: Large General Service | C36: 21,22 | D36: 51946.0341 | F36: =F34 -> 1.3 | G36: 976.2504387 | H36: 52922.28454 | I36: 0.01879355095 | J36: 50336.26874 | K36: 976.2504387 | L36: 0.019394573 | M36: =-$U$49*(D36/$D$41) -> 0 | N36: 0 | O36: 0 | P36: 0 | Q36: =J36+K36+M36 -> 51312.51918 | R36: 0.019394573
A37: 4 | B37: Extra Large General Service | C37: 25 | D37: 21302.29705 | F37: =F35 -> 0.2995 | G37: 92.23351429 | H37: 21394.53056 | I37: 0.004329745008 | J37: 20438.35426 | K37: 92.23351429 | L37: 0.004512766201 | M37: =-$U$49*(D37/$D$41)-M44 -> 0 | N37: 0 | O37: 0 | P37: 0 | Q37: =J37+K37+M37 -> 20530.58777 | R37: 0.004512766201
A38: 5 | B38: Clearwater | C38: 25P | D38: 19681.2847 | F38: 0.35 | G38: 99.58340725 | H38: 19780.86811 | I38: 0.00505980218 | J38: 19147.66746 | K38: 99.58340725 | L38: 0.005200811401 | M38: 0 | N38: 0 | O38: 0 | P38: 0 | Q38: =J38+K38+M38 -> 19247.25087 | R38: 0.005200811401
A39: 6 | B39: Pumping Service | C39: 31,32 | D39: 6855.53052 | F39: =F34 -> 1.3 | G39: 128.8397621 | H39: 6984.370282 | I39: 0.01879355095 | J39: 6585.95261 | K39: 128.8397621 | L39: 0.01956281343 | M39: 0 | N39: 0 | O39: 0 | P39: 0 | Q39: =J39+K39+M39 -> 6714.792372 | R39: 0.01956281343
A40: 7 | B40: Street & Area Lights | C40: 41-49 | D40: 4159.972496 | F40: =F35 -> 0.2995 | G40: 18.01162015 | H40: 4177.984116 | I40: 0.004329745008 | J40: 4108.661066 | K40: 18.01162015 | L40: 0.004383817468 | M40: 0 | N40: 0 | O40: 0 | P40: 0 | Q40: =J40+K40+M40 -> 4126.672686 | R40: 0.004383817468
A41: 8 | B41: Total | D41: =SUM(D34:D40)+0.2 -> 297788.3218 | G41: =SUM(G34:G40) -> 4305.296368 | H41: 302093.6182 | I41: 0.01445757289 | J41: =SUM(J34:J40) -> 277413.8439 | K41: =G41 -> 4305.296368 | L41: 0.01551939985 | M41: =SUM(M34:M40) -> 0 | N41: 0 | O41: =SUM(O34:O40) -> 0 | P41: 0 | Q41: =J41+K41+M41 -> 281719.1403 | R41: 0.01551939985
G44: =U24-G21 -> 5.540441634e-06 | M44: 0
G45: =U45-G41 -> -0.2963678282 | T45: Rev Req | U45: 4305 | V45: =U45/D41 -> 0.01445657766
B50: Pro-rata Allocation of Avista Proposed
D52: YR 1 | E52: YR 2 | H52: Year 1 | I52: Year 2 | K52: Uniform | L52: Base | N52: Uniform | Q52: Base
D53: Proposed | E53: Proposed | H53: Settlement | I53: Settlement | K53: Percentage | L53: Tariff | N53: Percentage | Q53: Tariff
B54: Type of | C54: Schedule | D54: General | E54: General | G54: Percentage | H54: Spread | I54: Spread | K54: Of Base | L54: Percent | N54: Of Base | Q54: Percent
B55: Service | C55: Number | D55: Increase | E55: Increase | G55: of Total | H55: $XX.XX Million | I55: $XX.XX Million | K55: Revenue | L55: Increase | N55: Revenue | Q55: Increase
B56: Residential | C56: 1 | D56: 8473.28064 | E56: 4535.57206 | G56: =D56/$D$63 -> 0.456266588 | H56: =ROUND(($U$24/1000)*G56,0) -> 10 | I56: =ROUND(($U$45/1000)*G56,0) -> 2 | K56: =D14*$I$21 -> 10813.12904 | L56: =K56/D14 -> 0.08029621972 | N56: =D34*$I$41 -> 2150.159858 | Q56: =N56/H14 -> 0.01445757289
B57: General Service | C57: 11,12 | D57: 2681.359373 | E57: 1432.86624 | G57: 0.1443850079 | H57: 3 | I57: 1 | K57: 3521.352071 | L57: 0.08029621972 | N57: 652.3394866 | Q57: 0.01445757289
B58: Large General Service | C58: 21,22 | D58: 4047.604078 | E58: 2165.206147 | G58: 0.2179541291 | H58: 5 | I58: 1 | K58: 3776.825875 | L58: 0.08029621972 | N58: 751.0135741 | Q58: 0.01445757289
B59: Extra Large General Service | C59: 25 | D59: 1391.37199 | E59: 742.56937 | G59: 0.07492216739 | H59: 2 | I59: 0 | K59: 1662.484512 | L59: 0.08029621972 | N59: 307.9795122 | Q59: 0.01445757289
B60: Clearwater | C60: 25P | D60: 1237.583098 | E60: 663.4083343 | G60: 0.06664099083 | H60: 1 | I60: 0 | K60: 1537.133653 | L60: 0.08029621972 | N60: 284.5436081 | Q60: 0.01445757289
B61: Pumping Service | C61: 31,32 | D61: 467.50292 | E61: 251.44367 | G61: 0.02517395224 | H61: 1 | I61: 0 | K61: 498.4431536 | L61: 0.08029621972 | N61: 99.11433217 | Q61: 0.01445757289
B62: Street & Area Lights | C62: 41-49 | D62: 272.19672 | E62: 144.51024 | G62: 0.01465716456 | H62: 0 | I62: 0 | K62: 324.6156312 | L62: 0.08029621972 | N62: 60.14310557 | Q62: 0.01445757289
D63: =SUM(D56:D62) -> 18570.89882 | E63: =SUM(E56:E62) -> 9935.576061 | G63: 1 | H63: =SUM(H56:H62) -> 22 | I63: =SUM(I56:I62) -> 4 | K63: =SUM(K56:K62) -> 22133.98394 | L63: 0.08029616146 | N63: =SUM(N56:N62) -> 4305.293476 | Q63: 0.01445756318
A131: Summary of Present Fixed Cost Revenue
A133: Schedule | B133: Total Bills | C133: Present Basic Charge | E133: Present Basic Charge Revenue
A134: 1 | B134: ='[3]Pres & Prop Rev'!D25 -> 1258258 | C134: ='[3]Pres & Prop Rev'!D60 -> 5.75 | E134: =B134*C134 -> 7234983.5
A135: 11,12 | B135: ='[3]Pres & Prop Rev'!E25 -> 252366 | C135: ='[3]Pres & Prop Rev'!E60 -> 12 | E135: =B135*C135 -> 3028392
A136: 31,32 | B136: ='[3]Pres & Prop Rev'!I25 -> 16879 | C136: ='[3]Pres & Prop Rev'!I60 -> 10 | E136: =B136*C136 -> 168790
D138: =SUM(ROUND(D14:D20,0)) -> 275654 | E138: =SUM(ROUND(E14:E20,0)) -> 22133 | G138: =SUM(ROUND(H14:H20,0)) -> 297788 | I138: =SUM(ROUND(J14:J20,0)) -> 255280
D139: =ROUND(D21,0)-D138 -> 0 | E139: =ROUND(E21,0)-E138 -> 1 | G139: =ROUND(H21,0)-G138 -> 0 | I139: =ROUND(J21,0)-I138 -> 0
A142: reduce billed revenue for BPA ResEx (already accounted for in Schs 1 & 48)
I143: Sch 059 | S143: Diff = Sch 59
G144: kWh's | I144: BPA Res Ex Rate | S144: Subtraction
A145: Schedule 12 only | G145: 24066445 | I145: -0.00078 | S145: =(G145*I145)/1000 -> -18.7718271
A146: Schedule 22 only | G146: 7300800 | I146: =I145 -> -0.00078 | S146: =(G146*I146)/1000 -> -5.694624
A147: Schedule 32 only | G147: 4633832 | I147: =I145 -> -0.00078 | S147: -3.61438896
S148: =SUM(S145:S147) -> -28.08084006
A149: - set 'Base1_Billing2' range name cell to '2'
A150: =" - copy values from col. "&D12&" to col. "&J12 -> - copy values from col. (c) to col. (h)
A151: =" - zero out usage for Schs. 11,21,30,31 on 'Rev Runs CY' tab; i.e. cell "&CELL("address",#REF!) ->  | T151: Schedule | V151: Usage | Z151: Schedule 59 Rate | AA151: Billed Rev Adj
A152: =" - put Rev @ Pres Rate values from col. "&D12&" in light blue shaded area" -> - put Rev @ Pres Rate values from col. (c) in light blue shaded area | T152: 12 | V152: =#REF! ->  | Z152: -0.00245 | AA152: =(V152*Z152)/1000 -> 
A153: - add Sch 59 rates to Billing Rates in 'Rate Design' tab | T153: 22 | V153: =#REF! ->  | Z153: =Z152 -> -0.00245 | AA153: =(V153*Z153)/1000 -> 
A154: =" - put Rev @ Pres Rate values from col. "&D12&" in light yellow area" -> - put Rev @ Pres Rate values from col. (c) in light yellow area | T154: 32 | V154: =#REF! ->  | Z154: =Z152 -> -0.00245 | AA154: =(V154*Z154)/1000 -> 
A155: - restore 'Rev Runs CY' usage | AA155: =SUM(AA152:AA154) -> 
A156: =" - take Difference in orange area and add it to Billed Rev @ Pres Rates in Col. "&J12&" for Schs 11, 21, 30/31" -> - take Difference in orange area and add it to Billed Rev @ Pres Rates in Col. (h) for Schs 11, 21, 30/31
A157: - remove Sch 59 rates in 'Rate Design' tab (except for Sch 1)
A158: - set 'Base1_Billing2' range name cell to '1'
A161: calculate true % increase on billed revenue considering BPA Res Ex | H161: =IF(Base1_Billing2=1,"must set Base1_Billing2 to 2 for these #'s to be correct","") -> must set Base1_Billing2 to 2 for these #'s to be correct
E162: Present Billing | H162: Proposed Billing | I162: % change
A163: Schedule 11 | E163: =J15 -> 42056.64883 | H163: ='[3]Pres & Prop Rev'!$E$206/1000+S145 -> 39154.34647 | I163: =H163/E163-1 -> -0.06900935852
A164: Schedule 21 | E164: =J16 -> 45426.3951 | H164: ='[3]Pres & Prop Rev'!$F$206/1000+S146 -> 54876.08721 | I164: =H164/E164-1 -> 0.208022056
A165: Schedule 30,31 | E165: =J19 -> 5937.97651 | H165: ='[3]Pres & Prop Rev'!$I$206/1000+S147 -> 5814.394281 | I165: =H165/E165-1 -> -0.02081217882
A167: Total | E167: =J21 -> 255279.8439 | H167: ='[3]Pres & Prop Rev'!C$206/1000+S148 -> 259444.0521 | I167: =H167/E167-1 -> 0.01631232637

Sheet Yr 2 Summary
A1: AVISTA UTILITIES | X1: This worksheet pulls data from 'Pres & Prop Rev' tab.
A2: IDAHO ELECTRIC, CASE NO. AVU-E-23-01
A3: PROPOSED INCREASE BY SERVICE SCHEDULE
A4: 12 MONTHS ENDED JUNE 30, 2022
A5: (000s of Dollars)
A7: Effective September 1, 2023
D8: Base Tariff | F8: Base Tariff | G8: Base | H8: Total Billed | J8: Sch 76 | L8: Percent | N8: Percent | O8: Total Billed | P8: Percent
D9: Revenue | E9: Proposed | F9: Revenue | G9: Tariff | H9: Revenue | I9: Total | J9: Tax | K9: Total | L9: Increase on | M9: Sch 97 | N9: Increase on | O9: Revenue | P9: Increase
A10: Line | B10: Type of | C10: Schedule | D10: Under Present | E10: General | F10: Under Proposed | G10: Percent | H10: at Present | I10: General | J10: Rate | K10: Net | L10: Billed GRC | M10: Earnings Test | N10: Billed GRC | O10: at Proposed | P10: on Billed
A11: No. | B11: Service | C11: Number | D11: Rates(1) | E11: Increase | F11: Rates (1) | G11: Increase | H11: Rates(2) | I11: Increase | J11: Credit | K11: Impact | L11: Revenue | M11: Increase | N11: Revenue | O11: Rates(2) | P11: Revenue
B12: (a) | C12: (b) | D12: (c) | E12: (d) | F12: (e) | G12: (f) | H12: (g) | I12: (h) | J12: (i) | K12: (i) | L12: (j) | M12: (j) | N12: (k) | O12: (k) | P12: (l)
A14: 1 | B14: Residential | C14: 1 | D14: 134665.4809 | E14: 14058.54703 | F14: 148724.0279 | G14: 0.1043960705 | H14: 119416.7876 | I14: 14058.54703 | J14: 0 | K14: 14058.54703 | L14: 0.1177267227 | M14: 0 | N14: 0 | O14: 133475.3346 | P14: 0.1177267227
A15: 2 | B15: General Service | C15: 11,12 | D15: 43854.51872 | E15: 1266.24674 | F15: 45120.76546 | G15: 0.02887380313 | H15: 42056.64883 | I15: 1266.24674 | J15: 0 | K15: 1266.24674 | L15: 0.03010812262 | M15: 0 | N15: 0 | O15: 43322.89557 | P15: 0.03010812262
A16: 3 | B16: Large General Service | C16: 21,22 | D16: 47036.16046 | E16: 4909.25314 | F16: 51945.4136 | G16: 0.1043718937 | H16: 45426.3951 | I16: 4909.25314 | J16: 0 | K16: 4909.25314 | L16: 0.108070498 | M16: 0 | N16: 0 | O16: 50335.64824 | P16: 0.108070498
A17: 4 | B17: Extra Large General Service | C17: 25 | D17: 20704.39328 | E17: 597.9377565 | F17: 21302.33103 | G17: 0.02887975264 | H17: 19840.45049 | I17: 597.9377565 | J17: 0 | K17: 597.9377565 | L17: 0.03013730746 | M17: 0 | N17: 0 | O17: 20438.38824 | P17: 0.03013730746
A18: 5 | B18: Clearwater | C18: 25P | D18: 19143.28793 | E18: 536.019258 | F18: 19679.30718 | G18: 0.02800037591 | H18: 18609.67069 | I18: 536.019258 | J18: 0 | K18: 536.019258 | L18: 0.02880326401 | M18: 0 | N18: 0 | O18: 19145.68994 | P18: 0.02880326401
A19: 6 | B19: Pumping Service | C19: 31,32 | D19: 6207.55442 | E19: 648.97074 | F19: 6856.52516 | G19: 0.1045453163 | H19: 5937.97651 | I19: 648.97074 | J19: 0 | K19: 648.97074 | L19: 0.109291564 | M19: 0 | N19: 0 | O19: 6586.94725 | P19: 0.109291564
A20: 7 | B20: Street & Area Lights | C20: 41-49 | D20: 4042.7262 | E20: 117.43272 | F20: 4160.15892 | G20: 0.02904790337 | H20: 3991.91477 | I20: 117.43272 | J20: 0 | K20: 117.43272 | L20: 0.0294176421 | M20: 0 | N20: 0 | O20: 4109.34749 | P20: 0.0294176421
A21: 8 | B21: Total | D21: 275654.1219 | E21: 22134.40738 | F21: 297788.4292 | G21: 0.08029775588 | H21: 255634.8439 | I21: 22134.40738 | J21: 0 | K21: 22134.40738 | L21: 0.08658603437 | M21: 0 | N21: 0 | O21: 277769.2513 | P21: 0.08658603437
A26: Effective September 1, 2024
D27: Base Tariff | F27: Base Tariff | G27: Base | H27: Total Billed | J27: Sch 76 | L27: Percent | N27: Percent | O27: Total Billed | P27: Percent
D28: Revenue | E28: Proposed | F28: Revenue | G28: Tariff | H28: Revenue | I28: Total | J28: Tax | K28: Total | L28: Increase on | M28: Sch 97 | N28: Increase on | O28: Revenue | P28: Increase
A29: Line | B29: Type of | C29: Schedule | D29: Under Present | E29: General | F29: Under Proposed | G29: Percent | H29: at Present | I29: General | J29: Rate | K29: Net | L29: Billed GRC | M29: Earnings Test | N29: Billed GRC | O29: at Proposed | P29: on Billed
A30: No. | B30: Service | C30: Number | D30: Rates(1) | E30: Increase | F30: Rates (1) | G30: Increase | H30: Rates(2) | I30: Increase | J30: Credit | K30: Impact | L30: Revenue | M30: Increase | N30: Revenue | O30: Rates(2) | P30: Revenue
B31: (a) | C31: (b) | D31: (c) | E31: (d) | F31: (e) | G31: (f) | H31: (g) | I31: (h) | J31: (i) | K31: (i) | L31: (j) | M31: (j) | N31: (k) | O31: (k) | P31: (l)
D32: =IF(Base1_Billing2<>1,"ERROR","") -> 
A33: 1 | B33: Residential | C33: 1 | D33: ='Pres & Prop Rev'!$D$154/1000 -> 148723.7279 | E33: ='Pres & Prop Rev'!$D$209/1000 -> 2789.29035 | F33: =D33+E33 -> 151513.0182 | G33: =E33/D33 -> 0.01875484423 | H33: 137714.3436 | I33: =E33 -> 2789.29035 | J33: =-'Sched 76 - Settlement'!G15*0 -> 0 | K33: =I33+J33 -> 2789.29035 | L33: =(E33+J33)/H33 -> 0.02025417453 | M33: 0 | N33: =M33/H33 -> 0 | O33: =H33+I33+M33 -> 140503.6339 | P33: =(I33+M33)/H33 -> 0.02025417453
A34: 2 | B34: General Service | C34: 11,12 | D34: ='Pres & Prop Rev'!$E$154/1000 -> 45120.76546 | E34: ='Pres & Prop Rev'!$E$209/1000 -> 197.368485 | F34: =D34+E34 -> 45318.13394 | G34: 0.004374227321 | H34: 48017.10136 | I34: =E34 -> 197.368485 | J34: =-'Sched 76 - Settlement'!G17*0 -> 0 | K34: =I34+J34 -> 197.368485 | L34: =(E34+J34)/H34 -> 0.004110378999 | M34: 0 | N34: 0 | O34: =H34+I34+M34 -> 48214.46984 | P34: =(I34+M34)/H34 -> 0.004110378999
A35: 3 | B35: Large General Service | C35: 21,22 | D35: ='Pres & Prop Rev'!$F$154/1000 -> 51945.4131 | E35: ='Pres & Prop Rev'!$F$209/1000 -> 976.8244291 | F35: =D35+E35 -> 52922.23753 | G35: 0.0188048255 | H35: 51820.41295 | I35: 976.8244291 | J35: =-'Sched 76 - Settlement'!G19*0 -> 0 | K35: 976.8244291 | L35: 0.01885018612 | M35: 0 | N35: 0 | O35: 52797.23738 | P35: 0.01885018612
A36: 4 | B36: Extra Large General Service | C36: 25 | D36: ='Pres & Prop Rev'!$G$154/1000 -> 21302.33103 | E36: ='Pres & Prop Rev'!$G$209/1000 -> 91.05109125 | F36: =D36+E36 -> 21393.38213 | G36: 0.004274231355 | H36: 22654.0178 | I36: 91.05109125 | J36: =-'Sched 76 - Settlement'!G21*0 -> 0 | K36: 91.05109125 | L36: 0.004019202776 | M36: 0 | N36: 0 | O36: 22745.06889 | P36: 0.004019202776
A37: 5 | B37: Clearwater | C37: 25P | D37: ='Pres & Prop Rev'!$H$154/1000 -> 19679.66718 | E37: ='Pres & Prop Rev'!$H$209/1000 -> 103.100033 | F37: =D37+E37 -> 19782.76721 | G37: 0.005238911414 | H37: 21212.02191 | I37: 103.100033 | J37: =-'Sched 76 - Settlement'!G23*0 -> 0 | K37: 103.100033 | L37: =(E37+J37)/H37 -> 0.004860452882 | M37: 0 | N37: 0 | O37: 21315.12194 | P37: 0.004860452882
A38: 6 | B38: Pumping Service | C38: 31,32 | D38: ='Pres & Prop Rev'!$I$154/1000 -> 6855.92516 | E38: ='Pres & Prop Rev'!$I$209/1000 -> 129.63456 | F38: 6985.55972 | G38: =E38/D38 -> 0.01890839777 | H38: 6782.16005 | I38: 129.63456 | J38: =-'Sched 76 - Settlement'!G25*0 -> 0 | K38: 129.63456 | L38: 0.01911405202 | M38: 0 | N38: 0 | O38: 6911.79461 | P38: 0.01911405202
A39: 7 | B39: Street & Area Lights | C39: 41-49 | D39: ='Pres & Prop Rev'!$J$154/1000 -> 4160.15892 | E39: ='Pres & Prop Rev'!$J$209/1000+0.1 -> 17.653 | F39: =D39+E39 -> 4177.81192 | G39: =E39/D39 -> 0.004243347511 | H39: 4541.53037 | I39: 17.653 | J39: =-'Sched 76 - Settlement'!G27*0 -> 0 | K39: 17.653 | L39: 0.003887015733 | M39: 0 | N39: 0 | O39: 4559.18337 | P39: 0.003887015733
A40: 8 | B40: Total | D40: =SUM(D33:D39) -> 297787.9887 | E40: =SUM(E33:E39) -> 4304.921948 | F40: =D40+E40 -> 302092.9107 | G40: =E40/D40 -> 0.01445633172 | H40: 293096.588 | I40: 4304.921948 | J40: =SUM(J33:J39) -> 0 | K40: 4304.921948 | L40: 0.01468772454 | M40: =SUM(M33:M39) -> 0 | N40: 0 | O40: 297401.51 | P40: 0.01468772454
D42: =IF(Base1_Billing2=2,"Exhibit won't work until Base1_Billing2 range set to '1'","") -> 
A45: (1) Excludes all present rate adjustments.
A47: (2) Includes all present rate adjustments: Schedule 59 - Residential & Farm Energy Rate Adjustment, Schedule 66 - Temporary Power Cost Adjustment, Schedule 74 - Temporary Tax Reform, and Schedule 91 - Energy Efficiency Rider Adjustment.
A54: Summary of Present Fixed Cost Revenue
A56: Schedule | B56: Total Bills | C56: Present Basic Charge | E56: Present Basic Charge Revenue
A57: 1 | B57: ='Pres & Prop Rev'!D25 -> 1381277 | C57: ='Pres & Prop Rev'!D60 -> 15 | E57: =B57*C57 -> 20719155
A58: 11,12 | B58: ='Pres & Prop Rev'!E25 -> 281783 | C58: ='Pres & Prop Rev'!E60 -> 18 | E58: =B58*C58 -> 5072094
A59: 31,32 | B59: ='Pres & Prop Rev'!I25 -> 18392 | C59: ='Pres & Prop Rev'!I60 -> 18 | E59: =B59*C59 -> 331056
D61: =SUM(ROUND(D33:D39,0)) -> 297788 | E61: =SUM(ROUND(E33:E39,0)) -> 4305 | F61: =SUM(ROUND(F33:F39,0)) -> 302093 | H61: =SUM(ROUND(H33:H39,0)) -> 292741
D62: =ROUND(D40,0)-D61 -> 0 | E62: =ROUND(E40,0)-E61 -> 0 | F62: =ROUND(F40,0)-F61 -> 0 | H62: =ROUND(H40,0)-H61 -> 356
A65: reduce billed revenue for BPA ResEx (already accounted for in Schs 1 & 48)
H66: Sch 059 | R66: Diff = Sch 59
F67: kWh's | H67: BPA Res Ex Rate | R67: Subtraction
A68: Schedule 12 only | F68: 28334362 | H68: -0.0038 | R68: =(F68*H68)/1000 -> -107.6705756
A69: Schedule 22 only | F69: 7180480 | H69: =H68 -> -0.0038 | R69: =(F69*H69)/1000 -> -27.285824
A70: Schedule 32 only | F70: 4455913 | H70: =H68 -> -0.0038 | R70: =(F70*H70)/1000 -> -16.9324694
R71: =SUM(R68:R70) -> -151.888869
A72: - set 'Base1_Billing2' range name cell to '2'
A73: =" - copy values from col. "&D31&" to col. "&H31 -> - copy values from col. (c) to col. (g)
A74: =" - zero out usage for Schs. 11,21,30,31 on 'Rev Runs CY' tab; i.e. cell "&CELL("address",#REF!) ->  | S74: Schedule | U74: Usage | Y74: Schedule 59 Rate | Z74: Billed Rev Adj
A75: =" - put Rev @ Pres Rate values from col. "&D31&" in light blue shaded area" -> - put Rev @ Pres Rate values from col. (c) in light blue shaded area | S75: 12 | U75: =#REF! ->  | Y75: -0.00245 | Z75: =(U75*Y75)/1000 -> 
A76: - add Sch 59 rates to Billing Rates in 'Rate Design' tab | S76: 22 | U76: =#REF! ->  | Y76: =Y75 -> -0.00245 | Z76: =(U76*Y76)/1000 -> 
A77: =" - put Rev @ Pres Rate values from col. "&D31&" in light yellow area" -> - put Rev @ Pres Rate values from col. (c) in light yellow area | S77: 32 | U77: =#REF! ->  | Y77: =Y75 -> -0.00245 | Z77: =(U77*Y77)/1000 -> 
A78: - restore 'Rev Runs CY' usage | Z78: =SUM(Z75:Z77) -> 
A79: =" - take Difference in orange area and add it to Billed Rev @ Pres Rates in Col. "&H31&" for Schs 11, 21, 30/31" -> - take Difference in orange area and add it to Billed Rev @ Pres Rates in Col. (g) for Schs 11, 21, 30/31
A80: - remove Sch 59 rates in 'Rate Design' tab (except for Sch 1)
A81: - set 'Base1_Billing2' range name cell to '1'
A84: calculate true % increase on billed revenue considering BPA Res Ex | G84: =IF(Base1_Billing2=1,"must set Base1_Billing2 to 2 for these #'s to be correct","") -> must set Base1_Billing2 to 2 for these #'s to be correct
E85: Present Billing | G85: Proposed Billing | H85: % change
A86: Schedule 11 | E86: =H34 -> 48017.10136 | G86: ='Pres & Prop Rev'!$E$206/1000+R68 -> 45210.46336 | H86: =G86/E86-1 -> -0.05845080015
A87: Schedule 21 | E87: =H35 -> 51820.41295 | G87: ='Pres & Prop Rev'!$F$206/1000+R69 -> 52894.95171 | H87: =G87/E87-1 -> 0.02073582001
A88: Schedule 30,31 | E88: =H38 -> 6782.16005 | G88: ='Pres & Prop Rev'!$I$206/1000+R70 -> 6968.627251 | H88: =G88/E88-1 -> 0.02749377768
A90: Total | E90: =H40 -> 293096.588 | G90: ='Pres & Prop Rev'!C$206/1000+R71 -> 301940.9218 | H90: =G90/E90-1 -> 0.03017549208
A98: Schedule 41-49 | F98: ='Rev Runs'!$P$32 -> 10433026.22 | H98: 0.01039 | I98: Sch91 | R98: =(F98*H98)/1000 -> 108.3991424
F99: 1028624 | H99: =H68 -> -0.0038 | I99: Sch59 (Sch48 only) | R99: =(F99*H99)/1000 -> -3.9087712
F100: ='Rev Runs'!$P$32 -> 10433026.22 | H100: 0.0015 | I100: Sch66 | R100: =(F100*H100)/1000 -> 15.64953933
F101: =D39*1000 -> 4160158.92 | H101: -0.08 | I101: Sch76 | R101: =(F101*H101)/1000 -> -332.8127136
R102: =SUM(R98:R101) -> -212.6728031

Sheet Exh 2 (hidden)
A1: AVISTA UTILITIES | L1: This worksheet pulls data from 'ROR' tab.
A2: IDAHO ELECTRIC, CASE NO. AVU-E-23-01
A3: PRESENT & PROPOSED RATES OF RETURN BY RATE SCHEDULE
A4: 12 MONTHS ENDED JUNE 30, 2022
A7: Not Used
D9: Present Rates | G9: Base | I9: Proposed Rates
D10: Present | E10: Present | G10: Tariff | I10: Proposed | J10: Proposed
A11: Line | B11: Type of | C11: Sch. | D11: Rate of | E11: Relative | G11: Proposed | I11: Rate of | J11: Relative
A12: No. | B12: Service | C12: Number | D12: Return | E12: ROR | G12: Increase | I12: Return | J12: ROR
B13: (a) | C13: (b) | D13: (c) | E13: (d) | G13: (e) | I13: (f) | J13: (g)
A14: 1 | B14: Residential | C14: 1 | D14: =INDEX(ROR!$C$20:$J$20,$A14+1) -> 0.06818546735 | E14: =INDEX(ROR!$C$21:$J$21,$A14+1) -> 0.9910780601 | G14: =INDEX(ROR!$C$47:$J$47,$A14+1) -> 0.01879345356 | I14: =INDEX(ROR!$C$38:$J$38,$A14+1) -> 0.07205096362 | J14: =INDEX(ROR!$C$37:$J$37,$A14+1) -> 0.9997088093
A15: 2 | B15: General Service | C15: 11,12 | D15: =INDEX(ROR!$C$20:$J$20,$A15+1) -> 0.06700985172 | E15: =INDEX(ROR!$C$21:$J$21,$A15+1) -> 0.9739904473 | G15: =INDEX(ROR!$C$47:$J$47,$A15+1) -> 0.004321712728 | I15: =INDEX(ROR!$C$38:$J$38,$A15+1) -> 0.06876360682 | J15: =INDEX(ROR!$C$37:$J$37,$A15+1) -> 0.9540966566
A16: 3 | B16: Large General Service | C16: 21,22 | D16: =INDEX(ROR!$C$20:$J$20,$A16+1) -> 0.06744759808 | E16: =INDEX(ROR!$C$21:$J$21,$A16+1) -> 0.9803531054 | G16: =INDEX(ROR!$C$47:$J$47,$A16+1) -> 0.01878874216 | I16: =INDEX(ROR!$C$38:$J$38,$A16+1) -> 0.07114671203 | J16: =INDEX(ROR!$C$37:$J$37,$A16+1) -> 0.9871622973
A17: 4 | B17: Extra Large General Svc. | C17: 25 | D17: =INDEX(ROR!$C$20:$J$20,$A17+1) -> 0.06692805484 | E17: =INDEX(ROR!$C$21:$J$21,$A17+1) -> 0.972801527 | G17: =INDEX(ROR!$C$47:$J$47,$A17+1) -> 0.004318843301 | I17: =INDEX(ROR!$C$38:$J$38,$A17+1) -> 0.06872112471 | J17: =INDEX(ROR!$C$37:$J$37,$A17+1) -> 0.9535072164
A18: 5 | B18: Clearwater | C18: 25P | D18: =INDEX(ROR!$C$20:$J$20,$A18+1) -> 0.08562927881 | E18: =INDEX(ROR!$C$21:$J$21,$A18+1) -> 1.244624446 | G18: =INDEX(ROR!$C$47:$J$47,$A18+1) -> 0.00508104263 | I18: =INDEX(ROR!$C$38:$J$38,$A18+1) -> 0.08839351875 | J18: =INDEX(ROR!$C$37:$J$37,$A18+1) -> 1.226462145
A19: 6 | B19: Pumping Service | C19: 31,32 | D19: =INDEX(ROR!$C$20:$J$20,$A19+1) -> 0.05924362496 | E19: =INDEX(ROR!$C$21:$J$21,$A19+1) -> 0.8611080804 | G19: =INDEX(ROR!$C$47:$J$47,$A19+1) -> 0.01881563594 | I19: =INDEX(ROR!$C$38:$J$38,$A19+1) -> 0.06249367037 | J19: =INDEX(ROR!$C$37:$J$37,$A19+1) -> 0.8671011414
A20: 7 | B20: Street & Area Lights | C20: 41-49 | D20: =INDEX(ROR!$C$20:$J$20,$A20+1) -> 0.08580390151 | E20: =INDEX(ROR!$C$21:$J$21,$A20+1) -> 1.247162593 | G20: =INDEX(ROR!$C$47:$J$47,$A20+1) -> 0.004326923077 | I20: =INDEX(ROR!$C$38:$J$38,$A20+1) -> 0.08799698605 | J20: =INDEX(ROR!$C$37:$J$37,$A20+1) -> 1.220960244
A21: 8 | B21: Total | D21: =INDEX(ROR!$C$20:$J$20,1) -> 0.06879929049 | E21: =INDEX(ROR!$C$21:$J$21,1) -> 1 | G21: =INDEX(ROR!$C$47:$J$47,1) -> 0.01445659328 | I21: =INDEX(ROR!$C$38:$J$38,1) -> 0.0720719503 | J21: =INDEX(ROR!$C$37:$J$37,1) -> 1

Sheet Appendix F Pg 3
A1: AVISTA UTILITIES | N1: This worksheet uses Base & Billing rates from 'Rate Design' tab.
A2: IDAHO ELECTRIC, CASE NO. AVU-E-23-01
A3: PRESENT AND PROPOSED RATE COMPONENTS BY SCHEDULE
A5: Effective September 1, 2024
H6: General | I6: Schedule 76 | J6: Billing | K6: Proposed | L6: Proposed
D7: Base Tariff | E7: Present | F7: Present | H7: Rate | I7: Tax Credit | J7: Rate | K7: Billing | L7: Base Tariff
D8: Sch. Rate | E8: Other Adj.(1) | F8: Billing Rate | H8: Inc/(Decr) | I8: Change | J8: Decrease | K8: Rate | L8: Rate | Q8: Base | R8: Billing
B9: (a) | D9: (b) | E9: (c) | F9: (d) | H9: (e) | I9: (f) | J9: (f) | K9: (f) | L9: (g) | Q9: Check | R9: Check
A10: Residential Service - Schedule 1
A11: Basic Charge | D11: ='Rate Design'!D4 -> 15 | E11: =F11-D11 -> 0 | F11: ='Rate Design'!D14 -> 15 | H11: =IF(ROUND(K11-F11,5)<>ROUND(L11-D11,5),#VALUE!,L11-D11) -> 5 | K11: ='Rate Design'!D36 -> 20 | L11: ='Rate Design'!D26 -> 20 | O11: =H11/D11 -> 0.3333333333 | Q11: =D11+H11-L11 -> 0 | R11: =F11+H11-K11 -> 0
A12: Energy Charge:
A13: ="First "&TEXT('Rate Design'!N27,"#,##0")&" kWhs" -> First 600 kWhs | D13: ='Rate Design'!D5/100 -> 0.09456 | E13: =F13-D13 -> -0.01146 | F13: ='Rate Design'!D15/100 -> 0.0831 | H13: =(L13-D13) -> -0.00304 | I13: =-'Sched 76 - Settlement'!R15 -> -4.921063557e-19 | J13: 0 | K13: =F13+H13+I13 -> 0.08006 | L13: ='Rate Design'!D27/100 -> 0.09152 | O13: =H13/D13 -> -0.03214890017 | Q13: =D13+H13-L13 -> 0 | R13: =F13+H13+I13-K13 -> 0
A14: ="All over "&TEXT('Rate Design'!N27,"#,##0")&" kWhs" -> All over 600 kWhs | D14: ='Rate Design'!D6/100 -> 0.10628 | E14: =F14-D14 -> -0.01243 | F14: ='Rate Design'!D16/100 -> 0.09385 | H14: =(L14-D14) -> -0.00342 | I14: =-'Sched 76 - Settlement'!R16 -> -5.530992331e-19 | J14: 0 | K14: =F14+H14+I14 -> 0.09043 | L14: ='Rate Design'!D28/100 -> 0.10286 | O14: =H14/D14 -> -0.03217914942 | Q14: =D14+H14-L14 -> 0 | R14: =F14+H14+I14-K14 -> 0
A16: General Services - Schedule 11
A17: Basic Charge | D17: ='Rate Design'!E4 -> 18 | E17: =F17-D17 -> 0 | F17: ='Rate Design'!E14 -> 18 | H17: =IF(ROUND(K17-F17,5)<>ROUND(L17-D17,5),#VALUE!,L17-D17) -> 2 | K17: ='Rate Design'!E36 -> 20 | L17: ='Rate Design'!E26 -> 20 | O17: =H17/D17 -> 0.1111111111 | Q17: =D17+H17-L17 -> 0 | R17: =F17+H17-K17 -> 0
A18: Energy Charge:
A19: ="First "&TEXT('Rate Design'!O27,"#,##0")&" kWhs" -> First 3,650 kWhs | D19: ='Rate Design'!E5/100 -> 0.0935 | E19: =F19-D19 -> -0.00458 | F19: ='Rate Design'!E15/100 -> 0.08892 | H19: =(L19-D19) -> -0.00139 | I19: =-'Sched 76 - Settlement'!R20 -> -3.2439329e-19 | J19: 0 | K19: =F19+H19+I19 -> 0.08753 | L19: ='Rate Design'!E27/100 -> 0.09211 | O19: =H19/D19 -> -0.01486631016 | Q19: =D19+H19-L19 -> 0 | R19: =F19+H19+I19-K19 -> 0
A20: ="All over "&TEXT('Rate Design'!O27,"#,##0")&" kWhs" -> All over 3,650 kWhs | D20: ='Rate Design'!E6/100 -> 0.06554 | E20: =F20-D20 -> -0.00217 | F20: ='Rate Design'!E16/100 -> 0.06337 | H20: =(L20-D20) -> -0.00096 | I20: =-'Sched 76 - Settlement'!R21 -> -2.273875532e-19 | J20: 0 | K20: =F20+H20+I20 -> 0.06241 | L20: ='Rate Design'!E28/100 -> 0.06458 | O20: =H20/D20 -> -0.01464754348 | Q20: =D20+H20-L20 -> 0 | R20: =F20+H20+I20-K20 -> 0
A21: Demand Charge:
A22: =TEXT('Rate Design'!O32,"#,##0")&" kW or less" -> 20 kW or less | D22: no charge | F22: no charge | H22: no charge | L22: no charge
A23: ="Over "&TEXT('Rate Design'!O32,"#,##0")&" kW" -> Over 20 kW | D23: ='Rate Design'!E10 -> 6.5 | E23: =F23-D23 -> 0 | F23: ='Rate Design'!E20 -> 6.5 | H23: =IF(ROUND(K23-F23,5)<>ROUND(L23-D23,5),#VALUE!,L23-D23) -> 0.5 | K23: ='Rate Design'!E42 -> 7 | L23: ='Rate Design'!E32 -> 7 | O23: =H23/D23 -> 0.07692307692 | Q23: =D23+H23-L23 -> 0 | R23: =F23+H23-K23 -> 0
A25: Large General Service - Schedule 21
A26: Energy Charge:
A27: ="First "&TEXT('Rate Design'!P27,"#,##0")&" kWhs" -> First 250,000 kWhs | D27: ='Rate Design'!F5/100 -> 0.07135 | E27: =F27-D27 -> -0.00288 | F27: ='Rate Design'!F15/100 -> 0.06847 | H27: =(L27-D27) -> 0.00035 | I27: =-'Sched 76 - Settlement'!R26 -> -2.4754504e-19 | J27: 0 | K27: =F27+H27+I27 -> 0.06882 | L27: ='Rate Design'!F27/100 -> 0.0717 | O27: =H27/D27 -> 0.004905395936 | Q27: =D27+H27-L27 -> 0 | R27: =F27+H27+I27-K27 -> 0
A28: ="All over "&TEXT('Rate Design'!P27,"#,##0")&" kWhs" -> All over 250,000 kWhs | B28: (2) Includes all present rate adjustments: Schedule 59 - Residential & Farm Energy Rate Adjustment, Schedule 66 - Temporary Power Cost Adjustment, Schedule 91 - Energy Efficiency Rider Adjustment, and Schedule 99 - Deferred State Income Tax Adjustment. | D28: ='Rate Design'!F6/100 -> 0.06012 | E28: =F28-D28 -> -0.00184 | F28: ='Rate Design'!F16/100 -> 0.05828 | H28: =(L28-D28) -> 0.0003 | I28: =-'Sched 76 - Settlement'!R27 -> -2.085831508e-19 | J28: 0 | K28: =F28+H28+I28 -> 0.05858 | L28: ='Rate Design'!F28/100 -> 0.06042 | O28: =H28/D28 -> 0.00499001996 | Q28: =D28+H28-L28 -> 0 | R28: =F28+H28+I28-K28 -> 0
A29: Demand Charge:
A30: =TEXT('Rate Design'!P32,"#,##0")&" kW or less" -> 50 kW or less | D30: ='Rate Design'!F9 -> 500 | E30: =F30-D30 -> 0 | F30: ='Rate Design'!F19 -> 500 | H30: =IF(ROUND(K30-F30,5)<>ROUND(L30-D30,5),#VALUE!,L30-D30) -> 25 | K30: ='Rate Design'!F41 -> 525 | L30: ='Rate Design'!F31 -> 525 | O30: =H30/D30 -> 0.05 | Q30: =D30+H30-L30 -> 0 | R30: =F30+H30-K30 -> 0
A31: ="Over "&TEXT('Rate Design'!P32,"#,##0")&" kW" -> Over 50 kW | D31: ='Rate Design'!F10 -> 6.5 | E31: =F31-D31 -> 0 | F31: ='Rate Design'!F20 -> 6.5 | H31: =IF(ROUND(K31-F31,5)<>ROUND(L31-D31,5),#VALUE!,L31-D31) -> 0.5 | K31: ='Rate Design'!F42 -> 7 | L31: ='Rate Design'!F32 -> 7 | O31: =H31/D31 -> 0.07692307692 | Q31: =D31+H31-L31 -> 0 | R31: =F31+H31-K31 -> 0
A32: Primary Voltage Discount | D32: 0.3 | E32: =F32-D32 -> 0 | F32: 0.3 | H32: =IF(ROUND(K32-F32,5)<>ROUND(L32-D32,5),#VALUE!,L32-D32) -> 0.1 | K32: 0.4 | L32: 0.4 | O32: =H32/D32 -> 0.3333333333 | Q32: =D32+H32-L32 -> 0 | R32: =F32+H32-K32 -> 0
A34: Extra Large General Service - Schedule 25
A35: Energy Charge:
A36: ="First "&TEXT('Rate Design'!Q27,"#,##0")&" kWhs" -> First 500,000 kWhs | D36: ='Rate Design'!G5/100 -> 0.05738 | E36: =F36-D36 -> -0.00331 | F36: ='Rate Design'!G15/100 -> 0.05407 | H36: =(L36-D36) -> -0.00049 | I36: =-'Sched 76 - Settlement'!R32 -> 0 | J36: 0 | K36: =F36+H36+I36 -> 0.05358 | L36: ='Rate Design'!G27/100 -> 0.05689 | O36: =H36/D36 -> -0.008539560823 | Q36: =D36+H36-L36 -> 0 | R36: =F36+H36+I36-K36 -> 0
A37: ="All over "&TEXT('Rate Design'!Q27,"#,##0")&" kWhs" -> All over 500,000 kWhs | D37: ='Rate Design'!G6/100 -> 0.04807 | E37: =F37-D37 -> -0.00229 | F37: ='Rate Design'!G16/100 -> 0.04578 | H37: =(L37-D37) -> -0.00041 | I37: =-'Sched 76 - Settlement'!R33 -> 0 | J37: 0 | K37: =F37+H37+I37 -> 0.04537 | L37: ='Rate Design'!G28/100 -> 0.04766 | O37: =H37/D37 -> -0.008529228209 | Q37: =D37+H37-L37 -> 0 | R37: =F37+H37+I37-K37 -> 0
A38: Demand Charge:
A39: =TEXT('Rate Design'!Q32,"#,##0")&" kva or less" -> 3,000 kva or less | D39: ='Rate Design'!G9 -> 16000 | E39: =F39-D39 -> 0 | F39: ='Rate Design'!G19 -> 16000 | H39: =IF(ROUND(K39-F39,5)<>ROUND(L39-D39,5),#VALUE!,L39-D39) -> 1000 | K39: ='Rate Design'!G41 -> 17000 | L39: ='Rate Design'!G31 -> 17000 | O39: =H39/D39 -> 0.0625 | Q39: =D39+H39-L39 -> 0 | R39: =F39+H39-K39 -> 0
A40: ="Over "&TEXT('Rate Design'!Q32,"#,##0")&" kva" -> Over 3,000 kva | D40: ='Rate Design'!G10 -> 5.75 | E40: =F40-D40 -> 0 | F40: ='Rate Design'!G20 -> 5.75 | H40: =IF(ROUND(K40-F40,5)<>ROUND(L40-D40,5),#VALUE!,L40-D40) -> 0.5 | K40: ='Rate Design'!G42 -> 6.25 | L40: ='Rate Design'!G32 -> 6.25 | O40: =H40/D40 -> 0.08695652174 | Q40: =D40+H40-L40 -> 0 | R40: =F40+H40-K40 -> 0 | V40: =17000/3000 -> 5.666666667
A41: Primary Volt. Discount | D41: 0.3 | E41: =F41-D41 -> 0 | F41: 0.3 | H41: =IF(ROUND(K41-F41,5)<>ROUND(L41-D41,5),#VALUE!,L41-D41) -> 0.1 | K41: 0.4 | L41: 0.4 | O41: =H41/D41 -> 0.3333333333 | Q41: =D41+H41-L41 -> 0 | R41: =F41+H41-K41 -> 0
A42: Annual Minimum | D42: Present: | E42: =6000000*D36+5000000*D37+12*F39 -> 776630 | I42: Proposed: | K42: =6000000*L36+5000000*L37+12*L39 -> 783640 | O42: =K42/E42-1 -> 0.009026177201
A44: Clearwater - Schedule 25P
A45: Energy Charge:
A46: Block 1 Retail kWhs | D46: ='Rate Design'!H5/100 -> 0.0429 | E46: =F46-D46 -> -0.00145 | F46: ='Rate Design'!H15/100 -> 0.04145 | H46: =(L46-D46) -> -0.00037 | I46: =-'Sched 76 - Settlement'!R37 -> -7.441963712e-20 | J46: 0 | K46: =F46+H46+I46 -> 0.04108 | L46: ='Rate Design'!H27/100 -> 0.04253 | O46: =H46/D46 -> -0.008624708625 | Q46: =D46+H46-L46 -> 0 | R46: =F46+H46+I46-K46 -> 0
A47: Demand Charge:
A48: =TEXT('Rate Design'!R32,"#,##0")&" kva or less" -> 3,000 kva or less | D48: ='Rate Design'!H9 -> 16000 | E48: =F48-D48 -> 0 | F48: ='Rate Design'!H19 -> 16000 | H48: =IF(ROUND(K48-F48,5)<>ROUND(L48-D48,5),#VALUE!,L48-D48) -> 1000 | K48: ='Rate Design'!H41 -> 17000 | L48: ='Rate Design'!H31 -> 17000 | O48: =H48/D48 -> 0.0625 | Q48: =D48+H48-L48 -> 0 | R48: =F48+H48-K48 -> 0
A49: =TEXT('Rate Design'!R33,"#,##0")&" kva" -> 3,000 - 55,000 kva | D49: ='Rate Design'!H10 -> 5.75 | E49: =F49-D49 -> 0 | F49: ='Rate Design'!H20 -> 5.75 | H49: =IF(ROUND(K49-F49,5)<>ROUND(L49-D49,5),#VALUE!,L49-D49) -> 0.5 | K49: ='Rate Design'!H42 -> 6.25 | L49: ='Rate Design'!H32 -> 6.25 | O49: =H49/D49 -> 0.08695652174 | Q49: =D49+H49-L49 -> 0 | R49: =F49+H49-K49 -> 0
A50: ="Over "&TEXT('Rate Design'!R34,"#,##0")&" kva" -> Over 55,000 kva | D50: ='Rate Design'!H11 -> 3 | F50: ='Rate Design'!H21 -> 3 | H50: =IF(ROUND(K50-F50,5)<>ROUND(L50-D50,5),#VALUE!,L50-D50) -> 0 | K50: ='Rate Design'!H43 -> 3 | L50: ='Rate Design'!H33 -> 3 | O50: =H50/D50 -> 0 | Q50: =D50+H50-L50 -> 0 | R50: =F50+H50-K50 -> 0
A51: Primary Volt. Discount | D51: 0.3 | E51: =F51-D51 -> 0 | F51: 0.3 | H51: =IF(ROUND(K51-F51,5)<>ROUND(L51-D51,5),#VALUE!,L51-D51) -> 0.1 | K51: 0.4 | L51: 0.4 | O51: =H51/D51 -> 0.3333333333 | Q51: =D51+H51-L51 -> 0 | R51: =F51+H51-K51 -> 0
A52: Annual Minimum | D52: Present: | E52: =6000000*D46+5000000*D46+12*F48 -> 663900 | I52: Proposed: | K52: =6000000*L46+5000000*L46+12*L48 -> 671830 | O52: =K52/E52-1 -> 0.01194456997
A54: Pumping Service - Schedule 31
A55: Basic Charge | D55: ='Rate Design'!I4 -> 18 | E55: =F55-D55 -> 0 | F55: ='Rate Design'!I14 -> 18 | H55: =IF(ROUND(K55-F55,5)<>ROUND(L55-D55,5),#VALUE!,L55-D55) -> 2 | K55: ='Rate Design'!I36 -> 20 | L55: ='Rate Design'!I26 -> 20 | O55: =H55/D55 -> 0.1111111111 | Q55: =D55+H55-L55 -> 0 | R55: =F55+H55-K55 -> 0
A56: Energy Charge:
A57: First 165 kW/kWhs | D57: ='Rate Design'!I5/100 -> 0.11361 | E57: =F57-D57 -> -0.00477 | F57: ='Rate Design'!I15/100 -> 0.10884 | H57: =(L57-D57) -> 0.00161 | I57: =-'Sched 76 - Settlement'!R41 -> 7.883277364e-19 | J57: 0 | K57: =F57+H57+I57 -> 0.11045 | L57: ='Rate Design'!I27/100 -> 0.11522 | O57: =H57/D57 -> 0.01417128774 | Q57: =D57+H57-L57 -> 0 | R57: =F57+H57+I57-K57 -> 0
A58: All additional kWhs | D58: ='Rate Design'!I6/100 -> 0.09594 | E58: =F58-D58 -> -0.00345 | F58: ='Rate Design'!I16/100 -> 0.09249 | H58: =(L58-D58) -> 0.00137 | I58: =-'Sched 76 - Settlement'!R42 -> 6.657174811e-19 | J58: 0 | K58: =F58+H58+I58 -> 0.09386 | L58: ='Rate Design'!I28/100 -> 0.09731 | O58: =H58/D58 -> 0.01427975818 | Q58: =D58+H58-L58 -> 0 | R58: =F58+H58+I58-K58 -> 0
A61: (1) Includes all present rate adjustments: Schedule 59 - Residential & Farm Energy Rate Adjustment, Schedule 66 - Temporary Power Cost Adjustment, Schedule 75 - Fixed Cost Adjustment, and Schedule 91 - Energy Efficiency Rider Adjustment.

Sheet Bill Determ
A1: AVISTA UTILITIES
A2: IDAHO ELECTRIC
A3: ACTUAL / PRO FORMA BILLING DETERMINANTS BY RATE SCHEDULE
A4: 12 MONTHS ENDED JUNE 30, 2022
A8: Schedule 1 | B8: 0-600 kwhs | C8: over 600 kwhs | D8: Total kwhs | E8: Total Billings(2)
A9: kwhs per billing run | B9: ='Block Data'!O19 -> 699501080.8 | C9: ='Block Data'!O20 -> 606516574.1 | D9: =B9+C9 -> 1306017655 | E9: ='Rev Runs'!P10*12 -> 1381277
A10: Total kwhs per Rev. Run | D10: ='Rev Runs'!P25 -> 1306017655
A11: Adjust. kwhs to Actual | D11: =D10-D9 -> 0
A12: Energy Efficiency Load Adj(5) | D12: 0
A14: Schedules 11,12 | B14: 0-3,650 kwhs | C14: over 3,650 kwhs | D14: Total kwhs | E14: kw over 20(1) | F14: Total Billings(2) | G14: kvar billed(1)
A15: kwhs per Revenue Run | B15: ='Block Data'!O34 -> 303047291 | C15: ='Block Data'!O35 -> 149980966.6 | D15: =B15+C15 -> 453028257.6 | E15: ='Block Data'!O41 -> 380640.53 | F15: ='Rev Runs'!P11*12 -> 281783 | G15: ='Block Data'!O45 -> 0
B16: 0 | C16: 0 | D16: =B16+C16 -> 0 | E16: 0 | F16: 0 | G16: 0
A17: Total by Block | B17: =SUM(B15:B16) -> 303047291 | C17: 149980966.6 | D17: 453028257.6 | E17: 380640.53 | F17: 281783 | G17: 0
A18: Total kwhs per Rev. Run | D18: ='Rev Runs'!P26 -> 453028257.6
D19: =D16 -> 0
D20: =D18+D19 -> 453028257.6
A21: Adjust. kwhs to Actual | D21: =D20-D17 -> 0
A22: Energy Efficiency Load Adj(5) | D22: 0 | E22: 0
A24: Schedules 21,22 | B24: 0-250,000 kwhs | C24: over 250,000 kwhs | D24: Total kwhs | E24: kw over 50(1) | F24: Total Billings(2) | G24: kvar billed(1)
A25: kwhs per Revenue Run | B25: ='Block Data'!O60 -> 524086536.3 | C25: ='Block Data'!O61 -> 50808392.33 | D25: =B25+C25 -> 574894928.6 | E25: ='Block Data'!O67 -> 1091946.911 | F25: ='Rev Runs'!P12*12 -> 9881 | G25: ='Block Data'!O71 -> 62472.32
A26: Switched to Sch 25 | B26: 0 | C26: 0 | D26: =SUM(B26:C26) -> 0 | E26: 0 | F26: 0 | G26: 0
A27: Total | B27: =SUM(B25:B26) -> 524086536.3 | C27: 50808392.33 | D27: 574894928.6 | E27: 1091946.911 | F27: 9881 | G27: 62472.32
A28: Total kwhs per Rev. Run | D28: ='Rev Runs'!P27 -> 574894928.6
A29: Less: Schedule transfer | D29: 0
A30: Total | D30: =D28+D29 -> 574894928.6 | E30: =E27 -> 1091946.911 | F30: =F27 -> 9881 | G30: =G27 -> 62472.32
A31: Adjust. kwhs to Actual | D31: =D30-D27 -> 0
A32: Energy Efficiency Load Adj(5) | D32: 0 | E32: 0
A34: Schedule 25 | B34: 0-500,000 kwhs | C34: over 500,000 kwhs | D34: Total kwhs | E34: kva over 3,000 | F34: Total Billings
A35: Total | B35: ='ID Sch 25'!S15 -> 66000000 | C35: ='ID Sch 25'!T15 -> 281870216 | D35: =SUM(B35:C35) -> 347870216 | E35: ='ID Sch 25'!Q61 -> 360676.727 | F35: =11*12 -> 132
A36: Energy Efficiency Load Adj(5) | D36: 0 | E36: 0
A38: Schedule 25P | B38: all kwhs | C38: kva 3,000-55,000 | D38: kva over 55,000 | E38: Total Billings
A39: Total | B39: ='ID Sch 25'!Q28 -> 368011886 | C39: ='ID Sch 25'!Q84 -> 611944.42 | D39: ='ID Sch 25'!Q85 -> 139133.4 | E39: =1*12 -> 12
F41: Total
A42: Schedules 31, 32 | B42: Block 1 kwhs | C42: Block 2 kwhs | D42: Block 3 kwhs | E42: Total kwhs | F42: Billings(2) | G42: kvar billed(1)
A43: kwhs per billing run | B43: ='Block Data'!O88 -> 21212851.8 | C43: ='Block Data'!O89 -> 6103150.698 | D43: ='Block Data'!O90 -> 38529859.27 | E43: =B43+C43+D43 -> 65845861.76 | F43: ='Rev Runs'!P15*12 -> 18392 | G43: ='Block Data'!O95 -> 0
A44: Total kwhs per Rev. Run | E44: ='Rev Runs'!P31 -> 65845861.76
A45: Adjust kwhs to Actual | E45: =E44-E43 -> 0
A46: Energy Efficiency Load Adj(5) | E46: 0
A53: ** Does not include the effects of weather or unbilled usage
A64: Revenue Runs from this sheet | B64: =D10+D18+D28+D35+B39+E44 -> 3115668805
A66: actual Revenue Runs | B66: ='Rev Runs'!P33 -> 3583702255
A67: less:
A68: Sch 25P Difference | B68: =-'Rev Runs'!P29+B39 -> 1832594.47
A69: Sch 25PG Difference | B69: =-'Rev Runs'!P30 -> -459933000
A70: Sch 25 Normalization | B70: ='ID Sch 25'!Q18+'ID Sch 25'!Q19+'ID Sch 25'!Q20+'ID Sch 25'!Q21 -> 499981.96
A71: Sch 25 corrections
A72: Schs 41-49 SAL | B72: =-'Rev Runs'!P32 -> -10433026.22
B73: =B66+B69+B68+B70+B71+B72 -> 3115668805
A74: Diff | B74: =B64-B73 -> 0
A76: from Present Rev tab | B76: ='Pres & Prop Rev'!C20 -> 3126101831
A77: this sheet + SAL | B77: =B64-B72 -> 3126101831
A78: Energy Efficiency Load Adj | B78: =D12+D22+D32+D36 -> 0
A79: Diff | B79: =B76-B77-B78 -> 0
A82: Rev. Run customers | B82: =SUM('Rev Runs'!D17:O17) -> 1693693
A83: less:
A85: Sch 21 Adjustment | B85: 0
A86: Sch 25 normalize | B86: 0
A87: Schs 41-49 SAL | B87: =SUM('Rev Runs'!D16:O16) -> 2216 | C87: not shown on this sheet
B88: =B82-SUM(B83:B87) -> 1691477
A90: from Present Rev tab | B90: =SUM('Pres & Prop Rev'!D25:I25) -> 1691477
A91: Diff | B91: =B88-B90 -> 0

Sheet ID Sch 25
A1: Idaho Schedule 25 Billing Determinants | S1: 1st | T1: =S2 -> 500000
Q2: 12-mo Ended | S2: 500000 | T2: 99999999
B3: KWH | C3: SA Acct No. | D3: SA Acct No. | E3: 2022-01-01 | F3: =EDATE(E3,1) -> 2022-02-01 | G3: =EDATE(F3,1) -> 2022-03-01 | H3: 2022-04-01 | I3: 2022-05-01 | J3: 2022-06-01 | K3: 2021-07-31 | L3: 2021-08-31 | M3: 2021-09-30 | N3: 2021-10-30 | O3: 2021-11-30 | P3: 2021-12-30 | Q3: Total | S3: kwhs/mo | T3: kwhs/mo
A4: 1 | B4: Hecla Lucky Friday | E4: 5664634.23 | F4: 5437724.65 | G4: 5699977.87 | H4: 5610806.82 | I4: 5933483.32 | J4: 5694753.59 | K4: 5103185.54 | L4: 5370182.42 | M4: 4988439.99 | N4: 5512823.91 | O4: 5087768.25 | P4: 5786456.64 | Q4: =SUM(E4:P4) -> 65890237.23 | S4: =S$2*12-SUMPRODUCT(--($E4:$P4<=S$2),S$2-$E4:$P4) -> 6000000 | T4: =T$2*12-SUM($R4:S4)-SUMPRODUCT(--($E4:$P4<=T$2),T$2-$E4:$P4) -> 59890237.23
A5: 2 | B5: Potlatch - St. Maries | E5: 3573583.2 | F5: 3440613.6 | G5: 3692077.2 | H5: 3344558.4 | I5: 3281990.4 | J5: 3501172.8 | K5: 3439774.8 | L5: 3471710.4 | M5: 2895156 | N5: 3340144.8 | O5: 3119875.201 | P5: 3522592.8 | Q5: 40623249.6 | S5: =S$2*12-SUMPRODUCT(--($E5:$P5<=S$2),S$2-$E5:$P5) -> 6000000 | T5: =T$2*12-SUM($R5:S5)-SUMPRODUCT(--($E5:$P5<=T$2),T$2-$E5:$P5) -> 34623249.6
A6: 3 | B6: Univ of Idaho - West | E6: 1963710 | F6: 1835563.8 | G6: 1929009.6 | H6: 1831200 | I6: 1857475.2 | J6: 1848268.8 | K6: 2337795.6 | L6: 2299319.4 | M6: 2120449.8 | N6: 2003047.2 | O6: 1924528.203 | P6: 1919492.4 | Q6: 23869860 | S6: =S$2*12-SUMPRODUCT(--($E6:$P6<=S$2),S$2-$E6:$P6) -> 6000000 | T6: =T$2*12-SUM($R6:S6)-SUMPRODUCT(--($E6:$P6<=T$2),T$2-$E6:$P6) -> 17869860
A7: 4 | B7: CCI/SPEER/Vista Outdoor | E7: 3153098.2 | F7: 2844951.2 | G7: 3270860.6 | H7: 3125225.6 | I7: 3135854.4 | J7: 3133993.8 | K7: 3048844.4 | L7: 3072993 | M7: 2898523.6 | N7: 3045978.6 | O7: 2912392.005 | P7: 3008800.2 | Q7: 36651515.61 | S7: 6000000 | T7: =T$2*12-SUM($R7:S7)-SUMPRODUCT(--($E7:$P7<=T$2),T$2-$E7:$P7) -> 30651515.61
A8: 5 | B8: Univ of Idaho - East | E8: 1962794.4 | F8: 1815041.2 | G8: 1913679.6 | H8: 1594154.8 | I8: 1634897.6 | J8: 1636168.8 | K8: 1942903.2 | L8: 1950390.4 | M8: 1865939.6 | N8: 1931006 | O8: 1878091.6 | P8: 1960966 | Q8: 22086033.2 | S8: 6000000 | T8: =T$2*12-SUM($R8:S8)-SUMPRODUCT(--($E8:$P8<=T$2),T$2-$E8:$P8) -> 16086033.2
A9: 6 | B9: IFG - Grangeville | E9: 2108540.19 | F9: 1823665.63 | G9: =4324485.12-2162242.56 -> 2162242.56 | H9: 2024593.41 | I9: 2015264.66 | J9: 1912188.65 | K9: 1797292.31 | L9: 1825365.73 | M9: 1968324.09 | N9: 2046339.15 | O9: 2021965.4 | P9: =4322320.8-2161160.4 -> 2161160.4 | Q9: 23866942.18 | S9: 6000000 | T9: =T$2*12-SUM($R9:S9)-SUMPRODUCT(--($E9:$P9<=T$2),T$2-$E9:$P9) -> 17866942.18
A10: 7 | B10: US Silver * | E10: 5241430.6 | F10: 4770966.4 | G10: 5335529.5 | H10: 4860427.3 | I10: 4831727.3 | J10: 5032100.6 | K10: 5079993.8 | L10: 5076497.3 | M10: 4723452.1 | N10: 4976232.9 | O10: 4738323.415 | P10: 5036262.7 | Q10: 59702943.91 | S10: 6000000 | T10: =T$2*12-SUM($R10:S10)-SUMPRODUCT(--($E10:$P10<=T$2),T$2-$E10:$P10) -> 53702943.91
A11: 8 | B11: IFG - Clearwater | E11: 3061396.08 | F11: 2966001.72 | G11: 3044290.44 | H11: 2832109.08 | I11: 2637250.2 | J11: 2495912.52 | K11: 2349740.28 | L11: 2406696.72 | M11: 2393819.76 | N11: 2787558.96 | O11: 2778414.128 | P11: 2959291.08 | Q11: 32712480.97 | S11: 6000000 | T11: =T$2*12-SUM($R11:S11)-SUMPRODUCT(--($E11:$P11<=T$2),T$2-$E11:$P11) -> 26712480.97
A12: 9 | B12: Plummer Forest Products | E12: 1373812.65 | F12: 1285751.25 | G12: 1333005.45 | H12: 1346342.55 | I12: 1388849.7 | J12: 1205244.6 | K12: 1423395.75 | L12: 1418726.4 | M12: 1370548.2 | N12: 1411151.7 | O12: 1349493.602 | P12: 1373502.9 | Q12: 16279824.75 | S12: 6000000 | T12: =T$2*12-SUM($R12:S12)-SUMPRODUCT(--($E12:$P12<=T$2),T$2-$E12:$P12) -> 10279824.75
A13: 10 | B13: Kootenai Medical Center | E13: 1320460.4 | F13: 1186987.2 | G13: 1291383.8 | H13: 1240750 | I13: 1337403.2 | J13: 1394498 | K13: 1660153.6 | L13: 1614902.8 | M13: 1435362.6 | N13: 1359929.2 | O13: 1277217.195 | P13: 1306093.6 | Q13: =SUM(E13:P13) -> 16425141.59 | S13: 6000000 | T13: =T$2*12-SUM($R13:S13)-SUMPRODUCT(--($E13:$P13<=T$2),T$2-$E13:$P13) -> 10425141.6
A14: 11 | B14: Stimson Lumber | E14: 883119 | F14: 885731 | G14: 945286 | H14: 869799 | I14: 782656 | J14: 769474 | K14: 696727 | L14: 733307 | M14: 746323 | N14: 808854 | O14: 802906 | P14: 837805 | Q14: 9761987 | S14: 6000000 | T14: =T$2*12-SUM($R14:S14)-SUMPRODUCT(--($E14:$P14<=T$2),T$2-$E14:$P14) -> 3761987
B15: Schedule 25 Total | E15: =SUM(E4:E14) -> 30306578.95 | F15: 28292997.65 | G15: 30617342.62 | H15: 28679966.96 | I15: 28836851.98 | J15: 28623776.16 | K15: 28879806.28 | L15: 29240091.57 | M15: 27406338.74 | N15: 29223066.42 | O15: 27890975 | P15: 29872423.72 | Q15: =IF(ROUND(SUM(E15:P15),3)<>ROUND(SUM(Q4:Q14),3),#VALUE!,SUM(E15:P15)) -> 347870216 | S15: =SUM(S4:S14) -> 66000000 | T15: =SUM(T4:T14) -> 281870216
T16: =SUM(S15:T15) -> 347870216
B17: Revenue Run Total | E17: ='Rev Runs'!D28 -> 29872423.72 | F17: ='Rev Runs'!E28 -> 30306578.95 | G17: ='Rev Runs'!F28 -> 28292997.65 | H17: ='Rev Runs'!G28 -> 30617342.62 | I17: ='Rev Runs'!H28 -> 28679966.96 | J17: ='Rev Runs'!I28 -> 28836851.98 | K17: ='Rev Runs'!J28 -> 28123794.2 | L17: ='Rev Runs'!K28 -> 28879806.28 | M17: ='Rev Runs'!L28 -> 29240091.57 | N17: ='Rev Runs'!M28 -> 27406338.74 | O17: ='Rev Runs'!N28 -> 29223066.42 | P17: ='Rev Runs'!O28 -> 27890975 | Q17: =SUM(E17:P17) -> 347370234.1
B18: Booked Unbilled Reversal | E18: -29920614 | F18: -30306579 | G18: -28536625 | H18: -30622198 | I18: -28679828 | J18: -28836852 | K18: -28009326 | L18: -28988691 | M18: -29140297 | N18: -27290432 | O18: -29409987 | P18: -27790834 | Q18: =SUM(E18:P18) -> -347532263
B19: Gross Booked Unbilled | E19: 30306579 | F19: 28536625 | G19: 30622198 | H19: 28679828 | I19: 28836852 | J19: 28623775 | K19: 28988691 | L19: 29140297 | M19: 27290432 | N19: 29409987 | O19: 27790834 | P19: 29920614 | Q19: =SUM(E19:P19) -> 348146712
B20: Gross Unbilled True-up | E20: -0.05000000447 | F20: -243627.35 | G20: -4855.38 | H20: 138.96 | I20: -0.02000000328 | J20: 1.16 | K20: -108884.72 | L20: 99794.57 | M20: 115906.74 | N20: -186920.58 | O20: 100140.999 | P20: -48190.28 | Q20: =SUM(E20:P20) -> -276495.951
B21: Unbilled Reversal True-up | E21: 48190.28 | F21: 0.05000000075 | G21: 243627.35 | H21: 4855.38 | I21: -138.96 | J21: 0.01999999955 | K21: -114468.2 | L21: 108884.72 | M21: -99794.57 | N21: -115906.74 | O21: 186920.58 | P21: -100140.999 | Q21: =SUM(E21:P21) -> 162028.911
B22: Adj Revenue Runs, Sch 25 | E22: =SUM(E17:E21) -> 30306578.95 | F22: =SUM(F17:F21) -> 28292997.65 | G22: 30617342.62 | H22: 28679966.96 | I22: 28836851.98 | J22: 28623776.16 | K22: 28879806.28 | L22: 29240091.57 | M22: 27406338.74 | N22: 29223066.42 | O22: 27890975 | P22: 29872423.72 | Q22: =IF(ROUND(SUM(E22:P22),3)<>ROUND(SUM(Q17:Q21),3),#VALUE!,SUM(E22:P22)) -> 347870216
E23: =E15-E22 -> 0 | F23: 0 | G23: 0 | H23: 0 | I23: 0 | J23: 0 | K23: 0 | L23: 0 | M23: 0 | N23: 0 | O23: 0 | P23: 0 | S23: 250000 | T23: 99999999
A25: Schedule 25P KWH
A26: 1 | B26: Clearwater - Lewiston Total | E26: 25995909 | F26: 29498520 | G26: 32027073.7 | H26: 31406116.26 | I26: 32464444.54 | J26: 31819154.47 | K26: 29206523 | L26: 32812506 | M26: 32908128 | N26: 29635285 | O26: 30931322 | P26: 29306904 | Q26: =SUM(E26:P26) -> 368011886 | S26: =Q26/8760/1000 -> 42.01048927
Q27: =SUM(E27:P27) -> 0 | S27: =Q27/8760/1000 -> 0
B28: Potlatch - Tie Load | E28: =E26+E27 -> 25995909 | F28: =F26+F27 -> 29498520 | G28: 32027073.7 | H28: 31406116.26 | I28: 32464444.54 | J28: 31819154.47 | K28: 29206523 | L28: 32812506 | M28: 32908128 | N28: 29635285 | O28: 30931322 | P28: 29306904 | Q28: =IF(ROUND(SUM(E28:P28),3)<>ROUND(Q26+Q27,3),#VALUE!,SUM(E28:P28)) -> 368011886
E29: =E27/E26 -> 0 | F29: =F27/F26 -> 0 | G29: 0 | H29: 0 | I29: 0 | J29: 0 | K29: 0 | L29: 0 | M29: 0 | N29: 0 | O29: 0 | P29: 0
B30: Revenue Run Total | Q30: =SUM(E30:P30) -> 0
Q33: =Q$2 -> 12-mo Ended | T33: Max KVA
B34: KVA | E34: =E$3 -> 2022-01-01 | F34: =F$3 -> 2022-02-01 | G34: 2022-03-01 | H34: 2022-04-01 | I34: 2022-05-01 | J34: 2022-06-01 | K34: 2021-07-31 | L34: 2021-08-31 | M34: 2021-09-30 | N34: 2021-10-30 | O34: 2021-11-30 | P34: 2021-12-30 | Q34: Total | T34: Peak | U34: Month
A35: 1 | B35: =B4 -> Hecla Lucky Friday | C35: 2037100000 | D35: 2030021058 | E35: 11547.22 | F35: 11712.3 | G35: 11527.66 | H35: 11270.07 | I35: 12001.06 | J35: 11653.88 | K35: 10763.76 | L35: 10563.12 | M35: 10451.48 | N35: 10942.56 | O35: 11216.68 | P35: 11361.14 | Q35: =SUM(E35:P35) -> 135010.93 | T35: =MAX(E35:P35) -> 12001.06 | U35: =INDEX($E$34:$P$34,MATCH(T35,$E35:$P35,0)) -> 2022-05-01
A36: 2 | B36: Potlatch - St. Maries | C36: 3037100000 | D36: 3030021570 | E36: 9614.133 | F36: 9754.621 | G36: 9356.017 | H36: 9490.419 | I36: 9334.98 | J36: 9313.831 | K36: 9504.665 | L36: 9505.224 | M36: 9232.118 | N36: 9374.347 | O36: 9535.067 | P36: 9675.903 | Q36: 113691.325 | T36: =MAX(E36:P36) -> 9754.621 | U36: =INDEX($E$34:$P$34,MATCH(T36,$E36:$P36,0)) -> 2022-02-01
A37: 3 | B37: Univ of Idaho - West | C37: 4037100000 | D37: 4030024940 | E37: 3498.809 | F37: 3530.969 | G37: 3389.522 | H37: 3311.305 | I37: 3756.482 | J37: 4041.875 | K37: 4359.802 | L37: 4445.219 | M37: 4653.335 | N37: 4571.645 | O37: 3586.121 | P37: 3532.897 | Q37: 46677.981 | T37: 4653.335 | U37: 2021-09-30
A38: 4 | B38: CCI/SPEER/Vista Outdoor | C38: 3324950000 | D38: 3320059979 | E38: 5073.4 | F38: 4989.733 | G38: 5133.957 | H38: 5100.187 | I38: 5165.649 | J38: 5346.556 | K38: 4908.604 | L38: 4964.131 | M38: 4813.669 | N38: 4795.518 | O38: 4714.918 | P38: 4777.008 | Q38: 59783.33 | T38: 5346.556 | U38: 2022-06-01
A39: 5 | B39: Univ of Idaho - East | C39: 4147950000 | D39: 4140055674 | E39: 3421.925 | F39: 3536.439 | G39: 3364.71 | H39: 3370.181 | I39: 3299.199 | J39: 3059.164 | K39: 3469.131 | L39: 3415.119 | M39: 3481.606 | N39: 3342.093 | O39: 3402.188 | P39: 3485.09 | Q39: 40646.845 | T39: 3536.439 | U39: 2022-02-01
A40: 6 | B40: IFG - Grangeville | C40: 9888560000 | D40: 9880375571 | E40: 4923.76 | F40: 4946.65 | G40: =9539.1-4769.55 -> 4769.55 | H40: 4739.18 | I40: 4595.17 | J40: 4427.69 | K40: 4430.21 | L40: 4493.98 | M40: 4486.32 | N40: 4677.9 | O40: 4793.73 | P40: =9858.1-4929.05 -> 4929.05 | Q40: 56213.19 | T40: 4946.65 | U40: 2022-02-01
A41: 7 | B41: US Silver * | C41: 9500610000 | D41: 9500430648 | E41: 9867.892 | F41: 9834.404 | G41: 9886.581 | H41: 9133.683 | I41: 9459.422 | J41: 9603.357 | K41: 9517.203 | L41: 10247.717 | M41: 9390.031 | N41: 10028.58 | O41: 9530.703 | P41: 9567.12 | Q41: 116066.693 | T41: 10247.717 | U41: 2021-08-31
A42: 8 | B42: IFG - Clearwater | C42: 2304050000 | D42: 2300622080 | E42: 7082.344 | F42: 6950.395 | G42: 6738.542 | H42: 6820.285 | I42: 6380.742 | J42: 6653.574 | K42: 6227.459 | L42: 6228.946 | M42: 6729.228 | N42: 6647.991 | O42: 6676.506 | P42: 6948.217 | Q42: 80084.229 | T42: 7082.344 | U42: 2022-01-01
A43: 9 | B43: Plummer Forest Products | C43: 3059350000 | D43: 3056543951 | E43: 3014.086 | F43: 2980.599 | G43: 3002.264 | H43: 2962.019 | I43: 3054.894 | J43: 3071.583 | K43: 3131.67 | L43: 3061.366 | M43: 3011.685 | N43: 3079.664 | O43: 3026.147 | P43: 3048.845 | Q43: 36444.822 | T43: 3131.67 | U43: 2021-07-31
A44: 10 | B44: Kootenai Medical Center | C44: 6743927051 | D44: 6749204037 | E44: 2141.898 | F44: 2185.495 | G44: 2225.993 | H44: 2265.704 | I44: 2522.694 | J44: 2691.745 | K44: 2853.898 | L44: 2834.287 | M44: 2591.743 | N44: 2526.303 | O44: 2327.459 | P44: 2285.527 | Q44: 29452.746 | T44: 2853.898 | U44: 2021-07-31
A45: 11 | B45: Stimson Lumber | C45: 4561420000 | D45: 4560652323 | E45: 2590.334 | F45: 2645.184 | G45: 2598.678 | H45: 2481.886 | I45: 2386.332 | J45: 2309.053 | K45: 2252.008 | L45: 2253.255 | M45: 2372.949 | N45: 2378.551 | O45: 2475.351 | P45: 2533.074 | Q45: 29276.655 | T45: 2645.184 | U45: 2022-02-01
B46: Schedule 25 Total | E46: =SUM(E35:E45) -> 62775.801 | F46: =SUM(F35:F45) -> 63066.789 | G46: 61993.474 | H46: 60944.919 | I46: 61956.624 | J46: 62172.308 | K46: 61418.41 | L46: 62012.364 | M46: 61214.164 | N46: 62365.152 | O46: 61284.87 | P46: 62143.871 | Q46: =IF(ROUND(SUM(E46:P46),3)<>ROUND(SUM(Q35:Q45),3),#VALUE!,SUM(E46:P46)) -> 743348.746
Q48: =Q$2 -> 12-mo Ended
B49: KVA in excess of 3,000 | E49: =E$3 -> 2022-01-01 | F49: =F$3 -> 2022-02-01 | G49: 2022-03-01 | H49: 2022-04-01 | I49: 2022-05-01 | J49: 2022-06-01 | K49: 2021-07-31 | L49: 2021-08-31 | M49: 2021-09-30 | N49: 2021-10-30 | O49: 2021-11-30 | P49: 2021-12-30 | Q49: Total
A50: 1 | B50: =B4 -> Hecla Lucky Friday | C50: 0 | D50: 0 | E50: =MAX(0,E35-3000) -> 8547.22 | F50: =MAX(0,F35-3000) -> 8712.3 | G50: 8527.66 | H50: 8270.07 | I50: 9001.06 | J50: 8653.88 | K50: 7763.76 | L50: 7563.12 | M50: 7451.48 | N50: 7942.56 | O50: 8216.68 | P50: 8361.14 | Q50: =SUM(E50:P50) -> 99010.93
A51: 2 | B51: Potlatch - St. Maries | C51: 0 | D51: 0 | E51: 6614.133 | F51: =MAX(0,F36-3000) -> 6754.621 | G51: 6356.017 | H51: 6490.419 | I51: 6334.98 | J51: 6313.831 | K51: 6504.665 | L51: 6505.224 | M51: 6232.118 | N51: 6374.347 | O51: 6535.067 | P51: 6675.903 | Q51: 77691.325
A52: 3 | B52: Univ of Idaho - West | C52: 0 | D52: 0 | E52: 498.809 | F52: =MAX(0,F37-3000) -> 530.969 | G52: 389.522 | H52: 311.305 | I52: 756.482 | J52: 1041.875 | K52: 1359.802 | L52: 1445.219 | M52: 1653.335 | N52: 1571.645 | O52: 586.121 | P52: 532.897 | Q52: 10677.981
A53: 4 | B53: CCI/SPEER/Vista Outdoor | C53: 0 | D53: 0 | E53: =MAX(0,E38-3000) -> 2073.4 | F53: =MAX(0,F38-3000) -> 1989.733 | G53: 2133.957 | H53: 2100.187 | I53: 2165.649 | J53: 2346.556 | K53: 1908.604 | L53: 1964.131 | M53: 1813.669 | N53: 1795.518 | O53: 1714.918 | P53: 1777.008 | Q53: 23783.33
A54: 5 | B54: Univ of Idaho - East | C54: 0 | D54: 0 | E54: 421.925 | F54: =MAX(0,F39-3000) -> 536.439 | G54: 364.71 | H54: 370.181 | I54: 299.199 | J54: 59.164 | K54: 469.131 | L54: 415.119 | M54: 481.606 | N54: 342.093 | O54: 402.188 | P54: 485.09 | Q54: 4646.845
A55: 6 | B55: IFG - Grangeville | C55: 0 | D55: 0 | E55: 1923.76 | F55: =MAX(0,F40-3000) -> 1946.65 | G55: 1769.55 | H55: 1739.18 | I55: 1595.17 | J55: 1427.69 | K55: 1430.21 | L55: 1493.98 | M55: 1486.32 | N55: 1677.9 | O55: 1793.73 | P55: 1929.05 | Q55: 20213.19
A56: 7 | B56: US Silver * | C56: 0 | D56: 0 | E56: 6867.892 | F56: =MAX(0,F41-3000) -> 6834.404 | G56: 6886.581 | H56: 6133.683 | I56: 6459.422 | J56: 6603.357 | K56: 6517.203 | L56: 7247.717 | M56: 6390.031 | N56: 7028.58 | O56: 6530.703 | P56: 6567.12 | Q56: 80066.693
A57: 8 | B57: IFG - Clearwater | C57: 0 | D57: 0 | E57: 4082.344 | F57: =MAX(0,F42-3000) -> 3950.395 | G57: 3738.542 | H57: 3820.285 | I57: 3380.742 | J57: 3653.574 | K57: 3227.459 | L57: 3228.946 | M57: 3729.228 | N57: 3647.991 | O57: 3676.506 | P57: 3948.217 | Q57: 44084.229
A58: 9 | B58: Plummer Forest Products | C58: 0 | D58: 0 | E58: 14.086 | F58: =MAX(0,F43-3000) -> 0 | G58: 2.264 | H58: 0 | I58: 54.894 | J58: 71.583 | K58: 131.67 | L58: 61.366 | M58: 11.685 | N58: 79.664 | O58: 26.147 | P58: 48.845 | Q58: 502.204
A59: 10 | B59: Kootenai Medical Center | C59: 0 | D59: 0 | E59: =MAX(0,E44-3000) -> 0 | F59: 0 | G59: 0 | H59: 0 | I59: 0 | J59: 0 | K59: 0 | L59: 0 | M59: 0 | N59: 0 | O59: 0 | P59: 0 | Q59: =SUM(E59:P59) -> 0
A60: 11 | B60: Stimson Lumber | C60: 0 | D60: 0 | E60: =MAX(0,E45-3000) -> 0 | F60: =MAX(0,F45-3000) -> 0 | G60: 0 | H60: 0 | I60: 0 | J60: 0 | K60: 0 | L60: 0 | M60: 0 | N60: 0 | O60: 0 | P60: 0 | Q60: =SUM(E60:P60) -> 0
B61: =B15 -> Schedule 25 Total | E61: =SUM(E50:E60) -> 31043.569 | F61: =SUM(F50:F60) -> 31255.511 | G61: 30168.803 | H61: 29235.31 | I61: 30047.598 | J61: 30171.51 | K61: 29312.504 | L61: 29924.822 | M61: 29249.472 | N61: 30460.298 | O61: 29482.06 | P61: 30325.27 | Q61: =IF(ROUND(SUM(E61:P61),3)<>ROUND(SUM(Q50:Q60),3),#VALUE!,SUM(E61:P61)) -> 360676.727
B64: Customer 7 KWH | E64: =E3 -> 2022-01-01 | F64: 2022-02-01 | G64: 2022-03-01 | H64: 2022-04-01 | I64: 2022-05-01 | J64: 2022-06-01 | K64: 2021-07-31 | L64: 2021-08-31 | M64: 2021-09-30 | N64: 2021-10-30 | O64: 2021-11-30 | P64: 2021-12-30 | Q64: Total
B65: Galena Point A PVD | Q65: =SUM(E65:P65) -> 0
B66: Calladay Project PVD | Q66: =SUM(E66:P66) -> 0
B67: Coeur Shaft No PVD | Q67: =SUM(E67:P67) -> 0
B68: Total | E68: =SUM(E65:E67) -> 0 | F68: =SUM(F65:F67) -> 0 | G68: 0 | H68: 0 | I68: 0 | J68: 0 | K68: 0 | L68: 0 | M68: 0 | N68: 0 | O68: 0 | P68: 0 | Q68: 0
E69: =E10 -> 5241430.6 | F69: =F10 -> 4770966.4 | G69: 5335529.5 | H69: 4860427.3 | I69: 4831727.3 | J69: 5032100.6 | K69: 5079993.8 | L69: 5076497.3 | M69: 4723452.1 | N69: 4976232.9 | O69: 4738323.415 | P69: 5036262.7 | Q69: 59702943.91
B70: Customer 7 KVA
B71: Galena Point A PVD | E71: 8986.69 | F71: 8388.234 | G71: 8317.885 | H71: 8066.576 | I71: 8040.073 | J71: 8522.201 | K71: 8611.768 | L71: 9192.275 | M71: 8727.713 | N71: 9354.315 | O71: 8597.97 | P71: 8837.307 | Q71: =SUM(E71:P71) -> 103643.007
B72: Calladay Project PVD | E72: 221.758 | F72: 221.333 | G72: 220.779 | H72: 219.693 | I72: 220.459 | J72: 219.425 | K72: 275.501 | L72: 240.058 | M72: 246.197 | N72: 289.126 | O72: 290.867 | P72: 214.529 | Q72: =SUM(E72:P72) -> 2879.725
B73: Coeur Shaft No PVD | Q73: =SUM(E73:P73) -> 0
B74: Total | E74: =SUM(E71:E73) -> 9208.448 | F74: =SUM(F71:F73) -> 8609.567 | G74: 8538.664 | H74: 8286.269 | I74: 8260.532 | J74: 8741.626 | K74: 8887.269 | L74: 9432.333 | M74: 8973.91 | N74: 9643.441 | O74: 8888.837 | P74: 9051.836 | Q74: 106522.732
E75: =E41 -> 9867.892 | F75: =F41 -> 9834.404 | G75: 9886.581 | H75: 9133.683 | I75: 9459.422 | J75: 9603.357 | K75: 9517.203 | L75: 10247.717 | M75: 9390.031 | N75: 10028.58 | O75: 9530.703 | P75: 9567.12 | Q75: =Q42 -> 80084.229
B76: Primary Voltage Discount | E76: =(E71+E72)*$D$77 -> -2762.5344 | F76: =(F71+F72)*$D$77 -> -2582.8701 | G76: -2561.5992 | H76: -2485.8807 | I76: -2478.1596 | J76: -2622.4878 | K76: -2666.1807 | L76: -2829.6999 | M76: -2692.173 | N76: -2893.0323 | O76: -2666.6511 | P76: -2715.5508
B77: >11 and <60 | D77: -0.3 | E77: =(E46-E41+E71+E72)*$D$77 -> -18634.9071 | F77: =(F46-F41+F71+F72)*$D$77 -> -18552.5856 | G77: -18193.6671 | H77: -18029.2515 | I77: -18227.3202 | J77: -18393.1731 | K77: -18236.5428 | L77: -18359.094 | M77: -18239.4129 | N77: -18594.0039 | O77: -18192.9012 | P77: =(P46-P41+P71+P72)*$D$77 -> -18488.5761 | Q77: =SUM(E77:P77) -> -220141.4355
B78: >11 and <61 | D78: -0.4 | E78: =(E46-E41+E71+E72)*$D$78 -> -24846.5428 | F78: =(F46-F41+F71+F72)*$D$78 -> -24736.7808 | G78: -24258.2228 | H78: -24039.002 | I78: -24303.0936 | J78: -24524.2308 | K78: -24315.3904 | L78: -24478.792 | M78: -24319.2172 | N78: -24792.0052 | O78: -24257.2016 | P78: -24651.4348 | Q78: =SUM(E78:P78) -> -293521.914
E80: =E46-E42+E71+E72 -> 64901.905 | F80: =F46-F42+F71+F72 -> 64725.961 | G80: 63793.596 | H80: 62410.903 | I80: 63836.414 | J80: 64260.36 | K80: 64078.22 | L80: 65215.751 | M80: 63458.846 | N80: 65360.602 | O80: 63497.201 | P80: =P46-P42+P71+P72 -> 64247.49
E81: =E75-E74 -> 659.444 | F81: =F75-F74 -> 1224.837 | G81: 1347.917 | H81: 847.414 | I81: 1198.89 | J81: 861.731 | K81: 629.934 | L81: 815.384 | M81: 416.121 | N81: 385.139 | O81: 641.866 | P81: 515.284
A82: Schedule 25P kVA | T82: Peak | U82: Month
B83: Potlatch - Lewiston Total | C83: 2500008 | D83: 2500009 | E83: 84286.28 | F83: 51492.97 | G83: 52268.91 | H83: 63514.61 | I83: 77924.75 | J83: 61715.58 | K83: 71974.87 | L83: 53375.87 | M83: 71746.53 | N83: 65893.66 | O83: 82077.12 | P83: 50806.67 | Q83: =SUM(E83:P83) -> 787077.82 | T83: =MAX(E83:P83) -> 84286.28 | U83: =INDEX($E$34:$P$34,MATCH(T83,$E83:$P83,0)) -> 2022-01-01
B84: 3,000 - 55,000 kVA | E84: =IF(E83>55000, 52000,E83-3000) -> 52000 | F84: =IF(F83>55000, 52000,F83-3000) -> 48492.97 | G84: 49268.91 | H84: 52000 | I84: 52000 | J84: 52000 | K84: 52000 | L84: 50375.87 | M84: 52000 | N84: 52000 | O84: 52000 | P84: 47806.67 | Q84: =SUM(E84:P84) -> 611944.42
B85: in excess of 55,000 kVA | E85: =MAX(0,E83-55000) -> 29286.28 | F85: =MAX(0,F83-55000) -> 0 | G85: 0 | H85: 8514.61 | I85: 22924.75 | J85: 6715.58 | K85: 16974.87 | L85: 0 | M85: 16746.53 | N85: 10893.66 | O85: 27077.12 | P85: 0 | Q85: =SUM(E85:P85) -> 139133.4
B87: Calc Base Revenue for Clearwater Paper | E87: =ROUND(E26*(0.04273)+14000+(E84*5)+(E85*2.5)-(E83*0.2),2) -> 1441163.64 | F87: 1506638.02 | G87: 1618407.63 | H87: 1624566.95 | I87: 1702932.64 | J87: 1638078.3 | K87: 1550036.93 | L87: 1657282.56 | M87: 1707681.33 | N87: 1554371.15 | O87: 1646972.77 | P87: 1495156.02 | Q87: =SUM(E87:P87) -> 19143287.94
Q88: =Q87-'Pres & Prop Rev'!H132 -> -536379.239
B89: Primary Voltage Discount
B90: >11 and <60 | D90: -0.3 | E90: =E83*$D90 -> -25285.884 | F90: =F83*$D90 -> -15447.891 | G90: -15680.673 | H90: -19054.383 | I90: -23377.425 | J90: =J83*$D90 -> -18514.674 | K90: -21592.461 | L90: =L83*$D90 -> -16012.761 | M90: -21523.959 | N90: -19768.098 | O90: -24623.136 | P90: =P83*$D90 -> -15242.001 | Q90: =SUM(E90:P90) -> -236123.346
B91: >11 and <60 | D91: -0.4 | E91: =E83*$D91 -> -33714.512 | F91: =F83*$D91 -> -20597.188 | G91: -20907.564 | H91: -25405.844 | I91: -31169.9 | J91: -24686.232 | K91: -28789.948 | L91: -21350.348 | M91: -28698.612 | N91: -26357.464 | O91: -32830.848 | P91: -20322.668 | Q91: =SUM(E91:P91) -> -314831.128
B93: Present Base Revenues--calculated
A94: 1 | B94: =B4 -> Hecla Lucky Friday | C94: =C4 -> 0 | D94: =D4 -> 0 | E94: =500000*E$107+(E4-500000)*E$108+E$109+E50*E$110+$E$111*E35 -> 336636.3164 | F94: 328628.4589 | G94: 340228.6832 | H94: 334538.3653 | I94: 354033.3202 | J94: 340665.4511 | K94: 307377.6209 | L94: 319118.6729 | M94: 300159.8763 | N94: 328043.3974 | O94: 309104.9258 | P94: 343478.1837 | Q94: =SUM(E94:P94) -> 3942013.272
A95: 2 | B95: =B5 -> Potlatch - St. Maries | C95: 0 | D95: =D5 -> 0 | E95: =500000*E$107+(E5-500000)*E$108+E$109+E51*E$110+$E$111*E36 -> 225584.1693 | F95: 221957.9802 | G95: 231873.4437 | H95: 215900.7058 | I95: 212045.9195 | J95: 222466.7554 | K95: 220555.3989 | L95: 222093.5897 | M95: 192890.192 | N95: 215055.9517 | O95: 205343.5161 | P95: 225469.7072 | Q95: =SUM(E95:P95) -> 2611237.33
A96: 3 | B96: Univ of Idaho - West | C96: 0 | D96: =D6 -> 0 | E96: =500000*E$107+(E6-500000)*E$108+E$109+E52*E$110+$E$111*E37 -> 114869.0488 | F96: 110884.3329 | G96: 114605.3864 | H96: 109477.3963 | I96: 113166.6598 | J96: 114279.5 | K96: 139543.7554 | L96: 138159.7271 | M96: 130695.6976 | N96: 124606.9442 | O96: 115461.4302 | P96: 114929.2883 | Q96: 1440679.167
A97: 4 | B97: CCI/SPEER/Vista Outdoor | C97: 0 | D97: =D7 -> 0 | E97: =500000*E$107+(E7-500000)*E$108+E$109+E53*E$110+$E$111*E38 -> 180624.4605 | F97: 167355.849 | G97: 188615.3347 | H97: 181430.6137 | I97: 182298.3081 | J97: 183194.8122 | K97: 176714.8421 | L97: 178178.2875 | M97: 168971.5255 | N97: 175960.7644 | O97: 169099.9868 | P97: 174072.7192 | Q97: 2126517.504
A98: 5 | B98: Univ of Idaho - East | C98: 0 | D98: 0 | E98: =500000*E$107+(E8-500000)*E$108+E$109+E54*E$110+$E$111*E39 -> 114406.0181 | F98: 109927.623 | G98: 113733.2479 | H98: 98403.50769 | I98: 99975.16218 | J98: 98728.07802 | K98: 115707.1208 | L98: 115772.6651 | M98: 112075.4693 | N98: 114442.8653 | O98: 112226.7878 | P98: 116662.3761 | Q98: 1322060.921
A99: 6 | B99: IFG - Grangeville | C99: 0 | D99: 0 | E99: =500000*E$107+(E9-500000)*E$108+E$109+E55*E$110+$E$111*E40 -> 129597.0189 | F99: 118027.8493 | G99: 133338.0474 | H99: 126555.7362 | I99: 125322.4487 | J99: 119454.8189 | K99: 113945.4858 | L99: 115642.5216 | M99: 122472.783 | N99: 127267.0779 | O99: 126726.7053 | P99: 134155.3029 | Q99: 1492505.796
A100: 7 | B100: US Silver * | C100: 0 | D100: 0 | E100: =500000*E$107+(E10-500000)*E$108+E$109+E56*E$110+$E$111*E41 -> 307140.5803 | F100: 286342.8566 | G100: 313765.7695 | H100: 286824.3127 | I100: 287219.9812 | J100: 297636.3715 | K100: 299469.0583 | L100: 303282.2829 | M100: 281637.0114 | N100: 297268.2765 | O100: 283118.5379 | P100: 297638.952 | Q100: 3541343.991
A101: 8 | B101: IFG - Clearwater | C101: 0 | D101: 0 | E101: =500000*E$107+(E11-500000)*E$108+E$109+E57*E$110+$E$111*E42 -> 187165.0844 | F101: 183860.3554 | G101: 186469.0954 | H101: 176715.0367 | I101: 164952.661 | J101: 159645.4931 | K101: 150296.6668 | L101: 153042.667 | M101: 155150.2085 | N101: 173634.5102 | O101: 173350.3248 | P101: 183525.9049 | Q101: =SUM(E101:P101) -> 2047808.008
A102: 9 | B102: Plummer Forest Products | C102: 0 | D102: 0 | E102: =500000*E$107+(E12-500000)*E$108+E$109+E58*E$110+$E$111*E43 -> 83870.94279 | F102: 81566.88289 | G102: 83844.91078 | H102: 84485.08068 | I102: 86816.17738 | J102: 78081.23527 | K102: 88895.2352 | L102: 88287.62275 | M102: 85700.93522 | N102: 88023.23102 | O102: 84767.6586 | P102: 86045.48965 | Q102: =SUM(E102:P102) -> 1020385.402
A103: 10 | B103: Kootenai Medical Center | C103: 0 | D103: 0 | E103: =500000*E$107+(E13-500000)*E$108+E$109+E59*E$110+$E$111*E44 -> 81486.96203 | F103: 77057.8262 | G103: 82064.02137 | H103: 79618.1413 | I103: 84187.16362 | J103: 86880.99536 | K103: 99602.41415 | L103: 97433.0915 | M103: 88875.35728 | N103: 85268.90574 | O103: 81352.59286 | P103: 82753.26125 | Q103: =SUM(E103:P103) -> 1026580.733
A104: 11 | B104: Stimson Lumber | C104: 0 | D104: 0 | E104: =500000*E$107+(E14-500000)*E$108+E$109+E60*E$110+$E$111*E45 -> 60329.43013 | F104: 62438.53397 | G104: 65315.29462 | H104: 61721.67213 | I104: 57561.37432 | J104: 56950.89928 | K104: 53471.06449 | L104: 55229.09099 | M104: 55818.86191 | N104: 58823.04648 | O104: 58508.08612 | P104: 60168.36415 | Q104: =SUM(E104:P104) -> 706335.7186
B105: Present Base Rates | Q105: =SUM(Q94:Q104) -> 21277467.84 | S105: =Q105-'Pres & Prop Rev'!G132 -> -24863.19282
B106: Schedule 25 Base Rates
B107: 1st 500,000 kWh | E107: ='Appendix F Pg 3'!$D$36 -> 0.05738 | F107: ='Appendix F Pg 3'!$D$36 -> 0.05738 | G107: ='Appendix F Pg 3'!$D$36 -> 0.05738 | H107: ='Appendix F Pg 3'!$D$36 -> 0.05738 | I107: ='Appendix F Pg 3'!$D$36 -> 0.05738 | J107: ='Appendix F Pg 3'!$D$36 -> 0.05738 | K107: ='Appendix F Pg 3'!$D$36 -> 0.05738 | L107: ='Appendix F Pg 3'!$D$36 -> 0.05738 | M107: ='Appendix F Pg 3'!$D$36 -> 0.05738 | N107: ='Appendix F Pg 3'!$D$36 -> 0.05738 | O107: ='Appendix F Pg 3'!$D$36 -> 0.05738 | P107: ='Appendix F Pg 3'!$D$36 -> 0.05738
B108: 500,000 - 6,000,000 kWh | E108: ='Appendix F Pg 3'!$D$37 -> 0.04807 | F108: ='Appendix F Pg 3'!$D$37 -> 0.04807 | G108: ='Appendix F Pg 3'!$D$37 -> 0.04807 | H108: ='Appendix F Pg 3'!$D$37 -> 0.04807 | I108: ='Appendix F Pg 3'!$D$37 -> 0.04807 | J108: ='Appendix F Pg 3'!$D$37 -> 0.04807 | K108: ='Appendix F Pg 3'!$D$37 -> 0.04807 | L108: ='Appendix F Pg 3'!$D$37 -> 0.04807 | M108: ='Appendix F Pg 3'!$D$37 -> 0.04807 | N108: ='Appendix F Pg 3'!$D$37 -> 0.04807 | O108: ='Appendix F Pg 3'!$D$37 -> 0.04807 | P108: ='Appendix F Pg 3'!$D$37 -> 0.04807
B109: Demand 1st 3,000 KVA | E109: 14000 | F109: ='Appendix F Pg 3'!$D$39 -> 16000 | G109: ='Appendix F Pg 3'!$D$39 -> 16000 | H109: ='Appendix F Pg 3'!$D$39 -> 16000 | I109: ='Appendix F Pg 3'!$D$39 -> 16000 | J109: ='Appendix F Pg 3'!$D$39 -> 16000 | K109: ='Appendix F Pg 3'!$D$39 -> 16000 | L109: ='Appendix F Pg 3'!$D$39 -> 16000 | M109: ='Appendix F Pg 3'!$D$39 -> 16000 | N109: ='Appendix F Pg 3'!$D$39 -> 16000 | O109: ='Appendix F Pg 3'!$D$39 -> 16000 | P109: ='Appendix F Pg 3'!$D$39 -> 16000
B110: Over 3,000 KVA | E110: ='Appendix F Pg 3'!$D$40 -> 5.75 | F110: ='Appendix F Pg 3'!$D$40 -> 5.75 | G110: ='Appendix F Pg 3'!$D$40 -> 5.75 | H110: ='Appendix F Pg 3'!$D$40 -> 5.75 | I110: ='Appendix F Pg 3'!$D$40 -> 5.75 | J110: ='Appendix F Pg 3'!$D$40 -> 5.75 | K110: ='Appendix F Pg 3'!$D$40 -> 5.75 | L110: ='Appendix F Pg 3'!$D$40 -> 5.75 | M110: ='Appendix F Pg 3'!$D$40 -> 5.75 | N110: ='Appendix F Pg 3'!$D$40 -> 5.75 | O110: ='Appendix F Pg 3'!$D$40 -> 5.75 | P110: ='Appendix F Pg 3'!$D$40 -> 5.75
B111: PVD 11kv | E111: =-'Appendix F Pg 3'!$D$32 -> -0.3 | F111: =-'Appendix F Pg 3'!$D$32 -> -0.3 | G111: =-'Appendix F Pg 3'!$D$32 -> -0.3 | H111: =-'Appendix F Pg 3'!$D$32 -> -0.3 | I111: =-'Appendix F Pg 3'!$D$32 -> -0.3 | J111: =-'Appendix F Pg 3'!$D$32 -> -0.3 | K111: =-'Appendix F Pg 3'!$D$32 -> -0.3 | L111: =-'Appendix F Pg 3'!$D$32 -> -0.3 | M111: =-'Appendix F Pg 3'!$D$32 -> -0.3 | N111: =-'Appendix F Pg 3'!$D$32 -> -0.3 | O111: =-'Appendix F Pg 3'!$D$32 -> -0.3 | P111: =-'Appendix F Pg 3'!$D$32 -> -0.3
B115: Proposed Base Revenues--calculated | S115: $ Increase | T115: % Change
A116: 1 | B116: =B94 -> Hecla Lucky Friday | C116: =C4 -> 0 | D116: 0 | E116: =500000*E$129+(E4-500000)*E$130+E$131+E50*E$132+$E$133*E35 -> 342702.1484 | F116: 332886.3718 | G116: 344268.2883 | H116: 338459.9765 | I116: 358261.228 | J116: 344782.9301 | K116: 311203.5708 | L116: 322714.7701 | M116: 303845.5039 | N116: 331808.6756 | O116: 313208.9488 | P116: 347382.4205 | Q116: =SUM(E116:P116) -> 3991524.833 | S116: =Q116-Q94 -> 49511.56074 | T116: =S116/Q94 -> 0.01255996805
A117: 2 | B117: =B95 -> Potlatch - St. Maries | C117: 0 | D117: 0 | E117: =500000*E$129+(E5-500000)*E$130+E$131+E51*E$132+$E$133*E36 -> 231347.48 | F117: 225860.1012 | G117: 235433.3022 | H117: 219683.6883 | I117: 215761.2915 | J117: 226079.5732 | K117: 224307.8902 | L117: 225833.3229 | M117: 196702.4489 | N117: 218771.1005 | O117: 209245.4074 | P117: 229290.986 | Q117: =SUM(E117:P117) -> 2658316.592 | S117: =Q117-Q95 -> 47079.26266 | T117: 0.01802948439
A118: 3 | B118: Univ of Idaho - West | C118: 0 | D118: 0 | E118: =500000*E$129+(E6-500000)*E$130+E$131+E52*E$132+$E$133*E37 -> 117623.2131 | F118: 111710.3332 | G118: 115308.2056 | H118: 110173.3872 | I118: 114118.9841 | J118: 115406.8348 | K118: 140661.1404 | L118: 139344.1376 | M118: 132078.3142 | N118: 125988.6818 | O118: 116284.0462 | P118: 115722.0346 | Q118: 1454419.313 | S118: 13740.146 | T118: 0.009537269862
A119: 4 | B119: CCI/SPEER/Vista Outdoor | C119: 0 | D119: 0 | E119: =500000*E$129+(E7-500000)*E$130+E$131+E53*E$132+$E$133*E38 -> 183835.7302 | F119: 168643.2588 | G119: 189814.656 | H119: 182669.3834 | I119: 183571.9972 | J119: 184577.8083 | K119: 177869.9783 | L119: 179356.8389 | M119: 170131.3322 | N119: 177049.224 | O119: 170194.8569 | P119: 175165.3159 | Q119: 2142880.38 | S119: 16362.8766 | T119: 0.007694682303
A120: 5 | B120: Univ of Idaho - East | C120: 0 | D120: 0 | E120: =500000*E$129+(E8-500000)*E$130+E$131+E54*E$132+$E$133*E39 -> 117114.4274 | F120: 110765.3195 | G120: 114427.4652 | H120: 99232.01282 | I120: 100744.3736 | J120: 99352.74721 | K120: 116452.0091 | L120: 116482.0764 | M120: 112859.3976 | N120: 115116.4086 | O120: 112958.0831 | P120: 117409.4341 | Q120: 1332913.755 | S120: 10852.83339 | T120: 0.00820902669
A121: 6 | B121: IFG - Grangeville | C121: 0 | D121: 0 | E121: =500000*E$129+(E9-500000)*E$130+E$131+E55*E$132+$E$133*E40 -> 133146.7735 | F121: 119708.1364 | G121: 134773.2579 | H121: 128029.1609 | I121: 126713.2922 | J121: 120787.4356 | K121: 115326.722 | L121: 117050.5097 | M121: 123817.5621 | N121: 128694.8189 | O121: 128233.9375 | P121: 135686.6572 | Q121: 1511968.264 | S121: 19462.46771 | T121: 0.01304012873
A122: 7 | B122: US Silver * | C122: 0 | D122: 0 | E122: =500000*E$129+(E10-500000)*E$130+E$131+E56*E$132+$E$133*E41 -> 312372.329 | F122: 289747.4028 | G122: 316970.151 | H122: 289771.7473 | I122: 290374.6262 | J122: 300795.2244 | K122: 302556.5827 | L122: 306809.5492 | M122: 284794.4146 | N122: 300705.169 | O122: 286354.2471 | P122: 300774.3563 | Q122: 3582025.8 | S122: 40681.80879 | T122: 0.01148767499
A123: 8 | B123: IFG - Clearwater | C123: 0 | D123: 0 | E123: =500000*E$129+(E11-500000)*E$130+E$131+E57*E$132+$E$133*E42 -> 191619.3184 | F123: 186274.5317 | G123: 188724.0615 | H123: 179106.043 | I123: 167159.8336 | J123: 162074.3134 | K123: 152529.7487 | L123: 155253.289 | M123: 157666.2792 | N123: 175940.4056 | O123: 175677.0786 | P123: 185941.5257 | Q123: =SUM(E123:P123) -> 2077966.428 | S123: 30158.4202 | T123: 0.01472717173
A124: 9 | B124: Plummer Forest Products | C124: 0 | D124: 0 | E124: =500000*E$129+(E12-500000)*E$130+E$131+E58*E$132+$E$133*E43 -> 86576.1312 | F124: 82297.78477 | G124: 84559.73695 | H124: 85189.28213 | I124: 87539.6854 | J124: 78890.03479 | K124: 89650.64495 | L124: 89002.76452 | M124: 86406.02146 | N124: 88752.45722 | O124: 85490.05442 | P124: 86771.66046 | Q124: =SUM(E124:P124) -> 1031126.258 | S124: 10740.85605 | T124: 0.01052627373
A125: 10 | B125: Kootenai Medical Center | C125: 0 | D125: 0 | E125: =500000*E$129+(E13-500000)*E$130+E$131+E59*E$132+$E$133*E44 -> 84119.76306 | F125: 77749.71095 | G125: 82717.15331 | H125: 80296.0042 | I125: 84851.09771 | J125: 87538.42568 | K125: 100167.141 | L125: 98014.41005 | M125: 89506.03292 | N125: 85923.96507 | O125: 82021.67971 | P125: 83406.31558 | Q125: =SUM(E125:P125) -> 1036311.699 | S125: 9730.966546 | T125: 0.00947900758
A126: 11 | B126: Stimson Lumber | C126: 0 | D126: 0 | E126: =500000*E$129+(E14-500000)*E$130+E$131+E60*E$132+$E$133*E45 -> 63186.38474 | F126: 63299.90266 | G126: 66147.59516 | H126: 62573.24314 | I126: 58439.11856 | J126: 57826.32024 | K126: 54370.60722 | L126: 56113.76062 | M126: 56710.16438 | N126: 59689.27144 | O126: 59386.42976 | P126: 61038.1715 | Q126: =SUM(E126:P126) -> 718780.9694 | S126: 12445.25083 | T126: 0.0176194556
Q127: =SUM(Q116:Q126) -> 21538234.29 | S127: =Q127-'Pres & Prop Rev'!G206 -> 144852.1654
B128: Schedule 25 Base Rates | S128: =S127-'Pres & Prop Rev'!G209 -> 53801.0742
B129: 1st 500,000 kWh | E129: ='Appendix F Pg 3'!$L$36 -> 0.05689 | F129: ='Appendix F Pg 3'!$L$36 -> 0.05689 | G129: ='Appendix F Pg 3'!$L$36 -> 0.05689 | H129: ='Appendix F Pg 3'!$L$36 -> 0.05689 | I129: ='Appendix F Pg 3'!$L$36 -> 0.05689 | J129: ='Appendix F Pg 3'!$L$36 -> 0.05689 | K129: ='Appendix F Pg 3'!$L$36 -> 0.05689 | L129: ='Appendix F Pg 3'!$L$36 -> 0.05689 | M129: ='Appendix F Pg 3'!$L$36 -> 0.05689 | N129: ='Appendix F Pg 3'!$L$36 -> 0.05689 | O129: ='Appendix F Pg 3'!$L$36 -> 0.05689 | P129: ='Appendix F Pg 3'!$L$36 -> 0.05689
B130: 500,000 - 6,000,000 kWh | E130: ='Appendix F Pg 3'!$L$37 -> 0.04766 | F130: ='Appendix F Pg 3'!$L$37 -> 0.04766 | G130: ='Appendix F Pg 3'!$L$37 -> 0.04766 | H130: ='Appendix F Pg 3'!$L$37 -> 0.04766 | I130: ='Appendix F Pg 3'!$L$37 -> 0.04766 | J130: ='Appendix F Pg 3'!$L$37 -> 0.04766 | K130: ='Appendix F Pg 3'!$L$37 -> 0.04766 | L130: ='Appendix F Pg 3'!$L$37 -> 0.04766 | M130: ='Appendix F Pg 3'!$L$37 -> 0.04766 | N130: ='Appendix F Pg 3'!$L$37 -> 0.04766 | O130: ='Appendix F Pg 3'!$L$37 -> 0.04766 | P130: ='Appendix F Pg 3'!$L$37 -> 0.04766
B131: Demand 1st 3,000 KVA | E131: ='Appendix F Pg 3'!$L$39 -> 17000 | F131: ='Appendix F Pg 3'!$L$39 -> 17000 | G131: ='Appendix F Pg 3'!$L$39 -> 17000 | H131: ='Appendix F Pg 3'!$L$39 -> 17000 | I131: ='Appendix F Pg 3'!$L$39 -> 17000 | J131: ='Appendix F Pg 3'!$L$39 -> 17000 | K131: ='Appendix F Pg 3'!$L$39 -> 17000 | L131: ='Appendix F Pg 3'!$L$39 -> 17000 | M131: ='Appendix F Pg 3'!$L$39 -> 17000 | N131: ='Appendix F Pg 3'!$L$39 -> 17000 | O131: ='Appendix F Pg 3'!$L$39 -> 17000 | P131: ='Appendix F Pg 3'!$L$39 -> 17000
B132: Over 3,000 KVA | E132: ='Rate Design'!$G$70 -> 6.25 | F132: ='Rate Design'!$G$70 -> 6.25 | G132: ='Rate Design'!$G$70 -> 6.25 | H132: ='Rate Design'!$G$70 -> 6.25 | I132: ='Rate Design'!$G$70 -> 6.25 | J132: ='Rate Design'!$G$70 -> 6.25 | K132: ='Rate Design'!$G$70 -> 6.25 | L132: ='Rate Design'!$G$70 -> 6.25 | M132: ='Rate Design'!$G$70 -> 6.25 | N132: ='Rate Design'!$G$70 -> 6.25 | O132: ='Rate Design'!$G$70 -> 6.25 | P132: ='Rate Design'!$G$70 -> 6.25
B133: PVD 11kv | E133: -0.2 | F133: -0.2 | G133: -0.2 | H133: -0.2 | I133: -0.2 | J133: -0.2 | K133: -0.2 | L133: -0.2 | M133: -0.2 | N133: -0.2 | O133: -0.2 | P133: -0.2

Sheet Sched 76 - Settlement (hidden)
A4: Tax Rate Adjustment
A7: Schedule 76 Rate Spread - Equal
H8: Sch 76
D9: Base Tariff | F9: Base Tariff | H9: Percent
D10: Revenue | E10: Proposed | F10: Revenue | G10: Sch 76 | H10: Decrease on | N10: Schedule 76 Rate Design - Year 2
B11: Type of | C11: Schedule | D11: Under Present | E11: General | F11: Under Proposed | G11: Tax Credit | H11: Billed
A12: No. | B12: Service | C12: Number | D12: Rates(1) | E12: Increase | F12: Rates (1) | G12: Decrease | H12: Revenue | R12: Sch 76
B13: (a) | C13: (b) | D13: (c) | E13: (d) | F13: (e) | G13: (f) | H13: (g) | N13: Residential Service - Schedule 1 | R13: Tax Rate
N14: Energy Charge: | P14: Billing Determinants | Q14: Base Rates | R14: Credit | S14: Credit | T14: Percentage
A15: 1 | B15: ='[1]Exh 1'!B14 -> Residential | C15: ='[1]Exh 1'!C14 -> 1 | D15: ='Yr 2 Summary'!D33 -> 148723.7279 | E15: ='Yr 2 Summary'!E33 -> 2789.29035 | F15: ='Yr 2 Summary'!F33 -> 151513.0182 | G15: =D15/$D$29*$D$32/1000 -> 0 | H15: =G15/F15 -> 0 | N15: First 600 kWhs | P15: ='Pres & Prop Rev'!D32+('Pres & Prop Rev'!D32/'Pres & Prop Rev'!D38*'Pres & Prop Rev'!D136) -> 693488381.5 | Q15: ='Appendix F Pg 3'!D13 -> 0.09456 | R15: =Q15*$V$15 -> 4.921063557e-19 | S15: =P15*R15 -> 3.412700401e-10 | T15: =R15/Q15 -> 5.204170428e-18 | V15: 5.204170428e-18 | W15: =G15*1000-S17 -> -6.661576128e-10
N16: All over 600 kWhs | P16: ='Pres & Prop Rev'!D33+('Pres & Prop Rev'!D33/'Pres & Prop Rev'!D38*'Pres & Prop Rev'!D136)+'Pres & Prop Rev'!D147 -> 587394726.4 | Q16: ='Appendix F Pg 3'!D14 -> 0.10628 | R16: =Q16*$V$15 -> 5.530992331e-19 | S16: =P16*R16 -> 3.248875727e-10 | T16: =R16/Q16 -> 5.204170428e-18
A17: 2 | B17: ='[1]Exh 1'!B15 -> General Service | C17: ='[1]Exh 1'!C15 -> 11,12 | D17: ='Yr 2 Summary'!D34 -> 45120.76546 | E17: ='Yr 2 Summary'!E34 -> 197.368485 | F17: ='Yr 2 Summary'!F34 -> 45318.13394 | G17: =D17/$D$29*$D$32/1000 -> 0 | H17: =G17/F17 -> 0 | P17: =P15+P16-'Pres & Prop Rev'!D47 -> 0 | S17: =SUM(S15:S16) -> 6.661576128e-10
N18: General Services - Schedule 11 & 12
A19: 3 | B19: ='[1]Exh 1'!B16 -> Large General Service | C19: ='[1]Exh 1'!C16 -> 21,22 | D19: ='Yr 2 Summary'!D35 -> 51945.4131 | E19: ='Yr 2 Summary'!E35 -> 976.8244291 | F19: ='Yr 2 Summary'!F35 -> 52922.23753 | G19: =D19/$D$29*$D$32/1000 -> 0 | H19: =G19/F19 -> 0 | N19: Energy Charge:
N20: First 3,650 kWhs | P20: ='Pres & Prop Rev'!E32+('Pres & Prop Rev'!E32/'Pres & Prop Rev'!E38*'Pres & Prop Rev'!E136) -> 300348797.1 | Q20: ='Appendix F Pg 3'!D19 -> 0.0935 | R20: =Q20*$V$20 -> 3.2439329e-19 | S20: =P20*R20 -> 9.743113444e-11 | T20: =R20/Q20 -> 3.469446952e-18 | V20: 3.469446952e-18 | W20: =G17*1000-S22 -> -1.303627623e-10
A21: 4 | B21: ='[1]Exh 1'!B17 -> Extra Large General Service | C21: ='[1]Exh 1'!C17 -> 25 | D21: ='Yr 2 Summary'!D36 -> 21302.33103 | E21: ='Yr 2 Summary'!E36 -> 91.05109125 | F21: ='Yr 2 Summary'!F36 -> 21393.38213 | G21: =D21/$D$29*$D$32/1000 -> 0 | H21: =G21/F21 -> 0 | N21: All over 3,650 kWhs | P21: ='Pres & Prop Rev'!E33+('Pres & Prop Rev'!E33/'Pres & Prop Rev'!E38*'Pres & Prop Rev'!E136)+'Pres & Prop Rev'!E147 -> 144825991.5 | Q21: ='Appendix F Pg 3'!D20 -> 0.06554 | R21: =Q21*$V$20 -> 2.273875532e-19 | S21: 3.293162786e-11 | T21: 3.469446952e-18
P22: =P20+P21-'Pres & Prop Rev'!E47 -> 0 | S22: =SUM(S19:S21) -> 1.303627623e-10
A23: 5 | B23: ='[1]Exh 1'!B18 -> Clearwater | C23: ='[1]Exh 1'!C18 -> 25P | D23: ='Yr 2 Summary'!D37 -> 19679.66718 | E23: ='Yr 2 Summary'!E37 -> 103.100033 | F23: ='Yr 2 Summary'!F37 -> 19782.76721 | G23: =D23/$D$29*$D$32/1000 -> 0 | H23: =G23/F23 -> 0
N24: Large General Service - Schedule 21 & 22
A25: 6 | B25: ='[1]Exh 1'!B19 -> Pumping Service | C25: ='[1]Exh 1'!C19 -> 31,32 | D25: ='Yr 2 Summary'!D38 -> 6855.92516 | E25: ='Yr 2 Summary'!E38 -> 129.63456 | F25: ='Yr 2 Summary'!F38 -> 6985.55972 | G25: =D25/$D$29*$D$32/1000 -> 0 | H25: =G25/F25 -> 0 | N25: Energy Charge:
N26: First 250,000 kWhs | P26: ='Pres & Prop Rev'!F32+('Pres & Prop Rev'!F32/'Pres & Prop Rev'!F38*'Pres & Prop Rev'!F136) -> 518073950.8 | Q26: ='Appendix F Pg 3'!D27 -> 0.07135 | R26: =Q26*$V$26 -> 2.4754504e-19 | S26: =P26*R26 -> 1.282466369e-10 | T26: =R26/Q26 -> 3.469446952e-18 | V26: 3.469446952e-18 | W26: =G19*1000-S28 -> -1.385298546e-10
A27: 8 | B27: ='[1]Exh 1'!B20 -> Street & Area Lights | C27: ='[1]Exh 1'!C20 -> 41-49 | D27: ='Yr 2 Summary'!D39 -> 4160.15892 | E27: ='Yr 2 Summary'!E39 -> 17.653 | F27: ='Yr 2 Summary'!F39 -> 4177.81192 | G27: =D27/$D$29*$D$32/1000 -> 0 | H27: =G27/F27 -> 0 | N27: All over 250,000 kWhs | P27: ='Pres & Prop Rev'!F33+('Pres & Prop Rev'!F33/'Pres & Prop Rev'!F38*'Pres & Prop Rev'!F136)+'Pres & Prop Rev'!F147 -> 49300327.79 | Q27: ='Appendix F Pg 3'!D28 -> 0.06012 | R27: =Q27*$V$26 -> 2.085831508e-19 | S27: 1.02832177e-11 | T27: 3.469446952e-18
P28: =P26+P27-'Pres & Prop Rev'!F47 -> 0 | S28: =SUM(S25:S27) -> 1.385298546e-10
A29: 9 | B29: Total | D29: =SUM(D15:D27)+1 -> 297788.9887 | E29: =SUM(E15:E27) -> 4304.921948 | F29: =SUM(F15:F27)+1 -> 302093.9107 | G29: =SUM(G15:G27) -> 0 | H29: =G29/F29 -> 0
H30: =ROUND(G29-(D32/1000),0) -> 0 | N30: Extra Large General Service - Schedule 25
N31: Energy Charge:
B32: Additional Tax Credit Year 2 | D32: 0 | N32: First 500,000 kWhs | P32: ='Pres & Prop Rev'!G32 -> 66000000 | Q32: ='Appendix F Pg 3'!D36 -> 0.05738 | R32: =Q32*$V$32 -> 0 | S32: =P32*R32 -> 0 | T32: =R32/Q32 -> 0 | V32: 0 | W32: =G21*1000-S34 -> 0
N33: All over 500,000 kWhs | P33: ='Pres & Prop Rev'!G33 -> 281870216 | Q33: ='Appendix F Pg 3'!D37 -> 0.04807 | R33: =Q33*$V$32 -> 0 | S33: =P33*R33 -> 0 | T33: =R33/Q33 -> 0
P34: =P33+P32-'Pres & Prop Rev'!G47 -> 0 | S34: =SUM(S32:S33) -> 0
N35: Extra Large General Service to Clearwater Paper's Facility- Schedule 25P
N36: Energy Charge:
N37: All kWhs of Net Retail Load | P37: ='Pres & Prop Rev'!H32 -> 368011886 | Q37: ='Appendix F Pg 3'!D46 -> 0.0429 | R37: =Q37*$V$37 -> 7.441963712e-20 | S37: =P37*R37 -> 2.738731101e-11 | T37: =R37/Q37 -> 1.734723476e-18 | V37: 1.734723476e-18 | W37: =G23*1000-S37 -> -2.738731101e-11
B38: Schedule 76 Credit Rates for Year 1 and Year 2 | P38: =P37-'Pres & Prop Rev'!H47 -> 0
N39: Pumping Service - Schedule 31 & 32
B40: Residential Service - Schedule 1 | E40: Extra Large General Service - Schedule 25 | N40: Energy Charge:
B41: Energy Charge: | C41: Year 1 | D41: Year 2 | E41: Energy Charge: | F41: Year 1 | G41: Year 2 | N41: First block | P41: ='Pres & Prop Rev'!I32+('Pres & Prop Rev'!I32/'Pres & Prop Rev'!I38*'Pres & Prop Rev'!I136) -> 26565949.19 | Q41: ='Appendix F Pg 3'!D57 -> 0.11361 | R41: =Q41*$V$41 -> -7.883277364e-19 | S41: =P41*R41 -> -2.094267459e-11 | T41: =R41/Q41 -> -6.938893904e-18 | V41: -6.938893904e-18 | W41: =G25*1000-S43 -> 4.53188865e-11
B42: First 600 kWhs | C42: 0.003956 | D42: =C42+R15 -> 0.003956 | E42: First 500,000 kWhs | F42: 0.00276 | G42: =F42+R32 -> 0.00276 | N42: Second block | P42: ='Pres & Prop Rev'!I33+('Pres & Prop Rev'!I33/'Pres & Prop Rev'!I38*'Pres & Prop Rev'!I136)+'Pres & Prop Rev'!I147 -> 36616451.57 | Q42: ='Appendix F Pg 3'!D58 -> 0.09594 | R42: =Q42*$V$41 -> -6.657174811e-19 | S42: =P42*R42 -> -2.437621191e-11 | T42: =R42/Q42 -> -6.938893904e-18
B43: All over 600 kWhs | C43: 0.00445 | D43: =C43+R16 -> 0.00445 | E43: All over 500,000 kWhs | F43: 0.00231 | G43: =F43+R33 -> 0.00231 | P43: =P41+P42-'Pres & Prop Rev'!I47 -> 0 | S43: =SUM(S41:S42) -> -4.53188865e-11
B45: General Services - Schedule 11 | E45: Clearwater - Schedule 25P | N45: Street & Area Lights - Schedules 41-48
B46: Energy Charge: | C46: Year 1 | D46: Year 2 | E46: Energy Charge: | F46: Year 1 | G46: Year 2
B47: First 3,650 kWhs | C47: 0.00448 | D47: =C47+R20 -> 0.00448 | E47: Block 1 Retail kWhs | F47: 0.00222 | G47: =F47+R37 -> 0.00222 | Q47: % of Base Rates | R47: =H27 -> 0 | S47: =R47*F27*1000 -> 0
B48: All over 3,650 kWhs | C48: 0.00314 | D48: =C48+R21 -> 0.00314
E49: Pumping Service - Schedule 31 | R49: Check | S49: =S47+S43+S28+S22+S17+S34+S37-(G29*1000) -> 9.171186542e-10
B50: Large General Service - Schedule 21 | E50: Energy Charge: | F50: Year 1 | G50: Year 2
B51: Energy Charge: | C51: Year 1 | D51: Year 2 | E51: First 165 kW/kWhs | F51: 0.00435 | G51: =F51+R41 -> 0.00435
B52: First 250,000 kWhs | C52: 0.00337 | D52: =C52+R26 -> 0.00337 | E52: All additional kWhs | F52: 0.00367 | G52: =F52+R42 -> 0.00367
B53: All over 250,000 kWhs | C53: 0.00284 | D53: =C53+R27 -> 0.00284
E54: Street & Area Lights - Schedules 41-49
F55: Year 1 | G55: Year 2
E56: % of Base Rates | F56: 0.042 | G56: =F56+R47 -> 0.042

Sheet ROR
B1: AVISTA UTILITIES
B2: IDAHO ELECTRIC
B3: PRESENT & PROPOSED RATE OF RETURN BY RATE SCHEDULE
B4: 12 MONTHS ENDED JUNE 30, 2022
B5: Not updated for actual Revenue Requirement
C7: Total | D7: Sch 1 | E7: Sch 11/12 | F7: Sch 21/22 | G7: Sch 25 | H7: Sch 25P | I7: Sch 31/32 | J7: Sch 41-49
B8: Total Rate Base | C8: =SUM(D8:J8) -> 1034938000 | D8: 517568374.3 | E8: 156866523.6 | F8: 191639633.4 | G8: 67339928.81 | H8: 52072608.77 | I8: 27628855.77 | J8: 21822075.32 | K8: from COS
B10: Revenue From Retail Rates | C10: =SUM(D10:J10) -> 297788000 | D10: 148722000 | E10: 45121000 | F10: 51946000 | G10: 21302000 | H10: 19681000 | I10: 6856000 | J10: 4160000 | K10: From RY1 Proposed Spread
B11: Other Operating Revenues | C11: =SUM(D11:J11) -> 95228000 | D11: 42769074.9 | E11: 13765346.86 | F11: 18117327.72 | G11: 9122472.295 | H11: 9066862.378 | I11: 1913718.861 | J11: 473196.9858 | K11: from COS
B12: Total Revenues | C12: =IF(ROUND(C10+C11,0)<>ROUND(SUM(D12:J12),0),#VALUE!,SUM(D12:J12)) -> 393016000 | D12: =D10+D11 -> 191491074.9 | E12: 58886346.86 | F12: 70063327.72 | G12: 30424472.3 | H12: 28747862.38 | I12: 8769718.861 | J12: 4633196.986
B14: Total Operating Exp b4 conv items & taxes | C14: =SUM(D14:J14) -> 318862962.9 | D14: =D17-D15-D16 -> 155060190.1 | E14: 47743599.21 | F14: 56706491.83 | G14: 25648425.41 | H14: 23984781.23 | I14: 7088532.292 | J14: 2630942.847
B15: Revenue Related conversion items | C15: =SUM(D15:J15) -> 607037 | D15: 296555.2381 | E15: 96576.17025 | F15: 103581.2734 | G15: 45593.72999 | H15: 42156.14245 | I15: 13671.07205 | J15: 8903.373762 | K15: from COS
B16: Income Taxes | C16: =SUM(D16:J16) -> 2343000 | D16: 843688.0903 | E16: 534568.991 | F16: 327621.6496 | G16: 223522.7045 | H16: 261985.0743 | I16: 30681.92653 | J16: 120931.5638 | K16: from COS
B17: Total Expenses | C17: =IF(ROUND(SUM(C14:C16),0)<>ROUND(SUM(D17:J17),0),#VALUE!,SUM(D17:J17)) -> 321812999.9 | D17: 156200433.4 | E17: 48374744.37 | F17: 57137694.75 | G17: 25917541.85 | H17: 24288922.44 | I17: 7132885.291 | J17: 2760777.784 | K17: from COS
B19: Net Operating Income | C19: =IF(ROUND(C12-C17,0)<>ROUND(SUM(D19:J19),0),#VALUE!,SUM(D19:J19)) -> 71203000.1 | D19: =D12-D17 -> 35290641.49 | E19: 10511602.49 | F19: 12925632.97 | G19: 4506930.448 | H19: 4458939.935 | I19: 1636833.57 | J19: 1872419.202
B20: Present Rate of Return | C20: =C19/C8 -> 0.06879929049 | D20: 0.06818546735 | E20: 0.06700985172 | F20: 0.06744759808 | G20: 0.06692805484 | H20: =H19/H8 -> 0.08562927881 | I20: =I19/I8 -> 0.05924362496 | J20: 0.08580390151
B21: Present Return Ratio | C21: =C20/$C20 -> 1 | D21: 0.9910780601 | E21: 0.9739904473 | F21: 0.9803531054 | G21: 0.972801527 | H21: =H20/$C20 -> 1.244624446 | I21: =I20/$C20 -> 0.8611080804 | J21: 1.247162593
B23: Interest Expense | C23: =SUM(D23:J23) -> 25459000 | D23: 12731944.56 | E23: 3858844.516 | F23: 4714247.063 | G23: 1656531.355 | H23: 1280962.286 | I23: 679657.1767 | J23: 536813.0415 | K23: from COS
B25: Proposed Misc Revenue Increase | C25: 0
B26: Proposed Rate Revenue Increase | C26: 4305000 | D26: =C26/C10 -> 0.01445659328
B27: Proposed Rev Increase | C27: =C25+C26 -> 4305000
D28: change
B29: Proposed Rate Revenues | C29: =C10+C26 -> 302093000 | D29: =C29-C10 -> 4305000 | F29: Uncollectibles | G29: 0.001795
B30: incremental conversion expenses | C30: =ROUND(C27*G29,-3)+ROUND(C27*G30,-3) -> 17000 | F30: Commiss Fees | G30: 0.001982
B31: incremental Income Taxes | C31: =ROUND(C27*G32,-3)+ROUND(C27*G31,-3) -> 901000 | F31: State Inc Tax | G31: 0
B32: Proposed Return | C32: =C19+C27-C30-C31 -> 74590000.1 | D32: =C32-C19 -> 3387000 | F32: Federal Inc Tax | G32: 0.209207
B33: Proposed Return % | C33: =C32/C8 -> 0.0720719503
B35: Allocation of incremental Misc Rev | C35: =SUM(D35:J35) -> 0 | D35: 0 | E35: 0 | F35: 0 | G35: 0 | H35: 0 | I35: 0 | J35: 0 | K35: as Dist Plt from COS
B37: Proposed Relative Return | C37: =C38/C33 -> 1 | D37: =D39/D8/C33 -> 0.9997088093 | E37: 0.9540966566 | F37: 0.9871622973 | G37: 0.9535072164 | H37: 1.226462145 | I37: 0.8671011414 | J37: 1.220960244 | K37: Input
B38: Proposed Return % | C38: =C39/C8 -> 0.0720719503 | D38: =D39/D8 -> 0.07205096362 | E38: 0.06876360682 | F38: 0.07114671203 | G38: 0.06872112471 | H38: =H39/H8 -> 0.08839351875 | I38: =I39/I8 -> 0.06249367037 | J38: 0.08799698605
B39: Proposed Return (NOI b4 Interest) | C39: =C32 -> 74590000.1 | D39: =$C$32-SUM(E39:J39) -> 37291300.1 | E39: =E8*E37*$C$32/$C$8 -> 10786707.95 | F39: 13634529.81 | G39: 4627675.646 | H39: 4602881.12 | I39: 1726628.605 | J39: 1920276.858 | K39: =ROUND(C39-SUM(D39:J39),0) -> 0
B40: Proposed Return after Interest Expense | C40: =C39-C23 -> 49131000.1 | D40: =D39-D23 -> 24559355.54 | E40: 6927863.439 | F40: 8920282.749 | G40: 2971144.29 | H40: =H39-H23 -> 3321918.834 | I40: =I39-I23 -> 1046971.429 | J40: 1383463.816 | K40: 0
B41: Proposed Return b4 Income Taxes & Interest | C41: =C40+C16+C31+C23 -> 77834000.1 | D41: =D40+D23+D40/$C40*SUM($C$16,$C$31) -> 38912894.4 | E41: =E40+E23+E40/$C40*SUM($C$16,$C$31) -> 11244137.87 | F41: 14223514.31 | G41: 4823853.05 | H41: 4822219.311 | I41: 1795757.573 | J41: 2011623.596 | K41: 0
B42: Proposed Return b4 Misc Rev | C42: =C41-C11-$C$25*C35 -> -17393999.9 | D42: =D41-D11-$C$25*D35 -> -3856180.504 | E42: -2521208.995 | F42: -3893813.412 | G42: -4298619.245 | H42: =H41-H11-$C$25*H35 -> -4244643.067 | I42: =I41-I11-$C$25*I35 -> -117961.2876 | J42: 1538426.61 | K42: 0
B43: =B14 -> Total Operating Exp b4 conv items & taxes | C43: 318862962.9 | D43: 155060190.1 | E43: 47743599.21 | F43: 56706491.83 | G43: 25648425.41 | H43: =H14 -> 23984781.23 | I43: =I14 -> 7088532.292 | J43: 2630942.847 | K43: 0
B44: Conversion Items | C44: =C15+C30 -> 624037 | D44: =$C44*D46/$C46 -> 312990.4173 | E44: 93609.78471 | F44: 109321.5868 | G44: 44193.83295 | H44: 40861.84022 | I44: 14428.99519 | J44: 8630.542866 | K44: 0
B45: Incremental Rate Revenue | C45: =C26 -> 4305000 | D45: =(D42-D10+D14+($C$44*D10)/$C$29)/(1-$C$44/$C$29) -> 2795000 | E45: 195000 | F45: 976000 | G45: 92000 | H45: 100000 | I45: 129000 | J45: 18000 | K45: 0
B46: Proposed Rate Revenue | C46: =C42+C43+C44 -> 302093000 | D46: =D10+D45 -> 151517000 | E46: =E10+E45 -> 45316000 | F46: 52922000 | G46: 21394000 | H46: 19781000 | I46: 6985000 | J46: 4178000 | K46: 0
B47: Change in Rate Revenue | C47: =C46/C10-1 -> 0.01445659328 | D47: 0.01879345356 | E47: 0.004321712728 | F47: 0.01878874216 | G47: 0.004318843301 | H47: =H46/H10-1 -> 0.00508104263 | I47: =I46/I10-1 -> 0.01881563594 | J47: 0.004326923077 | L47: =D26 -> 0.01445659328
B49: Incremental Rate Revenue - rounded | C49: =SUM(D49:J49) -> 4305000 | D49: =ROUND(D45,-3) -> 2795000 | E49: =ROUND(E45,-3) -> 195000 | F49: 976000 | G49: 92000 | H49: =ROUND(H45,-3) -> 100000 | I49: =ROUND(I45,-3) -> 129000 | J49: 18000
B50: Proposed Rate Revenue - rounded | C50: =SUM(D50:J50) -> 302093000 | D50: 151517000 | E50: 45316000 | F50: 52922000 | G50: 21394000 | H50: =ROUND(H46,-3) -> 19781000 | I50: =ROUND(I46,-3) -> 6985000 | J50: 4178000
C53: Diff to Unity | D53: =1-D21 -> 0.008921939902 | E53: =E21-1 -> -0.02600955271 | F53: =F21-1 -> -0.01964689465 | G53: =1-G21 -> 0.02719847301 | H53: =1-H21 -> -0.244624446 | I53: =I21-1 -> -0.1388919196 | J53: =1-J21 -> -0.2471625928
C54: 0.2 | D54: =D53*$C$54 -> 0.00178438798 | E54: =E53*$C$54 -> -0.005201910542 | F54: -0.00392937893 | G54: 0.005439694603 | H54: -0.04892488919 | I54: -0.02777838393 | J54: -0.04943251855
D56: =D21+D54 -> 0.9928624481 | E56: =E21-E54 -> 0.9791923578 | F56: =F21-F54 -> 0.9842824843 | G56: =G21+G54 -> 0.9782412216 | H56: =H21+H54 -> 1.195699557 | I56: =I21-I54 -> 0.8888864643 | J56: =J21+J54 -> 1.197730074
B57: 1.25 | C57: =D26*B57 -> 0.0180707416
B58: 0.75 | C58: =D26*B58 -> 0.01084244496
B60: Net Increase | C60: =SUM(D60:J60) -> 4305000 | D60: =D49+D59 -> 2795000 | E60: =E49+E59 -> 195000 | F60: =F49+F59 -> 976000 | G60: 92000 | H60: 100000 | I60: 129000 | J60: 18000
B61: Present Billed | C61: =SUM(D61:J61) -> 292741588 | D61: ='Yr 2 Summary'!H33*1000 -> 137714343.6 | E61: ='Yr 2 Summary'!H34*1000 -> 48017101.36 | F61: ='Yr 2 Summary'!H35*1000 -> 51820412.95 | G61: ='Yr 2 Summary'!H36*1000 -> 22654017.8 | H61: ='Yr 2 Summary'!H37*1000 -> 21212021.91 | I61: ='Yr 2 Summary'!H38*1000 -> 6782160.05 | J61: ='Yr 2 Summary'!H39*1000 -> 4541530.37
B62: Net Increase as % of billed | C62: =C60/C61 -> 0.01470580258 | D62: =D60/D61 -> 0.02029563462 | E62: =E60/E61 -> 0.004061053135 | F62: 0.01883427677 | G62: 0.004061089772 | H62: 0.004714307785 | I62: 0.01902048891 | J62: 0.003963421696
B63: Percent Towards Unity | D63: =(D37-D21)/(1-D21) -> 0.9673624017 | E63: =(E37-E21)/(1-E21) -> -0.7648647757 | F63: 0.3465785352 | G63: -0.7093894799 | H63: 0.07424565022 | I63: 0.043149098 | J63: 0.1060125971
H66: =H47/C47 -> 0.3514688787

Sheet Sch 001 Bill Impact
A3: Schedule 001 Bill Impact
A5: Effective September 1, 2024
A7: Schedule 001 Present | G7: Schedule 001 Proposed
B8: Basic Charge | C8: Block 1 | D8: Block 2 | E8: Total Bill | G8: Basic Charge | H8: Block 1 | I8: Block 2 | J8: Total Bill | L8: Bill Impact | M8: % Change
B9: ='Appendix F Pg 3'!F11 -> 15 | C9: ='Appendix F Pg 3'!F13 -> 0.0831 | D9: ='Appendix F Pg 3'!F14 -> 0.09385 | G9: ='Appendix F Pg 3'!K11 -> 20 | H9: ='Appendix F Pg 3'!K13 -> 0.08006 | I9: ='Appendix F Pg 3'!K14 -> 0.09043
A10: 100 | B10: =$B$9 -> 15 | C10: =ROUND(A10*$C$9,2) -> 8.31 | E10: =SUM(B10:D10) -> 23.31 | G10: =$G$9 -> 20 | H10: =ROUND(A10*$H$9,2) -> 8.01 | J10: =SUM(G10:I10) -> 28.01 | L10: =J10-E10 -> 4.7 | M10: =L10/E10 -> 0.2016302016
A11: 200 | B11: =$B$9 -> 15 | C11: =ROUND(A11*$C$9,2) -> 16.62 | E11: =SUM(B11:D11) -> 31.62 | G11: =$G$9 -> 20 | H11: 16.01 | J11: =SUM(G11:I11) -> 36.01 | L11: =J11-E11 -> 4.39 | M11: =L11/E11 -> 0.1388361796
A12: 300 | B12: 15 | C12: =ROUND(A12*$C$9,2) -> 24.93 | E12: 39.93 | G12: 20 | H12: 24.02 | J12: 44.02 | L12: 4.09 | M12: 0.1024292512
A13: 400 | B13: 15 | C13: =ROUND(A13*$C$9,2) -> 33.24 | E13: 48.24 | G13: 20 | H13: 32.02 | J13: 52.02 | L13: 3.78 | M13: 0.07835820896
A14: 500 | B14: 15 | C14: =ROUND(A14*$C$9,2) -> 41.55 | E14: 56.55 | G14: 20 | H14: 40.03 | J14: 60.03 | L14: 3.48 | M14: 0.06153846154
A15: 600 | B15: 15 | C15: =A15*$C$9 -> 49.86 | E15: 64.86 | G15: 20 | H15: 48.04 | J15: 68.04 | L15: 3.18 | M15: 0.04902867715
A16: 700 | B16: 15 | C16: =C15 -> 49.86 | D16: =ROUND((A16-$A$15)*$D$9,2) -> 9.39 | E16: =SUM(B16:D16) -> 74.25 | G16: 20 | H16: =H15 -> 48.04 | I16: =ROUND((A16-$A$15)*$I$9,2) -> 9.04 | J16: 77.08 | L16: 2.83 | M16: 0.03811447811
A17: 800 | B17: 15 | C17: =C16 -> 49.86 | D17: =ROUND((A17-$A$15)*$D$9,2) -> 18.77 | E17: 83.63 | G17: 20 | H17: =H16 -> 48.04 | I17: =ROUND((A17-$A$15)*$I$9,2) -> 18.09 | J17: 86.13 | L17: 2.5 | M17: 0.02989357886
A18: 900 | B18: 15 | C18: 49.86 | D18: 28.16 | E18: =SUM(B18:D18) -> 93.02 | G18: 20 | H18: 48.04 | I18: 27.13 | J18: =SUM(G18:I18) -> 95.17 | L18: =J18-E18 -> 2.15 | M18: =L18/E18 -> 0.02311330897
A19: =ROUND('Pres & Prop Rev'!D47/'Pres & Prop Rev'!D49,0) -> 927 | B19: 15 | C19: =C18 -> 49.86 | D19: =ROUND((A19-$A$15)*$D$9,2) -> 30.69 | E19: 95.55 | G19: 20 | H19: 48.04 | I19: 29.57 | J19: =SUM(G19:I19) -> 97.61 | L19: 2.06 | M19: 0.02155939299
A20: 1000 | B20: 15 | C20: 49.86 | D20: 37.54 | E20: 102.4 | G20: 20 | H20: 48.04 | I20: 36.17 | J20: 104.21 | L20: 1.81 | M20: 0.01767578125
A21: 1100 | B21: 15 | C21: 49.86 | D21: 46.93 | E21: =SUM(B21:D21) -> 111.79 | G21: 20 | H21: 48.04 | I21: 45.22 | J21: =SUM(G21:I21) -> 113.26 | L21: 1.47 | M21: 0.0131496556
A22: 1200 | B22: 15 | C22: 49.86 | D22: 56.31 | E22: 121.17 | G22: 20 | H22: 48.04 | I22: 54.26 | J22: 122.3 | L22: 1.13 | M22: 0.009325740695
A23: 1300 | B23: 15 | C23: 49.86 | D23: 65.7 | E23: =SUM(B23:D23) -> 130.56 | G23: 20 | H23: 48.04 | I23: 63.3 | J23: =SUM(G23:I23) -> 131.34 | L23: 0.78 | M23: 0.005974264706
A24: 1400 | B24: 15 | C24: 49.86 | D24: 75.08 | E24: =SUM(B24:D24) -> 139.94 | G24: 20 | H24: 48.04 | I24: 72.34 | J24: =SUM(G24:I24) -> 140.38 | L24: 0.44 | M24: 0.003144204659
A25: 1500 | B25: 15 | C25: 49.86 | D25: 84.47 | E25: 149.33 | G25: 20 | H25: 48.04 | I25: 81.39 | J25: 149.43 | L25: 0.1 | M25: 0.0006696578049

Sheet Capital Recovery Factor Calc
A5: Avista | F5: Avista
A6: Capital Recovery Factor Calculation | F6: Capital Recovery Factor Calculation
A7: Present AVU-E-21-01 | F7: Proposed - AVU-E-23-01
A10: Cost of Capital | F10: Cost of Capital | J10: Source
A11: Capital | B11: Capital | C11: Component | D11: Weighted | F11: Capital | G11: Capital | H11: Component | I11: Weighted
A12: Component | B12: Structure | C12: Cost | D12: Cost | F12: Component | G12: Structure | H12: Cost | I12: Cost
A13: Long Term Debt | B13: 0.5 | C13: 0.047 | D13: =B13*C13 -> 0.0235 | F13: Long Term Debt | G13: 0.5 | H13: 0.0497 | I13: =G13*H13 -> 0.02485 | J13: Schultz
A14: Preferred Equity | B14: 0 | C14: 0 | D14: =B14*C14 -> 0 | F14: Preferred Equity | G14: 0 | H14: 0 | I14: =G14*H14 -> 0 | J14: Schultz
A15: Common Equity | B15: 0.5 | C15: 0.094 | D15: =B15*C15 -> 0.047 | F15: Common Equity | G15: 0.5 | H15: 0.094 | I15: =G15*H15 -> 0.047 | J15: Schultz
A16: Total | B16: =SUM(B13:B15) -> 1 | D16: =SUM(D13:D15) -> 0.0705 | F16: Total | G16: =SUM(G13:G15) -> 1 | I16: =SUM(I13:I15) -> 0.07185
A19: Grossed-up Rate of Return | F19: Grossed-up Rate of Return
A21: Tax Gross-up Factor | D21: =1/0.749719 -> 1.333833076 | F21: Tax Gross-up Factor | I21: =1/0.787016 -> 1.270622198 | J21: Schultz
A24: Weighted ROE * Tax Gross-up | C24: 1.3338 * 4.950% | D24: =D15*D21 -> 0.06269015458 | F24: Weighted ROE * Tax Gross-up | H24: 1.27064 * 5.125% | I24: =I15*I21 -> 0.05971924332
A25: Long Term Debt | D25: =D13 -> 0.0235 | F25: Long Term Debt | I25: =I13 -> 0.02485
A26: Preferred Equity * Tax Gross-up | C26: 1.33781 * 0.000% | D26: =D14*D21 -> 0 | F26: Preferred Equity * Tax Gross-up | H26: 1.27064 * 0.000% | I26: =I14*I21 -> 0
A27: Grossed-up Rate of Return | D27: =SUM(D24:D26) -> 0.08619015458 | F27: Grossed-up Rate of Return | I27: =SUM(I24:I26) -> 0.08456924332
C31: Test Year | D31: Effective | I31: Effective
A32: Account | B32: Plant in | C32: Depreciation | D32: Depreciation | F32: Account | G32: Plant in | H32: Depreciation | I32: Depreciation
A33: Number | B33: Service | C33: Expense | D33: Rate | F33: Number | G33: Service | H33: Expense | I33: Rate
A34: 373 - Street Lighting | B34: 25097000 | C34: 708000 | D34: =C34/B34 -> 0.02821054309 | F34: 373 - Street Lighting | G34: 30450000 | H34: 757000 | I34: =H34/G34 -> 0.02486042693 | J34: Garbarino
A35: Revenue Conversion Factor (Before FIT) | D35: 0.949012 | F35: Revenue Conversion Factor (Before FIT) | I35: 0.996223 | J35: Schultz Conversion Factor
A36: Grossed-Up Depreciation Rate | D36: =D34/D35 -> 0.02972622379 | F36: Grossed-up Depreciation Rate | I36: =I34/I35 -> 0.02495468076
A38: *From Cost of Service (Knox) | F38: *From Cost of Service (Knox)
A40: Capital Recovery Factor | B40: =D27+D36 -> 0.1159163784 | F40: Capital Recovery Factor | G40: =I27+I36 -> 0.1095239241

Sheet Lighting summary
B1: AVISTA UTILITIES
B2: IDAHO ELECTRIC
B3: STREET & AREA LIGHT REVENUE UNDER PRESENT & PROPOSED RATES
B4: 12 MONTHS ENDED JUNE 30, 202022
C7: ="Present "&IF(Base1_Billing2=2,"Billing ","")&"Rates(1)" -> Present Rates(1) | F7: ="Proposed "&IF(Base1_Billing2=2,"Billing ","")&"Rates(2)" -> Proposed Rates(2) | I7: % Revenue Change | L7: =IF(Base1_Billing2=1,"only accurate when showing Billed","") -> only accurate when showing Billed
C8: Monthly | D8: Annual | F8: Monthly | G8: Annual | L8: ="Actual "&IF(Base1_Billing2=1,"Base","Billing") -> Actual Base | N8: Target Base
C9: Revenue | D9: Revenue | F9: Revenue | G9: Revenue | I9: Base Rates | L9: % Change | M9: $ Change | N9: % Change | S9: Annual kWh's
O10: avg usage
B11: Schedule 41 | C11: =IF(Base1_Billing2=1,'St Lts'!AA$39,'St Lts'!AA$39*(1+$I$40)+'St Lts'!BG$39) -> 273.76 | D11: =C11*12 -> 3285.12 | F11: =IF(Base1_Billing2=1,'St Lts'!AX$39,'St Lts'!AX$39*(1+$C$32)+'St Lts'!BG$41) -> 274.88 | G11: =F11*12 -> 3298.56 | I11: =G11/D11-1 -> 0.004091174752 | L11: =G11/D11-1 -> 0.004091174752 | N11: 0.0042 | O11: =SUMPRODUCT('St Lts'!AI$4:AI$55,'St Lts'!$BE$4:$BE$55)/'St Lts'!AI$39 -> 80
B12: Schedule 42 | C12: =IF(Base1_Billing2=1,'St Lts'!AB$39,'St Lts'!AB$39*(1+$I$40)+'St Lts'!BH$39) -> 230637.18 | D12: =C12*12 -> 2767646.16 | F12: =IF(Base1_Billing2=1,'St Lts'!AY$39,'St Lts'!AY$39*(1+$C$32)+'St Lts'!BH$41) -> 231599.48 | G12: 2779193.76 | I12: 0.004172354171 | L12: =G12/D12-1 -> 0.004172354171 | N12: =$N$11 -> 0.0042 | O12: =SUMPRODUCT('St Lts'!AJ$4:AJ$55,'St Lts'!$BE$4:$BE$55)/'St Lts'!AJ$39 -> 46.81435478
B13: Schedule 43 | C13: =IF(Base1_Billing2=1,'St Lts'!AC$39,'St Lts'!AC$39*(1+$I$40)+'St Lts'!BI$39) -> 0 | D13: 0 | F13: =IF(Base1_Billing2=1,'St Lts'!AZ$39,'St Lts'!AZ$39*(1+$C$32)+'St Lts'!BI$41) -> 0 | G13: 0 | L13: =G13/D13-1 ->  | N13: 0.0042 | O13: =SUMPRODUCT('St Lts'!AK$4:AK$55,'St Lts'!$BE$4:$BE$55)/'St Lts'!AK$39 -> 
B14: Schedule 44 | C14: =IF(Base1_Billing2=1,'St Lts'!AD$39,'St Lts'!AD$39*(1+$I$40)+'St Lts'!BJ$39) -> 4281.97 | D14: 51383.64 | F14: =IF(Base1_Billing2=1,'St Lts'!BA$39,'St Lts'!BA$39*(1+$C$32)+'St Lts'!BJ$41) -> 4300.16 | G14: 51601.92 | I14: 0.004248044708 | L14: 0.004248044708 | N14: 0.0042 | O14: =SUMPRODUCT('St Lts'!AL$4:AL$55,'St Lts'!$BE$4:$BE$55)/'St Lts'!AL$39 -> 92.53361345
B15: Schedule 45 | C15: =IF(Base1_Billing2=1,'St Lts'!AE$39,'St Lts'!AE$39*(1+$I$40)+'St Lts'!BK$39) -> 2358.63 | D15: 28303.56 | F15: =IF(Base1_Billing2=1,'St Lts'!BB$39,'St Lts'!BB$39*(1+$C$32)+'St Lts'!BK$41) -> 2368.02 | G15: 28416.24 | I15: 0.003981124636 | L15: 0.003981124636 | N15: 0.0042 | O15: =SUMPRODUCT('St Lts'!AM$4:AM$55,'St Lts'!$BE$4:$BE$55)/'St Lts'!AM$39 -> 170.7235294
B16: Schedule 46 | C16: =IF(Base1_Billing2=1,'St Lts'!AF$39,'St Lts'!AF$39*(1+$I$40)+'St Lts'!BL$39) -> 8435.93 | D16: 101231.16 | F16: =IF(Base1_Billing2=1,'St Lts'!BC$39,'St Lts'!BC$39*(1+$C$32)+'St Lts'!BL$41) -> 8471.16 | G16: 101653.92 | I16: 0.004176184487 | L16: 0.004176184487 | N16: 0.0042 | O16: =SUMPRODUCT('St Lts'!AN$4:AN$55,'St Lts'!$BE$4:$BE$55)/'St Lts'!AN$39 -> 110.2719547 | S16: 940512 | T16: =D16/S16 -> 0.1076340972 | U16: =G16/S16 -> 0.108083597
B17: Schedule 47 | C17: =IF(Base1_Billing2=1,'Area Lts'!$V$43,'Area Lts'!$V$43*(1+$I$40)+'Area Lts'!$AO$43) -> 6354.77 | D17: 76257.24 | F17: =IF(Base1_Billing2=1,'Area Lts'!$AH$43,'Area Lts'!$AH$43*(1+$C$32)+'Area Lts'!$AO$45) -> 6381.33 | G17: 76575.96 | I17: 0.004179537576 | L17: 0.004179537576 | N17: 0.0042 | O17: =SUMPRODUCT('Area Lts'!$Z$4:$Z$41,'Area Lts'!$AL$4:$AL$41)/'Area Lts'!$Z$43 -> 75.64973262
B18: Schedule 48 | C18: =IF(Base1_Billing2=1,'Area Lts'!$W$43,'Area Lts'!$W$43*(1+$I$40)+'Area Lts'!$AP$43) -> 30119.48 | D18: 361433.76 | F18: =IF(Base1_Billing2=1,'Area Lts'!$AI$43,'Area Lts'!$AI$43*(1+$C$32)+'Area Lts'!$AP$45) -> 30250.58 | G18: 363006.96 | I18: 0.004352664787 | L18: =G18/D18-1 -> 0.004352664787 | M18: =SUM(G17:G19)/SUM(D17:D19)-1 -> 0.004335181469 | O18: =SUMPRODUCT('Area Lts'!$AA$4:$AA$41,'Area Lts'!$AL$4:$AL$41)/'Area Lts'!$AA$43 -> 47.77973333
B19: Schedule 49 | C19: =IF(Base1_Billing2=1,'Area Lts'!$X$43,'Area Lts'!$X$43*(1+$I$40)+'Area Lts'!$AQ$43) -> 64218.19 | D19: 770618.28 | F19: =IF(Base1_Billing2=1,'Area Lts'!$AJ$43,'Area Lts'!$AJ$43*(1+$C$32)+'Area Lts'!$AQ$45) -> 64497.05 | G19: 773964.6 | I19: 0.004342383365 | L19: 0.004342383365 | N19: =N11 -> 0.0042 | O19: =SUMPRODUCT('Area Lts'!$AB$4:$AB$41,'Area Lts'!$AL$4:$AL$41)/'Area Lts'!$AB$43 -> 66.46261825
B21: Total | C21: =SUM(C11:C19) -> 346679.91 | D21: =SUM(D11:D19) -> 4160158.92 | F21: =SUM(F11:F19) -> 348142.66 | G21: =SUM(G11:G19) -> 4177711.92 | I21: =G21/D21-1 -> 0.004219309968 | L21: =G21/D21-1 -> 0.004219309968 | M21: =G21-D21 -> 17553 | O21: =(SUMPRODUCT('St Lts'!AI4:AI55+'St Lts'!AJ4:AJ55+'St Lts'!AK4:AK55+'St Lts'!AL4:AL55+'St Lts'!AM4:AM55+'St Lts'!AN4:AN55,'St Lts'!BE4:BE55)+SUMPRODUCT('Area Lts'!Z4:Z41+'Area Lts'!AA4:AA41+'Area Lts'!AB4:AB41,'Area Lts'!AL4:AL41))/('St Lts'!AN40+'Area Lts'!P44) -> 54.48858266
D23: ='Rev Runs'!P32*'Lighting summary'!J23 -> 0 | G23: 0 | J23: 0 | K23: Sch XX Rate
B24: Total Base Revenue | D24: =D21+D23 -> 4160158.92
C25: =ROUND(C21-CHOOSE(Base1_Billing2,'St Lts'!AF40+'Area Lts'!X44,'St Lts'!AF47+'Area Lts'!X50),0) -> 0 | F25: =ROUND(F21-CHOOSE(Base1_Billing2,'St Lts'!BC40+'Area Lts'!AJ44,'St Lts'!BC43+'Area Lts'!AJ47),0) -> 0
N28: =N11 -> 0.0042
C32: 0 | D32: Sch 91 PP Rider
C34: 0 | D34: 0 | F34: 0 | G34: 0 | J34: =G34/D34-1 -> 
C35: =C21-C34 -> 346679.91 | D35: =D21-D34 -> 4160158.92 | F35: =F21-F34 -> 348142.66 | G35: =G21-G34 -> 4177711.92
C38: Sch 66 PCA revenue pulled from 'St Lts' and 'Area Lts' tabs. | J38: Revised
I39: Present | J39: Present | K39: Proposed
G40: Sch 91 - PP | I40: 0 | J40: =(L21+(1+I40))/(1+L21)-1 -> 0 | K40: =J40*(1+$L$40) -> 0 | L40: 0 | M40: incr to Sch 91
G41: Sch 66 - PCA
G42: Total adder | I42: =I40+I41 -> 0 | J42: =J40+J41 -> 0 | K42: =K40+K41 -> 0

Sheet St Lts
A1: Street Light Summary | I1: IDAHO Street Lights | AP1: % increase | AQ1: ='Lighting summary'!N11 -> 0.0042 | AR1: ='Lighting summary'!N12 -> 0.0042 | AS1: ='Lighting summary'!N13 -> 0.0042 | AT1: ='Lighting summary'!N14 -> 0.0042 | AU1: ='Lighting summary'!N15 -> 0.0042 | AV1: ='Lighting summary'!N16 -> 0.0042 | BF1: Surcharge | CB1: compare input Present Billing Rates to calculated Present Billing Rates | CJ1: compare input Present Billing Rates to current shortcuts
A2: DWWPA0AE Report | M2: Number of Lights | T2: Present Base Rates | AA2: Monthly Revenue at Present Rates | AI2: Number of Lights | AQ2: Proposed Base Rates | AX2: Monthly Revenue at Proposed Rates | BG2: Monthly Surcharge at Present & Proposed Rates | BN2: Present Billing Rates | BU2: Proposed Billing Rates | CB2: 0.92 | CI2: 1-Pres. Billing; 2-Prop. Billing --> | CL2: 2 | CV2: decrease in PCA revenue
I3: Fixture Type | J3: Pole Facility | K3: Size | L3: Sched | M3: 041 | N3: 042 | O3: 043 | P3: 044 | Q3: 045 | R3: 046 | T3: 041 | U3: 042 | V3: 043 | W3: 044 | X3: 045 | Y3: 046 | AA3: 041 | AB3: 042 | AC3: 043 | AD3: 044 | AE3: 045 | AF3: 046 | AI3: 041 | AJ3: 042 | AK3: 043 | AL3: 044 | AM3: 045 | AN3: 046 | AO3: Code | AQ3: 041 | AR3: 042 | AS3: 043 | AT3: 044 | AU3: 045 | AV3: 046 | AX3: 041 | AY3: 042 | AZ3: 043 | BA3: 044 | BB3: 045 | BC3: 046 | BE3: kWh | BF3: =0.0015+0.01039 -> 0.01189 | BG3: 041 | BH3: 042 | BI3: 043 | BJ3: 044 | BK3: 045 | BL3: 046 | BN3: 041 | BO3: 042 | BP3: 043 | BQ3: 044 | BR3: 045 | BS3: 046 | BU3: 041 | BV3: 042 | BW3: 043 | BX3: 044 | BY3: 045 | BZ3: 046 | CB3: 041 | CC3: 042 | CD3: 043 | CE3: 044 | CF3: 045 | CG3: 046 | CI3: Sch 41 | CJ3: =SUM(CJ4:CJ72) ->  | CK3: Sch 42 | CL3: =SUM(CL4:CL72) ->  | CM3: Sch 43 | CN3: =SUM(CN4:CN72) ->  | CO3: Sch 44 | CP3: =SUM(CP4:CP72) ->  | CQ3: Sch 45 | CR3: =SUM(CR4:CR72) ->  | CS3: Sch 46 | CT3: =SUM(CT4:CT72) ->  | CV3: 041 | CW3: 042 | CX3: 043 | CY3: 044 | CZ3: 045 | DA3: 046
I4: Single High-Pressure Sodium Vapor | J4: Direct Burial | K4: 50W | L4: 234# | M4: =SUMIF($G:$G,TEXT(M$3,"000")&TEXT($L4,"000"),$E:$E) -> 0 | N4: 230 | O4: 0 | P4: 0 | Q4: 0 | R4: 0 | S4: =IF(SUM(M4:R4)>0,0,1) -> 0 | T4: 0 | U4: 15.06 | V4: 0 | W4: 0 | X4: 0 | Y4: 0 | AA4: =IF(AND(M4<>0,T4=0),#VALUE!,M4*T4) -> 0 | AB4: 3463.8 | AC4: 0 | AD4: 0 | AE4: 0 | AF4: 0 | AI4: =M4 -> 0 | AJ4: 230 | AK4: 0 | AL4: 0 | AM4: 0 | AN4: 0 | AO4: =L4 -> 234# | AP4: =IF(SUM(AI4:AN4)>0,0,1) -> 0 | AQ4: =ROUND(T4*IF(T4>0,1+AQ$1),2) -> 0 | AR4: =ROUND(U4*IF(U4>0,1+AR$1),2) -> 15.12 | AS4: =ROUND(V4*IF(V4>0,1+AS$1),2) -> 0 | AT4: =ROUND(W4*IF(W4>0,1+AT$1),2) -> 0 | AU4: =ROUND(X4*IF(X4>0,1+AU$1),2) -> 0 | AV4: =ROUND(Y4*IF(Y4>0,1+AV$1),2) -> 0 | AX4: =IF(AND(AI4<>0,AQ4=0),#VALUE!,AI4*AQ4) -> 0 | AY4: 3477.6 | AZ4: 0 | BA4: 0 | BB4: 0 | BC4: 0 | BE4: 20 | BF4: =BE4*BF$3 -> 0.2378 | BG4: =AI4*$BF4 -> 0 | BH4: =AJ4*$BF4 -> 54.694 | BI4: 0 | BJ4: 0 | BK4: 0 | BL4: 0 | BO4: 13.7 | BU4: =ROUND(IF(AQ4=0,0,AQ4*1.036+ROUND($BE4*-0.00292,2)),2) -> 0 | BV4: =ROUND(IF(AR4=0,0,AR4*1.036+ROUND($BE4*-0.00292,2)),2) -> 15.6 | BW4: 0 | BX4: 0 | BY4: 0 | BZ4: 0 | CB4: =T4*$CB$2+IF(ISNUMBER(BN4),ROUND($BF4,2),0)-BN4 -> 0 | CC4: =U4*$CB$2+IF(ISNUMBER(BO4),ROUND($BF4,2),0)-BO4 -> 0.3952 | CD4: =V4*$CB$2+IF(ISNUMBER(BP4),ROUND($BF4,2),0)-BP4 -> 0 | CE4: =W4*$CB$2+IF(ISNUMBER(BQ4),ROUND($BF4,2),0)-BQ4 -> 0 | CF4: =X4*$CB$2+IF(ISNUMBER(BR4),ROUND($BF4,2),0)-BR4 -> 0 | CG4: =Y4*$CB$2+IF(ISNUMBER(BS4),ROUND($BF4,2),0)-BS4 -> 0 | CI4: =SUMPRODUCT(--($L4=[4]Sheet2!$B$9:$B$14), [4]Sheet2!$C$9:$C$14)+SUMPRODUCT(--($L4=[4]Sheet2!$D$9:$D$14), [4]Sheet2!$E$9:$E$14)+SUMPRODUCT(--($L4=[4]Sheet2!$F$9:$F$14), [4]Sheet2!$G$9:$G$14)+SUMPRODUCT(--($L4=[4]Sheet2!$H$9:$H$14), [4]Sheet2!$I$9:$I$14)+SUMPRODUCT(--($L4=[4]Sheet2!$J$9:$J$14), [4]Sheet2!$K$9:$K$14) ->  | CJ4: =CI4-IF($CL$2=1,BN4,BU4) ->  | CK4: =SUMPRODUCT(--($L4=[4]Sheet2!$B$19:$B$34), [4]Sheet2!$C$19:$C$34)+SUMPRODUCT(--($L4=[5]Sheet2!$D$19:$D$34), [4]Sheet2!$E$19:$E$34)+SUMPRODUCT(--($L4=[4]Sheet2!$F$19:$F$34), [4]Sheet2!$G$19:$G$34)+SUMPRODUCT(--($L4=[4]Sheet2!$H$19:$H$34), [4]Sheet2!$I$19:$I$34)+SUMPRODUCT(--($L4=[4]Sheet2!$J$19:$J$34), [4]Sheet2!$K$19:$K$34) ->  | CL4: =CK4-IF($CL$2=1,BO4,BV4) ->  | CM4: =SUMPRODUCT(--($L4=[4]Sheet2!$B$43:$B$47), [4]Sheet2!$C$43:$C$47)+SUMPRODUCT(--($L4=[4]Sheet2!$D$43:$D$47), [4]Sheet2!$E$43:$E$47)+SUMPRODUCT(--($L4=[4]Sheet2!$F$43:$F$47), [4]Sheet2!$G$43:$G$47)+SUMPRODUCT(--($L4=[4]Sheet2!$H$43:$H$47), [4]Sheet2!$I$43:$I$47)+SUMPRODUCT(--($L4=[4]Sheet2!$J$43:$J$47), [4]Sheet2!$K$43:$K$47) ->  | CN4: =CM4-IF($CL$2=1,BP4,BW4) ->  | CO4: =SUMPRODUCT(--($L4=[4]Sheet2!$B$53:$B$62), [4]Sheet2!$C$53:$C$62)+SUMPRODUCT(--($L4=[4]Sheet2!$D$53:$D$62), [4]Sheet2!$E$53:$E$62)+SUMPRODUCT(--($L4=[4]Sheet2!$F$53:$F$62), [4]Sheet2!$G$53:$G$62)+SUMPRODUCT(--($L4=[4]Sheet2!$H$53:$H$62), [4]Sheet2!$I$53:$I$62)+SUMPRODUCT(--($L4=[4]Sheet2!$J$53:$J$62), [4]Sheet2!$K$53:$K$62) ->  | CP4: =CO4-IF($CL$2=1,BQ4,BX4) ->  | CQ4: =SUMPRODUCT(--($L4=[4]Sheet3!$B$10:$B$11), [4]Sheet3!$C$10:$C$11)+SUMPRODUCT(--($L4=[4]Sheet3!$D$10:$D$11), [4]Sheet3!$E$10:$E$11)+SUMPRODUCT(--($L4=[4]Sheet3!$F$10:$F$11), [4]Sheet3!$G$10:$G$11)+SUMPRODUCT(--($L4=[4]Sheet3!$H$10:$H$11), [4]Sheet3!$I$10:$I$11)+SUMPRODUCT(--($L4=[4]Sheet3!$J$10:$J$11), [4]Sheet3!$K$10:$K$11) ->  | CR4: =CQ4-IF($CL$2=1,BR4,BY4) ->  | CS4: =SUMPRODUCT(--($L4=[4]Sheet3!$B$17:$B$22), [4]Sheet3!$C$17:$C$22)+SUMPRODUCT(--($L4=[4]Sheet3!$D$17:$D$22), [4]Sheet3!$E$17:$E$22)+SUMPRODUCT(--($L4=[4]Sheet3!$F$17:$F$22), [4]Sheet3!$G$17:$G$22)+SUMPRODUCT(--($L4=[4]Sheet3!$H$17:$H$22), [4]Sheet3!$I$17:$I$22)+SUMPRODUCT(--($L4=[4]Sheet3!$J$17:$J$22), [4]Sheet3!$K$17:$K$22) ->  | CT4: =CS4-IF($CL$2=1,BS4,BZ4) ->  | CV4: =$BE4*($BF$42-$BF$40)*AI4*12 -> 0 | CW4: =$BE4*($BF$42-$BF$40)*AJ4*12 -> 0 | CX4: =$BE4*($BF$42-$BF$40)*AK4*12 -> 0 | CY4: =$BE4*($BF$42-$BF$40)*AL4*12 -> 0 | CZ4: =$BE4*($BF$42-$BF$40)*AM4*12 -> 0 | DA4: =$BE4*($BF$42-$BF$40)*AN4*12 -> 0
B5: State | C5: Sched | D5: Rate Sub | E5: # of Lights | I5: Single High-Pressure Sodium Vapor | J5: No Pole | K5: 50W | L5: 235 | M5: 0 | N5: 3 | O5: 0 | P5: 0 | Q5: 0 | R5: 0 | S5: 0 | T5: 0 | U5: 12.06 | V5: 0 | W5: 0 | X5: 0 | Y5: 0 | AA5: =IF(AND(M5<>0,T5=0),#VALUE!,M5*T5) -> 0 | AB5: =IF(AND(N5<>0,U5=0),#VALUE!,N5*U5) -> 36.18 | AC5: =IF(AND(O5<>0,V5=0),#VALUE!,O5*V5) -> 0 | AD5: =IF(AND(P5<>0,W5=0),#VALUE!,P5*W5) -> 0 | AE5: =IF(AND(Q5<>0,X5=0),#VALUE!,Q5*X5) -> 0 | AF5: =IF(AND(R5<>0,Y5=0),#VALUE!,R5*Y5) -> 0 | AI5: =M5 -> 0 | AJ5: =N5 -> 3 | AK5: =O5 -> 0 | AL5: =P5 -> 0 | AM5: =Q5 -> 0 | AN5: =R5 -> 0 | AO5: =L5 -> 235 | AP5: =IF(SUM(AI5:AN5)>0,0,1) -> 0 | AQ5: 0 | AR5: 12.11 | AS5: 0 | AT5: 0 | AU5: 0 | AV5: 0 | AX5: =IF(AND(AI5<>0,AQ5=0),#VALUE!,AI5*AQ5) -> 0 | AY5: =IF(AND(AJ5<>0,AR5=0),#VALUE!,AJ5*AR5) -> 36.33 | AZ5: =IF(AND(AK5<>0,AS5=0),#VALUE!,AK5*AS5) -> 0 | BA5: =IF(AND(AL5<>0,AT5=0),#VALUE!,AL5*AT5) -> 0 | BB5: =IF(AND(AM5<>0,AU5=0),#VALUE!,AM5*AU5) -> 0 | BC5: =IF(AND(AN5<>0,AV5=0),#VALUE!,AN5*AV5) -> 0 | BE5: 20 | BF5: =BE5*BF$3 -> 0.2378 | BG5: =AI5*$BF5 -> 0 | BH5: =AJ5*$BF5 -> 0.7134 | BI5: =AK5*$BF5 -> 0 | BJ5: =AL5*$BF5 -> 0 | BK5: =AM5*$BF5 -> 0 | BL5: =AN5*$BF5 -> 0 | BO5: 11.02 | BU5: =ROUND(IF(AQ5=0,0,AQ5*1.036+ROUND($BE5*-0.00292,2)),2) -> 0 | BV5: =ROUND(IF(AR5=0,0,AR5*1.036+ROUND($BE5*-0.00292,2)),2) -> 12.49 | BW5: =ROUND(IF(AS5=0,0,AS5*1.036+ROUND($BE5*-0.00292,2)),2) -> 0 | BX5: =ROUND(IF(AT5=0,0,AT5*1.036+ROUND($BE5*-0.00292,2)),2) -> 0 | BY5: =ROUND(IF(AU5=0,0,AU5*1.036+ROUND($BE5*-0.00292,2)),2) -> 0 | BZ5: =ROUND(IF(AV5=0,0,AV5*1.036+ROUND($BE5*-0.00292,2)),2) -> 0 | CB5: =T5*$CB$2+IF(ISNUMBER(BN5),ROUND($BF5,2),0)-BN5 -> 0 | CC5: =U5*$CB$2+IF(ISNUMBER(BO5),ROUND($BF5,2),0)-BO5 -> 0.3152 | CD5: 0 | CE5: 0 | CF5: 0 | CG5: 0 | CI5: =SUMPRODUCT(--($L5=[4]Sheet2!$B$9:$B$14), [4]Sheet2!$C$9:$C$14)+SUMPRODUCT(--($L5=[4]Sheet2!$D$9:$D$14), [4]Sheet2!$E$9:$E$14)+SUMPRODUCT(--($L5=[4]Sheet2!$F$9:$F$14), [4]Sheet2!$G$9:$G$14)+SUMPRODUCT(--($L5=[4]Sheet2!$H$9:$H$14), [4]Sheet2!$I$9:$I$14)+SUMPRODUCT(--($L5=[4]Sheet2!$J$9:$J$14), [4]Sheet2!$K$9:$K$14) ->  | CJ5: =CI5-IF($CL$2=1,BN5,BU5) ->  | CK5: =SUMPRODUCT(--($L5=[4]Sheet2!$B$19:$B$34), [4]Sheet2!$C$19:$C$34)+SUMPRODUCT(--($L5=[5]Sheet2!$D$19:$D$34), [4]Sheet2!$E$19:$E$34)+SUMPRODUCT(--($L5=[4]Sheet2!$F$19:$F$34), [4]Sheet2!$G$19:$G$34)+SUMPRODUCT(--($L5=[4]Sheet2!$H$19:$H$34), [4]Sheet2!$I$19:$I$34)+SUMPRODUCT(--($L5=[4]Sheet2!$J$19:$J$34), [4]Sheet2!$K$19:$K$34) ->  | CL5: =CK5-IF($CL$2=1,BO5,BV5) ->  | CM5: =SUMPRODUCT(--($L5=[4]Sheet2!$B$43:$B$47), [4]Sheet2!$C$43:$C$47)+SUMPRODUCT(--($L5=[4]Sheet2!$D$43:$D$47), [4]Sheet2!$E$43:$E$47)+SUMPRODUCT(--($L5=[4]Sheet2!$F$43:$F$47), [4]Sheet2!$G$43:$G$47)+SUMPRODUCT(--($L5=[4]Sheet2!$H$43:$H$47), [4]Sheet2!$I$43:$I$47)+SUMPRODUCT(--($L5=[4]Sheet2!$J$43:$J$47), [4]Sheet2!$K$43:$K$47) ->  | CN5: =CM5-IF($CL$2=1,BP5,BW5) ->  | CO5: =SUMPRODUCT(--($L5=[4]Sheet2!$B$53:$B$62), [4]Sheet2!$C$53:$C$62)+SUMPRODUCT(--($L5=[4]Sheet2!$D$53:$D$62), [4]Sheet2!$E$53:$E$62)+SUMPRODUCT(--($L5=[4]Sheet2!$F$53:$F$62), [4]Sheet2!$G$53:$G$62)+SUMPRODUCT(--($L5=[4]Sheet2!$H$53:$H$62), [4]Sheet2!$I$53:$I$62)+SUMPRODUCT(--($L5=[4]Sheet2!$J$53:$J$62), [4]Sheet2!$K$53:$K$62) ->  | CP5: =CO5-IF($CL$2=1,BQ5,BX5) ->  | CQ5: =SUMPRODUCT(--($L5=[4]Sheet3!$B$10:$B$11), [4]Sheet3!$C$10:$C$11)+SUMPRODUCT(--($L5=[4]Sheet3!$D$10:$D$11), [4]Sheet3!$E$10:$E$11)+SUMPRODUCT(--($L5=[4]Sheet3!$F$10:$F$11), [4]Sheet3!$G$10:$G$11)+SUMPRODUCT(--($L5=[4]Sheet3!$H$10:$H$11), [4]Sheet3!$I$10:$I$11)+SUMPRODUCT(--($L5=[4]Sheet3!$J$10:$J$11), [4]Sheet3!$K$10:$K$11) ->  | CR5: =CQ5-IF($CL$2=1,BR5,BY5) ->  | CS5: =SUMPRODUCT(--($L5=[4]Sheet3!$B$17:$B$22), [4]Sheet3!$C$17:$C$22)+SUMPRODUCT(--($L5=[4]Sheet3!$D$17:$D$22), [4]Sheet3!$E$17:$E$22)+SUMPRODUCT(--($L5=[4]Sheet3!$F$17:$F$22), [4]Sheet3!$G$17:$G$22)+SUMPRODUCT(--($L5=[4]Sheet3!$H$17:$H$22), [4]Sheet3!$I$17:$I$22)+SUMPRODUCT(--($L5=[4]Sheet3!$J$17:$J$22), [4]Sheet3!$K$17:$K$22) ->  | CT5: =CS5-IF($CL$2=1,BS5,BZ5) ->  | CV5: 0 | CW5: 0 | CX5: 0 | CY5: 0 | CZ5: 0 | DA5: 0
I6: Single Mercury Vapor | J6: Wood Pole | K6: 7000 | L6: 411 | M6: 7 | N6: 0 | O6: 0 | P6: 0 | Q6: 0 | R6: 0 | S6: 0 | T6: 17.11 | U6: 0 | V6: 0 | W6: 0 | X6: 0 | Y6: 0 | AA6: =IF(AND(M6<>0,T6=0),#VALUE!,M6*T6) -> 119.77 | AB6: 0 | AC6: 0 | AD6: 0 | AE6: 0 | AF6: 0 | AI6: 7 | AJ6: 0 | AK6: 0 | AL6: 0 | AM6: 0 | AN6: 0 | AO6: =L6 -> 411 | AP6: 0 | AQ6: 17.18 | AR6: 0 | AS6: 0 | AT6: 0 | AU6: 0 | AV6: 0 | AX6: 120.26 | AY6: 0 | AZ6: 0 | BA6: 0 | BB6: 0 | BC6: 0 | BE6: 80 | BF6: 0.9512 | BG6: =AI6*$BF6 -> 6.6584 | BH6: 0 | BI6: 0 | BJ6: 0 | BK6: 0 | BL6: 0 | BN6: 16.25 | BU6: 17.57 | BV6: 0 | BW6: 0 | BX6: 0 | BY6: 0 | BZ6: 0 | CB6: =T6*$CB$2+IF(ISNUMBER(BN6),ROUND($BF6,2),0)-BN6 -> 0.4412 | CC6: 0 | CD6: 0 | CE6: 0 | CF6: 0 | CG6: 0 | CI6: =SUMPRODUCT(--($L6=[4]Sheet2!$B$9:$B$14), [4]Sheet2!$C$9:$C$14)+SUMPRODUCT(--($L6=[4]Sheet2!$D$9:$D$14), [4]Sheet2!$E$9:$E$14)+SUMPRODUCT(--($L6=[4]Sheet2!$F$9:$F$14), [4]Sheet2!$G$9:$G$14)+SUMPRODUCT(--($L6=[4]Sheet2!$H$9:$H$14), [4]Sheet2!$I$9:$I$14)+SUMPRODUCT(--($L6=[4]Sheet2!$J$9:$J$14), [4]Sheet2!$K$9:$K$14) ->  | CJ6: =CI6-IF($CL$2=1,BN6,BU6) ->  | CK6: =SUMPRODUCT(--($L6=[4]Sheet2!$B$19:$B$34), [4]Sheet2!$C$19:$C$34)+SUMPRODUCT(--($L6=[5]Sheet2!$D$19:$D$34), [4]Sheet2!$E$19:$E$34)+SUMPRODUCT(--($L6=[4]Sheet2!$F$19:$F$34), [4]Sheet2!$G$19:$G$34)+SUMPRODUCT(--($L6=[4]Sheet2!$H$19:$H$34), [4]Sheet2!$I$19:$I$34)+SUMPRODUCT(--($L6=[4]Sheet2!$J$19:$J$34), [4]Sheet2!$K$19:$K$34) ->  | CM6: =SUMPRODUCT(--($L6=[4]Sheet2!$B$43:$B$47), [4]Sheet2!$C$43:$C$47)+SUMPRODUCT(--($L6=[4]Sheet2!$D$43:$D$47), [4]Sheet2!$E$43:$E$47)+SUMPRODUCT(--($L6=[4]Sheet2!$F$43:$F$47), [4]Sheet2!$G$43:$G$47)+SUMPRODUCT(--($L6=[4]Sheet2!$H$43:$H$47), [4]Sheet2!$I$43:$I$47)+SUMPRODUCT(--($L6=[4]Sheet2!$J$43:$J$47), [4]Sheet2!$K$43:$K$47) ->  | CO6: =SUMPRODUCT(--($L6=[4]Sheet2!$B$53:$B$62), [4]Sheet2!$C$53:$C$62)+SUMPRODUCT(--($L6=[4]Sheet2!$D$53:$D$62), [4]Sheet2!$E$53:$E$62)+SUMPRODUCT(--($L6=[4]Sheet2!$F$53:$F$62), [4]Sheet2!$G$53:$G$62)+SUMPRODUCT(--($L6=[4]Sheet2!$H$53:$H$62), [4]Sheet2!$I$53:$I$62)+SUMPRODUCT(--($L6=[4]Sheet2!$J$53:$J$62), [4]Sheet2!$K$53:$K$62) ->  | CQ6: =SUMPRODUCT(--($L6=[4]Sheet3!$B$10:$B$11), [4]Sheet3!$C$10:$C$11)+SUMPRODUCT(--($L6=[4]Sheet3!$D$10:$D$11), [4]Sheet3!$E$10:$E$11)+SUMPRODUCT(--($L6=[4]Sheet3!$F$10:$F$11), [4]Sheet3!$G$10:$G$11)+SUMPRODUCT(--($L6=[4]Sheet3!$H$10:$H$11), [4]Sheet3!$I$10:$I$11)+SUMPRODUCT(--($L6=[4]Sheet3!$J$10:$J$11), [4]Sheet3!$K$10:$K$11) ->  | CS6: =SUMPRODUCT(--($L6=[4]Sheet3!$B$17:$B$22), [4]Sheet3!$C$17:$C$22)+SUMPRODUCT(--($L6=[4]Sheet3!$D$17:$D$22), [4]Sheet3!$E$17:$E$22)+SUMPRODUCT(--($L6=[4]Sheet3!$F$17:$F$22), [4]Sheet3!$G$17:$G$22)+SUMPRODUCT(--($L6=[4]Sheet3!$H$17:$H$22), [4]Sheet3!$I$17:$I$22)+SUMPRODUCT(--($L6=[4]Sheet3!$J$17:$J$22), [4]Sheet3!$K$17:$K$22) ->  | CV6: 0 | CW6: 0 | CX6: 0 | CY6: 0 | CZ6: 0 | DA6: 0
B7: 3 | C7: 041 | D7: 411 | E7: 7 | G7: =IF(OR(ISBLANK(C7),ISBLANK(D7)),"",TEXT(C7,"000")&TEXT(D7,"000")) -> 041411 | I7: Single Mercury Vapor | J7: Developer Contributed | K7: 7000 | L7: 416 | M7: 9 | N7: 0 | O7: 0 | P7: 0 | Q7: 0 | R7: 0 | S7: 0 | T7: 17.11 | U7: 0 | V7: 0 | W7: 0 | X7: 0 | Y7: 0 | AA7: 153.99 | AB7: 0 | AC7: 0 | AD7: 0 | AE7: 0 | AF7: 0 | AI7: 9 | AJ7: 0 | AK7: 0 | AL7: 0 | AM7: 0 | AN7: 0 | AO7: =L7 -> 416 | AP7: 0 | AQ7: 17.18 | AR7: 0 | AS7: 0 | AT7: 0 | AU7: 0 | AV7: 0 | AX7: 154.62 | AY7: 0 | AZ7: 0 | BA7: 0 | BB7: 0 | BC7: 0 | BE7: 80 | BF7: 0.9512 | BG7: 8.5608 | BH7: 0 | BI7: 0 | BJ7: 0 | BK7: 0 | BL7: 0 | BN7: 16.25 | BU7: 17.57 | BV7: 0 | BW7: 0 | BX7: 0 | BY7: 0 | BZ7: 0 | CB7: 0.4412 | CC7: 0 | CD7: 0 | CE7: 0 | CF7: 0 | CG7: 0 | CI7: =SUMPRODUCT(--($L7=[4]Sheet2!$B$9:$B$14), [4]Sheet2!$C$9:$C$14)+SUMPRODUCT(--($L7=[4]Sheet2!$D$9:$D$14), [4]Sheet2!$E$9:$E$14)+SUMPRODUCT(--($L7=[4]Sheet2!$F$9:$F$14), [4]Sheet2!$G$9:$G$14)+SUMPRODUCT(--($L7=[4]Sheet2!$H$9:$H$14), [4]Sheet2!$I$9:$I$14)+SUMPRODUCT(--($L7=[4]Sheet2!$J$9:$J$14), [4]Sheet2!$K$9:$K$14) ->  | CK7: =SUMPRODUCT(--($L7=[4]Sheet2!$B$19:$B$34), [4]Sheet2!$C$19:$C$34)+SUMPRODUCT(--($L7=[5]Sheet2!$D$19:$D$34), [4]Sheet2!$E$19:$E$34)+SUMPRODUCT(--($L7=[4]Sheet2!$F$19:$F$34), [4]Sheet2!$G$19:$G$34)+SUMPRODUCT(--($L7=[4]Sheet2!$H$19:$H$34), [4]Sheet2!$I$19:$I$34)+SUMPRODUCT(--($L7=[4]Sheet2!$J$19:$J$34), [4]Sheet2!$K$19:$K$34) ->  | CM7: =SUMPRODUCT(--($L7=[4]Sheet2!$B$43:$B$47), [4]Sheet2!$C$43:$C$47)+SUMPRODUCT(--($L7=[4]Sheet2!$D$43:$D$47), [4]Sheet2!$E$43:$E$47)+SUMPRODUCT(--($L7=[4]Sheet2!$F$43:$F$47), [4]Sheet2!$G$43:$G$47)+SUMPRODUCT(--($L7=[4]Sheet2!$H$43:$H$47), [4]Sheet2!$I$43:$I$47)+SUMPRODUCT(--($L7=[4]Sheet2!$J$43:$J$47), [4]Sheet2!$K$43:$K$47) ->  | CO7: =SUMPRODUCT(--($L7=[4]Sheet2!$B$53:$B$62), [4]Sheet2!$C$53:$C$62)+SUMPRODUCT(--($L7=[4]Sheet2!$D$53:$D$62), [4]Sheet2!$E$53:$E$62)+SUMPRODUCT(--($L7=[4]Sheet2!$F$53:$F$62), [4]Sheet2!$G$53:$G$62)+SUMPRODUCT(--($L7=[4]Sheet2!$H$53:$H$62), [4]Sheet2!$I$53:$I$62)+SUMPRODUCT(--($L7=[4]Sheet2!$J$53:$J$62), [4]Sheet2!$K$53:$K$62) ->  | CQ7: =SUMPRODUCT(--($L7=[4]Sheet3!$B$10:$B$11), [4]Sheet3!$C$10:$C$11)+SUMPRODUCT(--($L7=[4]Sheet3!$D$10:$D$11), [4]Sheet3!$E$10:$E$11)+SUMPRODUCT(--($L7=[4]Sheet3!$F$10:$F$11), [4]Sheet3!$G$10:$G$11)+SUMPRODUCT(--($L7=[4]Sheet3!$H$10:$H$11), [4]Sheet3!$I$10:$I$11)+SUMPRODUCT(--($L7=[4]Sheet3!$J$10:$J$11), [4]Sheet3!$K$10:$K$11) ->  | CS7: =SUMPRODUCT(--($L7=[4]Sheet3!$B$17:$B$22), [4]Sheet3!$C$17:$C$22)+SUMPRODUCT(--($L7=[4]Sheet3!$D$17:$D$22), [4]Sheet3!$E$17:$E$22)+SUMPRODUCT(--($L7=[4]Sheet3!$F$17:$F$22), [4]Sheet3!$G$17:$G$22)+SUMPRODUCT(--($L7=[4]Sheet3!$H$17:$H$22), [4]Sheet3!$I$17:$I$22)+SUMPRODUCT(--($L7=[4]Sheet3!$J$17:$J$22), [4]Sheet3!$K$17:$K$22) ->  | CV7: 0 | CW7: 0 | CX7: 0 | CY7: 0 | CZ7: 0 | DA7: 0
B8: 3 | C8: 041 | D8: 416 | E8: 9 | G8: 041416 | I8: Single HPSV/LED | J8: Pedestal Base | K8: 100W | L8: 432 | M8: 0 | N8: 150 | O8: 0 | P8: 30 | Q8: 0 | R8: 0 | S8: =IF(SUM(M8:R8)>0,0,1) -> 0 | T8: 0 | U8: 27.71 | V8: 0 | W8: 11.2 | X8: 0 | Y8: 0 | AA8: 0 | AB8: 4156.5 | AC8: 0 | AD8: 336 | AE8: 0 | AF8: 0 | AI8: 0 | AJ8: 150 | AK8: 0 | AL8: 30 | AM8: 0 | AN8: 0 | AO8: 432/432L | AP8: 0 | AQ8: 0 | AR8: 27.83 | AS8: 0 | AT8: 11.25 | AU8: 0 | AV8: 0 | AX8: 0 | AY8: 4174.5 | AZ8: 0 | BA8: 337.5 | BB8: 0 | BC8: 0 | BE8: 40 | BF8: 0.4756 | BG8: 0 | BH8: 71.34 | BI8: 0 | BJ8: =AL8*$BF8 -> 14.268 | BK8: 0 | BL8: 0 | BO8: 25.26 | BQ8: 10.49 | BU8: 0 | BV8: 28.71 | BW8: 0 | BX8: 11.54 | BY8: 0 | BZ8: 0 | CB8: 0 | CC8: =U8*$CB$2+IF(ISNUMBER(BO8),ROUND($BF8,2),0)-BO8 -> 0.7132 | CD8: 0 | CE8: 0.294 | CF8: 0 | CG8: 0 | CI8: =SUMPRODUCT(--($L8=[4]Sheet2!$B$9:$B$14), [4]Sheet2!$C$9:$C$14)+SUMPRODUCT(--($L8=[4]Sheet2!$D$9:$D$14), [4]Sheet2!$E$9:$E$14)+SUMPRODUCT(--($L8=[4]Sheet2!$F$9:$F$14), [4]Sheet2!$G$9:$G$14)+SUMPRODUCT(--($L8=[4]Sheet2!$H$9:$H$14), [4]Sheet2!$I$9:$I$14)+SUMPRODUCT(--($L8=[4]Sheet2!$J$9:$J$14), [4]Sheet2!$K$9:$K$14) ->  | CK8: =SUMPRODUCT(--($L8=[4]Sheet2!$B$19:$B$34), [4]Sheet2!$C$19:$C$34)+SUMPRODUCT(--($L8=[5]Sheet2!$D$19:$D$34), [4]Sheet2!$E$19:$E$34)+SUMPRODUCT(--($L8=[4]Sheet2!$F$19:$F$34), [4]Sheet2!$G$19:$G$34)+SUMPRODUCT(--($L8=[4]Sheet2!$H$19:$H$34), [4]Sheet2!$I$19:$I$34)+SUMPRODUCT(--($L8=[4]Sheet2!$J$19:$J$34), [4]Sheet2!$K$19:$K$34) ->  | CM8: =SUMPRODUCT(--($L8=[4]Sheet2!$B$43:$B$47), [4]Sheet2!$C$43:$C$47)+SUMPRODUCT(--($L8=[4]Sheet2!$D$43:$D$47), [4]Sheet2!$E$43:$E$47)+SUMPRODUCT(--($L8=[4]Sheet2!$F$43:$F$47), [4]Sheet2!$G$43:$G$47)+SUMPRODUCT(--($L8=[4]Sheet2!$H$43:$H$47), [4]Sheet2!$I$43:$I$47)+SUMPRODUCT(--($L8=[4]Sheet2!$J$43:$J$47), [4]Sheet2!$K$43:$K$47) ->  | CO8: =SUMPRODUCT(--($L8=[4]Sheet2!$B$53:$B$62), [4]Sheet2!$C$53:$C$62)+SUMPRODUCT(--($L8=[4]Sheet2!$D$53:$D$62), [4]Sheet2!$E$53:$E$62)+SUMPRODUCT(--($L8=[4]Sheet2!$F$53:$F$62), [4]Sheet2!$G$53:$G$62)+SUMPRODUCT(--($L8=[4]Sheet2!$H$53:$H$62), [4]Sheet2!$I$53:$I$62)+SUMPRODUCT(--($L8=[4]Sheet2!$J$53:$J$62), [4]Sheet2!$K$53:$K$62) ->  | CQ8: =SUMPRODUCT(--($L8=[4]Sheet3!$B$10:$B$11), [4]Sheet3!$C$10:$C$11)+SUMPRODUCT(--($L8=[4]Sheet3!$D$10:$D$11), [4]Sheet3!$E$10:$E$11)+SUMPRODUCT(--($L8=[4]Sheet3!$F$10:$F$11), [4]Sheet3!$G$10:$G$11)+SUMPRODUCT(--($L8=[4]Sheet3!$H$10:$H$11), [4]Sheet3!$I$10:$I$11)+SUMPRODUCT(--($L8=[4]Sheet3!$J$10:$J$11), [4]Sheet3!$K$10:$K$11) ->  | CS8: =SUMPRODUCT(--($L8=[4]Sheet3!$B$17:$B$22), [4]Sheet3!$C$17:$C$22)+SUMPRODUCT(--($L8=[4]Sheet3!$D$17:$D$22), [4]Sheet3!$E$17:$E$22)+SUMPRODUCT(--($L8=[4]Sheet3!$F$17:$F$22), [4]Sheet3!$G$17:$G$22)+SUMPRODUCT(--($L8=[4]Sheet3!$H$17:$H$22), [4]Sheet3!$I$17:$I$22)+SUMPRODUCT(--($L8=[4]Sheet3!$J$17:$J$22), [4]Sheet3!$K$17:$K$22) ->  | CV8: 0 | CW8: 0 | CX8: 0 | CY8: 0 | CZ8: 0 | DA8: 0
B9: 3 | C9: 041 | D9: 431 | E9: 0 | G9: =IF(OR(ISBLANK(C9),ISBLANK(D9)),"",TEXT(C9,"000")&TEXT(D9,"000")) -> 041431 | I9: Single HPSV/LED | J9: Direct Burial | K9: 100W | L9: 433 | M9: 0 | N9: 103 | O9: 0 | P9: 0 | Q9: 0 | R9: 0 | S9: 0 | T9: 0 | U9: 27.71 | V9: 0 | W9: 0 | X9: 0 | Y9: 0 | AA9: 0 | AB9: 2854.13 | AC9: 0 | AD9: 0 | AE9: 0 | AF9: 0 | AI9: 0 | AJ9: 103 | AK9: 0 | AL9: 0 | AM9: 0 | AN9: 0 | AO9: 433/433L | AP9: 0 | AQ9: 0 | AR9: 27.83 | AS9: 0 | AT9: 0 | AU9: 0 | AV9: 0 | AX9: 0 | AY9: 2866.49 | AZ9: 0 | BA9: 0 | BB9: 0 | BC9: 0 | BE9: 40 | BF9: 0.4756 | BG9: 0 | BH9: 48.9868 | BI9: 0 | BJ9: 0 | BK9: 0 | BL9: 0 | BO9: 25.26 | BU9: 0 | BV9: 28.71 | BW9: 0 | BX9: 0 | BY9: 0 | BZ9: 0 | CB9: 0 | CC9: 0.7132 | CD9: 0 | CE9: 0 | CF9: 0 | CG9: 0 | CI9: =SUMPRODUCT(--($L9=[4]Sheet2!$B$9:$B$14), [4]Sheet2!$C$9:$C$14)+SUMPRODUCT(--($L9=[4]Sheet2!$D$9:$D$14), [4]Sheet2!$E$9:$E$14)+SUMPRODUCT(--($L9=[4]Sheet2!$F$9:$F$14), [4]Sheet2!$G$9:$G$14)+SUMPRODUCT(--($L9=[4]Sheet2!$H$9:$H$14), [4]Sheet2!$I$9:$I$14)+SUMPRODUCT(--($L9=[4]Sheet2!$J$9:$J$14), [4]Sheet2!$K$9:$K$14) ->  | CK9: =SUMPRODUCT(--($L9=[4]Sheet2!$B$19:$B$34), [4]Sheet2!$C$19:$C$34)+SUMPRODUCT(--($L9=[5]Sheet2!$D$19:$D$34), [4]Sheet2!$E$19:$E$34)+SUMPRODUCT(--($L9=[4]Sheet2!$F$19:$F$34), [4]Sheet2!$G$19:$G$34)+SUMPRODUCT(--($L9=[4]Sheet2!$H$19:$H$34), [4]Sheet2!$I$19:$I$34)+SUMPRODUCT(--($L9=[4]Sheet2!$J$19:$J$34), [4]Sheet2!$K$19:$K$34) ->  | CM9: =SUMPRODUCT(--($L9=[4]Sheet2!$B$43:$B$47), [4]Sheet2!$C$43:$C$47)+SUMPRODUCT(--($L9=[4]Sheet2!$D$43:$D$47), [4]Sheet2!$E$43:$E$47)+SUMPRODUCT(--($L9=[4]Sheet2!$F$43:$F$47), [4]Sheet2!$G$43:$G$47)+SUMPRODUCT(--($L9=[4]Sheet2!$H$43:$H$47), [4]Sheet2!$I$43:$I$47)+SUMPRODUCT(--($L9=[4]Sheet2!$J$43:$J$47), [4]Sheet2!$K$43:$K$47) ->  | CO9: =SUMPRODUCT(--($L9=[4]Sheet2!$B$53:$B$62), [4]Sheet2!$C$53:$C$62)+SUMPRODUCT(--($L9=[4]Sheet2!$D$53:$D$62), [4]Sheet2!$E$53:$E$62)+SUMPRODUCT(--($L9=[4]Sheet2!$F$53:$F$62), [4]Sheet2!$G$53:$G$62)+SUMPRODUCT(--($L9=[4]Sheet2!$H$53:$H$62), [4]Sheet2!$I$53:$I$62)+SUMPRODUCT(--($L9=[4]Sheet2!$J$53:$J$62), [4]Sheet2!$K$53:$K$62) ->  | CQ9: =SUMPRODUCT(--($L9=[4]Sheet3!$B$10:$B$11), [4]Sheet3!$C$10:$C$11)+SUMPRODUCT(--($L9=[4]Sheet3!$D$10:$D$11), [4]Sheet3!$E$10:$E$11)+SUMPRODUCT(--($L9=[4]Sheet3!$F$10:$F$11), [4]Sheet3!$G$10:$G$11)+SUMPRODUCT(--($L9=[4]Sheet3!$H$10:$H$11), [4]Sheet3!$I$10:$I$11)+SUMPRODUCT(--($L9=[4]Sheet3!$J$10:$J$11), [4]Sheet3!$K$10:$K$11) ->  | CS9: =SUMPRODUCT(--($L9=[4]Sheet3!$B$17:$B$22), [4]Sheet3!$C$17:$C$22)+SUMPRODUCT(--($L9=[4]Sheet3!$D$17:$D$22), [4]Sheet3!$E$17:$E$22)+SUMPRODUCT(--($L9=[4]Sheet3!$F$17:$F$22), [4]Sheet3!$G$17:$G$22)+SUMPRODUCT(--($L9=[4]Sheet3!$H$17:$H$22), [4]Sheet3!$I$17:$I$22)+SUMPRODUCT(--($L9=[4]Sheet3!$J$17:$J$22), [4]Sheet3!$K$17:$K$22) ->  | CV9: 0 | CW9: 0 | CX9: 0 | CY9: 0 | CZ9: 0 | DA9: 0
B10: 3 | C10: 041 | D10: 435 | E10: 0 | G10: =IF(OR(ISBLANK(C10),ISBLANK(D10)),"",TEXT(C10,"000")&TEXT(D10,"000")) -> 041435 | I10: Single HPSV/LED | J10: Direct Burial | K10: 100W | L10: 434# | M10: 0 | N10: 2316 | O10: 0 | P10: 0 | Q10: 0 | R10: 0 | S10: 0 | T10: 0 | U10: 15.82 | V10: 0 | W10: 0 | X10: 0 | Y10: 0 | AA10: 0 | AB10: 36639.12 | AC10: 0 | AD10: 0 | AE10: 0 | AF10: 0 | AI10: 0 | AJ10: 2316 | AK10: 0 | AL10: 0 | AM10: 0 | AN10: 0 | AO10: 434/434L | AP10: 0 | AQ10: 0 | AR10: 15.89 | AS10: 0 | AT10: 0 | AU10: 0 | AV10: 0 | AX10: 0 | AY10: 36801.24 | AZ10: 0 | BA10: 0 | BB10: 0 | BC10: 0 | BE10: 40 | BF10: 0.4756 | BG10: 0 | BH10: 1101.4896 | BI10: 0 | BJ10: 0 | BK10: 0 | BL10: 0 | BO10: 14.62 | BU10: 0 | BV10: 16.34 | BW10: 0 | BX10: 0 | BY10: 0 | BZ10: 0 | CB10: 0 | CC10: 0.4144 | CD10: 0 | CE10: 0 | CF10: 0 | CG10: 0 | CI10: =SUMPRODUCT(--($L10=[4]Sheet2!$B$9:$B$14), [4]Sheet2!$C$9:$C$14)+SUMPRODUCT(--($L10=[4]Sheet2!$D$9:$D$14), [4]Sheet2!$E$9:$E$14)+SUMPRODUCT(--($L10=[4]Sheet2!$F$9:$F$14), [4]Sheet2!$G$9:$G$14)+SUMPRODUCT(--($L10=[4]Sheet2!$H$9:$H$14), [4]Sheet2!$I$9:$I$14)+SUMPRODUCT(--($L10=[4]Sheet2!$J$9:$J$14), [4]Sheet2!$K$9:$K$14) ->  | CK10: =SUMPRODUCT(--($L10=[4]Sheet2!$B$19:$B$34), [4]Sheet2!$C$19:$C$34)+SUMPRODUCT(--($L10=[5]Sheet2!$D$19:$D$34), [4]Sheet2!$E$19:$E$34)+SUMPRODUCT(--($L10=[4]Sheet2!$F$19:$F$34), [4]Sheet2!$G$19:$G$34)+SUMPRODUCT(--($L10=[4]Sheet2!$H$19:$H$34), [4]Sheet2!$I$19:$I$34)+SUMPRODUCT(--($L10=[4]Sheet2!$J$19:$J$34), [4]Sheet2!$K$19:$K$34) ->  | CM10: =SUMPRODUCT(--($L10=[4]Sheet2!$B$43:$B$47), [4]Sheet2!$C$43:$C$47)+SUMPRODUCT(--($L10=[4]Sheet2!$D$43:$D$47), [4]Sheet2!$E$43:$E$47)+SUMPRODUCT(--($L10=[4]Sheet2!$F$43:$F$47), [4]Sheet2!$G$43:$G$47)+SUMPRODUCT(--($L10=[4]Sheet2!$H$43:$H$47), [4]Sheet2!$I$43:$I$47)+SUMPRODUCT(--($L10=[4]Sheet2!$J$43:$J$47), [4]Sheet2!$K$43:$K$47) ->  | CO10: =SUMPRODUCT(--($L10=[4]Sheet2!$B$53:$B$62), [4]Sheet2!$C$53:$C$62)+SUMPRODUCT(--($L10=[4]Sheet2!$D$53:$D$62), [4]Sheet2!$E$53:$E$62)+SUMPRODUCT(--($L10=[4]Sheet2!$F$53:$F$62), [4]Sheet2!$G$53:$G$62)+SUMPRODUCT(--($L10=[4]Sheet2!$H$53:$H$62), [4]Sheet2!$I$53:$I$62)+SUMPRODUCT(--($L10=[4]Sheet2!$J$53:$J$62), [4]Sheet2!$K$53:$K$62) ->  | CQ10: =SUMPRODUCT(--($L10=[4]Sheet3!$B$10:$B$11), [4]Sheet3!$C$10:$C$11)+SUMPRODUCT(--($L10=[4]Sheet3!$D$10:$D$11), [4]Sheet3!$E$10:$E$11)+SUMPRODUCT(--($L10=[4]Sheet3!$F$10:$F$11), [4]Sheet3!$G$10:$G$11)+SUMPRODUCT(--($L10=[4]Sheet3!$H$10:$H$11), [4]Sheet3!$I$10:$I$11)+SUMPRODUCT(--($L10=[4]Sheet3!$J$10:$J$11), [4]Sheet3!$K$10:$K$11) ->  | CS10: =SUMPRODUCT(--($L10=[4]Sheet3!$B$17:$B$22), [4]Sheet3!$C$17:$C$22)+SUMPRODUCT(--($L10=[4]Sheet3!$D$17:$D$22), [4]Sheet3!$E$17:$E$22)+SUMPRODUCT(--($L10=[4]Sheet3!$F$17:$F$22), [4]Sheet3!$G$17:$G$22)+SUMPRODUCT(--($L10=[4]Sheet3!$H$17:$H$22), [4]Sheet3!$I$17:$I$22)+SUMPRODUCT(--($L10=[4]Sheet3!$J$17:$J$22), [4]Sheet3!$K$17:$K$22) ->  | CV10: 0 | CW10: 0 | CX10: 0 | CY10: 0 | CZ10: 0 | DA10: 0
B11: 3 | C11: 041 | D11: 436 | E11: 0 | G11: =IF(OR(ISBLANK(C11),ISBLANK(D11)),"",TEXT(C11,"000")&TEXT(D11,"000")) -> 041436 | I11: Single HPSV/LED | J11: No Pole / Dusk to Dawn (046) | K11: 100W | L11: 435 | M11: 0 | N11: 7579 | O11: 0 | P11: 23 | Q11: 0 | R11: 106 | S11: 0 | T11: 0 | U11: 14.67 | V11: 0 | W11: 11.2 | X11: 0 | Y11: 5.1 | AA11: =IF(AND(M11<>0,T11=0),#VALUE!,M11*T11) -> 0 | AB11: 111183.93 | AC11: 0 | AD11: 257.6 | AE11: 0 | AF11: 540.6 | AI11: 0 | AJ11: 7579 | AK11: 0 | AL11: 23 | AM11: 0 | AN11: 106 | AO11: 431/435/431L/435L | AP11: 0 | AQ11: 0 | AR11: 14.73 | AS11: 0 | AT11: 11.25 | AU11: 0 | AV11: 5.12 | AX11: =IF(AND(AI11<>0,AQ11=0),#VALUE!,AI11*AQ11) -> 0 | AY11: 111638.67 | AZ11: 0 | BA11: 258.75 | BB11: 0 | BC11: 542.72 | BE11: 40 | BF11: 0.4756 | BG11: 0 | BH11: 3604.5724 | BI11: 0 | BJ11: 10.9388 | BK11: 0 | BL11: 50.4136 | BO11: 13.6 | BQ11: 10.49 | BS11: 5.04 | BU11: 0 | BV11: 15.14 | BW11: 0 | BX11: 11.54 | BY11: 0 | BZ11: 5.18 | CB11: 0 | CC11: 0.3764 | CD11: 0 | CE11: 0.294 | CF11: 0 | CG11: 0.132 | CI11: =SUMPRODUCT(--($L11=[4]Sheet2!$B$9:$B$14), [4]Sheet2!$C$9:$C$14)+SUMPRODUCT(--($L11=[4]Sheet2!$D$9:$D$14), [4]Sheet2!$E$9:$E$14)+SUMPRODUCT(--($L11=[4]Sheet2!$F$9:$F$14), [4]Sheet2!$G$9:$G$14)+SUMPRODUCT(--($L11=[4]Sheet2!$H$9:$H$14), [4]Sheet2!$I$9:$I$14)+SUMPRODUCT(--($L11=[4]Sheet2!$J$9:$J$14), [4]Sheet2!$K$9:$K$14) ->  | CK11: =SUMPRODUCT(--($L11=[4]Sheet2!$B$19:$B$34), [4]Sheet2!$C$19:$C$34)+SUMPRODUCT(--($L11=[5]Sheet2!$D$19:$D$34), [4]Sheet2!$E$19:$E$34)+SUMPRODUCT(--($L11=[4]Sheet2!$F$19:$F$34), [4]Sheet2!$G$19:$G$34)+SUMPRODUCT(--($L11=[4]Sheet2!$H$19:$H$34), [4]Sheet2!$I$19:$I$34)+SUMPRODUCT(--($L11=[4]Sheet2!$J$19:$J$34), [4]Sheet2!$K$19:$K$34) ->  | CM11: =SUMPRODUCT(--($L11=[4]Sheet2!$B$43:$B$47), [4]Sheet2!$C$43:$C$47)+SUMPRODUCT(--($L11=[4]Sheet2!$D$43:$D$47), [4]Sheet2!$E$43:$E$47)+SUMPRODUCT(--($L11=[4]Sheet2!$F$43:$F$47), [4]Sheet2!$G$43:$G$47)+SUMPRODUCT(--($L11=[4]Sheet2!$H$43:$H$47), [4]Sheet2!$I$43:$I$47)+SUMPRODUCT(--($L11=[4]Sheet2!$J$43:$J$47), [4]Sheet2!$K$43:$K$47) ->  | CO11: =SUMPRODUCT(--($L11=[4]Sheet2!$B$53:$B$62), [4]Sheet2!$C$53:$C$62)+SUMPRODUCT(--($L11=[4]Sheet2!$D$53:$D$62), [4]Sheet2!$E$53:$E$62)+SUMPRODUCT(--($L11=[4]Sheet2!$F$53:$F$62), [4]Sheet2!$G$53:$G$62)+SUMPRODUCT(--($L11=[4]Sheet2!$H$53:$H$62), [4]Sheet2!$I$53:$I$62)+SUMPRODUCT(--($L11=[4]Sheet2!$J$53:$J$62), [4]Sheet2!$K$53:$K$62) ->  | CQ11: =SUMPRODUCT(--($L11=[4]Sheet3!$B$10:$B$11), [4]Sheet3!$C$10:$C$11)+SUMPRODUCT(--($L11=[4]Sheet3!$D$10:$D$11), [4]Sheet3!$E$10:$E$11)+SUMPRODUCT(--($L11=[4]Sheet3!$F$10:$F$11), [4]Sheet3!$G$10:$G$11)+SUMPRODUCT(--($L11=[4]Sheet3!$H$10:$H$11), [4]Sheet3!$I$10:$I$11)+SUMPRODUCT(--($L11=[4]Sheet3!$J$10:$J$11), [4]Sheet3!$K$10:$K$11) ->  | CS11: =SUMPRODUCT(--($L11=[4]Sheet3!$B$17:$B$22), [4]Sheet3!$C$17:$C$22)+SUMPRODUCT(--($L11=[4]Sheet3!$D$17:$D$22), [4]Sheet3!$E$17:$E$22)+SUMPRODUCT(--($L11=[4]Sheet3!$F$17:$F$22), [4]Sheet3!$G$17:$G$22)+SUMPRODUCT(--($L11=[4]Sheet3!$H$17:$H$22), [4]Sheet3!$I$17:$I$22)+SUMPRODUCT(--($L11=[4]Sheet3!$J$17:$J$22), [4]Sheet3!$K$17:$K$22) ->  | CV11: 0 | CW11: 0 | CX11: 0 | CY11: 0 | CZ11: 0 | DA11: 0
B12: 3 | C12: 041 | D12: 511 | E12: 0 | G12: 041511 | I12: Single HPSV/LED | J12: Developer Contributed | K12: 100W | L12: 436 | M12: 0 | N12: 934 | O12: 0 | P12: 0 | Q12: 0 | R12: 0 | S12: 0 | T12: 0 | U12: 15.36 | V12: 0 | W12: 0 | X12: 0 | Y12: 0 | AA12: 0 | AB12: 14346.24 | AC12: 0 | AD12: 0 | AE12: 0 | AF12: 0 | AI12: 0 | AJ12: 934 | AK12: 0 | AL12: 0 | AM12: 0 | AN12: 0 | AO12: 436/436L | AP12: 0 | AQ12: 0 | AR12: 15.42 | AS12: 0 | AT12: 0 | AU12: 0 | AV12: 0 | AX12: 0 | AY12: 14402.28 | AZ12: 0 | BA12: 0 | BB12: 0 | BC12: 0 | BE12: 40 | BF12: 0.4756 | BG12: 0 | BH12: 444.2104 | BI12: 0 | BJ12: 0 | BK12: 0 | BL12: 0 | BO12: 14.22 | BU12: =ROUND(IF(AQ12=0,0,AQ12*1.036+ROUND($BE12*-0.00292,2)),2) -> 0 | BV12: =ROUND(IF(AR12=0,0,AR12*1.036+ROUND($BE12*-0.00292,2)),2) -> 15.86 | BW12: =ROUND(IF(AS12=0,0,AS12*1.036+ROUND($BE12*-0.00292,2)),2) -> 0 | BX12: =ROUND(IF(AT12=0,0,AT12*1.036+ROUND($BE12*-0.00292,2)),2) -> 0 | BY12: =ROUND(IF(AU12=0,0,AU12*1.036+ROUND($BE12*-0.00292,2)),2) -> 0 | BZ12: =ROUND(IF(AV12=0,0,AV12*1.036+ROUND($BE12*-0.00292,2)),2) -> 0 | CB12: 0 | CC12: 0.3912 | CD12: 0 | CE12: 0 | CF12: 0 | CG12: 0 | CI12: =SUMPRODUCT(--($L12=[4]Sheet2!$B$9:$B$14), [4]Sheet2!$C$9:$C$14)+SUMPRODUCT(--($L12=[4]Sheet2!$D$9:$D$14), [4]Sheet2!$E$9:$E$14)+SUMPRODUCT(--($L12=[4]Sheet2!$F$9:$F$14), [4]Sheet2!$G$9:$G$14)+SUMPRODUCT(--($L12=[4]Sheet2!$H$9:$H$14), [4]Sheet2!$I$9:$I$14)+SUMPRODUCT(--($L12=[4]Sheet2!$J$9:$J$14), [4]Sheet2!$K$9:$K$14) ->  | CK12: =SUMPRODUCT(--($L12=[4]Sheet2!$B$19:$B$34), [4]Sheet2!$C$19:$C$34)+SUMPRODUCT(--($L12=[5]Sheet2!$D$19:$D$34), [4]Sheet2!$E$19:$E$34)+SUMPRODUCT(--($L12=[4]Sheet2!$F$19:$F$34), [4]Sheet2!$G$19:$G$34)+SUMPRODUCT(--($L12=[4]Sheet2!$H$19:$H$34), [4]Sheet2!$I$19:$I$34)+SUMPRODUCT(--($L12=[4]Sheet2!$J$19:$J$34), [4]Sheet2!$K$19:$K$34) ->  | CM12: =SUMPRODUCT(--($L12=[4]Sheet2!$B$43:$B$47), [4]Sheet2!$C$43:$C$47)+SUMPRODUCT(--($L12=[4]Sheet2!$D$43:$D$47), [4]Sheet2!$E$43:$E$47)+SUMPRODUCT(--($L12=[4]Sheet2!$F$43:$F$47), [4]Sheet2!$G$43:$G$47)+SUMPRODUCT(--($L12=[4]Sheet2!$H$43:$H$47), [4]Sheet2!$I$43:$I$47)+SUMPRODUCT(--($L12=[4]Sheet2!$J$43:$J$47), [4]Sheet2!$K$43:$K$47) ->  | CO12: =SUMPRODUCT(--($L12=[4]Sheet2!$B$53:$B$62), [4]Sheet2!$C$53:$C$62)+SUMPRODUCT(--($L12=[4]Sheet2!$D$53:$D$62), [4]Sheet2!$E$53:$E$62)+SUMPRODUCT(--($L12=[4]Sheet2!$F$53:$F$62), [4]Sheet2!$G$53:$G$62)+SUMPRODUCT(--($L12=[4]Sheet2!$H$53:$H$62), [4]Sheet2!$I$53:$I$62)+SUMPRODUCT(--($L12=[4]Sheet2!$J$53:$J$62), [4]Sheet2!$K$53:$K$62) ->  | CQ12: =SUMPRODUCT(--($L12=[4]Sheet3!$B$10:$B$11), [4]Sheet3!$C$10:$C$11)+SUMPRODUCT(--($L12=[4]Sheet3!$D$10:$D$11), [4]Sheet3!$E$10:$E$11)+SUMPRODUCT(--($L12=[4]Sheet3!$F$10:$F$11), [4]Sheet3!$G$10:$G$11)+SUMPRODUCT(--($L12=[4]Sheet3!$H$10:$H$11), [4]Sheet3!$I$10:$I$11)+SUMPRODUCT(--($L12=[4]Sheet3!$J$10:$J$11), [4]Sheet3!$K$10:$K$11) ->  | CS12: =SUMPRODUCT(--($L12=[4]Sheet3!$B$17:$B$22), [4]Sheet3!$C$17:$C$22)+SUMPRODUCT(--($L12=[4]Sheet3!$D$17:$D$22), [4]Sheet3!$E$17:$E$22)+SUMPRODUCT(--($L12=[4]Sheet3!$F$17:$F$22), [4]Sheet3!$G$17:$G$22)+SUMPRODUCT(--($L12=[4]Sheet3!$H$17:$H$22), [4]Sheet3!$I$17:$I$22)+SUMPRODUCT(--($L12=[4]Sheet3!$J$17:$J$22), [4]Sheet3!$K$17:$K$22) ->  | CV12: 0 | CW12: 0 | CX12: 0 | CY12: 0 | CZ12: 0 | DA12: 0
B13: 3 | C13: 041 | D13: 611 | E13: 0 | G13: 041611 | I13: Decorative Sodium Vapor | J13: No Pole | K13: Kim Light 100W | L13: 438** | M13: 0 | N13: 64 | O13: 0 | P13: 0 | Q13: 0 | R13: 0 | S13: 0 | T13: 0 | U13: 15.83 | V13: 0 | W13: 0 | X13: 0 | Y13: 0 | AA13: 0 | AB13: 1013.12 | AC13: 0 | AD13: 0 | AE13: 0 | AF13: 0 | AI13: 0 | AJ13: 64 | AK13: 0 | AL13: 0 | AM13: 0 | AN13: 0 | AO13: =L13 -> 438** | AP13: 0 | AQ13: 0 | AR13: 15.9 | AS13: 0 | AT13: 0 | AU13: 0 | AV13: 0 | AX13: 0 | AY13: 1017.6 | AZ13: 0 | BA13: 0 | BB13: 0 | BC13: 0 | BE13: 40 | BF13: 0.4756 | BG13: 0 | BH13: 30.4384 | BI13: 0 | BJ13: 0 | BK13: 0 | BL13: 0 | BO13: 14.63 | BU13: 0 | BV13: 16.35 | BW13: 0 | BX13: 0 | BY13: 0 | BZ13: 0 | CB13: 0 | CC13: 0.4136 | CD13: 0 | CE13: 0 | CF13: 0 | CG13: 0 | CI13: =SUMPRODUCT(--($L13=[4]Sheet2!$B$9:$B$14), [4]Sheet2!$C$9:$C$14)+SUMPRODUCT(--($L13=[4]Sheet2!$D$9:$D$14), [4]Sheet2!$E$9:$E$14)+SUMPRODUCT(--($L13=[4]Sheet2!$F$9:$F$14), [4]Sheet2!$G$9:$G$14)+SUMPRODUCT(--($L13=[4]Sheet2!$H$9:$H$14), [4]Sheet2!$I$9:$I$14)+SUMPRODUCT(--($L13=[4]Sheet2!$J$9:$J$14), [4]Sheet2!$K$9:$K$14) ->  | CK13: =SUMPRODUCT(--($L13=[4]Sheet2!$B$19:$B$34), [4]Sheet2!$C$19:$C$34)+SUMPRODUCT(--($L13=[5]Sheet2!$D$19:$D$34), [4]Sheet2!$E$19:$E$34)+SUMPRODUCT(--($L13=[4]Sheet2!$F$19:$F$34), [4]Sheet2!$G$19:$G$34)+SUMPRODUCT(--($L13=[4]Sheet2!$H$19:$H$34), [4]Sheet2!$I$19:$I$34)+SUMPRODUCT(--($L13=[4]Sheet2!$J$19:$J$34), [4]Sheet2!$K$19:$K$34) ->  | CM13: =SUMPRODUCT(--($L13=[4]Sheet2!$B$43:$B$47), [4]Sheet2!$C$43:$C$47)+SUMPRODUCT(--($L13=[4]Sheet2!$D$43:$D$47), [4]Sheet2!$E$43:$E$47)+SUMPRODUCT(--($L13=[4]Sheet2!$F$43:$F$47), [4]Sheet2!$G$43:$G$47)+SUMPRODUCT(--($L13=[4]Sheet2!$H$43:$H$47), [4]Sheet2!$I$43:$I$47)+SUMPRODUCT(--($L13=[4]Sheet2!$J$43:$J$47), [4]Sheet2!$K$43:$K$47) ->  | CO13: =SUMPRODUCT(--($L13=[4]Sheet2!$B$53:$B$62), [4]Sheet2!$C$53:$C$62)+SUMPRODUCT(--($L13=[4]Sheet2!$D$53:$D$62), [4]Sheet2!$E$53:$E$62)+SUMPRODUCT(--($L13=[4]Sheet2!$F$53:$F$62), [4]Sheet2!$G$53:$G$62)+SUMPRODUCT(--($L13=[4]Sheet2!$H$53:$H$62), [4]Sheet2!$I$53:$I$62)+SUMPRODUCT(--($L13=[4]Sheet2!$J$53:$J$62), [4]Sheet2!$K$53:$K$62) ->  | CQ13: =SUMPRODUCT(--($L13=[4]Sheet3!$B$10:$B$11), [4]Sheet3!$C$10:$C$11)+SUMPRODUCT(--($L13=[4]Sheet3!$D$10:$D$11), [4]Sheet3!$E$10:$E$11)+SUMPRODUCT(--($L13=[4]Sheet3!$F$10:$F$11), [4]Sheet3!$G$10:$G$11)+SUMPRODUCT(--($L13=[4]Sheet3!$H$10:$H$11), [4]Sheet3!$I$10:$I$11)+SUMPRODUCT(--($L13=[4]Sheet3!$J$10:$J$11), [4]Sheet3!$K$10:$K$11) ->  | CS13: =SUMPRODUCT(--($L13=[4]Sheet3!$B$17:$B$22), [4]Sheet3!$C$17:$C$22)+SUMPRODUCT(--($L13=[4]Sheet3!$D$17:$D$22), [4]Sheet3!$E$17:$E$22)+SUMPRODUCT(--($L13=[4]Sheet3!$F$17:$F$22), [4]Sheet3!$G$17:$G$22)+SUMPRODUCT(--($L13=[4]Sheet3!$H$17:$H$22), [4]Sheet3!$I$17:$I$22)+SUMPRODUCT(--($L13=[4]Sheet3!$J$17:$J$22), [4]Sheet3!$K$17:$K$22) ->  | CV13: 0 | CW13: 0 | CX13: 0 | CY13: 0 | CZ13: 0 | DA13: 0
E14: =SUM(E7:E13) -> 16 | I14: Double High-Pressure LED | J14: Pedestal Base (LED only) | K14: 100W | L14: 442L | M14: =SUMIF($G:$G,TEXT(M$3,"000")&TEXT($L14,"000"),$E:$E) -> 0 | N14: 7 | O14: 0 | P14: 0 | Q14: 0 | R14: 0 | S14: =IF(SUM(M14:R14)>0,0,1) -> 0 | T14: 0 | U14: 43.97 | V14: 0 | W14: 0 | X14: 0 | Y14: 0 | AA14: =IF(AND(M14<>0,T14=0),#VALUE!,M14*T14) -> 0 | AB14: 307.79 | AC14: 0 | AD14: 0 | AE14: 0 | AF14: 0 | AI14: =M14 -> 0 | AJ14: 7 | AK14: 0 | AL14: 0 | AM14: 0 | AN14: 0 | AO14: 442L | AP14: =IF(SUM(AI14:AN14)>0,0,1) -> 0 | AQ14: =ROUND(T14*IF(T14>0,1+AQ$1),2) -> 0 | AR14: 44.15 | AS14: 0 | AT14: 0 | AU14: 0 | AV14: 0 | AX14: =IF(AND(AI14<>0,AQ14=0),#VALUE!,AI14*AQ14) -> 0 | AY14: 309.05 | AZ14: 0 | BA14: 0 | BB14: 0 | BC14: 0 | BE14: 52 | BF14: =BE14*BF$3 -> 0.61828 | BG14: =AI14*$BF14 -> 0 | BH14: 4.32796 | BI14: 0 | BJ14: 0 | BK14: 0 | BL14: 0 | BO14: 39.93 | BU14: =ROUND(IF(AQ14=0,0,AQ14*1.036+ROUND($BE14*-0.00292,2)),2) -> 0 | BV14: 45.59 | BW14: 0 | BX14: 0 | BY14: 0 | BZ14: 0 | CB14: =T14*$CB$2+IF(ISNUMBER(BN14),ROUND($BF14,2),0)-BN14 -> 0 | CC14: 1.1424 | CD14: 0 | CE14: 0 | CF14: 0 | CG14: 0 | CI14: =SUMPRODUCT(--($L14=[4]Sheet2!$B$9:$B$14), [4]Sheet2!$C$9:$C$14)+SUMPRODUCT(--($L14=[4]Sheet2!$D$9:$D$14), [4]Sheet2!$E$9:$E$14)+SUMPRODUCT(--($L14=[4]Sheet2!$F$9:$F$14), [4]Sheet2!$G$9:$G$14)+SUMPRODUCT(--($L14=[4]Sheet2!$H$9:$H$14), [4]Sheet2!$I$9:$I$14)+SUMPRODUCT(--($L14=[4]Sheet2!$J$9:$J$14), [4]Sheet2!$K$9:$K$14) ->  | CJ14: =CI14-IF($CL$2=1,BN14,BU14) ->  | CK14: =SUMPRODUCT(--($L14=[4]Sheet2!$B$19:$B$34), [4]Sheet2!$C$19:$C$34)+SUMPRODUCT(--($L14=[5]Sheet2!$D$19:$D$34), [4]Sheet2!$E$19:$E$34)+SUMPRODUCT(--($L14=[4]Sheet2!$F$19:$F$34), [4]Sheet2!$G$19:$G$34)+SUMPRODUCT(--($L14=[4]Sheet2!$H$19:$H$34), [4]Sheet2!$I$19:$I$34)+SUMPRODUCT(--($L14=[4]Sheet2!$J$19:$J$34), [4]Sheet2!$K$19:$K$34) ->  | CL14: =CK14-IF($CL$2=1,BO14,BV14) ->  | CM14: =SUMPRODUCT(--($L14=[4]Sheet2!$B$43:$B$47), [4]Sheet2!$C$43:$C$47)+SUMPRODUCT(--($L14=[4]Sheet2!$D$43:$D$47), [4]Sheet2!$E$43:$E$47)+SUMPRODUCT(--($L14=[4]Sheet2!$F$43:$F$47), [4]Sheet2!$G$43:$G$47)+SUMPRODUCT(--($L14=[4]Sheet2!$H$43:$H$47), [4]Sheet2!$I$43:$I$47)+SUMPRODUCT(--($L14=[4]Sheet2!$J$43:$J$47), [4]Sheet2!$K$43:$K$47) ->  | CN14: =CM14-IF($CL$2=1,BP14,BW14) ->  | CO14: =SUMPRODUCT(--($L14=[4]Sheet2!$B$53:$B$62), [4]Sheet2!$C$53:$C$62)+SUMPRODUCT(--($L14=[4]Sheet2!$D$53:$D$62), [4]Sheet2!$E$53:$E$62)+SUMPRODUCT(--($L14=[4]Sheet2!$F$53:$F$62), [4]Sheet2!$G$53:$G$62)+SUMPRODUCT(--($L14=[4]Sheet2!$H$53:$H$62), [4]Sheet2!$I$53:$I$62)+SUMPRODUCT(--($L14=[4]Sheet2!$J$53:$J$62), [4]Sheet2!$K$53:$K$62) ->  | CP14: =CO14-IF($CL$2=1,BQ14,BX14) ->  | CQ14: =SUMPRODUCT(--($L14=[4]Sheet3!$B$10:$B$11), [4]Sheet3!$C$10:$C$11)+SUMPRODUCT(--($L14=[4]Sheet3!$D$10:$D$11), [4]Sheet3!$E$10:$E$11)+SUMPRODUCT(--($L14=[4]Sheet3!$F$10:$F$11), [4]Sheet3!$G$10:$G$11)+SUMPRODUCT(--($L14=[4]Sheet3!$H$10:$H$11), [4]Sheet3!$I$10:$I$11)+SUMPRODUCT(--($L14=[4]Sheet3!$J$10:$J$11), [4]Sheet3!$K$10:$K$11) ->  | CR14: =CQ14-IF($CL$2=1,BR14,BY14) ->  | CS14: =SUMPRODUCT(--($L14=[4]Sheet3!$B$17:$B$22), [4]Sheet3!$C$17:$C$22)+SUMPRODUCT(--($L14=[4]Sheet3!$D$17:$D$22), [4]Sheet3!$E$17:$E$22)+SUMPRODUCT(--($L14=[4]Sheet3!$F$17:$F$22), [4]Sheet3!$G$17:$G$22)+SUMPRODUCT(--($L14=[4]Sheet3!$H$17:$H$22), [4]Sheet3!$I$17:$I$22)+SUMPRODUCT(--($L14=[4]Sheet3!$J$17:$J$22), [4]Sheet3!$K$17:$K$22) ->  | CT14: =CS14-IF($CL$2=1,BS14,BZ14) ->  | CV14: 0 | CW14: 0 | CX14: 0 | CY14: 0 | CZ14: 0 | DA14: 0
I15: Double HPSV/LED | J15: Developer Contributed | K15: 100W | L15: 446 | M15: 0 | N15: 21 | O15: 0 | P15: 0 | Q15: 0 | R15: 0 | S15: 0 | T15: 0 | U15: 30.85 | V15: 0 | W15: 0 | X15: 0 | Y15: 0 | AA15: 0 | AB15: 647.85 | AC15: 0 | AD15: 0 | AE15: 0 | AF15: 0 | AI15: 0 | AJ15: 21 | AK15: 0 | AL15: 0 | AM15: 0 | AN15: 0 | AO15: 446/446L | AP15: 0 | AQ15: 0 | AR15: 30.98 | AS15: 0 | AT15: 0 | AU15: 0 | AV15: 0 | AX15: 0 | AY15: 650.58 | AZ15: 0 | BA15: 0 | BB15: 0 | BC15: 0 | BE15: 80 | BF15: 0.9512 | BG15: 0 | BH15: 19.9752 | BI15: 0 | BJ15: 0 | BK15: 0 | BL15: 0 | BO15: 28.53 | BU15: 0 | BV15: 31.87 | BW15: 0 | BX15: 0 | BY15: 0 | BZ15: 0 | CB15: 0 | CC15: 0.802 | CD15: 0 | CE15: 0 | CF15: 0 | CG15: 0 | CI15: =SUMPRODUCT(--($L15=[4]Sheet2!$B$9:$B$14), [4]Sheet2!$C$9:$C$14)+SUMPRODUCT(--($L15=[4]Sheet2!$D$9:$D$14), [4]Sheet2!$E$9:$E$14)+SUMPRODUCT(--($L15=[4]Sheet2!$F$9:$F$14), [4]Sheet2!$G$9:$G$14)+SUMPRODUCT(--($L15=[4]Sheet2!$H$9:$H$14), [4]Sheet2!$I$9:$I$14)+SUMPRODUCT(--($L15=[4]Sheet2!$J$9:$J$14), [4]Sheet2!$K$9:$K$14) ->  | CK15: =SUMPRODUCT(--($L15=[4]Sheet2!$B$19:$B$34), [4]Sheet2!$C$19:$C$34)+SUMPRODUCT(--($L15=[5]Sheet2!$D$19:$D$34), [4]Sheet2!$E$19:$E$34)+SUMPRODUCT(--($L15=[4]Sheet2!$F$19:$F$34), [4]Sheet2!$G$19:$G$34)+SUMPRODUCT(--($L15=[4]Sheet2!$H$19:$H$34), [4]Sheet2!$I$19:$I$34)+SUMPRODUCT(--($L15=[4]Sheet2!$J$19:$J$34), [4]Sheet2!$K$19:$K$34) ->  | CM15: =SUMPRODUCT(--($L15=[4]Sheet2!$B$43:$B$47), [4]Sheet2!$C$43:$C$47)+SUMPRODUCT(--($L15=[4]Sheet2!$D$43:$D$47), [4]Sheet2!$E$43:$E$47)+SUMPRODUCT(--($L15=[4]Sheet2!$F$43:$F$47), [4]Sheet2!$G$43:$G$47)+SUMPRODUCT(--($L15=[4]Sheet2!$H$43:$H$47), [4]Sheet2!$I$43:$I$47)+SUMPRODUCT(--($L15=[4]Sheet2!$J$43:$J$47), [4]Sheet2!$K$43:$K$47) ->  | CO15: =SUMPRODUCT(--($L15=[4]Sheet2!$B$53:$B$62), [4]Sheet2!$C$53:$C$62)+SUMPRODUCT(--($L15=[4]Sheet2!$D$53:$D$62), [4]Sheet2!$E$53:$E$62)+SUMPRODUCT(--($L15=[4]Sheet2!$F$53:$F$62), [4]Sheet2!$G$53:$G$62)+SUMPRODUCT(--($L15=[4]Sheet2!$H$53:$H$62), [4]Sheet2!$I$53:$I$62)+SUMPRODUCT(--($L15=[4]Sheet2!$J$53:$J$62), [4]Sheet2!$K$53:$K$62) ->  | CQ15: =SUMPRODUCT(--($L15=[4]Sheet3!$B$10:$B$11), [4]Sheet3!$C$10:$C$11)+SUMPRODUCT(--($L15=[4]Sheet3!$D$10:$D$11), [4]Sheet3!$E$10:$E$11)+SUMPRODUCT(--($L15=[4]Sheet3!$F$10:$F$11), [4]Sheet3!$G$10:$G$11)+SUMPRODUCT(--($L15=[4]Sheet3!$H$10:$H$11), [4]Sheet3!$I$10:$I$11)+SUMPRODUCT(--($L15=[4]Sheet3!$J$10:$J$11), [4]Sheet3!$K$10:$K$11) ->  | CS15: =SUMPRODUCT(--($L15=[4]Sheet3!$B$17:$B$22), [4]Sheet3!$C$17:$C$22)+SUMPRODUCT(--($L15=[4]Sheet3!$D$17:$D$22), [4]Sheet3!$E$17:$E$22)+SUMPRODUCT(--($L15=[4]Sheet3!$F$17:$F$22), [4]Sheet3!$G$17:$G$22)+SUMPRODUCT(--($L15=[4]Sheet3!$H$17:$H$22), [4]Sheet3!$I$17:$I$22)+SUMPRODUCT(--($L15=[4]Sheet3!$J$17:$J$22), [4]Sheet3!$K$17:$K$22) ->  | CV15: 0 | CW15: 0 | CX15: 0 | CY15: 0 | CZ15: 0 | DA15: 0
B16: 3 | C16: 042 | D16: 234# | E16: 230 | G16: 042234# | I16: Decorative HPSV/LED | J16: Direct Burial | K16: Granville 100W | L16: 474* | M16: 0 | N16: 17 | O16: 0 | P16: 0 | Q16: 0 | R16: 0 | S16: =IF(SUM(M16:R16)>0,0,1) -> 0 | T16: 0 | U16: 28.62 | V16: 0 | W16: 0 | X16: 0 | Y16: 0 | AA16: 0 | AB16: 486.54 | AC16: 0 | AD16: 0 | AE16: 0 | AF16: 0 | AI16: 0 | AJ16: 17 | AK16: 0 | AL16: 0 | AM16: 0 | AN16: 0 | AO16: 474/474L | AP16: 0 | AQ16: 0 | AR16: 28.74 | AS16: 0 | AT16: 0 | AU16: 0 | AV16: 0 | AX16: 0 | AY16: 488.58 | AZ16: 0 | BA16: 0 | BB16: 0 | BC16: 0 | BE16: 40 | BF16: 0.4756 | BG16: 0 | BH16: 8.0852 | BI16: 0 | BJ16: 0 | BK16: 0 | BL16: 0 | BO16: 26.07 | BU16: 0 | BV16: 29.65 | BW16: 0 | BX16: 0 | BY16: 0 | BZ16: 0 | CB16: 0 | CC16: 0.7404 | CD16: 0 | CE16: 0 | CF16: 0 | CG16: 0 | CI16: =SUMPRODUCT(--($L16=[4]Sheet2!$B$9:$B$14), [4]Sheet2!$C$9:$C$14)+SUMPRODUCT(--($L16=[4]Sheet2!$D$9:$D$14), [4]Sheet2!$E$9:$E$14)+SUMPRODUCT(--($L16=[4]Sheet2!$F$9:$F$14), [4]Sheet2!$G$9:$G$14)+SUMPRODUCT(--($L16=[4]Sheet2!$H$9:$H$14), [4]Sheet2!$I$9:$I$14)+SUMPRODUCT(--($L16=[4]Sheet2!$J$9:$J$14), [4]Sheet2!$K$9:$K$14) ->  | CK16: =SUMPRODUCT(--($L16=[4]Sheet2!$B$19:$B$34), [4]Sheet2!$C$19:$C$34)+SUMPRODUCT(--($L16=[5]Sheet2!$D$19:$D$34), [4]Sheet2!$E$19:$E$34)+SUMPRODUCT(--($L16=[4]Sheet2!$F$19:$F$34), [4]Sheet2!$G$19:$G$34)+SUMPRODUCT(--($L16=[4]Sheet2!$H$19:$H$34), [4]Sheet2!$I$19:$I$34)+SUMPRODUCT(--($L16=[4]Sheet2!$J$19:$J$34), [4]Sheet2!$K$19:$K$34) ->  | CM16: =SUMPRODUCT(--($L16=[4]Sheet2!$B$43:$B$47), [4]Sheet2!$C$43:$C$47)+SUMPRODUCT(--($L16=[4]Sheet2!$D$43:$D$47), [4]Sheet2!$E$43:$E$47)+SUMPRODUCT(--($L16=[4]Sheet2!$F$43:$F$47), [4]Sheet2!$G$43:$G$47)+SUMPRODUCT(--($L16=[4]Sheet2!$H$43:$H$47), [4]Sheet2!$I$43:$I$47)+SUMPRODUCT(--($L16=[4]Sheet2!$J$43:$J$47), [4]Sheet2!$K$43:$K$47) ->  | CO16: =SUMPRODUCT(--($L16=[4]Sheet2!$B$53:$B$62), [4]Sheet2!$C$53:$C$62)+SUMPRODUCT(--($L16=[4]Sheet2!$D$53:$D$62), [4]Sheet2!$E$53:$E$62)+SUMPRODUCT(--($L16=[4]Sheet2!$F$53:$F$62), [4]Sheet2!$G$53:$G$62)+SUMPRODUCT(--($L16=[4]Sheet2!$H$53:$H$62), [4]Sheet2!$I$53:$I$62)+SUMPRODUCT(--($L16=[4]Sheet2!$J$53:$J$62), [4]Sheet2!$K$53:$K$62) ->  | CQ16: =SUMPRODUCT(--($L16=[4]Sheet3!$B$10:$B$11), [4]Sheet3!$C$10:$C$11)+SUMPRODUCT(--($L16=[4]Sheet3!$D$10:$D$11), [4]Sheet3!$E$10:$E$11)+SUMPRODUCT(--($L16=[4]Sheet3!$F$10:$F$11), [4]Sheet3!$G$10:$G$11)+SUMPRODUCT(--($L16=[4]Sheet3!$H$10:$H$11), [4]Sheet3!$I$10:$I$11)+SUMPRODUCT(--($L16=[4]Sheet3!$J$10:$J$11), [4]Sheet3!$K$10:$K$11) ->  | CS16: =SUMPRODUCT(--($L16=[4]Sheet3!$B$17:$B$22), [4]Sheet3!$C$17:$C$22)+SUMPRODUCT(--($L16=[4]Sheet3!$D$17:$D$22), [4]Sheet3!$E$17:$E$22)+SUMPRODUCT(--($L16=[4]Sheet3!$F$17:$F$22), [4]Sheet3!$G$17:$G$22)+SUMPRODUCT(--($L16=[4]Sheet3!$H$17:$H$22), [4]Sheet3!$I$17:$I$22)+SUMPRODUCT(--($L16=[4]Sheet3!$J$17:$J$22), [4]Sheet3!$K$17:$K$22) ->  | CV16: 0 | CW16: 0 | CX16: 0 | CY16: 0 | CZ16: 0 | DA16: 0
B17: 3 | C17: 042 | D17: 235 | E17: 3 | G17: 042235 | I17: Decorative HPSV/LED | J17: Direct Burial | K17: Post Top 100W | L17: 484* | M17: 0 | N17: 9 | O17: 0 | P17: 0 | Q17: 0 | R17: 0 | S17: =IF(SUM(M17:R17)>0,0,1) -> 0 | T17: 0 | U17: 27.47 | V17: 0 | W17: 0 | X17: 0 | Y17: 0 | AA17: 0 | AB17: 247.23 | AC17: 0 | AD17: 0 | AE17: 0 | AF17: 0 | AI17: 0 | AJ17: 9 | AK17: 0 | AL17: 0 | AM17: 0 | AN17: 0 | AO17: 484/484L | AP17: 0 | AQ17: 0 | AR17: 27.59 | AS17: 0 | AT17: 0 | AU17: 0 | AV17: 0 | AX17: 0 | AY17: 248.31 | AZ17: 0 | BA17: 0 | BB17: 0 | BC17: 0 | BE17: 40 | BF17: =BE17*BF$3 -> 0.4756 | BG17: 0 | BH17: 4.2804 | BI17: 0 | BJ17: 0 | BK17: 0 | BL17: 0 | BO17: 25.03 | BU17: 0 | BV17: 28.46 | BW17: 0 | BX17: 0 | BY17: 0 | BZ17: 0 | CB17: 0 | CC17: 0.7224 | CD17: 0 | CE17: 0 | CF17: 0 | CG17: 0 | CI17: =SUMPRODUCT(--($L17=[4]Sheet2!$B$9:$B$14), [4]Sheet2!$C$9:$C$14)+SUMPRODUCT(--($L17=[4]Sheet2!$D$9:$D$14), [4]Sheet2!$E$9:$E$14)+SUMPRODUCT(--($L17=[4]Sheet2!$F$9:$F$14), [4]Sheet2!$G$9:$G$14)+SUMPRODUCT(--($L17=[4]Sheet2!$H$9:$H$14), [4]Sheet2!$I$9:$I$14)+SUMPRODUCT(--($L17=[4]Sheet2!$J$9:$J$14), [4]Sheet2!$K$9:$K$14) ->  | CK17: =SUMPRODUCT(--($L17=[4]Sheet2!$B$19:$B$34), [4]Sheet2!$C$19:$C$34)+SUMPRODUCT(--($L17=[5]Sheet2!$D$19:$D$34), [4]Sheet2!$E$19:$E$34)+SUMPRODUCT(--($L17=[4]Sheet2!$F$19:$F$34), [4]Sheet2!$G$19:$G$34)+SUMPRODUCT(--($L17=[4]Sheet2!$H$19:$H$34), [4]Sheet2!$I$19:$I$34)+SUMPRODUCT(--($L17=[4]Sheet2!$J$19:$J$34), [4]Sheet2!$K$19:$K$34) ->  | CM17: =SUMPRODUCT(--($L17=[4]Sheet2!$B$43:$B$47), [4]Sheet2!$C$43:$C$47)+SUMPRODUCT(--($L17=[4]Sheet2!$D$43:$D$47), [4]Sheet2!$E$43:$E$47)+SUMPRODUCT(--($L17=[4]Sheet2!$F$43:$F$47), [4]Sheet2!$G$43:$G$47)+SUMPRODUCT(--($L17=[4]Sheet2!$H$43:$H$47), [4]Sheet2!$I$43:$I$47)+SUMPRODUCT(--($L17=[4]Sheet2!$J$43:$J$47), [4]Sheet2!$K$43:$K$47) ->  | CO17: =SUMPRODUCT(--($L17=[4]Sheet2!$B$53:$B$62), [4]Sheet2!$C$53:$C$62)+SUMPRODUCT(--($L17=[4]Sheet2!$D$53:$D$62), [4]Sheet2!$E$53:$E$62)+SUMPRODUCT(--($L17=[4]Sheet2!$F$53:$F$62), [4]Sheet2!$G$53:$G$62)+SUMPRODUCT(--($L17=[4]Sheet2!$H$53:$H$62), [4]Sheet2!$I$53:$I$62)+SUMPRODUCT(--($L17=[4]Sheet2!$J$53:$J$62), [4]Sheet2!$K$53:$K$62) ->  | CQ17: =SUMPRODUCT(--($L17=[4]Sheet3!$B$10:$B$11), [4]Sheet3!$C$10:$C$11)+SUMPRODUCT(--($L17=[4]Sheet3!$D$10:$D$11), [4]Sheet3!$E$10:$E$11)+SUMPRODUCT(--($L17=[4]Sheet3!$F$10:$F$11), [4]Sheet3!$G$10:$G$11)+SUMPRODUCT(--($L17=[4]Sheet3!$H$10:$H$11), [4]Sheet3!$I$10:$I$11)+SUMPRODUCT(--($L17=[4]Sheet3!$J$10:$J$11), [4]Sheet3!$K$10:$K$11) ->  | CS17: =SUMPRODUCT(--($L17=[4]Sheet3!$B$17:$B$22), [4]Sheet3!$C$17:$C$22)+SUMPRODUCT(--($L17=[4]Sheet3!$D$17:$D$22), [4]Sheet3!$E$17:$E$22)+SUMPRODUCT(--($L17=[4]Sheet3!$F$17:$F$22), [4]Sheet3!$G$17:$G$22)+SUMPRODUCT(--($L17=[4]Sheet3!$H$17:$H$22), [4]Sheet3!$I$17:$I$22)+SUMPRODUCT(--($L17=[4]Sheet3!$J$17:$J$22), [4]Sheet3!$K$17:$K$22) ->  | CV17: 0 | CW17: 0 | CX17: 0 | CY17: 0 | CZ17: 0 | DA17: 0
B18: 3 | C18: 042 | D18: 431 | E18: 0 | G18: 042431 | I18: LED | J18: 30 ft Fiberglass Direct Burial | K18: 70W | L18: 494 | M18: 0 | N18: 1 | O18: 0 | P18: 0 | Q18: 0 | R18: 0 | S18: =IF(SUM(M18:R18)>0,0,1) -> 0 | T18: 0 | U18: 26.8 | V18: 0 | W18: 0 | X18: 0 | Y18: 0 | AA18: =IF(AND(M18<>0,T18=0),#VALUE!,M18*T18) -> 0 | AB18: 26.8 | AC18: 0 | AD18: 0 | AE18: 0 | AF18: 0 | AI18: 0 | AJ18: 1 | AK18: 0 | AL18: 0 | AM18: 0 | AN18: 0 | AO18: 494L | AP18: =IF(SUM(AI18:AN18)>0,0,1) -> 0 | AQ18: 0 | AR18: 26.91 | AS18: 0 | AT18: 0 | AU18: 0 | AV18: 0 | AX18: 0 | AY18: 26.91 | AZ18: 0 | BA18: 0 | BB18: 0 | BC18: 0 | BE18: 26 | BF18: =BE18*BF$3 -> 0.30914 | BG18: =AI18*$BF18 -> 0 | BH18: 0.30914 | BI18: 0 | BJ18: 0 | BK18: 0 | BL18: 0 | BO18: 24.27 | BU18: 0 | BV18: 27.8 | BW18: 0 | BX18: 0 | BY18: 0 | BZ18: 0 | CB18: 0 | CC18: 0.696 | CD18: 0 | CE18: 0 | CF18: 0 | CG18: 0 | CI18: =SUMPRODUCT(--($L18=[4]Sheet2!$B$9:$B$14), [4]Sheet2!$C$9:$C$14)+SUMPRODUCT(--($L18=[4]Sheet2!$D$9:$D$14), [4]Sheet2!$E$9:$E$14)+SUMPRODUCT(--($L18=[4]Sheet2!$F$9:$F$14), [4]Sheet2!$G$9:$G$14)+SUMPRODUCT(--($L18=[4]Sheet2!$H$9:$H$14), [4]Sheet2!$I$9:$I$14)+SUMPRODUCT(--($L18=[4]Sheet2!$J$9:$J$14), [4]Sheet2!$K$9:$K$14) ->  | CK18: =SUMPRODUCT(--($L18=[4]Sheet2!$B$19:$B$34), [4]Sheet2!$C$19:$C$34)+SUMPRODUCT(--($L18=[5]Sheet2!$D$19:$D$34), [4]Sheet2!$E$19:$E$34)+SUMPRODUCT(--($L18=[4]Sheet2!$F$19:$F$34), [4]Sheet2!$G$19:$G$34)+SUMPRODUCT(--($L18=[4]Sheet2!$H$19:$H$34), [4]Sheet2!$I$19:$I$34)+SUMPRODUCT(--($L18=[4]Sheet2!$J$19:$J$34), [4]Sheet2!$K$19:$K$34) ->  | CM18: =SUMPRODUCT(--($L18=[4]Sheet2!$B$43:$B$47), [4]Sheet2!$C$43:$C$47)+SUMPRODUCT(--($L18=[4]Sheet2!$D$43:$D$47), [4]Sheet2!$E$43:$E$47)+SUMPRODUCT(--($L18=[4]Sheet2!$F$43:$F$47), [4]Sheet2!$G$43:$G$47)+SUMPRODUCT(--($L18=[4]Sheet2!$H$43:$H$47), [4]Sheet2!$I$43:$I$47)+SUMPRODUCT(--($L18=[4]Sheet2!$J$43:$J$47), [4]Sheet2!$K$43:$K$47) ->  | CO18: =SUMPRODUCT(--($L18=[4]Sheet2!$B$53:$B$62), [4]Sheet2!$C$53:$C$62)+SUMPRODUCT(--($L18=[4]Sheet2!$D$53:$D$62), [4]Sheet2!$E$53:$E$62)+SUMPRODUCT(--($L18=[4]Sheet2!$F$53:$F$62), [4]Sheet2!$G$53:$G$62)+SUMPRODUCT(--($L18=[4]Sheet2!$H$53:$H$62), [4]Sheet2!$I$53:$I$62)+SUMPRODUCT(--($L18=[4]Sheet2!$J$53:$J$62), [4]Sheet2!$K$53:$K$62) ->  | CQ18: =SUMPRODUCT(--($L18=[4]Sheet3!$B$10:$B$11), [4]Sheet3!$C$10:$C$11)+SUMPRODUCT(--($L18=[4]Sheet3!$D$10:$D$11), [4]Sheet3!$E$10:$E$11)+SUMPRODUCT(--($L18=[4]Sheet3!$F$10:$F$11), [4]Sheet3!$G$10:$G$11)+SUMPRODUCT(--($L18=[4]Sheet3!$H$10:$H$11), [4]Sheet3!$I$10:$I$11)+SUMPRODUCT(--($L18=[4]Sheet3!$J$10:$J$11), [4]Sheet3!$K$10:$K$11) ->  | CS18: =SUMPRODUCT(--($L18=[4]Sheet3!$B$17:$B$22), [4]Sheet3!$C$17:$C$22)+SUMPRODUCT(--($L18=[4]Sheet3!$D$17:$D$22), [4]Sheet3!$E$17:$E$22)+SUMPRODUCT(--($L18=[4]Sheet3!$F$17:$F$22), [4]Sheet3!$G$17:$G$22)+SUMPRODUCT(--($L18=[4]Sheet3!$H$17:$H$22), [4]Sheet3!$I$17:$I$22)+SUMPRODUCT(--($L18=[4]Sheet3!$J$17:$J$22), [4]Sheet3!$K$17:$K$22) -> 
B19: 3 | C19: 042 | D19: 432 | E19: 150 | G19: 042432 | I19: Double LED | J19: Wood Pole (LED Only) | K19: 100W | L19: 441L | M19: 0 | N19: 5 | O19: 0 | P19: 0 | Q19: 0 | R19: 0 | S19: 0 | T19: 0 | U19: 30.85 | V19: 0 | W19: 0 | X19: 0 | Y19: 0 | AA19: 0 | AB19: 154.25 | AC19: 0 | AD19: 0 | AE19: 0 | AF19: 0 | AI19: 0 | AJ19: 5 | AK19: 0 | AL19: 0 | AM19: 0 | AN19: 0 | AO19: 441L | AP19: 0 | AQ19: 0 | AR19: 30.98 | AS19: 0 | AT19: 0 | AU19: 0 | AV19: 0 | AX19: 0 | AY19: 154.9 | AZ19: 0 | BA19: 0 | BB19: 0 | BC19: 0 | BE19: 52 | BF19: 0.61828 | BG19: 0 | BH19: 3.0914 | BI19: 0 | BJ19: 0 | BK19: 0 | BL19: 0 | BO19: 28.2 | BU19: 0 | BV19: 31.95 | BW19: 0 | BX19: 0 | BY19: 0 | BZ19: 0 | CB19: 0 | CC19: 0.802 | CD19: 0 | CE19: 0 | CF19: 0 | CG19: 0 | CI19: =SUMPRODUCT(--($L19=[4]Sheet2!$B$9:$B$14), [4]Sheet2!$C$9:$C$14)+SUMPRODUCT(--($L19=[4]Sheet2!$D$9:$D$14), [4]Sheet2!$E$9:$E$14)+SUMPRODUCT(--($L19=[4]Sheet2!$F$9:$F$14), [4]Sheet2!$G$9:$G$14)+SUMPRODUCT(--($L19=[4]Sheet2!$H$9:$H$14), [4]Sheet2!$I$9:$I$14)+SUMPRODUCT(--($L19=[4]Sheet2!$J$9:$J$14), [4]Sheet2!$K$9:$K$14) ->  | CK19: =SUMPRODUCT(--($L19=[4]Sheet2!$B$19:$B$34), [4]Sheet2!$C$19:$C$34)+SUMPRODUCT(--($L19=[5]Sheet2!$D$19:$D$34), [4]Sheet2!$E$19:$E$34)+SUMPRODUCT(--($L19=[4]Sheet2!$F$19:$F$34), [4]Sheet2!$G$19:$G$34)+SUMPRODUCT(--($L19=[4]Sheet2!$H$19:$H$34), [4]Sheet2!$I$19:$I$34)+SUMPRODUCT(--($L19=[4]Sheet2!$J$19:$J$34), [4]Sheet2!$K$19:$K$34) ->  | CM19: =SUMPRODUCT(--($L19=[4]Sheet2!$B$43:$B$47), [4]Sheet2!$C$43:$C$47)+SUMPRODUCT(--($L19=[4]Sheet2!$D$43:$D$47), [4]Sheet2!$E$43:$E$47)+SUMPRODUCT(--($L19=[4]Sheet2!$F$43:$F$47), [4]Sheet2!$G$43:$G$47)+SUMPRODUCT(--($L19=[4]Sheet2!$H$43:$H$47), [4]Sheet2!$I$43:$I$47)+SUMPRODUCT(--($L19=[4]Sheet2!$J$43:$J$47), [4]Sheet2!$K$43:$K$47) ->  | CO19: =SUMPRODUCT(--($L19=[4]Sheet2!$B$53:$B$62), [4]Sheet2!$C$53:$C$62)+SUMPRODUCT(--($L19=[4]Sheet2!$D$53:$D$62), [4]Sheet2!$E$53:$E$62)+SUMPRODUCT(--($L19=[4]Sheet2!$F$53:$F$62), [4]Sheet2!$G$53:$G$62)+SUMPRODUCT(--($L19=[4]Sheet2!$H$53:$H$62), [4]Sheet2!$I$53:$I$62)+SUMPRODUCT(--($L19=[4]Sheet2!$J$53:$J$62), [4]Sheet2!$K$53:$K$62) ->  | CQ19: =SUMPRODUCT(--($L19=[4]Sheet3!$B$10:$B$11), [4]Sheet3!$C$10:$C$11)+SUMPRODUCT(--($L19=[4]Sheet3!$D$10:$D$11), [4]Sheet3!$E$10:$E$11)+SUMPRODUCT(--($L19=[4]Sheet3!$F$10:$F$11), [4]Sheet3!$G$10:$G$11)+SUMPRODUCT(--($L19=[4]Sheet3!$H$10:$H$11), [4]Sheet3!$I$10:$I$11)+SUMPRODUCT(--($L19=[4]Sheet3!$J$10:$J$11), [4]Sheet3!$K$10:$K$11) ->  | CS19: =SUMPRODUCT(--($L19=[4]Sheet3!$B$17:$B$22), [4]Sheet3!$C$17:$C$22)+SUMPRODUCT(--($L19=[4]Sheet3!$D$17:$D$22), [4]Sheet3!$E$17:$E$22)+SUMPRODUCT(--($L19=[4]Sheet3!$F$17:$F$22), [4]Sheet3!$G$17:$G$22)+SUMPRODUCT(--($L19=[4]Sheet3!$H$17:$H$22), [4]Sheet3!$I$17:$I$22)+SUMPRODUCT(--($L19=[4]Sheet3!$J$17:$J$22), [4]Sheet3!$K$17:$K$22) ->  | CV19: =$BE19*($BF$42-$BF$40)*AI19*12 -> 0 | CW19: =$BE19*($BF$42-$BF$40)*AJ19*12 -> 0 | CX19: =$BE19*($BF$42-$BF$40)*AK19*12 -> 0 | CY19: =$BE19*($BF$42-$BF$40)*AL19*12 -> 0 | CZ19: =$BE19*($BF$42-$BF$40)*AM19*12 -> 0 | DA19: =$BE19*($BF$42-$BF$40)*AN19*12 -> 0
B20: 3 | C20: 042 | D20: 433 | E20: 103 | G20: 042433 | I20: Mercury Vapor | J20: Dusk to Dawn | K20: 10000 | L20: 515 | M20: 0 | N20: 0 | O20: 0 | P20: 0 | Q20: 27 | R20: 0 | S20: 0 | T20: 0 | U20: 0 | V20: 0 | W20: 0 | X20: 8.23 | Y20: 0 | AA20: 0 | AB20: 0 | AC20: 0 | AD20: 0 | AE20: 222.21 | AF20: 0 | AI20: 0 | AJ20: 0 | AK20: 0 | AL20: 0 | AM20: 27 | AN20: 0 | AO20: =L20 -> 515 | AP20: 0 | AQ20: 0 | AR20: 0 | AS20: 0 | AT20: 0 | AU20: 8.26 | AV20: 0 | AX20: 0 | AY20: 0 | AZ20: 0 | BA20: 0 | BB20: 223.02 | BC20: 0 | BE20: 111 | BF20: 1.31979 | BG20: 0 | BH20: 0 | BI20: 0 | BJ20: 0 | BK20: 35.63433 | BL20: 0 | BR20: 8.68 | BU20: 0 | BV20: 0 | BW20: 0 | BX20: 0 | BY20: 8.24 | BZ20: 0 | CB20: 0 | CC20: 0 | CD20: 0 | CE20: 0 | CF20: 0.2116 | CG20: 0 | CI20: =SUMPRODUCT(--($L20=[4]Sheet2!$B$9:$B$14), [4]Sheet2!$C$9:$C$14)+SUMPRODUCT(--($L20=[4]Sheet2!$D$9:$D$14), [4]Sheet2!$E$9:$E$14)+SUMPRODUCT(--($L20=[4]Sheet2!$F$9:$F$14), [4]Sheet2!$G$9:$G$14)+SUMPRODUCT(--($L20=[4]Sheet2!$H$9:$H$14), [4]Sheet2!$I$9:$I$14)+SUMPRODUCT(--($L20=[4]Sheet2!$J$9:$J$14), [4]Sheet2!$K$9:$K$14) ->  | CK20: =SUMPRODUCT(--($L20=[4]Sheet2!$B$19:$B$34), [4]Sheet2!$C$19:$C$34)+SUMPRODUCT(--($L20=[5]Sheet2!$D$19:$D$34), [4]Sheet2!$E$19:$E$34)+SUMPRODUCT(--($L20=[4]Sheet2!$F$19:$F$34), [4]Sheet2!$G$19:$G$34)+SUMPRODUCT(--($L20=[4]Sheet2!$H$19:$H$34), [4]Sheet2!$I$19:$I$34)+SUMPRODUCT(--($L20=[4]Sheet2!$J$19:$J$34), [4]Sheet2!$K$19:$K$34) ->  | CM20: =SUMPRODUCT(--($L20=[4]Sheet2!$B$43:$B$47), [4]Sheet2!$C$43:$C$47)+SUMPRODUCT(--($L20=[4]Sheet2!$D$43:$D$47), [4]Sheet2!$E$43:$E$47)+SUMPRODUCT(--($L20=[4]Sheet2!$F$43:$F$47), [4]Sheet2!$G$43:$G$47)+SUMPRODUCT(--($L20=[4]Sheet2!$H$43:$H$47), [4]Sheet2!$I$43:$I$47)+SUMPRODUCT(--($L20=[4]Sheet2!$J$43:$J$47), [4]Sheet2!$K$43:$K$47) ->  | CO20: =SUMPRODUCT(--($L20=[4]Sheet2!$B$53:$B$62), [4]Sheet2!$C$53:$C$62)+SUMPRODUCT(--($L20=[4]Sheet2!$D$53:$D$62), [4]Sheet2!$E$53:$E$62)+SUMPRODUCT(--($L20=[4]Sheet2!$F$53:$F$62), [4]Sheet2!$G$53:$G$62)+SUMPRODUCT(--($L20=[4]Sheet2!$H$53:$H$62), [4]Sheet2!$I$53:$I$62)+SUMPRODUCT(--($L20=[4]Sheet2!$J$53:$J$62), [4]Sheet2!$K$53:$K$62) ->  | CQ20: =SUMPRODUCT(--($L20=[4]Sheet3!$B$10:$B$11), [4]Sheet3!$C$10:$C$11)+SUMPRODUCT(--($L20=[4]Sheet3!$D$10:$D$11), [4]Sheet3!$E$10:$E$11)+SUMPRODUCT(--($L20=[4]Sheet3!$F$10:$F$11), [4]Sheet3!$G$10:$G$11)+SUMPRODUCT(--($L20=[4]Sheet3!$H$10:$H$11), [4]Sheet3!$I$10:$I$11)+SUMPRODUCT(--($L20=[4]Sheet3!$J$10:$J$11), [4]Sheet3!$K$10:$K$11) ->  | CS20: =SUMPRODUCT(--($L20=[4]Sheet3!$B$17:$B$22), [4]Sheet3!$C$17:$C$22)+SUMPRODUCT(--($L20=[4]Sheet3!$D$17:$D$22), [4]Sheet3!$E$17:$E$22)+SUMPRODUCT(--($L20=[4]Sheet3!$F$17:$F$22), [4]Sheet3!$G$17:$G$22)+SUMPRODUCT(--($L20=[4]Sheet3!$H$17:$H$22), [4]Sheet3!$I$17:$I$22)+SUMPRODUCT(--($L20=[4]Sheet3!$J$17:$J$22), [4]Sheet3!$K$17:$K$22) ->  | CV20: 0 | CW20: 0 | CX20: 0 | CY20: 0 | CZ20: 0 | DA20: 0
B21: 3 | C21: 042 | D21: 434# | E21: 2316 | G21: 042434# | I21: Single HPSV/LED | J21: Pedestal Base | K21: 200W | L21: 532 | M21: 0 | N21: 262 | O21: 0 | P21: 14 | Q21: 0 | R21: 0 | S21: 0 | T21: 0 | U21: 37.32 | V21: 0 | W21: 16.89 | X21: 0 | Y21: 0 | AA21: 0 | AB21: 9777.84 | AC21: 0 | AD21: 236.46 | AE21: 0 | AF21: 0 | AI21: 0 | AJ21: 262 | AK21: 0 | AL21: 14 | AM21: 0 | AN21: 0 | AO21: 532/532L | AP21: 0 | AQ21: 0 | AR21: 37.48 | AS21: 0 | AT21: 16.96 | AU21: 0 | AV21: 0 | AX21: 0 | AY21: 9819.76 | AZ21: 0 | BA21: 237.44 | BB21: 0 | BC21: 0 | BE21: 85 | BF21: 1.01065 | BG21: 0 | BH21: 264.7903 | BI21: 0 | BJ21: 14.1491 | BK21: 0 | BL21: 0 | BO21: 34.37 | BQ21: 16.11 | BU21: 0 | BV21: 38.58 | BW21: 0 | BX21: 17.32 | BY21: 0 | BZ21: 0 | CB21: 0 | CC21: 0.9744 | CD21: 0 | CE21: 0.4388 | CF21: 0 | CG21: 0 | CI21: =SUMPRODUCT(--($L21=[4]Sheet2!$B$9:$B$14), [4]Sheet2!$C$9:$C$14)+SUMPRODUCT(--($L21=[4]Sheet2!$D$9:$D$14), [4]Sheet2!$E$9:$E$14)+SUMPRODUCT(--($L21=[4]Sheet2!$F$9:$F$14), [4]Sheet2!$G$9:$G$14)+SUMPRODUCT(--($L21=[4]Sheet2!$H$9:$H$14), [4]Sheet2!$I$9:$I$14)+SUMPRODUCT(--($L21=[4]Sheet2!$J$9:$J$14), [4]Sheet2!$K$9:$K$14) ->  | CK21: =SUMPRODUCT(--($L21=[4]Sheet2!$B$19:$B$34), [4]Sheet2!$C$19:$C$34)+SUMPRODUCT(--($L21=[5]Sheet2!$D$19:$D$34), [4]Sheet2!$E$19:$E$34)+SUMPRODUCT(--($L21=[4]Sheet2!$F$19:$F$34), [4]Sheet2!$G$19:$G$34)+SUMPRODUCT(--($L21=[4]Sheet2!$H$19:$H$34), [4]Sheet2!$I$19:$I$34)+SUMPRODUCT(--($L21=[4]Sheet2!$J$19:$J$34), [4]Sheet2!$K$19:$K$34) ->  | CM21: =SUMPRODUCT(--($L21=[4]Sheet2!$B$43:$B$47), [4]Sheet2!$C$43:$C$47)+SUMPRODUCT(--($L21=[4]Sheet2!$D$43:$D$47), [4]Sheet2!$E$43:$E$47)+SUMPRODUCT(--($L21=[4]Sheet2!$F$43:$F$47), [4]Sheet2!$G$43:$G$47)+SUMPRODUCT(--($L21=[4]Sheet2!$H$43:$H$47), [4]Sheet2!$I$43:$I$47)+SUMPRODUCT(--($L21=[4]Sheet2!$J$43:$J$47), [4]Sheet2!$K$43:$K$47) ->  | CO21: =SUMPRODUCT(--($L21=[4]Sheet2!$B$53:$B$62), [4]Sheet2!$C$53:$C$62)+SUMPRODUCT(--($L21=[4]Sheet2!$D$53:$D$62), [4]Sheet2!$E$53:$E$62)+SUMPRODUCT(--($L21=[4]Sheet2!$F$53:$F$62), [4]Sheet2!$G$53:$G$62)+SUMPRODUCT(--($L21=[4]Sheet2!$H$53:$H$62), [4]Sheet2!$I$53:$I$62)+SUMPRODUCT(--($L21=[4]Sheet2!$J$53:$J$62), [4]Sheet2!$K$53:$K$62) ->  | CQ21: =SUMPRODUCT(--($L21=[4]Sheet3!$B$10:$B$11), [4]Sheet3!$C$10:$C$11)+SUMPRODUCT(--($L21=[4]Sheet3!$D$10:$D$11), [4]Sheet3!$E$10:$E$11)+SUMPRODUCT(--($L21=[4]Sheet3!$F$10:$F$11), [4]Sheet3!$G$10:$G$11)+SUMPRODUCT(--($L21=[4]Sheet3!$H$10:$H$11), [4]Sheet3!$I$10:$I$11)+SUMPRODUCT(--($L21=[4]Sheet3!$J$10:$J$11), [4]Sheet3!$K$10:$K$11) ->  | CS21: =SUMPRODUCT(--($L21=[4]Sheet3!$B$17:$B$22), [4]Sheet3!$C$17:$C$22)+SUMPRODUCT(--($L21=[4]Sheet3!$D$17:$D$22), [4]Sheet3!$E$17:$E$22)+SUMPRODUCT(--($L21=[4]Sheet3!$F$17:$F$22), [4]Sheet3!$G$17:$G$22)+SUMPRODUCT(--($L21=[4]Sheet3!$H$17:$H$22), [4]Sheet3!$I$17:$I$22)+SUMPRODUCT(--($L21=[4]Sheet3!$J$17:$J$22), [4]Sheet3!$K$17:$K$22) ->  | CV21: 0 | CW21: 0 | CX21: 0 | CY21: 0 | CZ21: 0 | DA21: 0
B22: 3 | C22: 042 | D22: 435 | E22: 7579 | G22: 042435 | I22: Single HPSV/LED | J22: Direct Burial | K22: 200W | L22: 533 | M22: 0 | N22: 63 | O22: 0 | P22: 0 | Q22: 0 | R22: 0 | S22: 0 | T22: 0 | U22: 37.32 | V22: 0 | W22: 0 | X22: 0 | Y22: 0 | AA22: 0 | AB22: 2351.16 | AC22: 0 | AD22: 0 | AE22: 0 | AF22: 0 | AI22: 0 | AJ22: 63 | AK22: 0 | AL22: 0 | AM22: 0 | AN22: 0 | AO22: 533/533L | AP22: 0 | AQ22: 0 | AR22: 37.48 | AS22: 0 | AT22: 0 | AU22: 0 | AV22: 0 | AX22: 0 | AY22: 2361.24 | AZ22: 0 | BA22: 0 | BB22: 0 | BC22: 0 | BE22: 85 | BF22: 1.01065 | BG22: 0 | BH22: 63.67095 | BI22: 0 | BJ22: 0 | BK22: 0 | BL22: 0 | BO22: 34.37 | BU22: 0 | BV22: 38.58 | BW22: 0 | BX22: 0 | BY22: 0 | BZ22: 0 | CB22: 0 | CC22: 0.9744 | CD22: 0 | CE22: 0 | CF22: 0 | CG22: 0 | CI22: =SUMPRODUCT(--($L22=[4]Sheet2!$B$9:$B$14), [4]Sheet2!$C$9:$C$14)+SUMPRODUCT(--($L22=[4]Sheet2!$D$9:$D$14), [4]Sheet2!$E$9:$E$14)+SUMPRODUCT(--($L22=[4]Sheet2!$F$9:$F$14), [4]Sheet2!$G$9:$G$14)+SUMPRODUCT(--($L22=[4]Sheet2!$H$9:$H$14), [4]Sheet2!$I$9:$I$14)+SUMPRODUCT(--($L22=[4]Sheet2!$J$9:$J$14), [4]Sheet2!$K$9:$K$14) ->  | CK22: =SUMPRODUCT(--($L22=[4]Sheet2!$B$19:$B$34), [4]Sheet2!$C$19:$C$34)+SUMPRODUCT(--($L22=[5]Sheet2!$D$19:$D$34), [4]Sheet2!$E$19:$E$34)+SUMPRODUCT(--($L22=[4]Sheet2!$F$19:$F$34), [4]Sheet2!$G$19:$G$34)+SUMPRODUCT(--($L22=[4]Sheet2!$H$19:$H$34), [4]Sheet2!$I$19:$I$34)+SUMPRODUCT(--($L22=[4]Sheet2!$J$19:$J$34), [4]Sheet2!$K$19:$K$34) ->  | CM22: =SUMPRODUCT(--($L22=[4]Sheet2!$B$43:$B$47), [4]Sheet2!$C$43:$C$47)+SUMPRODUCT(--($L22=[4]Sheet2!$D$43:$D$47), [4]Sheet2!$E$43:$E$47)+SUMPRODUCT(--($L22=[4]Sheet2!$F$43:$F$47), [4]Sheet2!$G$43:$G$47)+SUMPRODUCT(--($L22=[4]Sheet2!$H$43:$H$47), [4]Sheet2!$I$43:$I$47)+SUMPRODUCT(--($L22=[4]Sheet2!$J$43:$J$47), [4]Sheet2!$K$43:$K$47) ->  | CO22: =SUMPRODUCT(--($L22=[4]Sheet2!$B$53:$B$62), [4]Sheet2!$C$53:$C$62)+SUMPRODUCT(--($L22=[4]Sheet2!$D$53:$D$62), [4]Sheet2!$E$53:$E$62)+SUMPRODUCT(--($L22=[4]Sheet2!$F$53:$F$62), [4]Sheet2!$G$53:$G$62)+SUMPRODUCT(--($L22=[4]Sheet2!$H$53:$H$62), [4]Sheet2!$I$53:$I$62)+SUMPRODUCT(--($L22=[4]Sheet2!$J$53:$J$62), [4]Sheet2!$K$53:$K$62) ->  | CQ22: =SUMPRODUCT(--($L22=[4]Sheet3!$B$10:$B$11), [4]Sheet3!$C$10:$C$11)+SUMPRODUCT(--($L22=[4]Sheet3!$D$10:$D$11), [4]Sheet3!$E$10:$E$11)+SUMPRODUCT(--($L22=[4]Sheet3!$F$10:$F$11), [4]Sheet3!$G$10:$G$11)+SUMPRODUCT(--($L22=[4]Sheet3!$H$10:$H$11), [4]Sheet3!$I$10:$I$11)+SUMPRODUCT(--($L22=[4]Sheet3!$J$10:$J$11), [4]Sheet3!$K$10:$K$11) ->  | CS22: =SUMPRODUCT(--($L22=[4]Sheet3!$B$17:$B$22), [4]Sheet3!$C$17:$C$22)+SUMPRODUCT(--($L22=[4]Sheet3!$D$17:$D$22), [4]Sheet3!$E$17:$E$22)+SUMPRODUCT(--($L22=[4]Sheet3!$F$17:$F$22), [4]Sheet3!$G$17:$G$22)+SUMPRODUCT(--($L22=[4]Sheet3!$H$17:$H$22), [4]Sheet3!$I$17:$I$22)+SUMPRODUCT(--($L22=[4]Sheet3!$J$17:$J$22), [4]Sheet3!$K$17:$K$22) ->  | CV22: 0 | CW22: 0 | CX22: 0 | CY22: 0 | CZ22: 0 | DA22: 0
B23: 3 | C23: 042 | D23: 436 | E23: 934 | G23: 042436 | I23: Single HPSV/LED | J23: No Pole / Dusk to Dawn (046) | K23: 200W | L23: 535 | M23: 0 | N23: 1003 | O23: 0 | P23: 3 | Q23: 0 | R23: 7 | S23: 0 | T23: 0 | U23: 24.32 | V23: 0 | W23: 16.89 | X23: 0 | Y23: 9.53 | AA23: 0 | AB23: 24392.96 | AC23: 0 | AD23: 50.67 | AE23: 0 | AF23: 66.71 | AI23: 0 | AJ23: 1003 | AK23: 0 | AL23: 3 | AM23: 0 | AN23: 7 | AO23: 531/535/531L/535L | AP23: 0 | AQ23: 0 | AR23: 24.42 | AS23: 0 | AT23: 16.96 | AU23: 0 | AV23: 9.57 | AX23: 0 | AY23: 24493.26 | AZ23: 0 | BA23: 50.88 | BB23: 0 | BC23: 66.99 | BE23: 85 | BF23: 1.01065 | BG23: 0 | BH23: 1013.68195 | BI23: 0 | BJ23: 3.03195 | BK23: 0 | BL23: 7.07455 | BO23: 22.75 | BQ23: 16.11 | BS23: 9.53 | BU23: 0 | BV23: 25.05 | BW23: 0 | BX23: 17.32 | BY23: 0 | BZ23: 9.66 | CB23: 0 | CC23: 0.6344 | CD23: 0 | CE23: 0.4388 | CF23: 0 | CG23: 0.2476 | CI23: =SUMPRODUCT(--($L23=[4]Sheet2!$B$9:$B$14), [4]Sheet2!$C$9:$C$14)+SUMPRODUCT(--($L23=[4]Sheet2!$D$9:$D$14), [4]Sheet2!$E$9:$E$14)+SUMPRODUCT(--($L23=[4]Sheet2!$F$9:$F$14), [4]Sheet2!$G$9:$G$14)+SUMPRODUCT(--($L23=[4]Sheet2!$H$9:$H$14), [4]Sheet2!$I$9:$I$14)+SUMPRODUCT(--($L23=[4]Sheet2!$J$9:$J$14), [4]Sheet2!$K$9:$K$14) ->  | CK23: =SUMPRODUCT(--($L23=[4]Sheet2!$B$19:$B$34), [4]Sheet2!$C$19:$C$34)+SUMPRODUCT(--($L23=[5]Sheet2!$D$19:$D$34), [4]Sheet2!$E$19:$E$34)+SUMPRODUCT(--($L23=[4]Sheet2!$F$19:$F$34), [4]Sheet2!$G$19:$G$34)+SUMPRODUCT(--($L23=[4]Sheet2!$H$19:$H$34), [4]Sheet2!$I$19:$I$34)+SUMPRODUCT(--($L23=[4]Sheet2!$J$19:$J$34), [4]Sheet2!$K$19:$K$34) ->  | CM23: =SUMPRODUCT(--($L23=[4]Sheet2!$B$43:$B$47), [4]Sheet2!$C$43:$C$47)+SUMPRODUCT(--($L23=[4]Sheet2!$D$43:$D$47), [4]Sheet2!$E$43:$E$47)+SUMPRODUCT(--($L23=[4]Sheet2!$F$43:$F$47), [4]Sheet2!$G$43:$G$47)+SUMPRODUCT(--($L23=[4]Sheet2!$H$43:$H$47), [4]Sheet2!$I$43:$I$47)+SUMPRODUCT(--($L23=[4]Sheet2!$J$43:$J$47), [4]Sheet2!$K$43:$K$47) ->  | CO23: =SUMPRODUCT(--($L23=[4]Sheet2!$B$53:$B$62), [4]Sheet2!$C$53:$C$62)+SUMPRODUCT(--($L23=[4]Sheet2!$D$53:$D$62), [4]Sheet2!$E$53:$E$62)+SUMPRODUCT(--($L23=[4]Sheet2!$F$53:$F$62), [4]Sheet2!$G$53:$G$62)+SUMPRODUCT(--($L23=[4]Sheet2!$H$53:$H$62), [4]Sheet2!$I$53:$I$62)+SUMPRODUCT(--($L23=[4]Sheet2!$J$53:$J$62), [4]Sheet2!$K$53:$K$62) ->  | CQ23: =SUMPRODUCT(--($L23=[4]Sheet3!$B$10:$B$11), [4]Sheet3!$C$10:$C$11)+SUMPRODUCT(--($L23=[4]Sheet3!$D$10:$D$11), [4]Sheet3!$E$10:$E$11)+SUMPRODUCT(--($L23=[4]Sheet3!$F$10:$F$11), [4]Sheet3!$G$10:$G$11)+SUMPRODUCT(--($L23=[4]Sheet3!$H$10:$H$11), [4]Sheet3!$I$10:$I$11)+SUMPRODUCT(--($L23=[4]Sheet3!$J$10:$J$11), [4]Sheet3!$K$10:$K$11) ->  | CS23: =SUMPRODUCT(--($L23=[4]Sheet3!$B$17:$B$22), [4]Sheet3!$C$17:$C$22)+SUMPRODUCT(--($L23=[4]Sheet3!$D$17:$D$22), [4]Sheet3!$E$17:$E$22)+SUMPRODUCT(--($L23=[4]Sheet3!$F$17:$F$22), [4]Sheet3!$G$17:$G$22)+SUMPRODUCT(--($L23=[4]Sheet3!$H$17:$H$22), [4]Sheet3!$I$17:$I$22)+SUMPRODUCT(--($L23=[4]Sheet3!$J$17:$J$22), [4]Sheet3!$K$17:$K$22) ->  | CV23: 0 | CW23: 0 | CX23: 0 | CY23: 0 | CZ23: 0 | DA23: 0
B24: 3 | C24: 042 | D24: 438 | E24: 64 | G24: 042438 | I24: Single HPSV/LED | J24: Developer Contributed | K24: 200W | L24: 536 | M24: =SUMIF($G:$G,TEXT(M$3,"000")&TEXT($L24,"000"),$E:$E) -> 0 | N24: 558 | O24: 0 | P24: 0 | Q24: 0 | R24: 0 | S24: 0 | T24: 0 | U24: 25.05 | V24: 0 | W24: 0 | X24: 0 | Y24: 0 | AA24: 0 | AB24: 13977.9 | AC24: 0 | AD24: 0 | AE24: 0 | AF24: 0 | AI24: 0 | AJ24: 558 | AK24: 0 | AL24: 0 | AM24: 0 | AN24: 0 | AO24: 536/536L | AP24: 0 | AQ24: 0 | AR24: 25.16 | AS24: 0 | AT24: 0 | AU24: 0 | AV24: 0 | AX24: 0 | AY24: 14039.28 | AZ24: 0 | BA24: 0 | BB24: 0 | BC24: 0 | BE24: 85 | BF24: 1.01065 | BG24: 0 | BH24: 563.9427 | BI24: 0 | BJ24: 0 | BK24: 0 | BL24: 0 | BO24: 23.4 | BU24: 0 | BV24: 25.82 | BW24: 0 | BX24: 0 | BY24: 0 | BZ24: 0 | CB24: 0 | CC24: 0.656 | CD24: 0 | CE24: 0 | CF24: 0 | CG24: 0 | CI24: =SUMPRODUCT(--($L24=[4]Sheet2!$B$9:$B$14), [4]Sheet2!$C$9:$C$14)+SUMPRODUCT(--($L24=[4]Sheet2!$D$9:$D$14), [4]Sheet2!$E$9:$E$14)+SUMPRODUCT(--($L24=[4]Sheet2!$F$9:$F$14), [4]Sheet2!$G$9:$G$14)+SUMPRODUCT(--($L24=[4]Sheet2!$H$9:$H$14), [4]Sheet2!$I$9:$I$14)+SUMPRODUCT(--($L24=[4]Sheet2!$J$9:$J$14), [4]Sheet2!$K$9:$K$14) ->  | CK24: =SUMPRODUCT(--($L24=[4]Sheet2!$B$19:$B$34), [4]Sheet2!$C$19:$C$34)+SUMPRODUCT(--($L24=[5]Sheet2!$D$19:$D$34), [4]Sheet2!$E$19:$E$34)+SUMPRODUCT(--($L24=[4]Sheet2!$F$19:$F$34), [4]Sheet2!$G$19:$G$34)+SUMPRODUCT(--($L24=[4]Sheet2!$H$19:$H$34), [4]Sheet2!$I$19:$I$34)+SUMPRODUCT(--($L24=[4]Sheet2!$J$19:$J$34), [4]Sheet2!$K$19:$K$34) ->  | CM24: =SUMPRODUCT(--($L24=[4]Sheet2!$B$43:$B$47), [4]Sheet2!$C$43:$C$47)+SUMPRODUCT(--($L24=[4]Sheet2!$D$43:$D$47), [4]Sheet2!$E$43:$E$47)+SUMPRODUCT(--($L24=[4]Sheet2!$F$43:$F$47), [4]Sheet2!$G$43:$G$47)+SUMPRODUCT(--($L24=[4]Sheet2!$H$43:$H$47), [4]Sheet2!$I$43:$I$47)+SUMPRODUCT(--($L24=[4]Sheet2!$J$43:$J$47), [4]Sheet2!$K$43:$K$47) ->  | CO24: =SUMPRODUCT(--($L24=[4]Sheet2!$B$53:$B$62), [4]Sheet2!$C$53:$C$62)+SUMPRODUCT(--($L24=[4]Sheet2!$D$53:$D$62), [4]Sheet2!$E$53:$E$62)+SUMPRODUCT(--($L24=[4]Sheet2!$F$53:$F$62), [4]Sheet2!$G$53:$G$62)+SUMPRODUCT(--($L24=[4]Sheet2!$H$53:$H$62), [4]Sheet2!$I$53:$I$62)+SUMPRODUCT(--($L24=[4]Sheet2!$J$53:$J$62), [4]Sheet2!$K$53:$K$62) ->  | CQ24: =SUMPRODUCT(--($L24=[4]Sheet3!$B$10:$B$11), [4]Sheet3!$C$10:$C$11)+SUMPRODUCT(--($L24=[4]Sheet3!$D$10:$D$11), [4]Sheet3!$E$10:$E$11)+SUMPRODUCT(--($L24=[4]Sheet3!$F$10:$F$11), [4]Sheet3!$G$10:$G$11)+SUMPRODUCT(--($L24=[4]Sheet3!$H$10:$H$11), [4]Sheet3!$I$10:$I$11)+SUMPRODUCT(--($L24=[4]Sheet3!$J$10:$J$11), [4]Sheet3!$K$10:$K$11) ->  | CS24: =SUMPRODUCT(--($L24=[4]Sheet3!$B$17:$B$22), [4]Sheet3!$C$17:$C$22)+SUMPRODUCT(--($L24=[4]Sheet3!$D$17:$D$22), [4]Sheet3!$E$17:$E$22)+SUMPRODUCT(--($L24=[4]Sheet3!$F$17:$F$22), [4]Sheet3!$G$17:$G$22)+SUMPRODUCT(--($L24=[4]Sheet3!$H$17:$H$22), [4]Sheet3!$I$17:$I$22)+SUMPRODUCT(--($L24=[4]Sheet3!$J$17:$J$22), [4]Sheet3!$K$17:$K$22) ->  | CV24: 0 | CW24: 0 | CX24: 0 | CY24: 0 | CZ24: 0 | DA24: 0
B25: 3 | C25: 042 | D25: 441L | E25: 5 | G25: 042441L | I25: Double HPSV/LED | J25: Pedestal Base | K25: 200W | L25: 542 | M25: 0 | N25: 8 | O25: 0 | P25: 0 | Q25: 0 | R25: 0 | S25: 0 | T25: 0 | U25: 63.21 | V25: 0 | W25: 0 | X25: 0 | Y25: 0 | AA25: 0 | AB25: 505.68 | AC25: 0 | AD25: 0 | AE25: 0 | AF25: 0 | AI25: 0 | AJ25: 8 | AK25: 0 | AL25: 0 | AM25: 0 | AN25: 0 | AO25: 542/542L | AP25: 0 | AQ25: 0 | AR25: 63.48 | AS25: 0 | AT25: 0 | AU25: 0 | AV25: 0 | AX25: 0 | AY25: 507.84 | AZ25: 0 | BA25: 0 | BB25: 0 | BC25: 0 | BE25: 170 | BF25: 2.0213 | BG25: 0 | BH25: 16.1704 | BI25: 0 | BJ25: 0 | BK25: 0 | BL25: 0 | BO25: 58.54 | BU25: 0 | BV25: 65.27 | BW25: 0 | BX25: 0 | BY25: 0 | BZ25: 0 | CB25: 0 | CC25: 1.6332 | CD25: 0 | CE25: 0 | CF25: 0 | CG25: 0 | CI25: =SUMPRODUCT(--($L25=[4]Sheet2!$B$9:$B$14), [4]Sheet2!$C$9:$C$14)+SUMPRODUCT(--($L25=[4]Sheet2!$D$9:$D$14), [4]Sheet2!$E$9:$E$14)+SUMPRODUCT(--($L25=[4]Sheet2!$F$9:$F$14), [4]Sheet2!$G$9:$G$14)+SUMPRODUCT(--($L25=[4]Sheet2!$H$9:$H$14), [4]Sheet2!$I$9:$I$14)+SUMPRODUCT(--($L25=[4]Sheet2!$J$9:$J$14), [4]Sheet2!$K$9:$K$14) ->  | CK25: =SUMPRODUCT(--($L25=[4]Sheet2!$B$19:$B$34), [4]Sheet2!$C$19:$C$34)+SUMPRODUCT(--($L25=[5]Sheet2!$D$19:$D$34), [4]Sheet2!$E$19:$E$34)+SUMPRODUCT(--($L25=[4]Sheet2!$F$19:$F$34), [4]Sheet2!$G$19:$G$34)+SUMPRODUCT(--($L25=[4]Sheet2!$H$19:$H$34), [4]Sheet2!$I$19:$I$34)+SUMPRODUCT(--($L25=[4]Sheet2!$J$19:$J$34), [4]Sheet2!$K$19:$K$34) ->  | CM25: =SUMPRODUCT(--($L25=[4]Sheet2!$B$43:$B$47), [4]Sheet2!$C$43:$C$47)+SUMPRODUCT(--($L25=[4]Sheet2!$D$43:$D$47), [4]Sheet2!$E$43:$E$47)+SUMPRODUCT(--($L25=[4]Sheet2!$F$43:$F$47), [4]Sheet2!$G$43:$G$47)+SUMPRODUCT(--($L25=[4]Sheet2!$H$43:$H$47), [4]Sheet2!$I$43:$I$47)+SUMPRODUCT(--($L25=[4]Sheet2!$J$43:$J$47), [4]Sheet2!$K$43:$K$47) ->  | CO25: =SUMPRODUCT(--($L25=[4]Sheet2!$B$53:$B$62), [4]Sheet2!$C$53:$C$62)+SUMPRODUCT(--($L25=[4]Sheet2!$D$53:$D$62), [4]Sheet2!$E$53:$E$62)+SUMPRODUCT(--($L25=[4]Sheet2!$F$53:$F$62), [4]Sheet2!$G$53:$G$62)+SUMPRODUCT(--($L25=[4]Sheet2!$H$53:$H$62), [4]Sheet2!$I$53:$I$62)+SUMPRODUCT(--($L25=[4]Sheet2!$J$53:$J$62), [4]Sheet2!$K$53:$K$62) ->  | CQ25: =SUMPRODUCT(--($L25=[4]Sheet3!$B$10:$B$11), [4]Sheet3!$C$10:$C$11)+SUMPRODUCT(--($L25=[4]Sheet3!$D$10:$D$11), [4]Sheet3!$E$10:$E$11)+SUMPRODUCT(--($L25=[4]Sheet3!$F$10:$F$11), [4]Sheet3!$G$10:$G$11)+SUMPRODUCT(--($L25=[4]Sheet3!$H$10:$H$11), [4]Sheet3!$I$10:$I$11)+SUMPRODUCT(--($L25=[4]Sheet3!$J$10:$J$11), [4]Sheet3!$K$10:$K$11) ->  | CS25: =SUMPRODUCT(--($L25=[4]Sheet3!$B$17:$B$22), [4]Sheet3!$C$17:$C$22)+SUMPRODUCT(--($L25=[4]Sheet3!$D$17:$D$22), [4]Sheet3!$E$17:$E$22)+SUMPRODUCT(--($L25=[4]Sheet3!$F$17:$F$22), [4]Sheet3!$G$17:$G$22)+SUMPRODUCT(--($L25=[4]Sheet3!$H$17:$H$22), [4]Sheet3!$I$17:$I$22)+SUMPRODUCT(--($L25=[4]Sheet3!$J$17:$J$22), [4]Sheet3!$K$17:$K$22) ->  | CV25: 0 | CW25: 0 | CX25: 0 | CY25: 0 | CZ25: 0 | DA25: 0
B26: 3 | C26: 042 | D26: 442L | E26: 7 | G26: =IF(OR(ISBLANK(C26),ISBLANK(D26)),"",TEXT(C26,"000")&TEXT(D26,"000")) -> 042442L | I26: Double HPSV/LED | J26: No Pole | K26: 200W | L26: 545 | M26: 0 | N26: 1 | O26: 0 | P26: 0 | Q26: 0 | R26: 0 | S26: 0 | T26: 0 | U26: 48.64 | V26: 0 | W26: 0 | X26: 0 | Y26: 0 | AA26: 0 | AB26: 48.64 | AC26: 0 | AD26: 0 | AE26: 0 | AF26: 0 | AI26: 0 | AJ26: 1 | AK26: 0 | AL26: 0 | AM26: 0 | AN26: 0 | AO26: 545/545L | AP26: 0 | AQ26: 0 | AR26: 48.84 | AS26: 0 | AT26: 0 | AU26: 0 | AV26: 0 | AX26: 0 | AY26: 48.84 | AZ26: 0 | BA26: 0 | BB26: 0 | BC26: 0 | BE26: 170 | BF26: 2.0213 | BG26: 0 | BH26: 2.0213 | BI26: 0 | BJ26: 0 | BK26: 0 | BL26: 0 | BO26: 45.51 | BU26: 0 | BV26: 50.1 | BW26: 0 | BX26: 0 | BY26: 0 | BZ26: 0 | CB26: 0 | CC26: 1.2588 | CD26: 0 | CE26: 0 | CF26: 0 | CG26: 0 | CI26: =SUMPRODUCT(--($L26=[4]Sheet2!$B$9:$B$14), [4]Sheet2!$C$9:$C$14)+SUMPRODUCT(--($L26=[4]Sheet2!$D$9:$D$14), [4]Sheet2!$E$9:$E$14)+SUMPRODUCT(--($L26=[4]Sheet2!$F$9:$F$14), [4]Sheet2!$G$9:$G$14)+SUMPRODUCT(--($L26=[4]Sheet2!$H$9:$H$14), [4]Sheet2!$I$9:$I$14)+SUMPRODUCT(--($L26=[4]Sheet2!$J$9:$J$14), [4]Sheet2!$K$9:$K$14) ->  | CK26: =SUMPRODUCT(--($L26=[4]Sheet2!$B$19:$B$34), [4]Sheet2!$C$19:$C$34)+SUMPRODUCT(--($L26=[5]Sheet2!$D$19:$D$34), [4]Sheet2!$E$19:$E$34)+SUMPRODUCT(--($L26=[4]Sheet2!$F$19:$F$34), [4]Sheet2!$G$19:$G$34)+SUMPRODUCT(--($L26=[4]Sheet2!$H$19:$H$34), [4]Sheet2!$I$19:$I$34)+SUMPRODUCT(--($L26=[4]Sheet2!$J$19:$J$34), [4]Sheet2!$K$19:$K$34) ->  | CM26: =SUMPRODUCT(--($L26=[4]Sheet2!$B$43:$B$47), [4]Sheet2!$C$43:$C$47)+SUMPRODUCT(--($L26=[4]Sheet2!$D$43:$D$47), [4]Sheet2!$E$43:$E$47)+SUMPRODUCT(--($L26=[4]Sheet2!$F$43:$F$47), [4]Sheet2!$G$43:$G$47)+SUMPRODUCT(--($L26=[4]Sheet2!$H$43:$H$47), [4]Sheet2!$I$43:$I$47)+SUMPRODUCT(--($L26=[4]Sheet2!$J$43:$J$47), [4]Sheet2!$K$43:$K$47) ->  | CO26: =SUMPRODUCT(--($L26=[4]Sheet2!$B$53:$B$62), [4]Sheet2!$C$53:$C$62)+SUMPRODUCT(--($L26=[4]Sheet2!$D$53:$D$62), [4]Sheet2!$E$53:$E$62)+SUMPRODUCT(--($L26=[4]Sheet2!$F$53:$F$62), [4]Sheet2!$G$53:$G$62)+SUMPRODUCT(--($L26=[4]Sheet2!$H$53:$H$62), [4]Sheet2!$I$53:$I$62)+SUMPRODUCT(--($L26=[4]Sheet2!$J$53:$J$62), [4]Sheet2!$K$53:$K$62) ->  | CQ26: =SUMPRODUCT(--($L26=[4]Sheet3!$B$10:$B$11), [4]Sheet3!$C$10:$C$11)+SUMPRODUCT(--($L26=[4]Sheet3!$D$10:$D$11), [4]Sheet3!$E$10:$E$11)+SUMPRODUCT(--($L26=[4]Sheet3!$F$10:$F$11), [4]Sheet3!$G$10:$G$11)+SUMPRODUCT(--($L26=[4]Sheet3!$H$10:$H$11), [4]Sheet3!$I$10:$I$11)+SUMPRODUCT(--($L26=[4]Sheet3!$J$10:$J$11), [4]Sheet3!$K$10:$K$11) ->  | CS26: =SUMPRODUCT(--($L26=[4]Sheet3!$B$17:$B$22), [4]Sheet3!$C$17:$C$22)+SUMPRODUCT(--($L26=[4]Sheet3!$D$17:$D$22), [4]Sheet3!$E$17:$E$22)+SUMPRODUCT(--($L26=[4]Sheet3!$F$17:$F$22), [4]Sheet3!$G$17:$G$22)+SUMPRODUCT(--($L26=[4]Sheet3!$H$17:$H$22), [4]Sheet3!$I$17:$I$22)+SUMPRODUCT(--($L26=[4]Sheet3!$J$17:$J$22), [4]Sheet3!$K$17:$K$22) ->  | CV26: 0 | CW26: 0 | CX26: 0 | CY26: 0 | CZ26: 0 | DA26: 0
B27: 3 | C27: 042 | D27: 446 | E27: 21 | G27: 042446 | I27: Double HPSV/LED | J27: Developer Contributed | K27: 200W | L27: 546 | M27: 0 | N27: 5 | O27: 0 | P27: 0 | Q27: 0 | R27: 0 | S27: 0 | T27: 0 | U27: 49.36 | V27: 0 | W27: 0 | X27: 0 | Y27: 0 | AA27: 0 | AB27: 246.8 | AC27: 0 | AD27: 0 | AE27: 0 | AF27: 0 | AI27: 0 | AJ27: 5 | AK27: 0 | AL27: 0 | AM27: 0 | AN27: 0 | AO27: 546/546L | AP27: 0 | AQ27: 0 | AR27: 49.57 | AS27: 0 | AT27: 0 | AU27: 0 | AV27: 0 | AX27: 0 | AY27: 247.85 | AZ27: 0 | BA27: 0 | BB27: 0 | BC27: 0 | BE27: 170 | BF27: 2.0213 | BG27: 0 | BH27: 10.1065 | BI27: 0 | BJ27: 0 | BK27: 0 | BL27: 0 | BO27: 46.15 | BU27: 0 | BV27: 50.85 | BW27: 0 | BX27: 0 | BY27: 0 | BZ27: 0 | CB27: 0 | CC27: 1.2812 | CD27: 0 | CE27: 0 | CF27: 0 | CG27: 0 | CI27: =SUMPRODUCT(--($L27=[4]Sheet2!$B$9:$B$14), [4]Sheet2!$C$9:$C$14)+SUMPRODUCT(--($L27=[4]Sheet2!$D$9:$D$14), [4]Sheet2!$E$9:$E$14)+SUMPRODUCT(--($L27=[4]Sheet2!$F$9:$F$14), [4]Sheet2!$G$9:$G$14)+SUMPRODUCT(--($L27=[4]Sheet2!$H$9:$H$14), [4]Sheet2!$I$9:$I$14)+SUMPRODUCT(--($L27=[4]Sheet2!$J$9:$J$14), [4]Sheet2!$K$9:$K$14) ->  | CK27: =SUMPRODUCT(--($L27=[4]Sheet2!$B$19:$B$34), [4]Sheet2!$C$19:$C$34)+SUMPRODUCT(--($L27=[5]Sheet2!$D$19:$D$34), [4]Sheet2!$E$19:$E$34)+SUMPRODUCT(--($L27=[4]Sheet2!$F$19:$F$34), [4]Sheet2!$G$19:$G$34)+SUMPRODUCT(--($L27=[4]Sheet2!$H$19:$H$34), [4]Sheet2!$I$19:$I$34)+SUMPRODUCT(--($L27=[4]Sheet2!$J$19:$J$34), [4]Sheet2!$K$19:$K$34) ->  | CM27: =SUMPRODUCT(--($L27=[4]Sheet2!$B$43:$B$47), [4]Sheet2!$C$43:$C$47)+SUMPRODUCT(--($L27=[4]Sheet2!$D$43:$D$47), [4]Sheet2!$E$43:$E$47)+SUMPRODUCT(--($L27=[4]Sheet2!$F$43:$F$47), [4]Sheet2!$G$43:$G$47)+SUMPRODUCT(--($L27=[4]Sheet2!$H$43:$H$47), [4]Sheet2!$I$43:$I$47)+SUMPRODUCT(--($L27=[4]Sheet2!$J$43:$J$47), [4]Sheet2!$K$43:$K$47) ->  | CO27: =SUMPRODUCT(--($L27=[4]Sheet2!$B$53:$B$62), [4]Sheet2!$C$53:$C$62)+SUMPRODUCT(--($L27=[4]Sheet2!$D$53:$D$62), [4]Sheet2!$E$53:$E$62)+SUMPRODUCT(--($L27=[4]Sheet2!$F$53:$F$62), [4]Sheet2!$G$53:$G$62)+SUMPRODUCT(--($L27=[4]Sheet2!$H$53:$H$62), [4]Sheet2!$I$53:$I$62)+SUMPRODUCT(--($L27=[4]Sheet2!$J$53:$J$62), [4]Sheet2!$K$53:$K$62) ->  | CQ27: =SUMPRODUCT(--($L27=[4]Sheet3!$B$10:$B$11), [4]Sheet3!$C$10:$C$11)+SUMPRODUCT(--($L27=[4]Sheet3!$D$10:$D$11), [4]Sheet3!$E$10:$E$11)+SUMPRODUCT(--($L27=[4]Sheet3!$F$10:$F$11), [4]Sheet3!$G$10:$G$11)+SUMPRODUCT(--($L27=[4]Sheet3!$H$10:$H$11), [4]Sheet3!$I$10:$I$11)+SUMPRODUCT(--($L27=[4]Sheet3!$J$10:$J$11), [4]Sheet3!$K$10:$K$11) ->  | CS27: =SUMPRODUCT(--($L27=[4]Sheet3!$B$17:$B$22), [4]Sheet3!$C$17:$C$22)+SUMPRODUCT(--($L27=[4]Sheet3!$D$17:$D$22), [4]Sheet3!$E$17:$E$22)+SUMPRODUCT(--($L27=[4]Sheet3!$F$17:$F$22), [4]Sheet3!$G$17:$G$22)+SUMPRODUCT(--($L27=[4]Sheet3!$H$17:$H$22), [4]Sheet3!$I$17:$I$22)+SUMPRODUCT(--($L27=[4]Sheet3!$J$17:$J$22), [4]Sheet3!$K$17:$K$22) ->  | CV27: 0 | CW27: 0 | CX27: 0 | CY27: 0 | CZ27: 0 | DA27: 0
B28: 3 | C28: 042 | D28: 474 | E28: 17 | G28: =IF(OR(ISBLANK(C28),ISBLANK(D28)),"",TEXT(C28,"000")&TEXT(D28,"000")) -> 042474 | I28: Mercury Vapor | J28: Dusk to Dawn | K28: 20000 | L28: 615 | M28: 0 | N28: 0 | O28: 0 | P28: 0 | Q28: 143 | R28: 0 | S28: 0 | T28: 0 | U28: 0 | V28: 0 | W28: 0 | X28: 14.94 | Y28: 0 | AA28: 0 | AB28: 0 | AC28: 0 | AD28: 0 | AE28: 2136.42 | AF28: 0 | AI28: 0 | AJ28: 0 | AK28: 0 | AL28: 0 | AM28: 143 | AN28: 0 | AO28: =L28 -> 615 | AP28: 0 | AQ28: 0 | AR28: 0 | AS28: 0 | AT28: 0 | AU28: 15 | AV28: 0 | AX28: 0 | AY28: 0 | AZ28: 0 | BA28: 0 | BB28: 2145 | BC28: 0 | BE28: 182 | BF28: 2.16398 | BG28: 0 | BH28: 0 | BI28: 0 | BJ28: 0 | BK28: 309.44914 | BL28: 0 | BR28: 15.52 | BU28: 0 | BV28: 0 | BW28: 0 | BX28: 0 | BY28: 15.01 | BZ28: 0 | CB28: 0 | CC28: 0 | CD28: 0 | CE28: 0 | CF28: 0.3848 | CG28: 0 | CI28: =SUMPRODUCT(--($L28=[4]Sheet2!$B$9:$B$14), [4]Sheet2!$C$9:$C$14)+SUMPRODUCT(--($L28=[4]Sheet2!$D$9:$D$14), [4]Sheet2!$E$9:$E$14)+SUMPRODUCT(--($L28=[4]Sheet2!$F$9:$F$14), [4]Sheet2!$G$9:$G$14)+SUMPRODUCT(--($L28=[4]Sheet2!$H$9:$H$14), [4]Sheet2!$I$9:$I$14)+SUMPRODUCT(--($L28=[4]Sheet2!$J$9:$J$14), [4]Sheet2!$K$9:$K$14) ->  | CK28: =SUMPRODUCT(--($L28=[4]Sheet2!$B$19:$B$34), [4]Sheet2!$C$19:$C$34)+SUMPRODUCT(--($L28=[5]Sheet2!$D$19:$D$34), [4]Sheet2!$E$19:$E$34)+SUMPRODUCT(--($L28=[4]Sheet2!$F$19:$F$34), [4]Sheet2!$G$19:$G$34)+SUMPRODUCT(--($L28=[4]Sheet2!$H$19:$H$34), [4]Sheet2!$I$19:$I$34)+SUMPRODUCT(--($L28=[4]Sheet2!$J$19:$J$34), [4]Sheet2!$K$19:$K$34) ->  | CM28: =SUMPRODUCT(--($L28=[4]Sheet2!$B$43:$B$47), [4]Sheet2!$C$43:$C$47)+SUMPRODUCT(--($L28=[4]Sheet2!$D$43:$D$47), [4]Sheet2!$E$43:$E$47)+SUMPRODUCT(--($L28=[4]Sheet2!$F$43:$F$47), [4]Sheet2!$G$43:$G$47)+SUMPRODUCT(--($L28=[4]Sheet2!$H$43:$H$47), [4]Sheet2!$I$43:$I$47)+SUMPRODUCT(--($L28=[4]Sheet2!$J$43:$J$47), [4]Sheet2!$K$43:$K$47) ->  | CO28: =SUMPRODUCT(--($L28=[4]Sheet2!$B$53:$B$62), [4]Sheet2!$C$53:$C$62)+SUMPRODUCT(--($L28=[4]Sheet2!$D$53:$D$62), [4]Sheet2!$E$53:$E$62)+SUMPRODUCT(--($L28=[4]Sheet2!$F$53:$F$62), [4]Sheet2!$G$53:$G$62)+SUMPRODUCT(--($L28=[4]Sheet2!$H$53:$H$62), [4]Sheet2!$I$53:$I$62)+SUMPRODUCT(--($L28=[4]Sheet2!$J$53:$J$62), [4]Sheet2!$K$53:$K$62) ->  | CQ28: =SUMPRODUCT(--($L28=[4]Sheet3!$B$10:$B$11), [4]Sheet3!$C$10:$C$11)+SUMPRODUCT(--($L28=[4]Sheet3!$D$10:$D$11), [4]Sheet3!$E$10:$E$11)+SUMPRODUCT(--($L28=[4]Sheet3!$F$10:$F$11), [4]Sheet3!$G$10:$G$11)+SUMPRODUCT(--($L28=[4]Sheet3!$H$10:$H$11), [4]Sheet3!$I$10:$I$11)+SUMPRODUCT(--($L28=[4]Sheet3!$J$10:$J$11), [4]Sheet3!$K$10:$K$11) ->  | CS28: =SUMPRODUCT(--($L28=[4]Sheet3!$B$17:$B$22), [4]Sheet3!$C$17:$C$22)+SUMPRODUCT(--($L28=[4]Sheet3!$D$17:$D$22), [4]Sheet3!$E$17:$E$22)+SUMPRODUCT(--($L28=[4]Sheet3!$F$17:$F$22), [4]Sheet3!$G$17:$G$22)+SUMPRODUCT(--($L28=[4]Sheet3!$H$17:$H$22), [4]Sheet3!$I$17:$I$22)+SUMPRODUCT(--($L28=[4]Sheet3!$J$17:$J$22), [4]Sheet3!$K$17:$K$22) ->  | CV28: 0 | CW28: 0 | CX28: 0 | CY28: 0 | CZ28: 0 | DA28: 0
B29: 3 | C29: 042 | D29: 484 | E29: 9 | G29: =IF(OR(ISBLANK(C29),ISBLANK(D29)),"",TEXT(C29,"000")&TEXT(D29,"000")) -> 042484 | I29: Single High-Pressure Sodium Vapor | J29: Pedestal Base | K29: 250W | L29: 632 | M29: 0 | N29: 30 | O29: 0 | P29: 72 | Q29: 0 | R29: 0 | S29: 0 | T29: 0 | U29: 41.56 | V29: 0 | W29: 18.98 | X29: 0 | Y29: 0 | AA29: 0 | AB29: 1246.8 | AC29: 0 | AD29: 1366.56 | AE29: 0 | AF29: 0 | AI29: 0 | AJ29: 30 | AK29: 0 | AL29: 72 | AM29: 0 | AN29: 0 | AO29: =L29 -> 632 | AP29: 0 | AQ29: 0 | AR29: 41.73 | AS29: 0 | AT29: 19.06 | AU29: 0 | AV29: 0 | AX29: 0 | AY29: 1251.9 | AZ29: 0 | BA29: 1372.32 | BB29: 0 | BC29: 0 | BE29: 107 | BF29: 1.27223 | BG29: 0 | BH29: 38.1669 | BI29: 0 | BJ29: 91.60056 | BK29: 0 | BL29: 0 | BO29: 38.42 | BQ29: 18.23 | BU29: 0 | BV29: 42.92 | BW29: 0 | BX29: 19.44 | BY29: 0 | BZ29: 0 | CB29: 0 | CC29: 1.0852 | CD29: 0 | CE29: 0.5016 | CF29: 0 | CG29: 0 | CI29: =SUMPRODUCT(--($L29=[4]Sheet2!$B$9:$B$14), [4]Sheet2!$C$9:$C$14)+SUMPRODUCT(--($L29=[4]Sheet2!$D$9:$D$14), [4]Sheet2!$E$9:$E$14)+SUMPRODUCT(--($L29=[4]Sheet2!$F$9:$F$14), [4]Sheet2!$G$9:$G$14)+SUMPRODUCT(--($L29=[4]Sheet2!$H$9:$H$14), [4]Sheet2!$I$9:$I$14)+SUMPRODUCT(--($L29=[4]Sheet2!$J$9:$J$14), [4]Sheet2!$K$9:$K$14) ->  | CK29: =SUMPRODUCT(--($L29=[4]Sheet2!$B$19:$B$34), [4]Sheet2!$C$19:$C$34)+SUMPRODUCT(--($L29=[5]Sheet2!$D$19:$D$34), [4]Sheet2!$E$19:$E$34)+SUMPRODUCT(--($L29=[4]Sheet2!$F$19:$F$34), [4]Sheet2!$G$19:$G$34)+SUMPRODUCT(--($L29=[4]Sheet2!$H$19:$H$34), [4]Sheet2!$I$19:$I$34)+SUMPRODUCT(--($L29=[4]Sheet2!$J$19:$J$34), [4]Sheet2!$K$19:$K$34) ->  | CM29: =SUMPRODUCT(--($L29=[4]Sheet2!$B$43:$B$47), [4]Sheet2!$C$43:$C$47)+SUMPRODUCT(--($L29=[4]Sheet2!$D$43:$D$47), [4]Sheet2!$E$43:$E$47)+SUMPRODUCT(--($L29=[4]Sheet2!$F$43:$F$47), [4]Sheet2!$G$43:$G$47)+SUMPRODUCT(--($L29=[4]Sheet2!$H$43:$H$47), [4]Sheet2!$I$43:$I$47)+SUMPRODUCT(--($L29=[4]Sheet2!$J$43:$J$47), [4]Sheet2!$K$43:$K$47) ->  | CO29: =SUMPRODUCT(--($L29=[4]Sheet2!$B$53:$B$62), [4]Sheet2!$C$53:$C$62)+SUMPRODUCT(--($L29=[4]Sheet2!$D$53:$D$62), [4]Sheet2!$E$53:$E$62)+SUMPRODUCT(--($L29=[4]Sheet2!$F$53:$F$62), [4]Sheet2!$G$53:$G$62)+SUMPRODUCT(--($L29=[4]Sheet2!$H$53:$H$62), [4]Sheet2!$I$53:$I$62)+SUMPRODUCT(--($L29=[4]Sheet2!$J$53:$J$62), [4]Sheet2!$K$53:$K$62) ->  | CQ29: =SUMPRODUCT(--($L29=[4]Sheet3!$B$10:$B$11), [4]Sheet3!$C$10:$C$11)+SUMPRODUCT(--($L29=[4]Sheet3!$D$10:$D$11), [4]Sheet3!$E$10:$E$11)+SUMPRODUCT(--($L29=[4]Sheet3!$F$10:$F$11), [4]Sheet3!$G$10:$G$11)+SUMPRODUCT(--($L29=[4]Sheet3!$H$10:$H$11), [4]Sheet3!$I$10:$I$11)+SUMPRODUCT(--($L29=[4]Sheet3!$J$10:$J$11), [4]Sheet3!$K$10:$K$11) ->  | CS29: =SUMPRODUCT(--($L29=[4]Sheet3!$B$17:$B$22), [4]Sheet3!$C$17:$C$22)+SUMPRODUCT(--($L29=[4]Sheet3!$D$17:$D$22), [4]Sheet3!$E$17:$E$22)+SUMPRODUCT(--($L29=[4]Sheet3!$F$17:$F$22), [4]Sheet3!$G$17:$G$22)+SUMPRODUCT(--($L29=[4]Sheet3!$H$17:$H$22), [4]Sheet3!$I$17:$I$22)+SUMPRODUCT(--($L29=[4]Sheet3!$J$17:$J$22), [4]Sheet3!$K$17:$K$22) ->  | CV29: 0 | CW29: 0 | CX29: 0 | CY29: 0 | CZ29: 0 | DA29: 0
B30: 3 | C30: 042 | D30: 494 | E30: 1 | G30: =IF(OR(ISBLANK(C30),ISBLANK(D30)),"",TEXT(C30,"000")&TEXT(D30,"000")) -> 042494 | I30: Single High-Pressure Sodium Vapor | J30: Direct Burial | K30: 250W | L30: 633 | M30: 0 | N30: 0 | O30: 0 | P30: 2 | Q30: 0 | R30: 0 | S30: =IF(SUM(M30:R30)>0,0,1) -> 0 | T30: 0 | U30: 41.56 | V30: 0 | W30: 18.98 | X30: 0 | Y30: 0 | AA30: =IF(AND(M30<>0,T30=0),#VALUE!,M30*T30) -> 0 | AB30: 0 | AC30: 0 | AD30: 37.96 | AE30: 0 | AF30: 0 | AI30: =M30 -> 0 | AJ30: 0 | AK30: 0 | AL30: 2 | AM30: 0 | AN30: 0 | AO30: =L30 -> 633 | AP30: =IF(SUM(AI30:AN30)>0,0,1) -> 0 | AQ30: =ROUND(T30*IF(T30>0,1+AQ$1),2) -> 0 | AR30: 41.73 | AS30: 0 | AT30: 19.06 | AU30: 0 | AV30: 0 | AX30: =IF(AND(AI30<>0,AQ30=0),#VALUE!,AI30*AQ30) -> 0 | AY30: 0 | AZ30: 0 | BA30: 38.12 | BB30: 0 | BC30: 0 | BE30: 107 | BF30: =BE30*BF$3 -> 1.27223 | BG30: =AI30*$BF30 -> 0 | BH30: 0 | BI30: 0 | BJ30: 2.54446 | BK30: 0 | BL30: 0 | BO30: 38.42 | BQ30: 18.23 | BU30: =ROUND(IF(AQ30=0,0,AQ30*1.036+ROUND($BE30*-0.00292,2)),2) -> 0 | BV30: 42.92 | BW30: 0 | BX30: 19.44 | BY30: 0 | BZ30: 0 | CB30: =T30*$CB$2+IF(ISNUMBER(BN30),ROUND($BF30,2),0)-BN30 -> 0 | CC30: 1.0852 | CD30: 0 | CE30: 0.5016 | CF30: 0 | CG30: 0 | CI30: =SUMPRODUCT(--($L30=[4]Sheet2!$B$9:$B$14), [4]Sheet2!$C$9:$C$14)+SUMPRODUCT(--($L30=[4]Sheet2!$D$9:$D$14), [4]Sheet2!$E$9:$E$14)+SUMPRODUCT(--($L30=[4]Sheet2!$F$9:$F$14), [4]Sheet2!$G$9:$G$14)+SUMPRODUCT(--($L30=[4]Sheet2!$H$9:$H$14), [4]Sheet2!$I$9:$I$14)+SUMPRODUCT(--($L30=[4]Sheet2!$J$9:$J$14), [4]Sheet2!$K$9:$K$14) ->  | CJ30: =CI30-IF($CL$2=1,BN30,BU30) ->  | CK30: =SUMPRODUCT(--($L30=[4]Sheet2!$B$19:$B$34), [4]Sheet2!$C$19:$C$34)+SUMPRODUCT(--($L30=[5]Sheet2!$D$19:$D$34), [4]Sheet2!$E$19:$E$34)+SUMPRODUCT(--($L30=[4]Sheet2!$F$19:$F$34), [4]Sheet2!$G$19:$G$34)+SUMPRODUCT(--($L30=[4]Sheet2!$H$19:$H$34), [4]Sheet2!$I$19:$I$34)+SUMPRODUCT(--($L30=[4]Sheet2!$J$19:$J$34), [4]Sheet2!$K$19:$K$34) ->  | CL30: =CK30-IF($CL$2=1,BO30,BV30) ->  | CM30: =SUMPRODUCT(--($L30=[4]Sheet2!$B$43:$B$47), [4]Sheet2!$C$43:$C$47)+SUMPRODUCT(--($L30=[4]Sheet2!$D$43:$D$47), [4]Sheet2!$E$43:$E$47)+SUMPRODUCT(--($L30=[4]Sheet2!$F$43:$F$47), [4]Sheet2!$G$43:$G$47)+SUMPRODUCT(--($L30=[4]Sheet2!$H$43:$H$47), [4]Sheet2!$I$43:$I$47)+SUMPRODUCT(--($L30=[4]Sheet2!$J$43:$J$47), [4]Sheet2!$K$43:$K$47) ->  | CN30: =CM30-IF($CL$2=1,BP30,BW30) ->  | CO30: =SUMPRODUCT(--($L30=[4]Sheet2!$B$53:$B$62), [4]Sheet2!$C$53:$C$62)+SUMPRODUCT(--($L30=[4]Sheet2!$D$53:$D$62), [4]Sheet2!$E$53:$E$62)+SUMPRODUCT(--($L30=[4]Sheet2!$F$53:$F$62), [4]Sheet2!$G$53:$G$62)+SUMPRODUCT(--($L30=[4]Sheet2!$H$53:$H$62), [4]Sheet2!$I$53:$I$62)+SUMPRODUCT(--($L30=[4]Sheet2!$J$53:$J$62), [4]Sheet2!$K$53:$K$62) ->  | CP30: =CO30-IF($CL$2=1,BQ30,BX30) ->  | CQ30: =SUMPRODUCT(--($L30=[4]Sheet3!$B$10:$B$11), [4]Sheet3!$C$10:$C$11)+SUMPRODUCT(--($L30=[4]Sheet3!$D$10:$D$11), [4]Sheet3!$E$10:$E$11)+SUMPRODUCT(--($L30=[4]Sheet3!$F$10:$F$11), [4]Sheet3!$G$10:$G$11)+SUMPRODUCT(--($L30=[4]Sheet3!$H$10:$H$11), [4]Sheet3!$I$10:$I$11)+SUMPRODUCT(--($L30=[4]Sheet3!$J$10:$J$11), [4]Sheet3!$K$10:$K$11) ->  | CR30: =CQ30-IF($CL$2=1,BR30,BY30) ->  | CS30: =SUMPRODUCT(--($L30=[4]Sheet3!$B$17:$B$22), [4]Sheet3!$C$17:$C$22)+SUMPRODUCT(--($L30=[4]Sheet3!$D$17:$D$22), [4]Sheet3!$E$17:$E$22)+SUMPRODUCT(--($L30=[4]Sheet3!$F$17:$F$22), [4]Sheet3!$G$17:$G$22)+SUMPRODUCT(--($L30=[4]Sheet3!$H$17:$H$22), [4]Sheet3!$I$17:$I$22)+SUMPRODUCT(--($L30=[4]Sheet3!$J$17:$J$22), [4]Sheet3!$K$17:$K$22) ->  | CT30: =CS30-IF($CL$2=1,BS30,BZ30) ->  | CV30: 0 | CW30: 0 | CX30: 0 | CY30: 0 | CZ30: 0 | DA30: 0
B31: 3 | C31: 042 | D31: 531 | E31: 0 | G31: 042531 | I31: Single High-Pressure Sodium Vapor | J31: Dusk to Dawn (046) | K31: 250W | L31: 635 | M31: 0 | N31: 30 | O31: 0 | P31: 31 | Q31: 0 | R31: 279 | S31: 0 | T31: 0 | U31: 28.55 | V31: 0 | W31: 18.98 | X31: 0 | Y31: 11.72 | AA31: 0 | AB31: 856.5 | AC31: 0 | AD31: 588.38 | AE31: 0 | AF31: 3269.88 | AI31: 0 | AJ31: 30 | AK31: 0 | AL31: 31 | AM31: 0 | AN31: 279 | AO31: 631/635 | AP31: 0 | AQ31: =ROUND(T31*IF(T31>0,1+AQ$1),2) -> 0 | AR31: =ROUND(U31*IF(U31>0,1+AR$1),2) -> 28.67 | AS31: =ROUND(V31*IF(V31>0,1+AS$1),2) -> 0 | AT31: =ROUND(W31*IF(W31>0,1+AT$1),2) -> 19.06 | AU31: =ROUND(X31*IF(X31>0,1+AU$1),2) -> 0 | AV31: =ROUND(Y31*IF(Y31>0,1+AV$1),2) -> 11.77 | AX31: 0 | AY31: 860.1 | AZ31: 0 | BA31: 590.86 | BB31: 0 | BC31: 3283.83 | BE31: 107 | BF31: 1.27223 | BG31: 0 | BH31: 38.1669 | BI31: 0 | BJ31: 39.43913 | BK31: 0 | BL31: 354.95217 | BO31: 26.79 | BQ31: 18.23 | BS31: 11.75 | BU31: 0 | BV31: 29.39 | BW31: 0 | BX31: 19.44 | BY31: 0 | BZ31: 11.88 | CB31: 0 | CC31: 0.746 | CD31: 0 | CE31: 0.5016 | CF31: 0 | CG31: 0.3024 | CI31: =SUMPRODUCT(--($L31=[4]Sheet2!$B$9:$B$14), [4]Sheet2!$C$9:$C$14)+SUMPRODUCT(--($L31=[4]Sheet2!$D$9:$D$14), [4]Sheet2!$E$9:$E$14)+SUMPRODUCT(--($L31=[4]Sheet2!$F$9:$F$14), [4]Sheet2!$G$9:$G$14)+SUMPRODUCT(--($L31=[4]Sheet2!$H$9:$H$14), [4]Sheet2!$I$9:$I$14)+SUMPRODUCT(--($L31=[4]Sheet2!$J$9:$J$14), [4]Sheet2!$K$9:$K$14) ->  | CK31: =SUMPRODUCT(--($L31=[4]Sheet2!$B$19:$B$34), [4]Sheet2!$C$19:$C$34)+SUMPRODUCT(--($L31=[5]Sheet2!$D$19:$D$34), [4]Sheet2!$E$19:$E$34)+SUMPRODUCT(--($L31=[4]Sheet2!$F$19:$F$34), [4]Sheet2!$G$19:$G$34)+SUMPRODUCT(--($L31=[4]Sheet2!$H$19:$H$34), [4]Sheet2!$I$19:$I$34)+SUMPRODUCT(--($L31=[4]Sheet2!$J$19:$J$34), [4]Sheet2!$K$19:$K$34) ->  | CM31: =SUMPRODUCT(--($L31=[4]Sheet2!$B$43:$B$47), [4]Sheet2!$C$43:$C$47)+SUMPRODUCT(--($L31=[4]Sheet2!$D$43:$D$47), [4]Sheet2!$E$43:$E$47)+SUMPRODUCT(--($L31=[4]Sheet2!$F$43:$F$47), [4]Sheet2!$G$43:$G$47)+SUMPRODUCT(--($L31=[4]Sheet2!$H$43:$H$47), [4]Sheet2!$I$43:$I$47)+SUMPRODUCT(--($L31=[4]Sheet2!$J$43:$J$47), [4]Sheet2!$K$43:$K$47) ->  | CO31: =SUMPRODUCT(--($L31=[4]Sheet2!$B$53:$B$62), [4]Sheet2!$C$53:$C$62)+SUMPRODUCT(--($L31=[4]Sheet2!$D$53:$D$62), [4]Sheet2!$E$53:$E$62)+SUMPRODUCT(--($L31=[4]Sheet2!$F$53:$F$62), [4]Sheet2!$G$53:$G$62)+SUMPRODUCT(--($L31=[4]Sheet2!$H$53:$H$62), [4]Sheet2!$I$53:$I$62)+SUMPRODUCT(--($L31=[4]Sheet2!$J$53:$J$62), [4]Sheet2!$K$53:$K$62) ->  | CQ31: =SUMPRODUCT(--($L31=[4]Sheet3!$B$10:$B$11), [4]Sheet3!$C$10:$C$11)+SUMPRODUCT(--($L31=[4]Sheet3!$D$10:$D$11), [4]Sheet3!$E$10:$E$11)+SUMPRODUCT(--($L31=[4]Sheet3!$F$10:$F$11), [4]Sheet3!$G$10:$G$11)+SUMPRODUCT(--($L31=[4]Sheet3!$H$10:$H$11), [4]Sheet3!$I$10:$I$11)+SUMPRODUCT(--($L31=[4]Sheet3!$J$10:$J$11), [4]Sheet3!$K$10:$K$11) ->  | CS31: =SUMPRODUCT(--($L31=[4]Sheet3!$B$17:$B$22), [4]Sheet3!$C$17:$C$22)+SUMPRODUCT(--($L31=[4]Sheet3!$D$17:$D$22), [4]Sheet3!$E$17:$E$22)+SUMPRODUCT(--($L31=[4]Sheet3!$F$17:$F$22), [4]Sheet3!$G$17:$G$22)+SUMPRODUCT(--($L31=[4]Sheet3!$H$17:$H$22), [4]Sheet3!$I$17:$I$22)+SUMPRODUCT(--($L31=[4]Sheet3!$J$17:$J$22), [4]Sheet3!$K$17:$K$22) ->  | CV31: 0 | CW31: 0 | CX31: 0 | CY31: 0 | CZ31: 0 | DA31: 0
B32: 3 | C32: 042 | D32: 532 | E32: 262 | G32: 042532 | I32: Single High-Pressure Sodium Vapor | J32: Developer Contributed | K32: 250W | L32: 636 | M32: 0 | N32: 6 | O32: 0 | P32: 0 | Q32: 0 | R32: 0 | S32: 0 | T32: 0 | U32: 29.28 | V32: 0 | W32: 0 | X32: 0 | Y32: 0 | AA32: 0 | AB32: 175.68 | AC32: 0 | AD32: 0 | AE32: 0 | AF32: 0 | AI32: 0 | AJ32: 6 | AK32: 0 | AL32: 0 | AM32: 0 | AN32: 0 | AO32: =L32 -> 636 | AP32: 0 | AQ32: 0 | AR32: 29.4 | AS32: 0 | AT32: 0 | AU32: 0 | AV32: 0 | AX32: 0 | AY32: 176.4 | AZ32: 0 | BA32: 0 | BB32: 0 | BC32: 0 | BE32: 107 | BF32: 1.27223 | BG32: 0 | BH32: 7.63338 | BI32: 0 | BJ32: 0 | BK32: 0 | BL32: 0 | BO32: 27.44 | BU32: 0 | BV32: 30.15 | BW32: 0 | BX32: 0 | BY32: 0 | BZ32: 0 | CB32: 0 | CC32: 0.7676 | CD32: 0 | CE32: 0 | CF32: 0 | CG32: 0 | CI32: =SUMPRODUCT(--($L32=[4]Sheet2!$B$9:$B$14), [4]Sheet2!$C$9:$C$14)+SUMPRODUCT(--($L32=[4]Sheet2!$D$9:$D$14), [4]Sheet2!$E$9:$E$14)+SUMPRODUCT(--($L32=[4]Sheet2!$F$9:$F$14), [4]Sheet2!$G$9:$G$14)+SUMPRODUCT(--($L32=[4]Sheet2!$H$9:$H$14), [4]Sheet2!$I$9:$I$14)+SUMPRODUCT(--($L32=[4]Sheet2!$J$9:$J$14), [4]Sheet2!$K$9:$K$14) ->  | CK32: =SUMPRODUCT(--($L32=[4]Sheet2!$B$19:$B$34), [4]Sheet2!$C$19:$C$34)+SUMPRODUCT(--($L32=[5]Sheet2!$D$19:$D$34), [4]Sheet2!$E$19:$E$34)+SUMPRODUCT(--($L32=[4]Sheet2!$F$19:$F$34), [4]Sheet2!$G$19:$G$34)+SUMPRODUCT(--($L32=[4]Sheet2!$H$19:$H$34), [4]Sheet2!$I$19:$I$34)+SUMPRODUCT(--($L32=[4]Sheet2!$J$19:$J$34), [4]Sheet2!$K$19:$K$34) ->  | CM32: =SUMPRODUCT(--($L32=[4]Sheet2!$B$43:$B$47), [4]Sheet2!$C$43:$C$47)+SUMPRODUCT(--($L32=[4]Sheet2!$D$43:$D$47), [4]Sheet2!$E$43:$E$47)+SUMPRODUCT(--($L32=[4]Sheet2!$F$43:$F$47), [4]Sheet2!$G$43:$G$47)+SUMPRODUCT(--($L32=[4]Sheet2!$H$43:$H$47), [4]Sheet2!$I$43:$I$47)+SUMPRODUCT(--($L32=[4]Sheet2!$J$43:$J$47), [4]Sheet2!$K$43:$K$47) ->  | CO32: =SUMPRODUCT(--($L32=[4]Sheet2!$B$53:$B$62), [4]Sheet2!$C$53:$C$62)+SUMPRODUCT(--($L32=[4]Sheet2!$D$53:$D$62), [4]Sheet2!$E$53:$E$62)+SUMPRODUCT(--($L32=[4]Sheet2!$F$53:$F$62), [4]Sheet2!$G$53:$G$62)+SUMPRODUCT(--($L32=[4]Sheet2!$H$53:$H$62), [4]Sheet2!$I$53:$I$62)+SUMPRODUCT(--($L32=[4]Sheet2!$J$53:$J$62), [4]Sheet2!$K$53:$K$62) ->  | CQ32: =SUMPRODUCT(--($L32=[4]Sheet3!$B$10:$B$11), [4]Sheet3!$C$10:$C$11)+SUMPRODUCT(--($L32=[4]Sheet3!$D$10:$D$11), [4]Sheet3!$E$10:$E$11)+SUMPRODUCT(--($L32=[4]Sheet3!$F$10:$F$11), [4]Sheet3!$G$10:$G$11)+SUMPRODUCT(--($L32=[4]Sheet3!$H$10:$H$11), [4]Sheet3!$I$10:$I$11)+SUMPRODUCT(--($L32=[4]Sheet3!$J$10:$J$11), [4]Sheet3!$K$10:$K$11) ->  | CS32: =SUMPRODUCT(--($L32=[4]Sheet3!$B$17:$B$22), [4]Sheet3!$C$17:$C$22)+SUMPRODUCT(--($L32=[4]Sheet3!$D$17:$D$22), [4]Sheet3!$E$17:$E$22)+SUMPRODUCT(--($L32=[4]Sheet3!$F$17:$F$22), [4]Sheet3!$G$17:$G$22)+SUMPRODUCT(--($L32=[4]Sheet3!$H$17:$H$22), [4]Sheet3!$I$17:$I$22)+SUMPRODUCT(--($L32=[4]Sheet3!$J$17:$J$22), [4]Sheet3!$K$17:$K$22) ->  | CV32: 0 | CW32: 0 | CX32: 0 | CY32: 0 | CZ32: 0 | DA32: 0
B33: 3 | C33: 042 | D33: 533 | E33: 63 | G33: 042533 | I33: Single High-Pressure Sodium Vapor | J33: No Pole / Dusk to Dawn (046) | K33: 310W | L33: 735 | M33: 0 | N33: 0 | O33: 0 | P33: 0 | Q33: 0 | R33: 174 | S33: 0 | T33: 0 | U33: 0 | V33: 0 | W33: 0 | X33: 0 | Y33: 13.93 | AA33: 0 | AB33: 0 | AC33: 0 | AD33: 0 | AE33: 0 | AF33: 2423.82 | AI33: 0 | AJ33: 0 | AK33: 0 | AL33: 0 | AM33: 0 | AN33: 174 | AO33: =L33 -> 735 | AP33: 0 | AQ33: 0 | AR33: 0 | AS33: 0 | AT33: 0 | AU33: 0 | AV33: 13.99 | AX33: 0 | AY33: 0 | AZ33: 0 | BA33: 0 | BB33: 0 | BC33: 2434.26 | BE33: 133 | BF33: 1.58137 | BG33: 0 | BH33: 0 | BI33: 0 | BJ33: 0 | BK33: 0 | BL33: 275.15838 | BS33: 14.04 | BU33: 0 | BV33: 0 | BW33: 0 | BX33: 0 | BY33: 0 | BZ33: 14.1 | CB33: 0 | CC33: 0 | CD33: 0 | CE33: 0 | CF33: 0 | CG33: 0.3556 | CI33: =SUMPRODUCT(--($L33=[4]Sheet2!$B$9:$B$14), [4]Sheet2!$C$9:$C$14)+SUMPRODUCT(--($L33=[4]Sheet2!$D$9:$D$14), [4]Sheet2!$E$9:$E$14)+SUMPRODUCT(--($L33=[4]Sheet2!$F$9:$F$14), [4]Sheet2!$G$9:$G$14)+SUMPRODUCT(--($L33=[4]Sheet2!$H$9:$H$14), [4]Sheet2!$I$9:$I$14)+SUMPRODUCT(--($L33=[4]Sheet2!$J$9:$J$14), [4]Sheet2!$K$9:$K$14) ->  | CK33: =SUMPRODUCT(--($L33=[4]Sheet2!$B$19:$B$34), [4]Sheet2!$C$19:$C$34)+SUMPRODUCT(--($L33=[5]Sheet2!$D$19:$D$34), [4]Sheet2!$E$19:$E$34)+SUMPRODUCT(--($L33=[4]Sheet2!$F$19:$F$34), [4]Sheet2!$G$19:$G$34)+SUMPRODUCT(--($L33=[4]Sheet2!$H$19:$H$34), [4]Sheet2!$I$19:$I$34)+SUMPRODUCT(--($L33=[4]Sheet2!$J$19:$J$34), [4]Sheet2!$K$19:$K$34) ->  | CM33: =SUMPRODUCT(--($L33=[4]Sheet2!$B$43:$B$47), [4]Sheet2!$C$43:$C$47)+SUMPRODUCT(--($L33=[4]Sheet2!$D$43:$D$47), [4]Sheet2!$E$43:$E$47)+SUMPRODUCT(--($L33=[4]Sheet2!$F$43:$F$47), [4]Sheet2!$G$43:$G$47)+SUMPRODUCT(--($L33=[4]Sheet2!$H$43:$H$47), [4]Sheet2!$I$43:$I$47)+SUMPRODUCT(--($L33=[4]Sheet2!$J$43:$J$47), [4]Sheet2!$K$43:$K$47) ->  | CO33: =SUMPRODUCT(--($L33=[4]Sheet2!$B$53:$B$62), [4]Sheet2!$C$53:$C$62)+SUMPRODUCT(--($L33=[4]Sheet2!$D$53:$D$62), [4]Sheet2!$E$53:$E$62)+SUMPRODUCT(--($L33=[4]Sheet2!$F$53:$F$62), [4]Sheet2!$G$53:$G$62)+SUMPRODUCT(--($L33=[4]Sheet2!$H$53:$H$62), [4]Sheet2!$I$53:$I$62)+SUMPRODUCT(--($L33=[4]Sheet2!$J$53:$J$62), [4]Sheet2!$K$53:$K$62) ->  | CQ33: =SUMPRODUCT(--($L33=[4]Sheet3!$B$10:$B$11), [4]Sheet3!$C$10:$C$11)+SUMPRODUCT(--($L33=[4]Sheet3!$D$10:$D$11), [4]Sheet3!$E$10:$E$11)+SUMPRODUCT(--($L33=[4]Sheet3!$F$10:$F$11), [4]Sheet3!$G$10:$G$11)+SUMPRODUCT(--($L33=[4]Sheet3!$H$10:$H$11), [4]Sheet3!$I$10:$I$11)+SUMPRODUCT(--($L33=[4]Sheet3!$J$10:$J$11), [4]Sheet3!$K$10:$K$11) ->  | CS33: =SUMPRODUCT(--($L33=[4]Sheet3!$B$17:$B$22), [4]Sheet3!$C$17:$C$22)+SUMPRODUCT(--($L33=[4]Sheet3!$D$17:$D$22), [4]Sheet3!$E$17:$E$22)+SUMPRODUCT(--($L33=[4]Sheet3!$F$17:$F$22), [4]Sheet3!$G$17:$G$22)+SUMPRODUCT(--($L33=[4]Sheet3!$H$17:$H$22), [4]Sheet3!$I$17:$I$22)+SUMPRODUCT(--($L33=[4]Sheet3!$J$17:$J$22), [4]Sheet3!$K$17:$K$22) ->  | CV33: 0 | CW33: 0 | CX33: 0 | CY33: 0 | CZ33: 0 | DA33: 0
B34: 3 | C34: 042 | D34: 535 | E34: 1003 | G34: 042535 | I34: Single HPSV/LED | J34: Pedestal Base | K34: 400W | L34: 832 | M34: 0 | N34: 4 | O34: 0 | P34: 19 | Q34: 0 | R34: 0 | S34: 0 | T34: 0 | U34: 55.87 | V34: 0 | W34: 30.26 | X34: 0 | Y34: 0 | AA34: 0 | AB34: 223.48 | AC34: 0 | AD34: 574.94 | AE34: 0 | AF34: 0 | AI34: 0 | AJ34: 4 | AK34: 0 | AL34: 19 | AM34: 0 | AN34: 0 | AO34: 832/832L | AP34: 0 | AQ34: 0 | AR34: 56.1 | AS34: 0 | AT34: 30.39 | AU34: 0 | AV34: 0 | AX34: 0 | AY34: 224.4 | AZ34: 0 | BA34: 577.41 | BB34: 0 | BC34: 0 | BE34: 169 | BF34: 2.00941 | BG34: 0 | BH34: 8.03764 | BI34: 0 | BJ34: 38.17879 | BK34: 0 | BL34: 0 | BO34: 51.96 | BQ34: 29.06 | BU34: 0 | BV34: 57.63 | BW34: 0 | BX34: 30.99 | BY34: 0 | BZ34: 0 | CB34: 0 | CC34: 1.4504 | CD34: 0 | CE34: 0.7892 | CF34: 0 | CG34: 0 | CI34: =SUMPRODUCT(--($L34=[4]Sheet2!$B$9:$B$14), [4]Sheet2!$C$9:$C$14)+SUMPRODUCT(--($L34=[4]Sheet2!$D$9:$D$14), [4]Sheet2!$E$9:$E$14)+SUMPRODUCT(--($L34=[4]Sheet2!$F$9:$F$14), [4]Sheet2!$G$9:$G$14)+SUMPRODUCT(--($L34=[4]Sheet2!$H$9:$H$14), [4]Sheet2!$I$9:$I$14)+SUMPRODUCT(--($L34=[4]Sheet2!$J$9:$J$14), [4]Sheet2!$K$9:$K$14) ->  | CK34: =SUMPRODUCT(--($L34=[4]Sheet2!$B$19:$B$34), [4]Sheet2!$C$19:$C$34)+SUMPRODUCT(--($L34=[5]Sheet2!$D$19:$D$34), [4]Sheet2!$E$19:$E$34)+SUMPRODUCT(--($L34=[4]Sheet2!$F$19:$F$34), [4]Sheet2!$G$19:$G$34)+SUMPRODUCT(--($L34=[4]Sheet2!$H$19:$H$34), [4]Sheet2!$I$19:$I$34)+SUMPRODUCT(--($L34=[4]Sheet2!$J$19:$J$34), [4]Sheet2!$K$19:$K$34) ->  | CM34: =SUMPRODUCT(--($L34=[4]Sheet2!$B$43:$B$47), [4]Sheet2!$C$43:$C$47)+SUMPRODUCT(--($L34=[4]Sheet2!$D$43:$D$47), [4]Sheet2!$E$43:$E$47)+SUMPRODUCT(--($L34=[4]Sheet2!$F$43:$F$47), [4]Sheet2!$G$43:$G$47)+SUMPRODUCT(--($L34=[4]Sheet2!$H$43:$H$47), [4]Sheet2!$I$43:$I$47)+SUMPRODUCT(--($L34=[4]Sheet2!$J$43:$J$47), [4]Sheet2!$K$43:$K$47) ->  | CO34: =SUMPRODUCT(--($L34=[4]Sheet2!$B$53:$B$62), [4]Sheet2!$C$53:$C$62)+SUMPRODUCT(--($L34=[4]Sheet2!$D$53:$D$62), [4]Sheet2!$E$53:$E$62)+SUMPRODUCT(--($L34=[4]Sheet2!$F$53:$F$62), [4]Sheet2!$G$53:$G$62)+SUMPRODUCT(--($L34=[4]Sheet2!$H$53:$H$62), [4]Sheet2!$I$53:$I$62)+SUMPRODUCT(--($L34=[4]Sheet2!$J$53:$J$62), [4]Sheet2!$K$53:$K$62) ->  | CQ34: =SUMPRODUCT(--($L34=[4]Sheet3!$B$10:$B$11), [4]Sheet3!$C$10:$C$11)+SUMPRODUCT(--($L34=[4]Sheet3!$D$10:$D$11), [4]Sheet3!$E$10:$E$11)+SUMPRODUCT(--($L34=[4]Sheet3!$F$10:$F$11), [4]Sheet3!$G$10:$G$11)+SUMPRODUCT(--($L34=[4]Sheet3!$H$10:$H$11), [4]Sheet3!$I$10:$I$11)+SUMPRODUCT(--($L34=[4]Sheet3!$J$10:$J$11), [4]Sheet3!$K$10:$K$11) ->  | CS34: =SUMPRODUCT(--($L34=[4]Sheet3!$B$17:$B$22), [4]Sheet3!$C$17:$C$22)+SUMPRODUCT(--($L34=[4]Sheet3!$D$17:$D$22), [4]Sheet3!$E$17:$E$22)+SUMPRODUCT(--($L34=[4]Sheet3!$F$17:$F$22), [4]Sheet3!$G$17:$G$22)+SUMPRODUCT(--($L34=[4]Sheet3!$H$17:$H$22), [4]Sheet3!$I$17:$I$22)+SUMPRODUCT(--($L34=[4]Sheet3!$J$17:$J$22), [4]Sheet3!$K$17:$K$22) ->  | CV34: 0 | CW34: 0 | CX34: 0 | CY34: 0 | CZ34: 0 | DA34: 0
B35: 3 | C35: 042 | D35: 536 | E35: 558 | G35: 042536 | I35: Single HPSV/LED | J35: No Pole / Dusk to Dawn (046) | K35: 400W | L35: 835 | M35: 0 | N35: 27 | O35: 0 | P35: 12 | Q35: 0 | R35: 106 | S35: 0 | T35: 0 | U35: 42.84 | V35: 0 | W35: 30.25 | X35: 0 | Y35: 17.78 | AA35: 0 | AB35: 1156.68 | AC35: 0 | AD35: 363 | AE35: 0 | AF35: 1884.68 | AI35: 0 | AJ35: 27 | AK35: 0 | AL35: 12 | AM35: 0 | AN35: 106 | AO35: 831/835/831L/835L | AP35: 0 | AQ35: 0 | AR35: 43.02 | AS35: 0 | AT35: 30.38 | AU35: 0 | AV35: 17.85 | AX35: 0 | AY35: 1161.54 | AZ35: 0 | BA35: 364.56 | BB35: 0 | BC35: 1892.1 | BE35: 169 | BF35: 2.00941 | BG35: 0 | BH35: 54.25407 | BI35: 0 | BJ35: 24.11292 | BK35: 0 | BL35: 212.99746 | BO35: 40.31 | BQ35: 29.05 | BS35: 17.91 | BU35: 0 | BV35: 44.08 | BW35: 0 | BX35: 30.98 | BY35: 0 | BZ35: 18 | CB35: 0 | CC35: 1.1128 | CD35: 0 | CE35: 0.79 | CF35: 0 | CG35: 0.4576 | CI35: =SUMPRODUCT(--($L35=[4]Sheet2!$B$9:$B$14), [4]Sheet2!$C$9:$C$14)+SUMPRODUCT(--($L35=[4]Sheet2!$D$9:$D$14), [4]Sheet2!$E$9:$E$14)+SUMPRODUCT(--($L35=[4]Sheet2!$F$9:$F$14), [4]Sheet2!$G$9:$G$14)+SUMPRODUCT(--($L35=[4]Sheet2!$H$9:$H$14), [4]Sheet2!$I$9:$I$14)+SUMPRODUCT(--($L35=[4]Sheet2!$J$9:$J$14), [4]Sheet2!$K$9:$K$14) ->  | CK35: =SUMPRODUCT(--($L35=[4]Sheet2!$B$19:$B$34), [4]Sheet2!$C$19:$C$34)+SUMPRODUCT(--($L35=[5]Sheet2!$D$19:$D$34), [4]Sheet2!$E$19:$E$34)+SUMPRODUCT(--($L35=[4]Sheet2!$F$19:$F$34), [4]Sheet2!$G$19:$G$34)+SUMPRODUCT(--($L35=[4]Sheet2!$H$19:$H$34), [4]Sheet2!$I$19:$I$34)+SUMPRODUCT(--($L35=[4]Sheet2!$J$19:$J$34), [4]Sheet2!$K$19:$K$34) ->  | CM35: =SUMPRODUCT(--($L35=[4]Sheet2!$B$43:$B$47), [4]Sheet2!$C$43:$C$47)+SUMPRODUCT(--($L35=[4]Sheet2!$D$43:$D$47), [4]Sheet2!$E$43:$E$47)+SUMPRODUCT(--($L35=[4]Sheet2!$F$43:$F$47), [4]Sheet2!$G$43:$G$47)+SUMPRODUCT(--($L35=[4]Sheet2!$H$43:$H$47), [4]Sheet2!$I$43:$I$47)+SUMPRODUCT(--($L35=[4]Sheet2!$J$43:$J$47), [4]Sheet2!$K$43:$K$47) ->  | CO35: =SUMPRODUCT(--($L35=[4]Sheet2!$B$53:$B$62), [4]Sheet2!$C$53:$C$62)+SUMPRODUCT(--($L35=[4]Sheet2!$D$53:$D$62), [4]Sheet2!$E$53:$E$62)+SUMPRODUCT(--($L35=[4]Sheet2!$F$53:$F$62), [4]Sheet2!$G$53:$G$62)+SUMPRODUCT(--($L35=[4]Sheet2!$H$53:$H$62), [4]Sheet2!$I$53:$I$62)+SUMPRODUCT(--($L35=[4]Sheet2!$J$53:$J$62), [4]Sheet2!$K$53:$K$62) ->  | CQ35: =SUMPRODUCT(--($L35=[4]Sheet3!$B$10:$B$11), [4]Sheet3!$C$10:$C$11)+SUMPRODUCT(--($L35=[4]Sheet3!$D$10:$D$11), [4]Sheet3!$E$10:$E$11)+SUMPRODUCT(--($L35=[4]Sheet3!$F$10:$F$11), [4]Sheet3!$G$10:$G$11)+SUMPRODUCT(--($L35=[4]Sheet3!$H$10:$H$11), [4]Sheet3!$I$10:$I$11)+SUMPRODUCT(--($L35=[4]Sheet3!$J$10:$J$11), [4]Sheet3!$K$10:$K$11) ->  | CS35: =SUMPRODUCT(--($L35=[4]Sheet3!$B$17:$B$22), [4]Sheet3!$C$17:$C$22)+SUMPRODUCT(--($L35=[4]Sheet3!$D$17:$D$22), [4]Sheet3!$E$17:$E$22)+SUMPRODUCT(--($L35=[4]Sheet3!$F$17:$F$22), [4]Sheet3!$G$17:$G$22)+SUMPRODUCT(--($L35=[4]Sheet3!$H$17:$H$22), [4]Sheet3!$I$17:$I$22)+SUMPRODUCT(--($L35=[4]Sheet3!$J$17:$J$22), [4]Sheet3!$K$17:$K$22) ->  | CV35: 0 | CW35: 0 | CX35: 0 | CY35: 0 | CZ35: 0 | DA35: 0
B36: 3 | C36: 042 | D36: 542 | E36: 8 | G36: 042542 | I36: Single HPSV/LED | J36: Dust to Dawn (046) | K36: 150W | L36: 935 | M36: 0 | N36: 9 | O36: 0 | P36: 0 | Q36: 0 | R36: 34 | S36: 0 | T36: 0 | U36: 12.62 | V36: 0 | W36: 0 | X36: 0 | Y36: 7.36 | AA36: 0 | AB36: 113.58 | AC36: 0 | AD36: 0 | AE36: 0 | AF36: 250.24 | AI36: 0 | AJ36: 9 | AK36: 0 | AL36: 0 | AM36: 0 | AN36: 34 | AO36: 935L | AP36: 0 | AQ36: 0 | AR36: 12.67 | AS36: 0 | AT36: 0 | AU36: 0 | AV36: 7.39 | AX36: 0 | AY36: 114.03 | AZ36: 0 | BA36: 0 | BB36: 0 | BC36: 251.26 | BE36: 62 | BF36: =BE36*BF$3 -> 0.73718 | BG36: 0 | BH36: =AJ36*$BF36 -> 6.63462 | BI36: 0 | BJ36: 0 | BK36: 0 | BL36: 25.06412 | BO36: 11.59 | BS36: 7.31 | BU36: 0 | BV36: =ROUND(IF(AR36=0,0,AR36*1.036+ROUND(26*-0.00292,2)),2) -> 13.05 | BW36: 0 | BX36: 0 | BY36: 0 | BZ36: 7.48 | CB36: =T36*$CB$2+IF(ISNUMBER(BN36),ROUND($BF36,2),0)-BN36 -> 0 | CC36: =U36*$CB$2+IF(ISNUMBER(BO36),ROUND(26*BF$3,2),0)-BO36 -> 0.3304 | CD36: =V36*$CB$2+IF(ISNUMBER(BP36),ROUND($BF36,2),0)-BP36 -> 0 | CE36: 0 | CF36: 0 | CG36: 0.2012 | CI36: =SUMPRODUCT(--($L36=[4]Sheet2!$B$9:$B$14), [4]Sheet2!$C$9:$C$14)+SUMPRODUCT(--($L36=[4]Sheet2!$D$9:$D$14), [4]Sheet2!$E$9:$E$14)+SUMPRODUCT(--($L36=[4]Sheet2!$F$9:$F$14), [4]Sheet2!$G$9:$G$14)+SUMPRODUCT(--($L36=[4]Sheet2!$H$9:$H$14), [4]Sheet2!$I$9:$I$14)+SUMPRODUCT(--($L36=[4]Sheet2!$J$9:$J$14), [4]Sheet2!$K$9:$K$14) ->  | CK36: =SUMPRODUCT(--($L36=[4]Sheet2!$B$19:$B$34), [4]Sheet2!$C$19:$C$34)+SUMPRODUCT(--($L36=[5]Sheet2!$D$19:$D$34), [4]Sheet2!$E$19:$E$34)+SUMPRODUCT(--($L36=[4]Sheet2!$F$19:$F$34), [4]Sheet2!$G$19:$G$34)+SUMPRODUCT(--($L36=[4]Sheet2!$H$19:$H$34), [4]Sheet2!$I$19:$I$34)+SUMPRODUCT(--($L36=[4]Sheet2!$J$19:$J$34), [4]Sheet2!$K$19:$K$34) ->  | CM36: =SUMPRODUCT(--($L36=[4]Sheet2!$B$43:$B$47), [4]Sheet2!$C$43:$C$47)+SUMPRODUCT(--($L36=[4]Sheet2!$D$43:$D$47), [4]Sheet2!$E$43:$E$47)+SUMPRODUCT(--($L36=[4]Sheet2!$F$43:$F$47), [4]Sheet2!$G$43:$G$47)+SUMPRODUCT(--($L36=[4]Sheet2!$H$43:$H$47), [4]Sheet2!$I$43:$I$47)+SUMPRODUCT(--($L36=[4]Sheet2!$J$43:$J$47), [4]Sheet2!$K$43:$K$47) ->  | CO36: =SUMPRODUCT(--($L36=[4]Sheet2!$B$53:$B$62), [4]Sheet2!$C$53:$C$62)+SUMPRODUCT(--($L36=[4]Sheet2!$D$53:$D$62), [4]Sheet2!$E$53:$E$62)+SUMPRODUCT(--($L36=[4]Sheet2!$F$53:$F$62), [4]Sheet2!$G$53:$G$62)+SUMPRODUCT(--($L36=[4]Sheet2!$H$53:$H$62), [4]Sheet2!$I$53:$I$62)+SUMPRODUCT(--($L36=[4]Sheet2!$J$53:$J$62), [4]Sheet2!$K$53:$K$62) ->  | CQ36: =SUMPRODUCT(--($L36=[4]Sheet3!$B$10:$B$11), [4]Sheet3!$C$10:$C$11)+SUMPRODUCT(--($L36=[4]Sheet3!$D$10:$D$11), [4]Sheet3!$E$10:$E$11)+SUMPRODUCT(--($L36=[4]Sheet3!$F$10:$F$11), [4]Sheet3!$G$10:$G$11)+SUMPRODUCT(--($L36=[4]Sheet3!$H$10:$H$11), [4]Sheet3!$I$10:$I$11)+SUMPRODUCT(--($L36=[4]Sheet3!$J$10:$J$11), [4]Sheet3!$K$10:$K$11) ->  | CS36: =SUMPRODUCT(--($L36=[4]Sheet3!$B$17:$B$22), [4]Sheet3!$C$17:$C$22)+SUMPRODUCT(--($L36=[4]Sheet3!$D$17:$D$22), [4]Sheet3!$E$17:$E$22)+SUMPRODUCT(--($L36=[4]Sheet3!$F$17:$F$22), [4]Sheet3!$G$17:$G$22)+SUMPRODUCT(--($L36=[4]Sheet3!$H$17:$H$22), [4]Sheet3!$I$17:$I$22)+SUMPRODUCT(--($L36=[4]Sheet3!$J$17:$J$22), [4]Sheet3!$K$17:$K$22) ->  | CV36: 0 | CW36: 0 | CX36: 0 | CY36: 0 | CZ36: 0 | DA36: 0
B37: 3 | C37: 042 | D37: 545 | E37: 1 | G37: 042545 | I37: Single High-Pressure Sodium Vapor | J37: Developer Contributed | K37: 150W | L37: 936 | M37: 0 | N37: =SUMIF($G:$G,TEXT(N$3,"000")&TEXT($L37,"000"),$E:$E) -> 0 | O37: 0 | P37: 32 | Q37: 0 | R37: 0 | S37: =IF(SUM(M37:R37)>0,0,1) -> 0 | T37: 0 | U37: 0 | V37: 0 | W37: 14.7 | X37: 0 | Y37: 0 | AA37: =IF(AND(M37<>0,T37=0),#VALUE!,M37*T37) -> 0 | AB37: 0 | AC37: 0 | AD37: 470.4 | AE37: 0 | AF37: 0 | AI37: =M37 -> 0 | AJ37: 0 | AK37: 0 | AL37: 32 | AM37: 0 | AN37: 0 | AO37: =L37 -> 936 | AP37: =IF(SUM(AI37:AN37)>0,0,1) -> 0 | AQ37: =ROUND(T37*IF(T37>0,1+AQ$1),2) -> 0 | AR37: 0 | AS37: 0 | AT37: 14.76 | AU37: 0 | AV37: 0 | AX37: =IF(AND(AI37<>0,AQ37=0),#VALUE!,AI37*AQ37) -> 0 | AY37: 0 | AZ37: 0 | BA37: 472.32 | BB37: 0 | BC37: 0 | BE37: 62 | BF37: =BE37*BF$3 -> 0.73718 | BG37: =AI37*$BF37 -> 0 | BH37: =AJ37*$BF37 -> 0 | BI37: =AK37*$BF37 -> 0 | BJ37: =AL37*$BF37 -> 23.58976 | BK37: =AM37*$BF37 -> 0 | BL37: =AN37*$BF37 -> 0 | BQ37: 13.87 | BU37: =ROUND(IF(AQ37=0,0,AQ37*1.036+ROUND($BE37*-0.00292,2)),2) -> 0 | BV37: 0 | BW37: 0 | BX37: 15.11 | BY37: 0 | BZ37: 0 | CB37: =T37*$CB$2+IF(ISNUMBER(BN37),ROUND($BF37,2),0)-BN37 -> 0 | CC37: =U37*$CB$2+IF(ISNUMBER(BO37),ROUND($BF37,2),0)-BO37 -> 0 | CD37: 0 | CE37: 0.394 | CF37: 0 | CG37: 0 | CI37: =SUMPRODUCT(--($L37=[4]Sheet2!$B$9:$B$14), [4]Sheet2!$C$9:$C$14)+SUMPRODUCT(--($L37=[4]Sheet2!$D$9:$D$14), [4]Sheet2!$E$9:$E$14)+SUMPRODUCT(--($L37=[4]Sheet2!$F$9:$F$14), [4]Sheet2!$G$9:$G$14)+SUMPRODUCT(--($L37=[4]Sheet2!$H$9:$H$14), [4]Sheet2!$I$9:$I$14)+SUMPRODUCT(--($L37=[4]Sheet2!$J$9:$J$14), [4]Sheet2!$K$9:$K$14) ->  | CJ37: =CI37-IF($CL$2=1,BN37,BU37) ->  | CK37: =SUMPRODUCT(--($L37=[4]Sheet2!$B$19:$B$34), [4]Sheet2!$C$19:$C$34)+SUMPRODUCT(--($L37=[5]Sheet2!$D$19:$D$34), [4]Sheet2!$E$19:$E$34)+SUMPRODUCT(--($L37=[4]Sheet2!$F$19:$F$34), [4]Sheet2!$G$19:$G$34)+SUMPRODUCT(--($L37=[4]Sheet2!$H$19:$H$34), [4]Sheet2!$I$19:$I$34)+SUMPRODUCT(--($L37=[4]Sheet2!$J$19:$J$34), [4]Sheet2!$K$19:$K$34) ->  | CL37: =CK37-IF($CL$2=1,BO37,BV37) ->  | CM37: =SUMPRODUCT(--($L37=[4]Sheet2!$B$43:$B$47), [4]Sheet2!$C$43:$C$47)+SUMPRODUCT(--($L37=[4]Sheet2!$D$43:$D$47), [4]Sheet2!$E$43:$E$47)+SUMPRODUCT(--($L37=[4]Sheet2!$F$43:$F$47), [4]Sheet2!$G$43:$G$47)+SUMPRODUCT(--($L37=[4]Sheet2!$H$43:$H$47), [4]Sheet2!$I$43:$I$47)+SUMPRODUCT(--($L37=[4]Sheet2!$J$43:$J$47), [4]Sheet2!$K$43:$K$47) ->  | CN37: =CM37-IF($CL$2=1,BP37,BW37) ->  | CO37: =SUMPRODUCT(--($L37=[4]Sheet2!$B$53:$B$62), [4]Sheet2!$C$53:$C$62)+SUMPRODUCT(--($L37=[4]Sheet2!$D$53:$D$62), [4]Sheet2!$E$53:$E$62)+SUMPRODUCT(--($L37=[4]Sheet2!$F$53:$F$62), [4]Sheet2!$G$53:$G$62)+SUMPRODUCT(--($L37=[4]Sheet2!$H$53:$H$62), [4]Sheet2!$I$53:$I$62)+SUMPRODUCT(--($L37=[4]Sheet2!$J$53:$J$62), [4]Sheet2!$K$53:$K$62) ->  | CP37: =CO37-IF($CL$2=1,BQ37,BX37) ->  | CQ37: =SUMPRODUCT(--($L37=[4]Sheet3!$B$10:$B$11), [4]Sheet3!$C$10:$C$11)+SUMPRODUCT(--($L37=[4]Sheet3!$D$10:$D$11), [4]Sheet3!$E$10:$E$11)+SUMPRODUCT(--($L37=[4]Sheet3!$F$10:$F$11), [4]Sheet3!$G$10:$G$11)+SUMPRODUCT(--($L37=[4]Sheet3!$H$10:$H$11), [4]Sheet3!$I$10:$I$11)+SUMPRODUCT(--($L37=[4]Sheet3!$J$10:$J$11), [4]Sheet3!$K$10:$K$11) ->  | CR37: =CQ37-IF($CL$2=1,BR37,BY37) ->  | CS37: =SUMPRODUCT(--($L37=[4]Sheet3!$B$17:$B$22), [4]Sheet3!$C$17:$C$22)+SUMPRODUCT(--($L37=[4]Sheet3!$D$17:$D$22), [4]Sheet3!$E$17:$E$22)+SUMPRODUCT(--($L37=[4]Sheet3!$F$17:$F$22), [4]Sheet3!$G$17:$G$22)+SUMPRODUCT(--($L37=[4]Sheet3!$H$17:$H$22), [4]Sheet3!$I$17:$I$22)+SUMPRODUCT(--($L37=[4]Sheet3!$J$17:$J$22), [4]Sheet3!$K$17:$K$22) ->  | CT37: =CS37-IF($CL$2=1,BS37,BZ37) ->  | CV37: 0 | CW37: 0 | CX37: 0 | CY37: 0 | CZ37: 0 | DA37: 0
B38: 3 | C38: 042 | D38: 546 | E38: 5 | G38: 042546 | T38: 0 | U38: 0 | V38: 0 | W38: 0 | X38: 0 | Y38: 0 | AA38: =IF(AND(M38<>0,T38=0),#VALUE!,M38*T38) -> 0 | AB38: 0 | AC38: 0 | AD38: 0 | AE38: 0 | AF38: 0 | AO38: 0 | AQ38: 0 | AR38: 0 | AS38: 0 | AT38: 0 | AU38: 0 | AV38: 0 | BU38: 0 | BV38: 0 | BW38: 0 | BX38: 0 | BY38: 0 | BZ38: 0
B39: 3 | C39: 042 | D39: 631 | E39: 0 | G39: 042631 | M39: =SUM(M4:M38) -> 16 | N39: =SUM(N4:N38) -> 13445 | O39: 0 | P39: 238 | Q39: 170 | R39: =SUM(R4:R38) -> 706 | T39: 0 | U39: 0 | V39: 0 | W39: 0 | X39: 0 | Y39: 0 | AA39: =ROUND(SUM(AA4:AA38),2) -> 273.76 | AB39: 230637.18 | AC39: 0 | AD39: 4281.97 | AE39: 2358.63 | AF39: 8435.93 | AI39: =SUM(AI4:AI38) -> 16 | AJ39: 13445 | AK39: 0 | AL39: 238 | AM39: 170 | AN39: 706 | AO39: 0 | AQ39: 0 | AR39: 0 | AS39: 0 | AT39: 0 | AU39: 0 | AV39: 0 | AX39: =ROUND(SUM(AX4:AX38),2) -> 274.88 | AY39: 231599.48 | AZ39: 0 | BA39: 4300.16 | BB39: 2368.02 | BC39: 8471.16 | BF39: PRESENT | BG39: =ROUND(SUM(BG4:BG38),2) -> 15.22 | BH39: 7483.79 | BI39: 0 | BJ39: 261.85 | BK39: 345.08 | BL39: 925.66 | BU39: 0 | BV39: 0 | BW39: 0 | BX39: 0 | BY39: 0 | BZ39: 0
B40: 3 | C40: 042 | D40: 632 | E40: 30 | G40: 042632 | K40: Total | R40: =SUM(M39:R39) -> 14575 | T40: 0 | U40: 0 | V40: 0 | W40: 0 | X40: 0 | Y40: 0 | AF40: =SUM(AA39:AF39) -> 245987.47 | AN40: =SUM(AI39:AN39) -> 14575 | AO40: 0 | AQ40: 0 | AR40: 0 | AS40: 0 | AT40: 0 | AU40: 0 | AV40: 0 | BC40: =SUM(AX39:BC39) -> 247013.7 | BF40: =BF3 -> 0.01189 | BL40: =SUM(BG39:BL39) -> 9031.6 | BU40: 0 | BV40: 0 | BW40: 0 | BX40: 0 | BY40: 0 | BZ40: 0
B41: 3 | C41: 042 | D41: 635 | E41: 30 | G41: 042635 | R41: =ROUND(R40-$E89,0) -> 0 | T41: 0 | U41: 0 | V41: 0 | W41: 0 | X41: 0 | Y41: 0 | AN41: =ROUND(AN40-$E89,0) -> 0 | AO41: 0 | AQ41: 0 | AR41: 0 | AS41: 0 | AT41: 0 | AU41: 0 | AV41: 0 | BC41: =BC40/AF40-1 -> 0.004171879161 | BF41: PROPOSED | BG41: =SUMPRODUCT($BE$4:$BE$55*$BF$42,AI$4:AI$55) -> 15.2192 | BH41: 7483.79191 | BI41: 0 | BJ41: 261.85347 | BK41: 345.08347 | BL41: 925.66028 | BU41: 0 | BV41: 0 | BW41: 0 | BX41: 0 | BY41: 0 | BZ41: 0
B42: 3 | C42: 042 | D42: 636 | E42: 6 | G42: 042636 | T42: 4.716981132 | U42: 0 | V42: 0 | W42: 0 | X42: 0 | Y42: 0 | AO42: 0 | AQ42: 4.74 | AR42: 0 | AS42: 0 | AT42: 0 | AU42: 0 | AV42: 0 | BF42: =BF40 -> 0.01189 | BL42: =SUM(BG41:BL41) -> 9031.60833 | BU42: 4.91 | BV42: 0 | BW42: 0 | BX42: 0 | BY42: 0 | BZ42: 0
B43: 3 | C43: 042 | D43: 831 | E43: 0 | G43: 042831 | BK43: SL Change | BL43: =BL40-BL42 -> -0.008329999999 | BU43: 0 | BV43: 0 | BW43: 0 | BX43: 0 | BY43: 0 | BZ43: 0
B44: 3 | C44: 042 | D44: 832 | E44: 4 | G44: 042832 | BK44: Total change in billed | BL44: =(BL43+'Area Lts'!AQ47)*12 -> -0.09995999999
B45: 3 | C45: 042 | D45: 835 | E45: 27 | G45: 042835
B46: 3 | C46: 042 | D46: 935 | E46: 9 | G46: =IF(OR(ISBLANK(C46),ISBLANK(D46)),"",TEXT(C46,"000")&TEXT(D46,"000")) -> 042935
B47: 3 | C47: 042 | D47: 936 | E47: 0 | G47: 042936
E48: =SUM(E16:E47) -> 13445
B50: 3 | C50: 043 | D50: 611 | E50: 0 | G50: 043611
B51: 3 | C51: 043 | D51: 612 | E51: 0 | G51: 043612
B52: 3 | C52: 043 | D52: 832 | E52: 0 | G52: 043832
E53: =SUM(E50:E52) -> 0
B55: 3 | C55: 044 | D55: 431 | E55: 0 | G55: 044431
B56: 3 | C56: 044 | D56: 432 | E56: 30 | G56: =IF(OR(ISBLANK(C56),ISBLANK(D56)),"",TEXT(C56,"000")&TEXT(D56,"000")) -> 044432 | I56: Active tariff rates with no customers:
B57: 3 | C57: 044 | D57: 631 | E57: 0 | G57: 044631 | I57: LED | J57: No Pole | K57: Up to 10W LED | L57: 005L | M57: =SUMIF($G:$G,TEXT(M$3,"000")&TEXT($L57,"000"),$E:$E) -> 0 | N57: 0 | O57: 0 | P57: 0 | Q57: 0 | R57: 0 | S57: =IF(SUM(M57:R57)>0,0,1) -> 1 | T57: 0 | U57: 0 | V57: 0 | W57: 0 | X57: 0 | Y57: 0.23 | AA57: =IF(AND(M57<>0,T57=0),#VALUE!,M57*T57) -> 0 | AB57: 0 | AC57: 0 | AD57: 0 | AE57: 0 | AF57: 0 | AI57: =M57 -> 0 | AJ57: 0 | AK57: 0 | AL57: 0 | AM57: 0 | AN57: 0 | AO57: =L57 -> 005L | AP57: =IF(SUM(AI57:AN57)>0,0,1) -> 1 | AQ57: =ROUND(T57*IF(T57>0,1+AQ$1),2) -> 0 | AR57: 0 | AS57: 0 | AT57: 0 | AU57: 0 | AV57: =ROUND(Y57*IF(Y57>0,1+AV$1),2) -> 0.23 | AX57: =IF(AND(AI57<>0,AQ57=0),#VALUE!,AI57*AQ57) -> 0 | AY57: 0 | AZ57: 0 | BA57: 0 | BB57: 0 | BC57: 0 | BE57: 2 | BF57: =BE57*BF$3 -> 0.02378 | BG57: =AI57*$BF57 -> 0 | BH57: 0 | BI57: 0 | BJ57: 0 | BK57: 0 | BL57: 0 | BS57: 0.22 | BU57: =ROUND(IF(AQ57=0,0,AQ57*1.036+ROUND($BE57*-0.00292,2)),2) -> 0 | BV57: 0 | BW57: 0 | BX57: 0 | BY57: 0 | BZ57: 0.23 | CB57: =T57*$CB$2+IF(ISNUMBER(BN57),ROUND($BF57,2),0)-BN57 -> 0 | CC57: 0 | CD57: 0 | CE57: 0 | CF57: 0 | CG57: 0.0116
B58: 3 | C58: 044 | D58: 435 | E58: 23 | G58: 044435 | I58: LED | J58: No Pole | K58: 11-20W LED | L58: 015L | M58: 0 | N58: 0 | O58: 0 | P58: 0 | Q58: 0 | R58: 0 | S58: 1 | T58: 0 | U58: 0 | V58: 0 | W58: 0 | X58: 0 | Y58: 0.57 | AA58: 0 | AB58: 0 | AC58: 0 | AD58: 0 | AE58: 0 | AF58: 0 | AI58: 0 | AJ58: 0 | AK58: 0 | AL58: 0 | AM58: 0 | AN58: 0 | AO58: 015L | AP58: 1 | AQ58: 0 | AR58: 0 | AS58: 0 | AT58: 0 | AU58: 0 | AV58: 0.57 | AX58: 0 | AY58: 0 | AZ58: 0 | BA58: 0 | BB58: 0 | BC58: 0 | BE58: 5 | BF58: 0.05945 | BG58: 0 | BH58: 0 | BI58: 0 | BJ58: 0 | BK58: 0 | BL58: 0 | BS58: 0.57 | BU58: 0 | BV58: 0 | BW58: 0 | BX58: 0 | BY58: 0 | BZ58: 0.58 | CB58: 0 | CC58: 0 | CD58: 0 | CE58: 0 | CF58: 0 | CG58: 0.0144
B59: 3 | C59: 044 | D59: 531 | E59: 0 | G59: =IF(OR(ISBLANK(C59),ISBLANK(D59)),"",TEXT(C59,"000")&TEXT(D59,"000")) -> 044531 | I59: LED | J59: No Pole | K59: 21-30W LED | L59: 025L | M59: 0 | N59: 0 | O59: 0 | P59: 0 | Q59: 0 | R59: 0 | S59: 1 | T59: 0 | U59: 0 | V59: 0 | W59: 0 | X59: 0 | Y59: 1.01 | AA59: 0 | AB59: 0 | AC59: 0 | AD59: 0 | AE59: 0 | AF59: 0 | AI59: 0 | AJ59: 0 | AK59: 0 | AL59: 0 | AM59: 0 | AN59: 0 | AO59: 025L | AP59: 1 | AQ59: 0 | AR59: 0 | AS59: 0 | AT59: 0 | AU59: 0 | AV59: 1.01 | AX59: 0 | AY59: 0 | AZ59: 0 | BA59: 0 | BB59: 0 | BC59: 0 | BE59: 9 | BF59: 0.10701 | BG59: 0 | BH59: 0 | BI59: 0 | BJ59: 0 | BK59: 0 | BL59: 0 | BS59: 1 | BU59: 0 | BV59: 0 | BW59: 0 | BX59: 0 | BY59: 0 | BZ59: 1.02 | CB59: 0 | CC59: 0 | CD59: 0 | CE59: 0 | CF59: 0 | CG59: 0.0392
B60: 3 | C60: 044 | D60: 532 | E60: 14 | G60: 044532 | I60: LED | J60: No Pole | K60: 31-40W LED | L60: 035L | M60: 0 | N60: 0 | O60: 0 | P60: 0 | Q60: 0 | R60: 0 | S60: 1 | T60: 0 | U60: 0 | V60: 0 | W60: 0 | X60: 0 | Y60: 1.46 | AA60: 0 | AB60: 0 | AC60: 0 | AD60: 0 | AE60: 0 | AF60: 0 | AI60: 0 | AJ60: 0 | AK60: 0 | AL60: 0 | AM60: 0 | AN60: 0 | AO60: 035L | AP60: 1 | AQ60: 0 | AR60: 0 | AS60: 0 | AT60: 0 | AU60: 0 | AV60: 1.47 | AX60: 0 | AY60: 0 | AZ60: 0 | BA60: 0 | BB60: 0 | BC60: 0 | BE60: 13 | BF60: 0.15457 | BG60: 0 | BH60: 0 | BI60: 0 | BJ60: 0 | BK60: 0 | BL60: 0 | BS60: 1.47 | BU60: 0 | BV60: 0 | BW60: 0 | BX60: 0 | BY60: 0 | BZ60: 1.48 | CB60: 0 | CC60: 0 | CD60: 0 | CE60: 0 | CF60: 0 | CG60: 0.0232
B61: 3 | C61: 044 | D61: 534 | E61: 0 | G61: 044534 | I61: LED | J61: No Pole | K61: 41-50W LED | L61: 045L | M61: 0 | N61: 0 | O61: 0 | P61: 0 | Q61: 0 | R61: 0 | S61: 1 | T61: 0 | U61: 0 | V61: 0 | W61: 0 | X61: 0 | Y61: 1.8 | AA61: 0 | AB61: 0 | AC61: 0 | AD61: 0 | AE61: 0 | AF61: 0 | AI61: 0 | AJ61: 0 | AK61: 0 | AL61: 0 | AM61: 0 | AN61: 0 | AO61: 045L | AP61: 1 | AQ61: 0 | AR61: 0 | AS61: 0 | AT61: 0 | AU61: 0 | AV61: 1.81 | AX61: 0 | AY61: 0 | AZ61: 0 | BA61: 0 | BB61: 0 | BC61: 0 | BE61: 16 | BF61: 0.19024 | BG61: 0 | BH61: 0 | BI61: 0 | BJ61: 0 | BK61: 0 | BL61: 0 | BS61: 1.8 | BU61: 0 | BV61: 0 | BW61: 0 | BX61: 0 | BY61: 0 | BZ61: 1.83 | CB61: 0 | CC61: 0 | CD61: 0 | CE61: 0 | CF61: 0 | CG61: 0.046
B62: 3 | C62: 044 | D62: 535 | E62: 3 | G62: 044535 | I62: LED | J62: No Pole | K62: 51-60W LED | L62: 055L | M62: 0 | N62: 0 | O62: 0 | P62: 0 | Q62: 0 | R62: 0 | S62: 1 | T62: 0 | U62: 0 | V62: 0 | W62: 0 | X62: 0 | Y62: 2.24 | AA62: 0 | AB62: 0 | AC62: 0 | AD62: 0 | AE62: 0 | AF62: 0 | AI62: 0 | AJ62: 0 | AK62: 0 | AL62: 0 | AM62: 0 | AN62: 0 | AO62: 055L | AP62: 1 | AQ62: 0 | AR62: 0 | AS62: 0 | AT62: 0 | AU62: 0 | AV62: 2.25 | AX62: 0 | AY62: 0 | AZ62: 0 | BA62: 0 | BB62: 0 | BC62: 0 | BE62: 20 | BF62: 0.2378 | BG62: 0 | BH62: 0 | BI62: 0 | BJ62: 0 | BK62: 0 | BL62: 0 | BS62: 2.25 | BU62: 0 | BV62: 0 | BW62: 0 | BX62: 0 | BY62: 0 | BZ62: 2.27 | CB62: 0 | CC62: 0 | CD62: 0 | CE62: 0 | CF62: 0 | CG62: 0.0508
B63: 3 | C63: 044 | D63: 632 | E63: 72 | G63: 044632 | I63: LED | J63: No Pole | K63: 61-70W LED | L63: 065L | M63: 0 | N63: 0 | O63: 0 | P63: 0 | Q63: 0 | R63: 0 | S63: 1 | T63: 0 | U63: 0 | V63: 0 | W63: 0 | X63: 0 | Y63: 2.58 | AA63: 0 | AB63: 0 | AC63: 0 | AD63: 0 | AE63: 0 | AF63: 0 | AI63: 0 | AJ63: 0 | AK63: 0 | AL63: 0 | AM63: 0 | AN63: 0 | AO63: 065L | AP63: 1 | AQ63: 0 | AR63: 0 | AS63: 0 | AT63: 0 | AU63: 0 | AV63: 2.59 | AX63: 0 | AY63: 0 | AZ63: 0 | BA63: 0 | BB63: 0 | BC63: 0 | BE63: 23 | BF63: 0.27347 | BG63: 0 | BH63: 0 | BI63: 0 | BJ63: 0 | BK63: 0 | BL63: 0 | BS63: 2.58 | BU63: 0 | BV63: 0 | BW63: 0 | BX63: 0 | BY63: 0 | BZ63: 2.61 | CB63: 0 | CC63: 0 | CD63: 0 | CE63: 0 | CF63: 0 | CG63: 0.0636
B64: 3 | C64: 044 | D64: 633 | E64: 2 | G64: 044633 | I64: LED | J64: No Pole | K64: 71-80W LED | L64: 075L | M64: 0 | N64: 0 | O64: 0 | P64: 0 | Q64: 0 | R64: 0 | S64: 1 | T64: 0 | U64: 0 | V64: 0 | W64: 0 | X64: 0 | Y64: 3.03 | AA64: 0 | AB64: 0 | AC64: 0 | AD64: 0 | AE64: 0 | AF64: 0 | AI64: 0 | AJ64: 0 | AK64: 0 | AL64: 0 | AM64: 0 | AN64: 0 | AO64: 075L | AP64: 1 | AQ64: 0 | AR64: 0 | AS64: 0 | AT64: 0 | AU64: 0 | AV64: 3.04 | AX64: 0 | AY64: 0 | AZ64: 0 | BA64: 0 | BB64: 0 | BC64: 0 | BE64: 27 | BF64: 0.32103 | BG64: 0 | BH64: 0 | BI64: 0 | BJ64: 0 | BK64: 0 | BL64: 0 | BS64: 3.02 | BU64: 0 | BV64: 0 | BW64: 0 | BX64: 0 | BY64: 0 | BZ64: 3.07 | CB64: 0 | CC64: 0 | CD64: 0 | CE64: 0 | CF64: 0 | CG64: 0.0876
B65: 3 | C65: 044 | D65: 635 | E65: 31 | G65: 044635 | I65: LED | J65: No Pole | K65: 81-90W LED | L65: 085L | M65: 0 | N65: 0 | O65: 0 | P65: 0 | Q65: 0 | R65: 0 | S65: 1 | T65: 0 | U65: 0 | V65: 0 | W65: 0 | X65: 0 | Y65: 3.48 | AA65: 0 | AB65: 0 | AC65: 0 | AD65: 0 | AE65: 0 | AF65: 0 | AI65: 0 | AJ65: 0 | AK65: 0 | AL65: 0 | AM65: 0 | AN65: 0 | AO65: 085L | AP65: 1 | AQ65: 0 | AR65: 0 | AS65: 0 | AT65: 0 | AU65: 0 | AV65: 3.49 | AX65: 0 | AY65: 0 | AZ65: 0 | BA65: 0 | BB65: 0 | BC65: 0 | BE65: 31 | BF65: 0.36859 | BG65: 0 | BH65: 0 | BI65: 0 | BJ65: 0 | BK65: 0 | BL65: 0 | BS65: 3.48 | BU65: 0 | BV65: 0 | BW65: 0 | BX65: 0 | BY65: 0 | BZ65: 3.53 | CB65: 0 | CC65: 0 | CD65: 0 | CE65: 0 | CF65: 0 | CG65: 0.0916
B66: 3 | C66: 044 | D66: 735 | E66: 0 | G66: 044735 | I66: LED | J66: No Pole | K66: 91-100W LED | L66: 095L | M66: 0 | N66: 0 | O66: 0 | P66: 0 | Q66: 0 | R66: 0 | S66: 1 | T66: 0 | U66: 0 | V66: 0 | W66: 0 | X66: 0 | Y66: 3.82 | AA66: 0 | AB66: 0 | AC66: 0 | AD66: 0 | AE66: 0 | AF66: 0 | AI66: 0 | AJ66: 0 | AK66: 0 | AL66: 0 | AM66: 0 | AN66: 0 | AO66: 095L | AP66: 1 | AQ66: 0 | AR66: 0 | AS66: 0 | AT66: 0 | AU66: 0 | AV66: 3.84 | AX66: 0 | AY66: 0 | AZ66: 0 | BA66: 0 | BB66: 0 | BC66: 0 | BE66: 34 | BF66: 0.40426 | BG66: 0 | BH66: 0 | BI66: 0 | BJ66: 0 | BK66: 0 | BL66: 0 | BS66: 3.81 | BU66: 0 | BV66: 0 | BW66: 0 | BX66: 0 | BY66: 0 | BZ66: 3.88 | CB66: 0 | CC66: 0 | CD66: 0 | CE66: 0 | CF66: 0 | CG66: 0.1044
B67: 3 | C67: 044 | D67: 832 | E67: 19 | G67: 044832 | I67: LED | J67: No Pole | K67: 101-110W LED | L67: 105L | M67: 0 | N67: 0 | O67: 0 | P67: 0 | Q67: 0 | R67: 0 | S67: 1 | T67: 0 | U67: 0 | V67: 0 | W67: 0 | X67: 0 | Y67: 4.27 | AA67: 0 | AB67: 0 | AC67: 0 | AD67: 0 | AE67: 0 | AF67: 0 | AI67: 0 | AJ67: 0 | AK67: 0 | AL67: 0 | AM67: 0 | AN67: 0 | AO67: 105L | AP67: 1 | AQ67: 0 | AR67: 0 | AS67: 0 | AT67: 0 | AU67: 0 | AV67: 4.29 | AX67: 0 | AY67: 0 | AZ67: 0 | BA67: 0 | BB67: 0 | BC67: 0 | BE67: 38 | BF67: 0.45182 | BG67: 0 | BH67: 0 | BI67: 0 | BJ67: 0 | BK67: 0 | BL67: 0 | BS67: 4.27 | BU67: 0 | BV67: 0 | BW67: 0 | BX67: 0 | BY67: 0 | BZ67: 4.33 | CB67: 0 | CC67: 0 | CD67: 0 | CE67: 0 | CF67: 0 | CG67: 0.1084
B68: 3 | C68: 044 | D68: 835 | E68: 12 | G68: 044835 | I68: LED | J68: No Pole | K68: 111-120W LED | L68: 115L | M68: 0 | N68: 0 | O68: 0 | P68: 0 | Q68: 0 | R68: 0 | S68: 1 | T68: 0 | U68: 0 | V68: 0 | W68: 0 | X68: 0 | Y68: 4.6 | AA68: 0 | AB68: 0 | AC68: 0 | AD68: 0 | AE68: 0 | AF68: 0 | AI68: 0 | AJ68: 0 | AK68: 0 | AL68: 0 | AM68: 0 | AN68: 0 | AO68: 115L | AP68: 1 | AQ68: 0 | AR68: 0 | AS68: 0 | AT68: 0 | AU68: 0 | AV68: 4.62 | AX68: 0 | AY68: 0 | AZ68: 0 | BA68: 0 | BB68: 0 | BC68: 0 | BE68: 41 | BF68: 0.48749 | BG68: 0 | BH68: 0 | BI68: 0 | BJ68: 0 | BK68: 0 | BL68: 0 | BS68: 4.6 | BU68: 0 | BV68: 0 | BW68: 0 | BX68: 0 | BY68: 0 | BZ68: 4.67 | CB68: 0 | CC68: 0 | CD68: 0 | CE68: 0 | CF68: 0 | CG68: 0.122
B69: 3 | C69: 044 | D69: 936 | E69: 32 | G69: 044936 | I69: LED | J69: No Pole | K69: 121-130W LED | L69: 125L | M69: 0 | N69: 0 | O69: 0 | P69: 0 | Q69: 0 | R69: 0 | S69: 1 | T69: 0 | U69: 0 | V69: 0 | W69: 0 | X69: 0 | Y69: 5.05 | AA69: 0 | AB69: 0 | AC69: 0 | AD69: 0 | AE69: 0 | AF69: 0 | AI69: 0 | AJ69: 0 | AK69: 0 | AL69: 0 | AM69: 0 | AN69: 0 | AO69: 125L | AP69: 1 | AQ69: 0 | AR69: 0 | AS69: 0 | AT69: 0 | AU69: 0 | AV69: 5.07 | AX69: 0 | AY69: 0 | AZ69: 0 | BA69: 0 | BB69: 0 | BC69: 0 | BE69: 45 | BF69: 0.53505 | BG69: 0 | BH69: 0 | BI69: 0 | BJ69: 0 | BK69: 0 | BL69: 0 | BS69: 5.06 | BU69: 0 | BV69: 0 | BW69: 0 | BX69: 0 | BY69: 0 | BZ69: 5.12 | CB69: 0 | CC69: 0 | CD69: 0 | CE69: 0 | CF69: 0 | CG69: 0.126
E70: =SUM(E55:E69) -> 238 | I70: LED | J70: No Pole | K70: 131-140W LED | L70: 135L | M70: 0 | N70: 0 | O70: 0 | P70: 0 | Q70: 0 | R70: 0 | S70: 1 | T70: 0 | U70: 0 | V70: 0 | W70: 0 | X70: 0 | Y70: 5.5 | AA70: 0 | AB70: 0 | AC70: 0 | AD70: 0 | AE70: 0 | AF70: 0 | AI70: 0 | AJ70: 0 | AK70: 0 | AL70: 0 | AM70: 0 | AN70: 0 | AO70: 135L | AP70: 1 | AQ70: 0 | AR70: 0 | AS70: 0 | AT70: 0 | AU70: 0 | AV70: 5.52 | AX70: 0 | AY70: 0 | AZ70: 0 | BA70: 0 | BB70: 0 | BC70: 0 | BE70: 49 | BF70: 0.58261 | BG70: 0 | BH70: 0 | BI70: 0 | BJ70: 0 | BK70: 0 | BL70: 0 | BS70: 5.49 | BU70: 0 | BV70: 0 | BW70: 0 | BX70: 0 | BY70: 0 | BZ70: 5.58 | CB70: 0 | CC70: 0 | CD70: 0 | CE70: 0 | CF70: 0 | CG70: 0.15
I71: LED | J71: No Pole | K71: 141-150W LED | L71: 145L | M71: 0 | N71: 0 | O71: 0 | P71: 0 | Q71: 0 | R71: 0 | S71: 1 | T71: 0 | U71: 0 | V71: 0 | W71: 0 | X71: 0 | Y71: 5.83 | AA71: 0 | AB71: 0 | AC71: 0 | AD71: 0 | AE71: 0 | AF71: 0 | AI71: 0 | AJ71: 0 | AK71: 0 | AL71: 0 | AM71: 0 | AN71: 0 | AO71: 145L | AP71: 1 | AQ71: 0 | AR71: 0 | AS71: 0 | AT71: 0 | AU71: 0 | AV71: 5.85 | AX71: 0 | AY71: 0 | AZ71: 0 | BA71: 0 | BB71: 0 | BC71: 0 | BE71: 52 | BF71: 0.61828 | BG71: 0 | BH71: 0 | BI71: 0 | BJ71: 0 | BK71: 0 | BL71: 0 | BS71: 5.84 | BU71: 0 | BV71: 0 | BW71: 0 | BX71: 0 | BY71: 0 | BZ71: 5.91 | CB71: 0 | CC71: 0 | CD71: 0 | CE71: 0 | CF71: 0 | CG71: 0.1436
B72: 3 | C72: 045 | D72: 434 | E72: 0 | G72: 045434 | I72: LED | J72: No Pole | K72: 151-160W LED | L72: 155L | M72: 0 | N72: 0 | O72: 0 | P72: 0 | Q72: 0 | R72: 0 | S72: 1 | T72: 0 | U72: 0 | V72: 0 | W72: 0 | X72: 0 | Y72: 6.28 | AA72: 0 | AB72: 0 | AC72: 0 | AD72: 0 | AE72: 0 | AF72: 0 | AI72: 0 | AJ72: 0 | AK72: 0 | AL72: 0 | AM72: 0 | AN72: 0 | AO72: 155L | AP72: 1 | AQ72: 0 | AR72: 0 | AS72: 0 | AT72: 0 | AU72: 0 | AV72: 6.31 | AX72: 0 | AY72: 0 | AZ72: 0 | BA72: 0 | BB72: 0 | BC72: 0 | BE72: 56 | BF72: 0.66584 | BG72: 0 | BH72: 0 | BI72: 0 | BJ72: 0 | BK72: 0 | BL72: 0 | BS72: 6.27 | BU72: 0 | BV72: 0 | BW72: 0 | BX72: 0 | BY72: 0 | BZ72: 6.38 | CB72: 0 | CC72: 0 | CD72: 0 | CE72: 0 | CF72: 0 | CG72: 0.1776
B73: 3 | C73: 045 | D73: 515 | E73: 27 | G73: =IF(OR(ISBLANK(C73),ISBLANK(D73)),"",TEXT(C73,"000")&TEXT(D73,"000")) -> 045515 | I73: LED | J73: No Pole | K73: 161-170W LED | L73: 165L | M73: =SUMIF($G:$G,TEXT(M$3,"000")&TEXT($L73,"000"),$E:$E) -> 0 | N73: 0 | O73: 0 | P73: 0 | Q73: 0 | R73: 0 | S73: 1 | T73: 0 | U73: 0 | V73: 0 | W73: 0 | X73: 0 | Y73: 6.62 | AA73: 0 | AB73: 0 | AC73: 0 | AD73: 0 | AE73: 0 | AF73: 0 | AI73: 0 | AJ73: 0 | AK73: 0 | AL73: 0 | AM73: 0 | AN73: 0 | AO73: 165L | AP73: 1 | AQ73: 0 | AR73: 0 | AS73: 0 | AT73: 0 | AU73: 0 | AV73: 6.65 | AX73: 0 | AY73: 0 | AZ73: 0 | BA73: 0 | BB73: 0 | BC73: 0 | BE73: 59 | BF73: 0.70151 | BG73: 0 | BH73: 0 | BI73: 0 | BJ73: 0 | BK73: 0 | BL73: 0 | BS73: 6.62 | BU73: 0 | BV73: 0 | BW73: 0 | BX73: 0 | BY73: 0 | BZ73: 6.72 | CB73: 0 | CC73: 0 | CD73: 0 | CE73: 0 | CF73: 0 | CG73: 0.1704
B74: 3 | C74: 045 | D74: 615 | E74: 143 | G74: 045615 | I74: LED | J74: No Pole | K74: 171-180W LED | L74: 175L | M74: 0 | N74: 0 | O74: 0 | P74: 0 | Q74: 0 | R74: 0 | S74: 1 | T74: 0 | U74: 0 | V74: 0 | W74: 0 | X74: 0 | Y74: 7.07 | AA74: 0 | AB74: 0 | AC74: 0 | AD74: 0 | AE74: 0 | AF74: 0 | AI74: 0 | AJ74: 0 | AK74: 0 | AL74: 0 | AM74: 0 | AN74: 0 | AO74: 175L | AP74: 1 | AQ74: 0 | AR74: 0 | AS74: 0 | AT74: 0 | AU74: 0 | AV74: 7.1 | AX74: 0 | AY74: 0 | AZ74: 0 | BA74: 0 | BB74: 0 | BC74: 0 | BE74: 63 | BF74: 0.74907 | BG74: 0 | BH74: 0 | BI74: 0 | BJ74: 0 | BK74: 0 | BL74: 0 | BS74: 7.06 | BU74: 0 | BV74: 0 | BW74: 0 | BX74: 0 | BY74: 0 | BZ74: 7.18 | CB74: 0 | CC74: 0 | CD74: 0 | CE74: 0 | CF74: 0 | CG74: 0.1944
E75: =SUM(E72:E74) -> 170 | I75: LED | J75: No Pole | K75: 181-190W LED | L75: 185L | M75: 0 | N75: 0 | O75: 0 | P75: 0 | Q75: 0 | R75: 0 | S75: 1 | T75: 0 | U75: 0 | V75: 0 | W75: 0 | X75: 0 | Y75: 7.52 | AA75: 0 | AB75: 0 | AC75: 0 | AD75: 0 | AE75: 0 | AF75: 0 | AI75: 0 | AJ75: 0 | AK75: 0 | AL75: 0 | AM75: 0 | AN75: 0 | AO75: 185L | AP75: 1 | AQ75: 0 | AR75: 0 | AS75: 0 | AT75: 0 | AU75: 0 | AV75: 7.55 | AX75: 0 | AY75: 0 | AZ75: 0 | BA75: 0 | BB75: 0 | BC75: 0 | BE75: 67 | BF75: 0.79663 | BG75: 0 | BH75: 0 | BI75: 0 | BJ75: 0 | BK75: 0 | BL75: 0 | BS75: 7.53 | BU75: 0 | BV75: 0 | BW75: 0 | BX75: 0 | BY75: 0 | BZ75: 7.62 | CB75: 0 | CC75: 0 | CD75: 0 | CE75: 0 | CF75: 0 | CG75: 0.1884
I76: LED | J76: No Pole | K76: 191-200W LED | L76: 195L | M76: 0 | N76: 0 | O76: 0 | P76: 0 | Q76: 0 | R76: 0 | S76: 1 | T76: 0 | U76: 0 | V76: 0 | W76: 0 | X76: 0 | Y76: 7.86 | AA76: 0 | AB76: 0 | AC76: 0 | AD76: 0 | AE76: 0 | AF76: 0 | AI76: 0 | AJ76: 0 | AK76: 0 | AL76: 0 | AM76: 0 | AN76: 0 | AO76: 195L | AP76: 1 | AQ76: 0 | AR76: 0 | AS76: 0 | AT76: 0 | AU76: 0 | AV76: 7.89 | AX76: 0 | AY76: 0 | AZ76: 0 | BA76: 0 | BB76: 0 | BC76: 0 | BE76: 70 | BF76: 0.8323 | BG76: 0 | BH76: 0 | BI76: 0 | BJ76: 0 | BK76: 0 | BL76: 0 | BS76: 7.87 | BU76: 0 | BV76: 0 | BW76: 0 | BX76: 0 | BY76: 0 | BZ76: 7.97 | CB76: 0 | CC76: 0 | CD76: 0 | CE76: 0 | CF76: 0 | CG76: 0.1912
B77: 3 | C77: 046 | D77: 431 | E77: 0 | G77: 046431 | I77: LED | J77: No Pole | K77: 201-225W LED | L77: 212L | M77: 0 | N77: 0 | O77: 0 | P77: 0 | Q77: 0 | R77: 0 | S77: 1 | T77: 0 | U77: 0 | V77: 0 | W77: 0 | X77: 0 | Y77: 8.64 | AA77: 0 | AB77: 0 | AC77: 0 | AD77: 0 | AE77: 0 | AF77: 0 | AI77: 0 | AJ77: 0 | AK77: 0 | AL77: 0 | AM77: 0 | AN77: 0 | AO77: 212L | AP77: 1 | AQ77: 0 | AR77: 0 | AS77: 0 | AT77: 0 | AU77: 0 | AV77: 8.68 | AX77: 0 | AY77: 0 | AZ77: 0 | BA77: 0 | BB77: 0 | BC77: 0 | BE77: 77 | BF77: 0.91553 | BG77: 0 | BH77: 0 | BI77: 0 | BJ77: 0 | BK77: 0 | BL77: 0 | BS77: 8.65 | BU77: 0 | BV77: 0 | BW77: 0 | BX77: 0 | BY77: 0 | BZ77: 8.77 | CB77: 0 | CC77: 0 | CD77: 0 | CE77: 0 | CF77: 0 | CG77: 0.2188
B78: 3 | C78: 046 | D78: 433 | E78: 0 | G78: =IF(OR(ISBLANK(C78),ISBLANK(D78)),"",TEXT(C78,"000")&TEXT(D78,"000")) -> 046433 | I78: LED | J78: No Pole | K78: 226-250W LED | L78: 237L | M78: 0 | N78: 0 | O78: 0 | P78: 0 | Q78: 0 | R78: 0 | S78: 1 | T78: 0 | U78: 0 | V78: 0 | W78: 0 | X78: 0 | Y78: 9.65 | AA78: 0 | AB78: 0 | AC78: 0 | AD78: 0 | AE78: 0 | AF78: 0 | AI78: 0 | AJ78: 0 | AK78: 0 | AL78: 0 | AM78: 0 | AN78: 0 | AO78: 237L | AP78: 1 | AQ78: 0 | AR78: 0 | AS78: 0 | AT78: 0 | AU78: 0 | AV78: 9.69 | AX78: 0 | AY78: 0 | AZ78: 0 | BA78: 0 | BB78: 0 | BC78: 0 | BE78: 86 | BF78: 1.02254 | BG78: 0 | BH78: 0 | BI78: 0 | BJ78: 0 | BK78: 0 | BL78: 0 | BS78: 9.65 | BU78: 0 | BV78: 0 | BW78: 0 | BX78: 0 | BY78: 0 | BZ78: 9.79 | CB78: 0 | CC78: 0 | CD78: 0 | CE78: 0 | CF78: 0 | CG78: 0.248
B79: 3 | C79: 046 | D79: 434 | E79: 0 | G79: =IF(OR(ISBLANK(C79),ISBLANK(D79)),"",TEXT(C79,"000")&TEXT(D79,"000")) -> 046434 | I79: Single High-Pressure LED | J79: Developer Contributed (LED Only) | K79: 400W | L79: 836L | M79: 0 | N79: 0 | O79: 0 | P79: 0 | Q79: 0 | R79: 0 | S79: 1 | T79: 0 | U79: 43.55 | V79: 0 | W79: 0 | X79: 0 | Y79: 0 | AA79: =IF(AND(M79<>0,T79=0),#VALUE!,M79*T79) -> 0 | AB79: 0 | AC79: 0 | AD79: 0 | AE79: 0 | AF79: 0 | AI79: =M79 -> 0 | AJ79: 0 | AK79: 0 | AL79: 0 | AM79: 0 | AN79: 0 | AO79: 836L | AP79: 1 | AQ79: =ROUND(T79*IF(T79>0,1+AQ$1),2) -> 0 | AR79: 43.73 | AS79: 0 | AT79: 0 | AU79: 0 | AV79: 0 | AX79: =IF(AND(AI79<>0,AQ79=0),#VALUE!,AI79*AQ79) -> 0 | AY79: 0 | AZ79: 0 | BA79: 0 | BB79: 0 | BC79: 0 | BE79: 83 | BF79: 0.98687 | BG79: 0 | BH79: 0 | BI79: 0 | BJ79: 0 | BK79: 0 | BL79: 0 | BO79: 39.91 | BU79: =ROUND(IF(AQ79=0,0,AQ79*1.036+ROUND($BE79*-0.00292,2)),2) -> 0 | BV79: 45.06 | BW79: 0 | BX79: 0 | BY79: 0 | BZ79: =ROUND(IF(AV79=0,0,AV79*1.036+ROUND($BE79*-0.00292,2)),2) -> 0 | CB79: =T79*$CB$2+IF(ISNUMBER(BN79),ROUND($BF79,2),0)-BN79 -> 0 | CC79: 1.146 | CD79: 0 | CE79: 0 | CF79: 0 | CG79: 0
B80: 3 | C80: 046 | D80: 435 | E80: 106 | G80: =IF(OR(ISBLANK(C80),ISBLANK(D80)),"",TEXT(C80,"000")&TEXT(D80,"000")) -> 046435 | I80: Decorative LED | J80: No Pole (LED only) | K80: Granville 100W | L80: 475L | M80: 0 | N80: 0 | O80: 0 | P80: 0 | Q80: 0 | R80: 0 | S80: =IF(SUM(M80:R80)>0,0,1) -> 1 | T80: 0 | U80: 22.01 | V80: 0 | W80: 0 | X80: 0 | Y80: 0 | AI80: 0 | AJ80: 0 | AK80: 0 | AL80: 0 | AM80: 0 | AN80: 0 | AO80: 475L | AP80: 1 | AQ80: 0 | AR80: 22.1 | AS80: 0 | AT80: 0 | AU80: 0 | AV80: 0 | AX80: 0 | AY80: 0 | AZ80: 0 | BA80: 0 | BB80: 0 | BC80: 0 | BE80: 26 | BF80: 0.30914 | BO80: 19.99 | BU80: 0 | BV80: 22.82 | BW80: 0 | BX80: 0 | BY80: 0 | BZ80: 0 | CB80: 0 | CC80: 0.5692 | CD80: 0 | CE80: 0 | CF80: 0 | CG80: 0
B81: 3 | C81: 046 | D81: 531 | E81: 0 | G81: =IF(OR(ISBLANK(C81),ISBLANK(D81)),"",TEXT(C81,"000")&TEXT(D81,"000")) -> 046531 | I81: Double High-Pressure Sodium Vapor | J81: Direct Burial | K81: 100W | L81: 443 | M81: 0 | N81: 0 | O81: 0 | P81: 0 | Q81: 0 | R81: 0 | S81: 1 | T81: 0 | U81: 0 | V81: 0 | W81: 0 | X81: 0 | Y81: 0 | AI81: 0 | AJ81: 0 | AK81: 0 | AL81: 0 | AM81: 0 | AN81: 0 | AO81: =L81 -> 443 | AP81: 1 | AQ81: 0 | AR81: 0 | AS81: 0 | AT81: 0 | AU81: 0 | AV81: 0 | AX81: 0 | AY81: 0 | AZ81: 0 | BA81: 0 | BB81: 0 | BC81: 0 | BE81: 80 | BF81: 0.9512 | BU81: 0 | BV81: 0 | BW81: 0 | BX81: 0 | BY81: 0 | BZ81: 0 | CB81: 0 | CC81: 0 | CD81: 0 | CE81: 0 | CF81: 0 | CG81: 0
B82: 3 | C82: 046 | D82: 535 | E82: 7 | G82: 046535 | I82: Single Mercury Vapor | J82: Pedestal Base | K82: 10000 | L82: 512 | M82: 0 | N82: 0 | O82: 0 | P82: 0 | Q82: 0 | R82: 0 | S82: 1 | T82: 0 | U82: 0 | V82: 0 | W82: 0 | X82: 0 | Y82: 0 | AI82: 0 | AJ82: 0 | AK82: 0 | AL82: 0 | AM82: 0 | AN82: 0 | AO82: 512 | AP82: 1 | AQ82: 0 | AR82: 0 | AS82: 0 | AT82: 0 | AU82: 0 | AV82: 0 | AX82: 0 | AY82: 0 | AZ82: 0 | BA82: 0 | BB82: 0 | BC82: 0 | BE82: 111 | BF82: 1.31979 | BU82: 0 | BV82: 0 | BW82: 0 | BX82: 0 | BY82: 0 | BZ82: 0 | CB82: 0 | CC82: 0 | CD82: =V82*$CB$2+IF(ISNUMBER(BP82),ROUND($BF82,2),0)-BP82 -> 0 | CE82: 0 | CF82: 0 | CG82: 0
B83: 3 | C83: 046 | D83: 635 | E83: 279 | G83: 046635 | I83: LED | J83: 35 ft Fiberglass Direct Burial | K83: 107W | L83: 594L | M83: 0 | N83: 0 | O83: 0 | P83: 0 | Q83: 0 | R83: 0 | S83: 1 | T83: 0 | U83: 29.54 | V83: 0 | W83: 0 | X83: 0 | Y83: 0 | AI83: 0 | AJ83: 0 | AK83: 0 | AL83: 0 | AM83: 0 | AN83: 0 | AO83: 594L | AP83: 1 | AQ83: 0 | AR83: 29.66 | AS83: 0 | AT83: 0 | AU83: 0 | AV83: 0 | AX83: 0 | AY83: 0 | AZ83: 0 | BA83: 0 | BB83: 0 | BC83: 0 | BE83: 39 | BF83: 0.46371 | BO83: 26.87 | BU83: 0 | BV83: 30.62 | BW83: 0 | BX83: 0 | BY83: 0 | BZ83: 0 | CB83: 0 | CC83: 0.7668 | CD83: 0 | CE83: 0 | CF83: 0 | CG83: 0
B84: 3 | C84: 046 | D84: 735 | E84: 174 | G84: 046735 | I84: Double High-Pressure Sodium Vapor | J84: Direct Burial | K84: 200W | L84: 543 | M84: 0 | N84: 0 | O84: 0 | P84: 0 | Q84: 0 | R84: 0 | S84: =IF(SUM(M84:R84)>0,0,1) -> 1 | T84: 0 | U84: 0 | V84: 0 | W84: 0 | X84: 0 | Y84: 0 | AI84: 0 | AJ84: 0 | AK84: 0 | AL84: 0 | AM84: 0 | AN84: 0 | AO84: =L84 -> 543 | AP84: 1 | AQ84: 0 | AR84: 0 | AS84: 0 | AT84: 0 | AU84: 0 | AV84: 0 | AX84: 0 | AY84: 0 | AZ84: 0 | BA84: 0 | BB84: 0 | BC84: 0 | BE84: 170 | BF84: 2.0213 | BU84: 0 | BV84: 0 | BW84: 0 | BX84: 0 | BY84: 0 | BZ84: 0 | CB84: 0 | CC84: 0 | CD84: 0 | CE84: 0 | CF84: 0 | CG84: 0
B85: 3 | C85: 046 | D85: 835 | E85: 106 | G85: =IF(OR(ISBLANK(C85),ISBLANK(D85)),"",TEXT(C85,"000")&TEXT(D85,"000")) -> 046835 | I85: Single High-Pressure Sodium Vapor | J85: Wood Pole | K85: 310W | L85: 731 | M85: 0 | N85: 0 | O85: 0 | P85: 0 | Q85: 0 | R85: 0 | S85: 1 | T85: 0 | U85: 0 | V85: 0 | W85: 0 | X85: 0 | Y85: 0 | AI85: 0 | AJ85: 0 | AK85: 0 | AL85: 0 | AM85: 0 | AN85: 0 | AO85: 731 | AP85: 1 | AQ85: 0 | AR85: 0 | AS85: 0 | AT85: 0 | AU85: 0 | AV85: 0 | AX85: 0 | AY85: 0 | AZ85: 0 | BA85: 0 | BB85: 0 | BC85: 0 | BE85: 133 | BF85: 1.58137 | BU85: 0 | BV85: 0 | BW85: 0 | BX85: 0 | BY85: 0 | BZ85: 0 | CB85: 0 | CC85: 0 | CD85: 0 | CE85: 0 | CF85: 0 | CG85: 0
B86: 3 | C86: 046 | D86: 935 | E86: 34 | G86: =IF(OR(ISBLANK(C86),ISBLANK(D86)),"",TEXT(C86,"000")&TEXT(D86,"000")) -> 046935 | I86: Single High-Pressure Sodium Vapor | J86: Pedestal Base | K86: 310W | L86: 732 | M86: 0 | N86: 0 | O86: 0 | P86: 0 | Q86: 0 | R86: 0 | S86: 1 | T86: 0 | U86: 0 | V86: 0 | W86: 0 | X86: 0 | Y86: 0 | AI86: 0 | AJ86: 0 | AK86: 0 | AL86: 0 | AM86: 0 | AN86: 0 | AO86: 732 | AP86: 1 | AQ86: 0 | AR86: 0 | AS86: 0 | AT86: 0 | AU86: 0 | AV86: 0 | AX86: 0 | AY86: 0 | AZ86: 0 | BA86: 0 | BB86: 0 | BC86: 0 | BE86: 133 | BF86: 1.58137 | BU86: 0 | BV86: 0 | BW86: 0 | BX86: 0 | BY86: 0 | BZ86: 0 | CB86: 0 | CC86: 0 | CD86: 0 | CE86: 0 | CF86: 0 | CG86: 0
E87: =SUM(E77:E86) -> 706 | G87: =IF(OR(ISBLANK(C87),ISBLANK(D87)),"",TEXT(C87,"000")&TEXT(D87,"000")) ->  | I87: Single High-Pressure Sodium Vapor | J87: Direct Burial | K87: 310W | L87: 733 | M87: 0 | N87: 0 | O87: 0 | P87: 0 | Q87: 0 | R87: 0 | S87: 1 | T87: 0 | U87: 0 | V87: 0 | W87: 0 | X87: 0 | Y87: 0 | AI87: 0 | AJ87: 0 | AK87: 0 | AL87: 0 | AM87: 0 | AN87: 0 | AO87: 733 | AP87: 1 | AQ87: 0 | AR87: 0 | AS87: 0 | AT87: 0 | AU87: 0 | AV87: 0 | AX87: 0 | AY87: 0 | AZ87: 0 | BA87: 0 | BB87: 0 | BC87: 0 | BE87: 133 | BF87: 1.58137 | BU87: 0 | BV87: 0 | BW87: 0 | BX87: 0 | BY87: 0 | BZ87: 0 | CB87: 0 | CC87: 0 | CD87: 0 | CE87: 0 | CF87: 0 | CG87: 0
G88: =IF(OR(ISBLANK(C88),ISBLANK(D88)),"",TEXT(C88,"000")&TEXT(D88,"000")) ->  | I88: Double High-Pressure Sodium Vapor | J88: Pedestal Base | K88: 310W | L88: 742 | M88: 0 | N88: 0 | O88: 0 | P88: 0 | Q88: 0 | R88: 0 | S88: 1 | T88: 0 | U88: 0 | V88: 0 | W88: 0 | X88: 0 | Y88: 0 | AA88: =IF(AND(M88<>0,T88=0),#VALUE!,M88*T88) -> 0 | AB88: 0 | AC88: 0 | AD88: 0 | AE88: 0 | AF88: 0 | AI88: 0 | AJ88: 0 | AK88: 0 | AL88: 0 | AM88: 0 | AN88: 0 | AO88: 742 | AP88: 1 | AQ88: 0 | AR88: 0 | AS88: 0 | AT88: 0 | AU88: 0 | AV88: 0 | AX88: 0 | AY88: 0 | AZ88: 0 | BA88: 0 | BB88: 0 | BC88: 0 | BE88: 266 | BF88: 3.16274 | BU88: 0 | BV88: 0 | BW88: 0 | BX88: 0 | BY88: 0 | BZ88: 0 | CB88: 0 | CC88: 0 | CD88: 0 | CE88: 0 | CF88: 0 | CG88: 0
B89: 3 | E89: =E14+E48+E53+E70+E75+E87 -> 14575 | G89: =IF(OR(ISBLANK(C89),ISBLANK(D89)),"",TEXT(C89,"000")&TEXT(D89,"000")) ->  | I89: Single High-Pressure LED | J89: Direct Burial (LED Only) | K89: 400W | L89: 833L | M89: =SUMIF($G:$G,TEXT(M$3,"000")&TEXT($L89,"000"),$E:$E) -> 0 | N89: 0 | O89: 0 | P89: 0 | Q89: 0 | R89: 0 | S89: 1 | T89: 0 | U89: 55.87 | V89: 0 | W89: 0 | X89: 0 | Y89: 0 | AA89: 0 | AB89: 0 | AC89: 0 | AD89: 0 | AE89: 0 | AF89: 0 | AI89: 0 | AJ89: 0 | AK89: 0 | AL89: 0 | AM89: 0 | AN89: 0 | AO89: 833L | AP89: 1 | AQ89: 0 | AR89: 56.1 | AS89: 0 | AT89: 0 | AU89: 0 | AV89: 0 | AX89: 0 | AY89: 0 | AZ89: 0 | BA89: 0 | BB89: 0 | BC89: 0 | BE89: 83 | BF89: 0.98687 | BO89: 50.93 | BU89: 0 | BV89: 57.88 | BW89: 0 | BX89: 0 | BY89: 0 | BZ89: 0 | CB89: 0 | CC89: =U89*$CB$2+IF(ISNUMBER(BO89),ROUND($BF89,2),0)-BO89 -> 1.4604 | CD89: 0 | CE89: 0 | CF89: 0 | CG89: 0
I90: Single High-Pressure Sodium Vapor | J90: Wood Pole | K90: 150W | L90: 931 | M90: 0 | N90: 0 | O90: 0 | P90: 0 | Q90: 0 | R90: 0 | S90: 1 | T90: 0 | U90: 0 | V90: 0 | W90: 0 | X90: 0 | Y90: 0 | AA90: 0 | AB90: 0 | AC90: 0 | AD90: 0 | AE90: 0 | AF90: 0 | AI90: 0 | AJ90: 0 | AK90: 0 | AL90: 0 | AM90: 0 | AN90: 0 | AO90: =L90 -> 931 | AP90: 1 | AQ90: 0 | AR90: 0 | AS90: 0 | AT90: 0 | AU90: 0 | AV90: 0 | AX90: 0 | AY90: 0 | AZ90: 0 | BA90: 0 | BB90: 0 | BC90: 0 | BE90: 62 | BF90: 0.73718 | BU90: 0 | BV90: 0 | BW90: 0 | BX90: 0 | BY90: 0 | BZ90: 0 | CB90: 0 | CC90: 0 | CD90: 0 | CE90: 0 | CF90: 0 | CG90: 0
D91: Street Light Summary total, ID | E91: 14575 | I91: Single High-Pressure Sodium Vapor | J91: Pedestal Base | K91: 150W | L91: 932 | M91: 0 | N91: 0 | O91: 0 | P91: 0 | Q91: 0 | R91: 0 | S91: 1 | T91: 0 | U91: 0 | V91: 0 | W91: 0 | X91: 0 | Y91: 0 | AA91: 0 | AB91: 0 | AC91: 0 | AD91: 0 | AE91: 0 | AF91: 0 | AI91: 0 | AJ91: 0 | AK91: 0 | AL91: 0 | AM91: 0 | AN91: 0 | AO91: 932 | AP91: 1 | AQ91: 0 | AR91: 0 | AS91: 0 | AT91: 0 | AU91: 0 | AV91: 0 | AX91: 0 | AY91: 0 | AZ91: 0 | BA91: 0 | BB91: 0 | BC91: 0 | BE91: 62 | BF91: 0.73718 | BU91: 0 | BV91: 0 | BW91: 0 | BX91: 0 | BY91: 0 | BZ91: 0 | CB91: 0 | CC91: 0 | CD91: 0 | CE91: 0 | CF91: 0 | CG91: 0
D92: Area Light Count, ID | E92: ='Area Lts'!E116 -> 5526 | I92: Single High-Pressure Sodium Vapor | J92: Direct Burial | K92: 150W | L92: 933 | M92: 0 | N92: 0 | O92: 0 | P92: 0 | Q92: 0 | R92: 0 | S92: 1 | T92: 0 | U92: 0 | V92: 0 | W92: 0 | X92: 0 | Y92: 0 | AA92: 0 | AB92: 0 | AC92: 0 | AD92: 0 | AE92: 0 | AF92: 0 | AI92: 0 | AJ92: 0 | AK92: 0 | AL92: 0 | AM92: 0 | AN92: 0 | AO92: 933 | AP92: 1 | AQ92: 0 | AR92: 0 | AS92: 0 | AT92: 0 | AU92: 0 | AV92: 0 | AX92: 0 | AY92: 0 | AZ92: 0 | BA92: 0 | BB92: 0 | BC92: 0 | BE92: 62 | BF92: 0.73718 | BU92: 0 | BV92: 0 | BW92: 0 | BX92: 0 | BY92: 0 | BZ92: 0 | CB92: 0 | CC92: 0 | CD92: 0 | CE92: 0 | CF92: 0 | CG92: 0
E93: =E91+E92 -> 20101 | I93: Single Mercury Vapor | J93: Pedestal Base | K93: 20000 | L93: 612 | M93: 0 | N93: 0 | O93: 0 | P93: 0 | Q93: 0 | R93: 0 | S93: =IF(SUM(M93:R93)>0,0,1) -> 1 | T93: 0 | U93: 0 | V93: 0 | W93: 0 | X93: 0 | Y93: 0 | AA93: 0 | AB93: 0 | AC93: 0 | AD93: 0 | AE93: 0 | AF93: 0 | AI93: 0 | AJ93: 0 | AK93: 0 | AL93: 0 | AM93: 0 | AN93: 0 | AO93: 612 | AP93: =IF(SUM(AI93:AN93)>0,0,1) -> 1 | AQ93: 0 | AR93: 0 | AS93: 0 | AT93: 0 | AU93: 0 | AV93: 0 | AX93: 0 | AY93: 0 | AZ93: 0 | BA93: 0 | BB93: 0 | BC93: 0 | BE93: 182 | BF93: =BE93*BF$3 -> 2.16398 | BG93: =AI93*$BF93 -> 0 | BH93: 0 | BI93: 0 | BJ93: 0 | BK93: 0 | BL93: 0 | BU93: 0 | BV93: 0 | BW93: 0 | BX93: 0 | BY93: 0 | BZ93: 0 | CB93: 0 | CC93: 0 | CD93: 0 | CE93: 0 | CF93: 0 | CG93: 0
E94: =E89+'Area Lts'!E115-E93 -> 0

Sheet Area Lts
A1: Area Light Summary | I1: IDAHO Area Lights | V1: Monthly Rev. | AC1: % increase | AD1: ='Lighting summary'!$N$17 -> 0.0042 | AF1: ='Lighting summary'!$N$19 -> 0.0042 | AH1: Monthly Rev. | AM1: Surcharge | AN1: Surch + ResEx | BA1: compare input Present Billing Rates to calculated Present Billing Rates | BE1: compare input Present Billing Rates to current shortcuts
A2: DWWPWMS.AREA_LIGHT_ASMBLY1 Report | N2: # of Lights | R2: Pres. Rates | V2: at Pres. Rates | Z2: # of Lights | AD2: Prop. Rates | AH2: at Prop. Rates | AM2: Schs 47,49 | AN2: Sch 48 | AO2: Mo. Adders @ Pres & Prop Rates | AS2: Pres. Billing Rates | AW2: Prop. Billing Rates | BA2: ='St Lts'!CB2 -> 0.92 | BE2: 1-Pres. Billing; 2-Prop. Billing --> | BH2: 1 | BL2: decrease in PCA revenue
I3: Fixture Type | J3: Pole Facility | K3: Size | L3: Sched | M3: Sched | N3: 047 | O3: 048 | P3: 049 | R3: 047 | S3: 048 | T3: 049 | V3: 047 | W3: 048 | X3: 049 | Z3: 047 | AA3: 048 | AB3: 049 | AD3: 047 | AE3: 048 | AF3: 049 | AH3: 047 | AI3: 048 | AJ3: 049 | AL3: kWh | AM3: =0.0015+0.01039 -> 0.01189 | AN3: =AM3-0.0038 -> 0.00809 | AO3: 047 | AP3: 048 | AQ3: 049 | AS3: 047 | AT3: 048 | AU3: 049 | AW3: 047 | AX3: 048 | AY3: 049 | BA3: 047 | BB3: 048 | BC3: 049 | BE3: Sch 47 | BF3: =SUM(BF4:BF75) ->  | BG3: Sch 48 | BH3: =SUM(BH4:BH75) ->  | BI3: Sch 49 | BJ3: =SUM(BJ4:BJ75) ->  | BL3: 047 | BM3: 048 | BN3: 049
